Workbook

Sheet ★ Introduction
S1: HIDE FROM HERE ACROSS
C3: New Construction and Major Renovation Market Solution - Multifamily Overview
C4: Participate in Energy Trust of Oregon's New Buildings program using this workbook to identify a package of measures that are designed to help multifamily projects achieve above-code levels of performance. This tool allows you to estimate the potential energy savings and incentives for improving the overall efficiency of the building design for both new construction and major renovation projects. When opening the file, ensure macros are enabled if prompted (see screenshot below), as this tool relies on the use of macros.
C6: A high performance design can:
C7: • Improve occupant satisfaction and productivity
C8: • Reduce operating costs and environmental impacts
C12: FOLLOW 4 SIMPLE STEPS TO PARTICIPATE
D14: Use the Early Design Planning worksheet to inform the design process and get an early estimate of potential savings and incentives available for your building design.
D18: After inputing potential design features in Scenario 1-3, return this form to your Energy Trust Outreach Manager. An engineer will evaluate your selections and return the workbook with the results section updated to show potential savings and incentives.
D23: Use the results from the Early Design Planning to finalize the project design features. To apply for incentives, proceed to the Incentive Application and Project Input tabs to complete the application and input full design to finalize savings and incentive estimates. Sign and submit your application per instructions. Applications approved for an incentive reservation will receive a written notice.
D28: Complete installation of all required equipment in your project. Submit a payment request along with all required completion documentation, per instructions on Incentive Application.
D32: Receive incentive payment following project verification by the program.
C37: Get Started
C39: STEP 1 -- INFORM YOUR DESIGN
E41: Use the Early Design Planning worksheet during the design process to select proposed design features. Energy Trust will run energy simulation files on up to three proposed scenarios to estimate energy savings. Please note that all potential savings and incentives identified in the Early Design Planning Worksheet are for estimating purposes only. This worksheet is NOT an incentive offer, application, or commitment.
C43: (Tab 1)
C48: STEP 2 -- APPLY
E50: Based on the final design, add building charactaristics to the Project Input tab and complete the Incentive Application.
C52: (Tab 2)
C55: (Tab 3)
C57: NEED HELP?
C59: If you need further assistance using this workbook, please reach out to your Outreach Manager. If you don’t have an Outreach Manager, email newbuildings@energytrust.org.
P60: ='Version History'!C1 -> 2024v1.1
A62: HIDE FROM HERE DOWN

Sheet 1-Early Design Planning
O1: HIDE FROM HERE ACROSS
C3: Early Design Planning Tool
C4: This worksheet is used during early design to compare the relative energy performance of multiple design scenarios using prototypical multifamily buildings. Estimates of cash incentives for the different design scenarios may be used to inform your building design.
C5: PROJECT INFORMATION
D7: Project Name: | I7: Color Legend:
D8: Project City: | J8: Required
D9: Project Zip Code: | J9: Autofill | P9: ASHRAE CZ: | Q9: =IFERROR(VLOOKUP(E9,Lists!$K$19:$N$502,4,FALSE),"") -> 
D10: Total Square Footage: | J10: Less efficient than code
D11: Project Square Footage: | J11: More efficient than code
D12: Total Number of Floors: | J12: Unavailable for selection
D13: Total Number of Residential Floors:
D14: Building Type: | E14: =IF(AND(E12<>"",E13<>""),IF(E12<4,"Low Rise",IF(E12<10,"Mid Rise","High Rise")),"") ->  | P14: Code Reference: | Q14: =IF(E14="Low Rise","iecc2018","90.1-2019") -> 90.1-2019
D15: Target EUI
D16: Code EUI
C18: BUILDING INFORMATION
C20: For each scenario, identify the inputs for each building characteristics identifed. Defaults are shown in italics as a guide for example scenarios that achieve each incentive tier.
C22: Based on your Building Type (Low Rise, Mid Rise, or High Rise), Scenarios 1, 2, and 3 are auto-populated as examples of Good, Better, Best incentive tier. Values in blue and green can be changed to customize your project.
G27: (If you wish to populate with suggested default scenarios use the buttons above) | T27: =IF(T29<0.05,"Does not qualify",IF(T29<0.1,"Good",IF(T29<0.15,"Better","Best"))) -> Does not qualify | U27: =IF(U29<0.05,"Does not qualify",IF(U29<0.1,"Good",IF(U29<0.15,"Better","Best"))) -> Does not qualify | V27: Does not qualify
F28: Predicted Tier: | G28: =T27 -> Does not qualify | I28: =U27 -> Does not qualify | K28: =V27 -> Does not qualify | P28: MAD Example Scenarios: | T28: EUI % savings Scorecard | X28: Restore Formulas: | AB28: Best MAD Example Values: | AE28: EUI % savings Lookups
F29: Predicted Incentive: | G29: =IF(G28="Does not qualify","-",IF(G28="Good",'2-Incentive Application'!$L$25*$E$11,IF(G28="Better",'2-Incentive Application'!$L$26*$E$11,IF(G28="Best",'2-Incentive Application'!$L$27*$E$11,"")))) -> - | I29: =IF(I28="Does not qualify","-",IF(I28="Good",'2-Incentive Application'!$L$25*$E$11,IF(I28="Better",'2-Incentive Application'!$L$26*$E$11,IF(I28="Best",'2-Incentive Application'!$L$27*$E$11,"")))) -> - | K29: =IF(K28="Does not qualify","-",IF(K28="Good",'2-Incentive Application'!$L$25*$E$11,IF(K28="Better",'2-Incentive Application'!$L$26*$E$11,IF(K28="Best",'2-Incentive Application'!$L$27*$E$11,"")))) -> - | P29: Good | Q29: Better | R29: Best | T29: =SUM(T31:T70) -> 0 | U29: =SUM(U31:U70) -> 0 | V29: =SUM(V31:V70) -> 0 | AB29: Not used | AE29: =HLOOKUP($E$14&$Q$9,Lists!$DU$2:$DZ$3,2,FALSE) ->  | AF29: =HLOOKUP($E$14&$Q$9,Lists!$DU$2:$DZ$3,2,FALSE) ->  | AG29: =HLOOKUP($E$14&$Q$9,Lists!$DU$2:$DZ$3,2,FALSE) -> 
D30: Building Characteristics | E30: Code Reference Values | F30: Unit of Measure | G30: Scenario 1 | H30: Unit of Measure | I30: Scenario 2 | J30: Unit of Measure | K30: Scenario 3 | L30: Unit of Measure | P30: Scenario 1 | Q30: Scenario 2 | R30: Scenario 3 | T30: 1 | U30: 2 | V30: 3 | X30: Scenario 1 | Y30: Scenario 2 | Z30: Scenario 3 | AB30: Modeled Value | AC30: Derate Factor | AE30: 1 | AF30: 2 | AG30: 3
C31: Envelope | D31: Wall Insulation - continuous insulation (R-value) | E31: =IF(AND($E$14<>"",$Q$9<>""),VLOOKUP($E$14&$Q$9,Lists!$CB$19:$DA$24,O31,FALSE),"") ->  | F31: R-value | H31: R-value | J31: R-value | L31: R-value | O31: 4 | P31: =VLOOKUP($P$29&$E$14&$Q$9,Lists!$CB$31:$CZ$49,$O31+1,FALSE) ->  | Q31: =VLOOKUP($Q$29&$E$14&$Q$9,Lists!$CB$31:$CZ$49,$O31+1,FALSE) ->  | R31: =VLOOKUP($R$29&$E$14&$Q$9,Lists!$CB$31:$CZ$49,$O31+1,FALSE) ->  | T31: =IFERROR(VLOOKUP(AE31,Lists!$DT$5:$DZ$30,AE$29,FALSE),0) -> 0 | U31: =IFERROR(VLOOKUP(AF31,Lists!$DT$5:$DZ$30,AF$29,FALSE),0) -> 0 | V31: =IFERROR(VLOOKUP(AG31,Lists!$DT$5:$DZ$30,AG$29,FALSE),0) -> 0 | X31: =$P31 ->  | Y31: =$Q31 ->  | Z31: =$R31 ->  | AB31: 16 | AC31: =IFERROR(1/COUNTIF($S$31:$S$70,S31),0) -> 0 | AE31: =IF(G31="",0,IF(G31>$E31,"E2",0)) -> 0 | AF31: =IF(I31="",0,IF(I31>$E31,"E2",0)) -> 0 | AG31: =IF(K31="",0,IF(K31>$E31,"E2",0)) -> 0
D32: Wall Insulation - cavity (R-value) | E32: =IF(AND($E$14<>"",$Q$9<>""),VLOOKUP($E$14&$Q$9,Lists!$CB$19:$DA$24,O32,FALSE),"") ->  | F32: R-value | H32: R-value | J32: R-value | L32: R-value | O32: 5 | P32: =VLOOKUP($P$29&$E$14&$Q$9,Lists!$CB$31:$CZ$49,$O32+1,FALSE) ->  | Q32: =VLOOKUP($Q$29&$E$14&$Q$9,Lists!$CB$31:$CZ$49,$O32+1,FALSE) ->  | R32: =VLOOKUP($R$29&$E$14&$Q$9,Lists!$CB$31:$CZ$49,$O32+1,FALSE) ->  | T32: =IFERROR(VLOOKUP(AE32,Lists!$DT$5:$DZ$30,AE$29,FALSE),0) -> 0 | U32: =IFERROR(VLOOKUP(AF32,Lists!$DT$5:$DZ$30,AF$29,FALSE),0) -> 0 | V32: =IFERROR(VLOOKUP(AG32,Lists!$DT$5:$DZ$30,AG$29,FALSE),0) -> 0 | X32: =$P32 ->  | Y32: =$Q32 ->  | Z32: =$R32 ->  | AB32: 21 | AC32: =IFERROR(1/COUNTIF($S$31:$S$70,S32),0) -> 0 | AE32: =IF(G32="",0,IF(AND(G32>$E32,AE31=0),"E2",0)) -> 0 | AF32: =IF(I32="",0,IF(AND(I32>$E32,AF31=0),"E2",0)) -> 0 | AG32: =IF(K32="",0,IF(AND(K32>$E32,AG31=0),"E2",0)) -> 0
D33: Roof Insulation - entirely above deck (R-value) | E33: =IF(AND($E$14<>"",$Q$9<>""),VLOOKUP($E$14&$Q$9,Lists!$CB$19:$DA$24,O33,FALSE),"") ->  | F33: R-value | H33: R-value | J33: R-value | L33: R-value | O33: 6 | P33: =VLOOKUP($P$29&$E$14&$Q$9,Lists!$CB$31:$CZ$49,$O33+1,FALSE) ->  | Q33: =VLOOKUP($Q$29&$E$14&$Q$9,Lists!$CB$31:$CZ$49,$O33+1,FALSE) ->  | R33: =VLOOKUP($R$29&$E$14&$Q$9,Lists!$CB$31:$CZ$49,$O33+1,FALSE) ->  | T33: =IFERROR(VLOOKUP(AE33,Lists!$DT$5:$DZ$30,AE$29,FALSE),0) -> 0 | U33: =IFERROR(VLOOKUP(AF33,Lists!$DT$5:$DZ$30,AF$29,FALSE),0) -> 0 | V33: =IFERROR(VLOOKUP(AG33,Lists!$DT$5:$DZ$30,AG$29,FALSE),0) -> 0 | AB33: 49 | AC33: 0 | AE33: =IF(G33="",0,IF(G33>$E33,"E3",0)) -> 0 | AF33: =IF(I33="",0,IF(I33>$E33,"E3",0)) -> 0 | AG33: =IF(K33="",0,IF(K33>$E33,"E3",0)) -> 0
D34: Attic Roof Insulation - Cavity (R-value) | E34: =IF(AND($E$14<>"",$Q$9<>""),VLOOKUP($E$14&$Q$9,Lists!$CB$19:$DA$24,O34,FALSE),"") ->  | F34: R-value | H34: R-value | J34: R-value | L34: R-value | O34: 7 | P34: =VLOOKUP($P$29&$E$14&$Q$9,Lists!$CB$31:$CZ$49,$O34+1,FALSE) ->  | Q34: =VLOOKUP($Q$29&$E$14&$Q$9,Lists!$CB$31:$CZ$49,$O34+1,FALSE) ->  | R34: =VLOOKUP($R$29&$E$14&$Q$9,Lists!$CB$31:$CZ$49,$O34+1,FALSE) ->  | T34: =IFERROR(VLOOKUP(AE34,Lists!$DT$5:$DZ$30,AE$29,FALSE),0) -> 0 | U34: =IFERROR(VLOOKUP(AF34,Lists!$DT$5:$DZ$30,AF$29,FALSE),0) -> 0 | V34: =IFERROR(VLOOKUP(AG34,Lists!$DT$5:$DZ$30,AG$29,FALSE),0) -> 0 | AB34: 0 | AC34: 0
D35: Foundation Insulation (R-value) | E35: =IF(AND($E$14<>"",$Q$9<>""),VLOOKUP($E$14&$Q$9,Lists!$CB$19:$DA$24,O35,FALSE),"") ->  | F35: R-value | H35: R-value | J35: R-value | L35: R-value | O35: 8 | P35: =VLOOKUP($P$29&$E$14&$Q$9,Lists!$CB$31:$CZ$49,$O35+1,FALSE) ->  | Q35: =VLOOKUP($Q$29&$E$14&$Q$9,Lists!$CB$31:$CZ$49,$O35+1,FALSE) ->  | R35: =VLOOKUP($R$29&$E$14&$Q$9,Lists!$CB$31:$CZ$49,$O35+1,FALSE) ->  | T35: =IFERROR(VLOOKUP(AE35,Lists!$DT$5:$DZ$30,AE$29,FALSE),0) -> 0 | U35: =IFERROR(VLOOKUP(AF35,Lists!$DT$5:$DZ$30,AF$29,FALSE),0) -> 0 | V35: =IFERROR(VLOOKUP(AG35,Lists!$DT$5:$DZ$30,AG$29,FALSE),0) -> 0 | AB35: 25 | AC35: 0 | AE35: =IF(G35="",0,IF(G35>$E35,"E2",0)) -> 0 | AF35: =IF(I35="",0,IF(I35>$E35,"E2",0)) -> 0 | AG35: =IF(K35="",0,IF(K35>$E35,"E2",0)) -> 0
D36: Air Tightness (CFM/sq ft at 0.3 in) | E36: =IF(AND($E$14<>"",$Q$9<>""),VLOOKUP($E$14&$Q$9,Lists!$CB$19:$DA$24,O36,FALSE),"") ->  | F36: cfm/sq ft at 0.3 inH2O | H36: cfm/sq ft at 0.3 inH2O | J36: cfm/sq ft at 0.3 inH2O | L36: cfm/sq ft at 0.3 inH2O | O36: 9 | P36: =VLOOKUP($P$29&$E$14&$Q$9,Lists!$CB$31:$CZ$49,$O36+1,FALSE) ->  | Q36: =VLOOKUP($Q$29&$E$14&$Q$9,Lists!$CB$31:$CZ$49,$O36+1,FALSE) ->  | R36: =VLOOKUP($R$29&$E$14&$Q$9,Lists!$CB$31:$CZ$49,$O36+1,FALSE) ->  | T36: =IFERROR(VLOOKUP(AE36,Lists!$DT$5:$DZ$30,AE$29,FALSE),0) -> 0 | U36: =IFERROR(VLOOKUP(AF36,Lists!$DT$5:$DZ$30,AF$29,FALSE),0) -> 0 | V36: =IFERROR(VLOOKUP(AG36,Lists!$DT$5:$DZ$30,AG$29,FALSE),0) -> 0 | AB36: 0.08 | AC36: 0 | AE36: =IF(G36="",0,IF(G36<$E36,"E4",0)) -> 0 | AF36: =IF(I36="",0,IF(I36<$E36,"E4",0)) -> 0 | AG36: =IF(K36="",0,IF(K36<$E36,"E4",0)) -> 0
D37: Window - U-Value | E37: =IF(AND($E$14<>"",$Q$9<>""),VLOOKUP($E$14&$Q$9,Lists!$CB$19:$DA$24,O37,FALSE),"") ->  | F37: U-value | H37: U-value | J37: U-value | L37: U-value | O37: 10 | P37: =VLOOKUP($P$29&$E$14&$Q$9,Lists!$CB$31:$CZ$49,$O37+1,FALSE) ->  | Q37: =VLOOKUP($Q$29&$E$14&$Q$9,Lists!$CB$31:$CZ$49,$O37+1,FALSE) ->  | R37: =VLOOKUP($R$29&$E$14&$Q$9,Lists!$CB$31:$CZ$49,$O37+1,FALSE) ->  | T37: =IFERROR(VLOOKUP(AE37,Lists!$DT$5:$DZ$30,AE$29,FALSE),0) -> 0 | U37: =IFERROR(VLOOKUP(AF37,Lists!$DT$5:$DZ$30,AF$29,FALSE),0) -> 0 | V37: =IFERROR(VLOOKUP(AG37,Lists!$DT$5:$DZ$30,AG$29,FALSE),0) -> 0 | AB37: 0.22 | AC37: 0 | AE37: =IF(G37="",0,IF(G37<$E37,"E1",0)) -> 0 | AF37: =IF(I37="",0,IF(I37<$E37,"E1",0)) -> 0 | AG37: =IF(K37="",0,IF(K37<$E37,"E1",0)) -> 0
D38: Window - SHGC | E38: =IF(AND($E$14<>"",$Q$9<>""),VLOOKUP($E$14&$Q$9,Lists!$CB$19:$DA$24,O38,FALSE),"") ->  | F38: SHGC | H38: SHGC | J38: SHGC | L38: SHGC | O38: 11 | P38: =VLOOKUP($P$29&$E$14&$Q$9,Lists!$CB$31:$CZ$49,$O38+1,FALSE) ->  | Q38: =VLOOKUP($Q$29&$E$14&$Q$9,Lists!$CB$31:$CZ$49,$O38+1,FALSE) ->  | R38: =VLOOKUP($R$29&$E$14&$Q$9,Lists!$CB$31:$CZ$49,$O38+1,FALSE) ->  | T38: =IFERROR(VLOOKUP(AE38,Lists!$DT$5:$DZ$30,AE$29,FALSE),0) -> 0 | U38: =IFERROR(VLOOKUP(AF38,Lists!$DT$5:$DZ$30,AF$29,FALSE),0) -> 0 | V38: =IFERROR(VLOOKUP(AG38,Lists!$DT$5:$DZ$30,AG$29,FALSE),0) -> 0 | AB38: 0.28 | AC38: 0 | AE38: =IF(G38="",0,IF(AND(G38<$E38,AE37=0),"E1",0)) -> 0 | AF38: =IF(I38="",0,IF(AND(I38<$E38,AF37=0),"E1",0)) -> 0 | AG38: =IF(K38="",0,IF(AND(K38<$E38,AG37=0),"E2",0)) -> 0
D39: Window-to-Wall Ratio | E39: =IF(AND($E$14<>"",$Q$9<>""),IF(G39>0.4,0.4,IF(G39="",VLOOKUP($E$14&$Q$9,Lists!$CB$19:$DA$24,O39,FALSE),G39)),"") ->  | F39: n/a | H39: n/a | J39: n/a | L39: n/a | O39: 12 | P39: =VLOOKUP($P$29&$E$14&$Q$9,Lists!$CB$31:$CZ$49,$O39+1,FALSE) ->  | Q39: =VLOOKUP($Q$29&$E$14&$Q$9,Lists!$CB$31:$CZ$49,$O39+1,FALSE) ->  | R39: =VLOOKUP($R$29&$E$14&$Q$9,Lists!$CB$31:$CZ$49,$O39+1,FALSE) ->  | T39: =IFERROR(VLOOKUP(AE39,Lists!$DT$5:$DZ$30,AE$29,FALSE),0) -> 0 | U39: =IFERROR(VLOOKUP(AF39,Lists!$DT$5:$DZ$30,AF$29,FALSE),0) -> 0 | V39: =IFERROR(VLOOKUP(AG39,Lists!$DT$5:$DZ$30,AG$29,FALSE),0) -> 0 | AB39: 0.25 | AC39: 0 | AE39: =IF(G39="",0,IF(G39<$E39,"E5",0)) -> 0 | AF39: =IF(I39="",0,IF(I39<$E39,"E5",0)) -> 0 | AG39: =IF(K39="",0,IF(K39<$E39,"E5",0)) -> 0
D40: Window Overhangs (Y or N) | E40: =IF(AND($E$14<>"",$Q$9<>""),VLOOKUP($E$14&$Q$9,Lists!$CB$19:$DA$24,O40,FALSE),"") ->  | F40: n/a | H40: n/a | J40: n/a | L40: n/a | O40: 13 | P40: =VLOOKUP($P$29&$E$14&$Q$9,Lists!$CB$31:$CZ$49,$O40+1,FALSE) ->  | Q40: =VLOOKUP($Q$29&$E$14&$Q$9,Lists!$CB$31:$CZ$49,$O40+1,FALSE) ->  | R40: =VLOOKUP($R$29&$E$14&$Q$9,Lists!$CB$31:$CZ$49,$O40+1,FALSE) ->  | T40: =IFERROR(VLOOKUP(AE40,Lists!$DT$5:$DZ$30,AE$29,FALSE),0) -> 0 | U40: =IFERROR(VLOOKUP(AF40,Lists!$DT$5:$DZ$30,AF$29,FALSE),0) -> 0 | V40: =IFERROR(VLOOKUP(AG40,Lists!$DT$5:$DZ$30,AG$29,FALSE),0) -> 0 | AB40: Y | AC40: 0 | AE40: =IF(G40="Y","E6",0) -> 0 | AF40: =IF(I40="Y","E6",0) -> 0 | AG40: =IF(K40="Y","E6",0) -> 0
C41: Heating, Ventilating, and Air Conditioning System | D41: Cooling System Type | E41: =IF(AND($E$14<>"",$Q$9<>""),"PTAC - DX coils","") ->  | F41: n/a | H41: n/a | J41: n/a | L41: n/a | O41: 26 | P41: =VLOOKUP($P$29&$E$14&$Q$9,Lists!$CB$31:$DP$49,$O41+1,FALSE) ->  | Q41: =VLOOKUP($Q$29&$E$14&$Q$9,Lists!$CB$31:$DP$49,$O41+1,FALSE) ->  | R41: =VLOOKUP($R$29&$E$14&$Q$9,Lists!$CB$31:$DP$49,$O41+1,FALSE) ->  | T41: =IFERROR(VLOOKUP(AE41,Lists!$DT$5:$DZ$30,AE$29,FALSE),0) -> 0 | U41: =IFERROR(VLOOKUP(AF41,Lists!$DT$5:$DZ$30,AF$29,FALSE),0) -> 0 | V41: =IFERROR(VLOOKUP(AG41,Lists!$DT$5:$DZ$30,AG$29,FALSE),0) -> 0 | AC41: 0 | AE41: =IFERROR(VLOOKUP(G41,Lists!$EB$5:$EC$7,2,FALSE),0) -> 0 | AF41: =IFERROR(VLOOKUP(I41,Lists!$EB$5:$EC$7,2,FALSE),0) -> 0 | AG41: =IFERROR(VLOOKUP(K41,Lists!$EB$5:$EC$7,2,FALSE),0) -> 0
D42: Cooling Efficiency | E42: =IF(AND($E$14<>"",$Q$9<>""),10.4,"") ->  | F42: EER | H42: EER | J42: EER | L42: EER | O42: 27 | P42: =VLOOKUP($P$29&$E$14&$Q$9,Lists!$CB$31:$DP$49,$O42+1,FALSE) ->  | Q42: =VLOOKUP($Q$29&$E$14&$Q$9,Lists!$CB$31:$DP$49,$O42+1,FALSE) ->  | R42: =VLOOKUP($R$29&$E$14&$Q$9,Lists!$CB$31:$DP$49,$O42+1,FALSE) ->  | T42: =IFERROR(VLOOKUP(AE42,Lists!$DT$5:$DZ$30,AE$29,FALSE),0) -> 0 | U42: =IFERROR(VLOOKUP(AF42,Lists!$DT$5:$DZ$30,AF$29,FALSE),0) -> 0 | V42: =IFERROR(VLOOKUP(AG42,Lists!$DT$5:$DZ$30,AG$29,FALSE),0) -> 0 | AB42: 12 | AC42: 0
D43: Heating Fuel | E43: =IF(AND($E$14<>"",$Q$9<>""),"Gas","") ->  | F43: n/a | H43: n/a | J43: n/a | L43: n/a | O43: 28 | P43: =VLOOKUP($P$29&$E$14&$Q$9,Lists!$CB$31:$DP$49,$O43+1,FALSE) ->  | Q43: =VLOOKUP($Q$29&$E$14&$Q$9,Lists!$CB$31:$DP$49,$O43+1,FALSE) ->  | R43: =VLOOKUP($R$29&$E$14&$Q$9,Lists!$CB$31:$DP$49,$O43+1,FALSE) ->  | T43: =IFERROR(VLOOKUP(AE43,Lists!$DT$5:$DZ$30,AE$29,FALSE),0) -> 0 | U43: =IFERROR(VLOOKUP(AF43,Lists!$DT$5:$DZ$30,AF$29,FALSE),0) -> 0 | V43: =IFERROR(VLOOKUP(AG43,Lists!$DT$5:$DZ$30,AG$29,FALSE),0) -> 0 | AC43: 0
D44: Heating System Type | E44: =IF(AND($E$14<>"",$Q$9<>""),"PTAC - HW coils (NG boiler)","") ->  | F44: n/a | H44: n/a | J44: n/a | L44: n/a | O44: 29 | P44: =VLOOKUP($P$29&$E$14&$Q$9,Lists!$CB$31:$DP$49,$O44+1,FALSE) ->  | Q44: =VLOOKUP($Q$29&$E$14&$Q$9,Lists!$CB$31:$DP$49,$O44+1,FALSE) ->  | R44: =VLOOKUP($R$29&$E$14&$Q$9,Lists!$CB$31:$DP$49,$O44+1,FALSE) ->  | T44: =IFERROR(VLOOKUP(AE44,Lists!$DT$5:$DZ$30,AE$29,FALSE),0) -> 0 | U44: =IFERROR(VLOOKUP(AF44,Lists!$DT$5:$DZ$30,AF$29,FALSE),0) -> 0 | V44: =IFERROR(VLOOKUP(AG44,Lists!$DT$5:$DZ$30,AG$29,FALSE),0) -> 0 | AC44: 0 | AE44: =VLOOKUP(G44,Lists!$EB$10:$EC$15,2,FALSE) ->  | AF44: =VLOOKUP(I44,Lists!$EB$10:$EC$15,2,FALSE) ->  | AG44: =VLOOKUP(K44,Lists!$EB$10:$EC$15,2,FALSE) -> 
D45: Heating Efficiency | E45: =IF(AND($E$14<>"",$Q$9<>""),0.82,"") ->  | F45: Et | H45: Et | J45: COP | L45: COP | O45: 30 | P45: =VLOOKUP($P$29&$E$14&$Q$9,Lists!$CB$31:$DP$49,$O45+1,FALSE) ->  | Q45: =VLOOKUP($Q$29&$E$14&$Q$9,Lists!$CB$31:$DP$49,$O45+1,FALSE) ->  | R45: =VLOOKUP($R$29&$E$14&$Q$9,Lists!$CB$31:$DP$49,$O45+1,FALSE) ->  | T45: =IFERROR(VLOOKUP(AE45,Lists!$DT$5:$DZ$30,AE$29,FALSE),0) -> 0 | U45: =IFERROR(VLOOKUP(AF45,Lists!$DT$5:$DZ$30,AF$29,FALSE),0) -> 0 | V45: =IFERROR(VLOOKUP(AG45,Lists!$DT$5:$DZ$30,AG$29,FALSE),0) -> 0 | AB45: 3.7 | AC45: 0
D46: Dedicated Outside Air System (Y or N) | E46: =IF(AND($E$14<>"",$Q$9<>""),"N","") ->  | F46: n/a | H46: n/a | J46: n/a | L46: n/a | O46: 31 | P46: =VLOOKUP($P$29&$E$14&$Q$9,Lists!$CB$31:$DP$49,$O46+1,FALSE) ->  | Q46: =VLOOKUP($Q$29&$E$14&$Q$9,Lists!$CB$31:$DP$49,$O46+1,FALSE) ->  | R46: =VLOOKUP($R$29&$E$14&$Q$9,Lists!$CB$31:$DP$49,$O46+1,FALSE) ->  | T46: =IFERROR(VLOOKUP(AE46,Lists!$DT$5:$DZ$30,AE$29,FALSE),0) -> 0 | U46: =IFERROR(VLOOKUP(AF46,Lists!$DT$5:$DZ$30,AF$29,FALSE),0) -> 0 | V46: =IFERROR(VLOOKUP(AG46,Lists!$DT$5:$DZ$30,AG$29,FALSE),0) -> 0 | AB46: Y | AC46: 0
D47: Outside Air Heating Coil Type | E47: =IF(AND($E$14<>"",$Q$9<>""),"n/a","") ->  | F47: n/a | H47: n/a | J47: n/a | L47: n/a | O47: 32 | P47: =VLOOKUP($P$29&$E$14&$Q$9,Lists!$CB$31:$DP$49,$O47+1,FALSE) ->  | Q47: =VLOOKUP($Q$29&$E$14&$Q$9,Lists!$CB$31:$DP$49,$O47+1,FALSE) ->  | R47: =VLOOKUP($R$29&$E$14&$Q$9,Lists!$CB$31:$DP$49,$O47+1,FALSE) ->  | T47: =IFERROR(VLOOKUP(AE47,Lists!$DT$5:$DZ$30,AE$29,FALSE),0) -> 0 | U47: =IFERROR(VLOOKUP(AF47,Lists!$DT$5:$DZ$30,AF$29,FALSE),0) -> 0 | V47: =IFERROR(VLOOKUP(AG47,Lists!$DT$5:$DZ$30,AG$29,FALSE),0) -> 0 | AC47: 0
D48: Outside Air Heating Coil Efficiency | E48: =IF(AND($E$14<>"",$Q$9<>""),"n/a","") ->  | F48: n/a | H48: Et | J48: Et | L48: Et | O48: 33 | P48: =VLOOKUP($P$29&$E$14&$Q$9,Lists!$CB$31:$DP$49,$O48+1,FALSE) ->  | Q48: =VLOOKUP($Q$29&$E$14&$Q$9,Lists!$CB$31:$DP$49,$O48+1,FALSE) ->  | R48: =VLOOKUP($R$29&$E$14&$Q$9,Lists!$CB$31:$DP$49,$O48+1,FALSE) ->  | T48: =IFERROR(VLOOKUP(AE48,Lists!$DT$5:$DZ$30,AE$29,FALSE),0) -> 0 | U48: =IFERROR(VLOOKUP(AF48,Lists!$DT$5:$DZ$30,AF$29,FALSE),0) -> 0 | V48: =IFERROR(VLOOKUP(AG48,Lists!$DT$5:$DZ$30,AG$29,FALSE),0) -> 0 | AB48: 0.96 | AC48: 0
D49: Outside Air Cooling Coil Type | E49: =IF(AND($E$14<>"",$Q$9<>""),"n/a","") ->  | F49: n/a | H49: n/a | J49: n/a | L49: n/a | O49: 34 | P49: =VLOOKUP($P$29&$E$14&$Q$9,Lists!$CB$31:$DP$49,$O49+1,FALSE) ->  | Q49: =VLOOKUP($Q$29&$E$14&$Q$9,Lists!$CB$31:$DP$49,$O49+1,FALSE) ->  | R49: =VLOOKUP($R$29&$E$14&$Q$9,Lists!$CB$31:$DP$49,$O49+1,FALSE) ->  | T49: =IFERROR(VLOOKUP(AE49,Lists!$DT$5:$DZ$30,AE$29,FALSE),0) -> 0 | U49: =IFERROR(VLOOKUP(AF49,Lists!$DT$5:$DZ$30,AF$29,FALSE),0) -> 0 | V49: =IFERROR(VLOOKUP(AG49,Lists!$DT$5:$DZ$30,AG$29,FALSE),0) -> 0 | AC49: 0
D50: Outside Air Cooling Coil Efficiency | E50: =IF(AND($E$14<>"",$Q$9<>""),"n/a","") ->  | F50: n/a | H50: EER | J50: EER | L50: EER | O50: 35 | P50: =VLOOKUP($P$29&$E$14&$Q$9,Lists!$CB$31:$DP$49,$O50+1,FALSE) ->  | Q50: =VLOOKUP($Q$29&$E$14&$Q$9,Lists!$CB$31:$DP$49,$O50+1,FALSE) ->  | R50: =VLOOKUP($R$29&$E$14&$Q$9,Lists!$CB$31:$DP$49,$O50+1,FALSE) ->  | T50: =IFERROR(VLOOKUP(AE50,Lists!$DT$5:$DZ$30,AE$29,FALSE),0) -> 0 | U50: =IFERROR(VLOOKUP(AF50,Lists!$DT$5:$DZ$30,AF$29,FALSE),0) -> 0 | V50: =IFERROR(VLOOKUP(AG50,Lists!$DT$5:$DZ$30,AG$29,FALSE),0) -> 0 | AB50: 14.5 | AC50: 0
D51: Heat Recovery (Y or N) | E51: =IF(AND($E$14<>"",$Q$9<>""),"Y","") ->  | F51: n/a | G51: Y | H51: n/a | I51: Y | J51: n/a | K51: Y | L51: n/a | O51: 36 | P51: =VLOOKUP($P$29&$E$14&$Q$9,Lists!$CB$31:$DP$49,$O51+1,FALSE) ->  | Q51: =VLOOKUP($Q$29&$E$14&$Q$9,Lists!$CB$31:$DP$49,$O51+1,FALSE) ->  | R51: =VLOOKUP($R$29&$E$14&$Q$9,Lists!$CB$31:$DP$49,$O51+1,FALSE) ->  | T51: =IFERROR(VLOOKUP(AE51,Lists!$DT$5:$DZ$30,AE$29,FALSE),0) -> 0 | U51: =IFERROR(VLOOKUP(AF51,Lists!$DT$5:$DZ$30,AF$29,FALSE),0) -> 0 | V51: =IFERROR(VLOOKUP(AG51,Lists!$DT$5:$DZ$30,AG$29,FALSE),0) -> 0 | AB51: Y | AC51: 0
D52: Heat Recovery Sensible Efficiency | E52: =IF(AND($E$14<>"",$Q$9<>""),0.6,"") ->  | F52: n/a | H52: n/a | J52: n/a | L52: n/a | O52: 37 | P52: =VLOOKUP($P$29&$E$14&$Q$9,Lists!$CB$31:$DP$49,$O52+1,FALSE) ->  | Q52: =VLOOKUP($Q$29&$E$14&$Q$9,Lists!$CB$31:$DP$49,$O52+1,FALSE) ->  | R52: =VLOOKUP($R$29&$E$14&$Q$9,Lists!$CB$31:$DP$49,$O52+1,FALSE) ->  | T52: =IFERROR(VLOOKUP(AE52,Lists!$DT$5:$DZ$30,AE$29,FALSE),0) -> 0 | U52: =IFERROR(VLOOKUP(AF52,Lists!$DT$5:$DZ$30,AF$29,FALSE),0) -> 0 | V52: =IFERROR(VLOOKUP(AG52,Lists!$DT$5:$DZ$30,AG$29,FALSE),0) -> 0 | AB52: 0.8 | AC52: 0
D53: Heat Recovery Latent Efficiency | E53: =IF(AND($E$14<>"",$Q$9<>""),0.6,"") ->  | F53: n/a | H53: n/a | J53: n/a | L53: n/a | O53: 38 | P53: =VLOOKUP($P$29&$E$14&$Q$9,Lists!$CB$31:$DP$49,$O53+1,FALSE) ->  | Q53: =VLOOKUP($Q$29&$E$14&$Q$9,Lists!$CB$31:$DP$49,$O53+1,FALSE) ->  | R53: =VLOOKUP($R$29&$E$14&$Q$9,Lists!$CB$31:$DP$49,$O53+1,FALSE) ->  | T53: =IFERROR(VLOOKUP(AE53,Lists!$DT$5:$DZ$30,AE$29,FALSE),0) -> 0 | U53: =IFERROR(VLOOKUP(AF53,Lists!$DT$5:$DZ$30,AF$29,FALSE),0) -> 0 | V53: =IFERROR(VLOOKUP(AG53,Lists!$DT$5:$DZ$30,AG$29,FALSE),0) -> 0 | AB53: 0.8 | AC53: 0
D54: Bath Fan (Y or N) | E54: =IF(AND($E$14<>"",$Q$9<>""),"Y","") ->  | F54: n/a | H54: n/a | J54: n/a | L54: n/a | O54: 39 | P54: =VLOOKUP($P$29&$E$14&$Q$9,Lists!$CB$31:$DP$49,$O54+1,FALSE) ->  | Q54: =VLOOKUP($Q$29&$E$14&$Q$9,Lists!$CB$31:$DP$49,$O54+1,FALSE) ->  | R54: =VLOOKUP($R$29&$E$14&$Q$9,Lists!$CB$31:$DP$49,$O54+1,FALSE) ->  | T54: =IFERROR(VLOOKUP(AE54,Lists!$DT$5:$DZ$30,AE$29,FALSE),0) -> 0 | U54: =IFERROR(VLOOKUP(AF54,Lists!$DT$5:$DZ$30,AF$29,FALSE),0) -> 0 | V54: =IFERROR(VLOOKUP(AG54,Lists!$DT$5:$DZ$30,AG$29,FALSE),0) -> 0 | AB54: Y | AC54: 0
D55: Bath Fan Efficiency (W/cfm) | E55: =IF(AND($E$14<>"",$Q$9<>""),1/2.8,"") ->  | F55: W/cfm | H55: W/cfm | J55: W/cfm | L55: W/cfm | O55: 40 | P55: =VLOOKUP($P$29&$E$14&$Q$9,Lists!$CB$31:$DP$49,$O55+1,FALSE) ->  | Q55: =VLOOKUP($Q$29&$E$14&$Q$9,Lists!$CB$31:$DP$49,$O55+1,FALSE) ->  | R55: =VLOOKUP($R$29&$E$14&$Q$9,Lists!$CB$31:$DP$49,$O55+1,FALSE) ->  | T55: =IFERROR(VLOOKUP(AE55,Lists!$DT$5:$DZ$30,AE$29,FALSE),0) -> 0 | U55: =IFERROR(VLOOKUP(AF55,Lists!$DT$5:$DZ$30,AF$29,FALSE),0) -> 0 | V55: =IFERROR(VLOOKUP(AG55,Lists!$DT$5:$DZ$30,AG$29,FALSE),0) -> 0 | AB55: 0.1 | AC55: 0 | AE55: =IF(G55="",0,IF(G55<$E55,"H8",0)) -> 0 | AF55: =IF(I55="",0,IF(I55<$E55,"H8",0)) -> 0 | AG55: =IF(K55="",0,IF(K55<$E55,"H8",0)) -> 0
C56: Lighting | D56: In-unit Lighting Power Density (W/sq ft) | E56: =IF(AND($E$14<>"",$Q$9<>""),VLOOKUP($E$14&$Q$9,Lists!$CB$19:$DA$24,O56,FALSE),"") ->  | F56: W/sq ft | H56: W/sq ft | J56: W/sq ft | L56: W/sq ft | O56: 14 | P56: =VLOOKUP($P$29&$E$14&$Q$9,Lists!$CB$31:$CZ$49,$O56+1,FALSE) ->  | Q56: =VLOOKUP($Q$29&$E$14&$Q$9,Lists!$CB$31:$CZ$49,$O56+1,FALSE) ->  | R56: =VLOOKUP($R$29&$E$14&$Q$9,Lists!$CB$31:$CZ$49,$O56+1,FALSE) ->  | T56: =IFERROR(VLOOKUP(AE56,Lists!$DT$5:$DZ$30,AE$29,FALSE),0) -> 0 | U56: =IFERROR(VLOOKUP(AF56,Lists!$DT$5:$DZ$30,AF$29,FALSE),0) -> 0 | V56: =IFERROR(VLOOKUP(AG56,Lists!$DT$5:$DZ$30,AG$29,FALSE),0) -> 0 | AB56: 0.216 | AC56: 0 | AE56: =IF(G56="",0,IF(G56<$E56,"L3",0)) -> 0 | AF56: =IF(I56="",0,IF(I56<$E56,"L3",0)) -> 0 | AG56: =IF(K56="",0,IF(K56<$E56,"L3",0)) -> 0
D57: Corridor Lighting Power Density (W/sq ft) | E57: =IF(AND($E$14<>"",$Q$9<>""),VLOOKUP($E$14&$Q$9,Lists!$CB$19:$DA$24,O57,FALSE),"") ->  | F57: W/sq ft | H57: W/sq ft | J57: W/sq ft | L57: W/sq ft | O57: 15 | P57: =VLOOKUP($P$29&$E$14&$Q$9,Lists!$CB$31:$CZ$49,$O57+1,FALSE) ->  | Q57: =VLOOKUP($Q$29&$E$14&$Q$9,Lists!$CB$31:$CZ$49,$O57+1,FALSE) ->  | R57: =VLOOKUP($R$29&$E$14&$Q$9,Lists!$CB$31:$CZ$49,$O57+1,FALSE) ->  | T57: =IFERROR(VLOOKUP(AE57,Lists!$DT$5:$DZ$30,AE$29,FALSE),0) -> 0 | U57: =IFERROR(VLOOKUP(AF57,Lists!$DT$5:$DZ$30,AF$29,FALSE),0) -> 0 | V57: =IFERROR(VLOOKUP(AG57,Lists!$DT$5:$DZ$30,AG$29,FALSE),0) -> 0 | AB57: 0.35 | AC57: 0 | AE57: =IF(G57="",0,IF(AND(G57<$E57,AE56=0),"L3",0)) -> 0 | AF57: =IF(I57="",0,IF(AND(I57<$E57,AF56=0),"L3",0)) -> 0 | AG57: =IF(K57="",0,IF(AND(K57<$E57, AG56=0),"L3",0)) -> 0
D58: Office Lighting Power Density (W/sq ft) | E58: =IF(AND($E$14<>"",$Q$9<>""),VLOOKUP($E$14&$Q$9,Lists!$CB$19:$DA$24,O58,FALSE),"") ->  | F58: W/sq ft | H58: W/sq ft | J58: W/sq ft | L58: W/sq ft | O58: 16 | P58: =VLOOKUP($P$29&$E$14&$Q$9,Lists!$CB$31:$CZ$49,$O58+1,FALSE) ->  | Q58: =VLOOKUP($Q$29&$E$14&$Q$9,Lists!$CB$31:$CZ$49,$O58+1,FALSE) ->  | R58: =VLOOKUP($R$29&$E$14&$Q$9,Lists!$CB$31:$CZ$49,$O58+1,FALSE) ->  | T58: =IFERROR(VLOOKUP(AE58,Lists!$DT$5:$DZ$30,AE$29,FALSE),0) -> 0 | U58: =IFERROR(VLOOKUP(AF58,Lists!$DT$5:$DZ$30,AF$29,FALSE),0) -> 0 | V58: =IFERROR(VLOOKUP(AG58,Lists!$DT$5:$DZ$30,AG$29,FALSE),0) -> 0 | AB58: 0.35 | AC58: 0 | AE58: =IF(G58="",0,IF(AND(G58<$E58,AE57=0,AE56=0),"L3",0)) -> 0 | AF58: =IF(I58="",0,IF(AND(I58<$E58,AF57=0,AF56=0),"L3",0)) -> 0 | AG58: =IF(K58="",0,IF(AND(K58<$E58, AG57=0,AG56=0),"L3",0)) -> 0
D59: Elevator Lighting Power Density (W/sq ft) | E59: =IF(AND($E$14<>"",$Q$9<>""),VLOOKUP($E$14&$Q$9,Lists!$CB$19:$DA$24,O59,FALSE),"") ->  | F59: W/sq ft | H59: W/sq ft | J59: W/sq ft | L59: W/sq ft | O59: 17 | P59: =VLOOKUP($P$29&$E$14&$Q$9,Lists!$CB$31:$CZ$49,$O59+1,FALSE) ->  | Q59: =VLOOKUP($Q$29&$E$14&$Q$9,Lists!$CB$31:$CZ$49,$O59+1,FALSE) ->  | R59: =VLOOKUP($R$29&$E$14&$Q$9,Lists!$CB$31:$CZ$49,$O59+1,FALSE) ->  | T59: =IFERROR(VLOOKUP(AE59,Lists!$DT$5:$DZ$30,AE$29,FALSE),0) -> 0 | U59: =IFERROR(VLOOKUP(AF59,Lists!$DT$5:$DZ$30,AF$29,FALSE),0) -> 0 | V59: =IFERROR(VLOOKUP(AG59,Lists!$DT$5:$DZ$30,AG$29,FALSE),0) -> 0 | AB59: 0.35 | AC59: 0 | AE59: =IF(G59="",0,IF(AND(G59<$E59,AE58=0,AE57=0,AE56=0),"L3",0)) -> 0 | AF59: =IF(I59="",0,IF(AND(I59<$E59,AF58=0,AF57=0,AF56=0),"L3",0)) -> 0 | AG59: =IF(K59="",0,IF(AND(K59<$E59, AG58=0,AG57=0,AG56=0),"L3",0)) -> 0
D60: Bi-level Lighting Control in Corridors (mid- and high-rise only) | E60: =IF(AND($E$14<>"",$Q$9<>""),VLOOKUP($E$14&$Q$9,Lists!$CB$19:$DA$24,O60,FALSE),"") ->  | F60: n/a | H60: n/a | J60: n/a | L60: n/a | O60: 18 | P60: =VLOOKUP($P$29&$E$14&$Q$9,Lists!$CB$31:$CZ$49,$O60+1,FALSE) ->  | Q60: =VLOOKUP($Q$29&$E$14&$Q$9,Lists!$CB$31:$CZ$49,$O60+1,FALSE) ->  | R60: =VLOOKUP($R$29&$E$14&$Q$9,Lists!$CB$31:$CZ$49,$O60+1,FALSE) ->  | T60: =IFERROR(VLOOKUP(AE60,Lists!$DT$5:$DZ$30,AE$29,FALSE),0) -> 0 | U60: =IFERROR(VLOOKUP(AF60,Lists!$DT$5:$DZ$30,AF$29,FALSE),0) -> 0 | V60: =IFERROR(VLOOKUP(AG60,Lists!$DT$5:$DZ$30,AG$29,FALSE),0) -> 0 | AB60: Y | AC60: 0 | AE60: =IF(G60="Y","L1",0) -> 0 | AF60: =IF(I60="Y","L1",0) -> 0 | AG60: =IF(K60="Y","L1",0) -> 0
D61: Exterior Lighting (% better than code) | E61: =IF(AND($E$14<>"",$Q$9<>""),VLOOKUP($E$14&$Q$9,Lists!$CB$19:$DA$24,O61,FALSE),"") ->  | F61: n/a | H61: n/a | J61: n/a | L61: n/a | O61: 19 | P61: =VLOOKUP($P$29&$E$14&$Q$9,Lists!$CB$31:$CZ$49,$O61+1,FALSE) ->  | Q61: =VLOOKUP($Q$29&$E$14&$Q$9,Lists!$CB$31:$CZ$49,$O61+1,FALSE) ->  | R61: =VLOOKUP($R$29&$E$14&$Q$9,Lists!$CB$31:$CZ$49,$O61+1,FALSE) ->  | T61: =IFERROR(VLOOKUP(AE61,Lists!$DT$5:$DZ$30,AE$29,FALSE),0) -> 0 | U61: =IFERROR(VLOOKUP(AF61,Lists!$DT$5:$DZ$30,AF$29,FALSE),0) -> 0 | V61: =IFERROR(VLOOKUP(AG61,Lists!$DT$5:$DZ$30,AG$29,FALSE),0) -> 0 | AB61: 0.3 | AC61: 0 | AE61: =IF(G61="",0,IF(G61>0,"L2",0)) -> 0 | AF61: =IF(I61="",0,IF(I61>0,"L2",0)) -> 0 | AG61: =IF(K61="",0,IF(K61>0,"L2",0)) -> 0
C62: Domestic Hot Water | D62: Domestic Hot Water Fuel | E62: =IF(AND($E$14<>"",$Q$9<>""),"Gas","") ->  | F62: n/a | H62: n/a | J62: n/a | L62: n/a | O62: 20 | P62: =VLOOKUP($P$29&$E$14&$Q$9,Lists!$CB$31:$CZ$49,$O62+1,FALSE) ->  | Q62: =VLOOKUP($Q$29&$E$14&$Q$9,Lists!$CB$31:$CZ$49,$O62+1,FALSE) ->  | R62: =VLOOKUP($R$29&$E$14&$Q$9,Lists!$CB$31:$CZ$49,$O62+1,FALSE) ->  | T62: =IFERROR(VLOOKUP(AE62,Lists!$DT$5:$DZ$30,AE$29,FALSE),0) -> 0 | U62: =IFERROR(VLOOKUP(AF62,Lists!$DT$5:$DZ$30,AF$29,FALSE),0) -> 0 | V62: =IFERROR(VLOOKUP(AG62,Lists!$DT$5:$DZ$30,AG$29,FALSE),0) -> 0 | AC62: 0
D63: Water Heater Type | E63: =IF(AND($E$14<>"",$Q$9<>""),VLOOKUP($E$14&$Q$9,Lists!$CB$19:$DA$24,O63,FALSE),"") ->  | F63: n/a | H63: n/a | J63: n/a | L63: n/a | O63: 21 | P63: =VLOOKUP($P$29&$E$14&$Q$9,Lists!$CB$31:$CZ$49,$O63+1,FALSE) ->  | Q63: =VLOOKUP($Q$29&$E$14&$Q$9,Lists!$CB$31:$CZ$49,$O63+1,FALSE) ->  | R63: =VLOOKUP($R$29&$E$14&$Q$9,Lists!$CB$31:$CZ$49,$O63+1,FALSE) ->  | T63: =IFERROR(VLOOKUP(AE63,Lists!$DT$5:$DZ$30,AE$29,FALSE),0) -> 0 | U63: =IFERROR(VLOOKUP(AF63,Lists!$DT$5:$DZ$30,AF$29,FALSE),0) -> 0 | V63: =IFERROR(VLOOKUP(AG63,Lists!$DT$5:$DZ$30,AG$29,FALSE),0) -> 0 | AC63: 0 | AE63: =VLOOKUP(G63,Lists!$EB$17:$EC$22,2,FALSE) ->  | AF63: =VLOOKUP(I63,Lists!$EB$17:$EC$22,2,FALSE) ->  | AG63: =VLOOKUP(K63,Lists!$EB$17:$EC$22,2,FALSE) -> 
D64: Water Heater Efficiency | E64: =IF(AND($E$14<>"",$Q$9<>""),VLOOKUP($E$14&$Q$9,Lists!$CB$19:$DA$24,O64,FALSE),"") ->  | F64: Et | H64: Et | J64: Et | L64: COP | O64: 22 | P64: =VLOOKUP($P$29&$E$14&$Q$9,Lists!$CB$31:$CZ$49,$O64+1,FALSE) ->  | Q64: =VLOOKUP($Q$29&$E$14&$Q$9,Lists!$CB$31:$CZ$49,$O64+1,FALSE) ->  | R64: =VLOOKUP($R$29&$E$14&$Q$9,Lists!$CB$31:$CZ$49,$O64+1,FALSE) ->  | T64: =IFERROR(VLOOKUP(AE64,Lists!$DT$5:$DZ$30,AE$29,FALSE),0) -> 0 | U64: =IFERROR(VLOOKUP(AF64,Lists!$DT$5:$DZ$30,AF$29,FALSE),0) -> 0 | V64: =IFERROR(VLOOKUP(AG64,Lists!$DT$5:$DZ$30,AG$29,FALSE),0) -> 0 | AB64: 2.85 | AC64: 0
D65: Kitchen Aerator Flow (GPM) | E65: =IF(AND($E$14<>"",$Q$9<>""),VLOOKUP($E$14&$Q$9,Lists!$CB$19:$DA$24,O65,FALSE),"") ->  | F65: gpm | H65: gpm | J65: gpm | L65: gpm | O65: 23 | P65: =VLOOKUP($P$29&$E$14&$Q$9,Lists!$CB$31:$CZ$49,$O65+1,FALSE) ->  | Q65: =VLOOKUP($Q$29&$E$14&$Q$9,Lists!$CB$31:$CZ$49,$O65+1,FALSE) ->  | R65: =VLOOKUP($R$29&$E$14&$Q$9,Lists!$CB$31:$CZ$49,$O65+1,FALSE) ->  | T65: =IFERROR(VLOOKUP(AE65,Lists!$DT$5:$DZ$30,AE$29,FALSE),0) -> 0 | U65: =IFERROR(VLOOKUP(AF65,Lists!$DT$5:$DZ$30,AF$29,FALSE),0) -> 0 | V65: =IFERROR(VLOOKUP(AG65,Lists!$DT$5:$DZ$30,AG$29,FALSE),0) -> 0 | AB65: 1 | AC65: 0 | AE65: =IF(G65="",0,IF(G65<$E65,"D1",0)) -> 0 | AF65: =IF(I65="",0,IF(I65<$E65,"D1",0)) -> 0 | AG65: =IF(K65="",0,IF(K65<$E65,"D1",0)) -> 0
D66: Bath Aerator Flow (GPM) | E66: =IF(AND($E$14<>"",$Q$9<>""),VLOOKUP($E$14&$Q$9,Lists!$CB$19:$DA$24,O66,FALSE),"") ->  | F66: gpm | H66: gpm | J66: gpm | L66: gpm | O66: 24 | P66: =VLOOKUP($P$29&$E$14&$Q$9,Lists!$CB$31:$CZ$49,$O66+1,FALSE) ->  | Q66: =VLOOKUP($Q$29&$E$14&$Q$9,Lists!$CB$31:$CZ$49,$O66+1,FALSE) ->  | R66: =VLOOKUP($R$29&$E$14&$Q$9,Lists!$CB$31:$CZ$49,$O66+1,FALSE) ->  | T66: =IFERROR(VLOOKUP(AE66,Lists!$DT$5:$DZ$30,AE$29,FALSE),0) -> 0 | U66: =IFERROR(VLOOKUP(AF66,Lists!$DT$5:$DZ$30,AF$29,FALSE),0) -> 0 | V66: =IFERROR(VLOOKUP(AG66,Lists!$DT$5:$DZ$30,AG$29,FALSE),0) -> 0 | AB66: 1 | AC66: 0 | AE66: =IF(G66="",0,IF(AND(G66<$E66,AE65=0),"D1",0)) -> 0 | AF66: =IF(I66="",0,IF(AND(I66<$E66,AF65=0),"D1",0)) -> 0 | AG66: =IF(K66="",0,IF(AND(K66<$E66,AG65=0),"D1",0)) -> 0
C67: Appliances (In-Unit) | D67: ENERGY STAR® Refrigerators (Y or N) | E67: =IF(AND($E$14<>"",$Q$9<>""),"N","") ->  | F67: n/a | H67: n/a | J67: n/a | L67: n/a | P67: N | Q67: N | R67: N | T67: =IFERROR(VLOOKUP(AE67,Lists!$DT$5:$DZ$30,AE$29,FALSE),0) -> 0 | U67: =IFERROR(VLOOKUP(AF67,Lists!$DT$5:$DZ$30,AF$29,FALSE),0) -> 0 | V67: =IFERROR(VLOOKUP(AG67,Lists!$DT$5:$DZ$30,AG$29,FALSE),0) -> 0 | X67: N | Y67: N | Z67: N | AB67: Y | AC67: 0 | AE67: =IF(G67="Y","A2",0) -> 0 | AF67: =IF(I67="Y","A2",0) -> 0 | AG67: =IF(K67="Y","A2",0) -> 0
D68: ENERGY STAR® Clothes washers (Y or N) | E68: =IF(AND($E$14<>"",$Q$9<>""),"N","") ->  | F68: n/a | H68: n/a | J68: n/a | L68: n/a | P68: N | Q68: N | R68: N | T68: =IFERROR(VLOOKUP(AE68,Lists!$DT$5:$DZ$30,AE$29,FALSE),0) -> 0 | U68: =IFERROR(VLOOKUP(AF68,Lists!$DT$5:$DZ$30,AF$29,FALSE),0) -> 0 | V68: =IFERROR(VLOOKUP(AG68,Lists!$DT$5:$DZ$30,AG$29,FALSE),0) -> 0 | X68: N | Y68: N | Z68: N | AB68: Y | AC68: 0 | AE68: =IF(G68="Y","A3",0) -> 0 | AF68: =IF(I68="Y","A3",0) -> 0 | AG68: =IF(K68="Y","A3",0) -> 0
D69: ENERGY STAR® Electric Dryers (Y or N) | F69: n/a | H69: n/a | J69: n/a | L69: n/a | P69: N | Q69: N | R69: N | T69: =IFERROR(VLOOKUP(AE69,Lists!$DT$5:$DZ$30,AE$29,FALSE),0) -> 0 | U69: =IFERROR(VLOOKUP(AF69,Lists!$DT$5:$DZ$30,AF$29,FALSE),0) -> 0 | V69: =IFERROR(VLOOKUP(AG69,Lists!$DT$5:$DZ$30,AG$29,FALSE),0) -> 0 | X69: N | Y69: N | Z69: N | AB69: Y | AC69: 0 | AE69: =IF(G69="Y","A4",0) -> 0 | AF69: =IF(I69="Y","A4",0) -> 0 | AG69: =IF(K69="Y","A4",0) -> 0
D70: ENERGY STAR® Dishwashers (Y or N) | F70: n/a | H70: n/a | J70: n/a | L70: n/a | P70: N | Q70: N | R70: N | T70: =IFERROR(VLOOKUP(AE70,Lists!$DT$5:$DZ$30,AE$29,FALSE),0) -> 0 | U70: =IFERROR(VLOOKUP(AF70,Lists!$DT$5:$DZ$30,AF$29,FALSE),0) -> 0 | V70: =IFERROR(VLOOKUP(AG70,Lists!$DT$5:$DZ$30,AG$29,FALSE),0) -> 0 | X70: N | Y70: N | Z70: N | AB70: Y | AC70: 0 | AE70: =IF(G70="Y","A1",0) -> 0 | AF70: =IF(I70="Y","A1",0) -> 0 | AG70: =IF(K70="Y","A1",0) -> 0
C72: NEXT STEPS | P72: ="Heat"&G43 -> Heat | Q72: ="Heat"&I43 -> Heat | R72: ="Heat"&K43 -> Heat
P73: ="DHW"&G62 -> DHW | Q73: ="DHW"&I62 -> DHW | R73: ="DHW"&K62 -> DHW
C74: Once the project team has identified one to three different suites of measures (under Scenarios 1 to 3 above), Energy Trust will run energy simulation files to produce energy savings potential. As this requires access to specific software (Energy Plus energy modeling software), results will be returned to the project team, typically within 3 to 5 business days.
C78: RESULTS
D80: Project Name: | E80: =IF(E7<>"",E7,"") -> 
D81: Project City: | E81: =IF(E8<>"",E8,"") -> 
D82: Project Zip Code: | E82: =IF(E9<>"",E9,"") -> 
D83: Total Square Footage: | E83: =IF(E10<>"",E10,"") -> 
D84: Project Square Footage: | E84: =IF(E11<>"",E11,"") -> 
D85: Building Type: | E85: =IF(E14<>"",E14,"") -> 
C87: Note regarding the estimated energy savings:
C89: The following results are based on an analysis of low-, mid-, and high-rise buildings based on the US Department of Energy Commercial and Residential Prototype Building Models. Model results are used to demonstrate the relative savings potential of a suite of energy efficiency upgrades, as defined in the scenarios put into this Early Design Planning tab, over a baseline energy model that meets the New Buildings program requirements. Results are not predictive of actual energy use once the project is completed and occupied.
C95: Estimated Project Savings and Incentives for Prototypical Buildings
G97: Scenario 1 | I97: Scenario 2 | K97: Scenario 3
D98: Estimated EUI Reduction (kBtu/sf/yr) | G98: ='Ops Calc'!F103 -> 0 | I98: ='Ops Calc'!H103 -> 0 | K98: ='Ops Calc'!J103 -> 0
D99: Estimated EUI Reduction (%) | G99: ='Ops Calc'!F104 -> 0 | I99: ='Ops Calc'!H104 -> 0 | K99: ='Ops Calc'!J104 -> 0
D100: Estimated Energy Savings (kWh/yr) | G100: =ROUND('Ops Calc'!F105,2) -> 0 | I100: =ROUND('Ops Calc'!H105,2) -> 0 | K100: =ROUND('Ops Calc'!J105,2) -> 0
D101: Estimated Energy Savings (therms/yr) | G101: =ROUND('Ops Calc'!F106,2) -> 0 | I101: =ROUND('Ops Calc'!H106,2) -> 0 | K101: =ROUND('Ops Calc'!J106,2) -> 0
D102: Estimated Project Incentives ($) | G102: =IF(G99<0.05,"Does not qualify",IF(G99<0.1,ROUND('2-Incentive Application'!$L$25*$E$11,2),IF(G99<0.15,ROUND('2-Incentive Application'!$L$26*$E$11,2),ROUND('2-Incentive Application'!$L$27*$E$11,2)))) -> Does not qualify | I102: =IF(I99<0.05,"Does not qualify",IF(I99<0.1,ROUND('2-Incentive Application'!$L$25*$E$11,2),IF(I99<0.15,ROUND('2-Incentive Application'!$L$26*$E$11,2),ROUND('2-Incentive Application'!$L$27*$E$11,2)))) -> Does not qualify | K102: =IF(K99<0.05,"Does not qualify",IF(K99<0.1,ROUND('2-Incentive Application'!$L$25*$E$11,2),IF(K99<0.15,ROUND('2-Incentive Application'!$L$26*$E$11,2),ROUND('2-Incentive Application'!$L$27*$E$11,2)))) -> Does not qualify | R102: =Q100*G102 -> 
L103: ='Version History'!C1 -> 2024v1.1 | R103: =R102/G100 -> 
A105: HIDE FROM HERE DOWN

Sheet 2-Incentive Application
AJ1: HIDE FROM HERE ACROSS
B2: Multifamily
B3: New Buildings l Incentive Application l 520MF-2021
B6: OVERVIEW AND ELIGIBILITY
B7: A signed copy of Form 510A: Project Enrollment Application must accompany or precede this workbook, and only those projects approved for enrollment by the New Buildings program (Program) can apply for incentive funding. If you are interested in pursuing efficiency measures not included on this form, please contact the Program for eligibility. This is a whole building packaged offering open to multifamily properties committed to acheiving at least 5% savings over the code-minimum performance. This Incentive Application must be submitted to the Program electronically in the Excel worksheet format along with all required documentation. Any equipment that, either separately or as part of a project, has or will receive an incentive from any other Energy Trust offering is ineligible. This Incentive Application applies only to projects permitted under the 2021 Oregon Energy Efficiency Specialty Code.
B8: STEPS TO PARTICIPATE
B10: 1. | C10: Successfully enroll your project as described in | Q10: Form 510A: Project Enrollment Application.
B11: 2. | C11: Complete this Incentive Application and the Market Solutions Workbook tabs 1 through 3, and submit to the Program, along with the required supporting documentation:
D12: » Project plans or drawing » Luminare schedule » Equipment schedules » Product cutsheets or submittal package » ComCheck (if available)
B13: 3. | C13: Following its review of the application, Energy Trust will notify Project Owner via email of its decision. If the application is approved for an incentive reservation, you will receive a written notice. The incentive reservation notice will inform Project Owner of the estimated incentive and incentive reservation period (i.e., the deadline to install the equipment and submit all required completion documentation).
B14: 4. | C14: Install the energy-efficient equipment.
B15: 5. | C15: To request payment, submit the following to the Program, before the established incentive reservation deadline, for verification:
D16: » Complete, signed | I16: Form 540PR: Payment Request
D17: » Submit a revised Market Solutions Workbook (updated tab 3) if the installed equipment differs from initial submittal, along with updated supporting documentation » Additional information as requested by the Program » Payment documentation (suppliers or contractors can send copies of the invoices directly to the Program) » Project Owner's current W-9 (if not previously submitted)
C18: If Project Owner applies for additional installation incentives using other Energy Trust tools, workbooks or forms, the Program will combine all approved installation incentives into one payment and only one signed Payment Request is required.
B19: 6. | C19: A site verification visit may be required by the Program prior to final payment.
B20: INCENTIVE CALCULATION
B22: The incentive is calculated based on total square footage of living units and common areas (corridors and rental office only), according to three tiers of energy savings.
B23: Multifamily Incentives
B24: Tier | D24: % EUI Savings Range | L24: Incentive per Sq. Ft.
B25: Good | D25: 5%-10% | L25: 0.2
B26: Better | D26: 10%-15% | L26: 0.3
B27: Best | D27: >15% | L27: 0.5
C28: Based on the design features you have selected in this workbook, your incentive is estimated at: | AB28: ='3-Project Input'!G101 -> Does not qualify
B29: No incentives are reserved unless an incentive reservation is issued in response to this application. Reserved amounts are estimates only and the final amount may vary depending on actual qualifying equipment installed and operating as verified by the Program. Incentives are based on the estimated annual energy savings of the installed equipment and are subject to Program per-project installation incentive caps.
B31: PROJECT INFORMATION
B32: Project Owner Name | W32: Company
B33: Building/Project Name | W33: Project ID (if known)
B35: Expected Construction Completion Date | W35: Project Size (Sq. Ft.)
B37: SUBMITTAL
B38: By typing or printing my name below, I represent to Energy Trust that (i) I have completed this application completely, truthfully and accurately to the best of my knowledge, (ii) I have read, understand and agree that the terms and conditions contained in this Incentive Application are in addition to, and governed by, Project Owner’s Project Enrollment Application agreement with Energy Trust for the identified project; (iii) I am authorized to enter into this agreement on behalf of the named Project Owner; and (iv) all of the information in the submitted Project Enrollment Application agreement remains true and correct as of the date of this submission.
B40: SUBMITTED BY: (Must be an authorized representative of Project Owner)
B42: Type or Print Name Here | P42: Title | AB42: Date
B44: Firm name | U44: Phone | AB44: Email
AH45: ='Version History'!C1 -> 2024v1.1
A46: HIDE FROM HERE DOWN

Sheet 3-Project Input
L1: HIDE FROM HERE ACROSS
C3: Project Input
C5: INSTRUCTIONS
C7: Step 1:
C8: Confirm the required information in the "Project Information" section that has been copied over from the Early Design Planning worksheet; adjust as needed.
C10: Step 2:
C11: Complete the "Data Input Table" section. You may select a scenario from the Early Design Planning worksheet or adjust as needed to reflect the final design decisions. Note: If the final design does not match any of the scenarios from the Early Design Planning worksheet, Energy Trust will execute energy simulation files to produce final energy savings potential. As this requires access to specific software, results will be returned to the project team, typically within 3 to 5 business days.
C13: PROJECT INFORMATION
D15: Project Name: | E15: =IF('1-Early Design Planning'!E7<>"",'1-Early Design Planning'!E7,"") ->  | H15: Color Legend:
D16: Project City: | E16: =IF('1-Early Design Planning'!E8<>"",'1-Early Design Planning'!E8,"") ->  | I16: Required
D17: Project Zip Code: | E17: =IF('1-Early Design Planning'!E9<>"",'1-Early Design Planning'!E9,"") ->  | I17: Autofill | M17: ASHRAE CZ: | N17: =IFERROR(VLOOKUP(E17,Lists!$K$19:$N$502,4,FALSE),"") -> 
D18: Total Square Footage: | E18: =IF('1-Early Design Planning'!E10<>"",'1-Early Design Planning'!E10,"") ->  | I18: Less efficient than code
D19: Project Square Footage: | E19: =IF('1-Early Design Planning'!E11<>"",'1-Early Design Planning'!E11,"") ->  | I19: More efficient than code
D20: Total Number of Floors: | E20: =IF('1-Early Design Planning'!E12<>"",'1-Early Design Planning'!E12,"") ->  | I20: Unavailable for selection
D21: Total Number of Residential Floors: | E21: =IF('1-Early Design Planning'!E13<>"",'1-Early Design Planning'!E13,"") -> 
D22: Building Type: | E22: =IF('1-Early Design Planning'!E14<>"",'1-Early Design Planning'!E14,"") ->  | M22: Code Reference: | N22: =IF(E22="Low Rise","iecc2018","90.1-2019") -> 90.1-2019
D23: Target EUI | E23: =IF('1-Early Design Planning'!E15<>"",'1-Early Design Planning'!E15,"") -> 
D24: Code EUI | E24: =IF('1-Early Design Planning'!E16<>"",'1-Early Design Planning'!E16,"") -> 
C26: DATA INPUT TABLE
E28: Copy Results From Early Design Planning by selecting a scenario: | G28: Scenario 1 | N28: Scenario 1
N29: Scenario 2
N30: Scenario 3
E32: (If you wish to restore any overwritten values to the selected scenario use this button) | Q32: =IF(Q34<0.05,"Does not qualify",IF(Q34<0.1,"Good",IF(Q34<0.15,"Better","Best"))) -> Does not qualify
F33: Predicted Tier: | G33: =Q32 -> Does not qualify | Q33: EUI % savings Scorecard | S33: Restore formulas: | V33: EUI % savings Lookups
F34: Predicted Incentive: | G34: =IF(G33="Does not qualify","-",IF(G33="Good",'2-Incentive Application'!$L$25*$E$19,IF(G33="Better",'2-Incentive Application'!$L$26*$E$19,IF(G33="Best",'2-Incentive Application'!$L$27*$E$19,"")))) -> - | Q34: =SUM(Q36:Q75) -> 0 | V34: =HLOOKUP($E$22&$N$17,Lists!$DU$2:$DZ$3,2,FALSE) -> 
D35: Building Characteristics | E35: Code Reference Values | F35: Unit of Measure | G35: Final Building Design | H35: Unit of Measure | I35: Supporting Documentation | L35: Scenario Lookup | M35: Code Lookup | N35: Selected Scenario Inputs | O35: Unit of Measure | Q35: Final | S35: Selected Scenario Inputs | T35: Unit of Measure | V35: Final
C36: Envelope | D36: Wall Insulation - continuous insulation (R-value) | E36: =IF(AND($E$22<>"",$N$17<>""),VLOOKUP($E$22&$N$17,Lists!$CB$19:$DA$24,M36,FALSE),"") ->  | F36: R-value | G36: =$N36 ->  | H36: R-value | I36: Architectural plans; product specifications | L36: 2 | M36: 4 | N36: =IF(ISBLANK(HLOOKUP($G$28,'1-Early Design Planning'!$G$30:$K$70,L36,FALSE)),"",HLOOKUP($G$28,'1-Early Design Planning'!$G$30:$K$70,L36,FALSE)) ->  | O36: =OFFSET(INDIRECT(SUBSTITUTE($G$28," ","_")&"_header"),L36-1,1) -> R-value | P36: E2 | Q36: =IFERROR(VLOOKUP(V36,Lists!$DT$5:$DZ$30,V$34,FALSE),0) -> 0 | S36: =$N36 ->  | T36: R-value | V36: =IF(G36="",0,IF(G36>$E36,"E2",0)) -> 0
D37: Wall Insulation - cavity (R-value) | E37: =IF(AND($E$22<>"",$N$17<>""),VLOOKUP($E$22&$N$17,Lists!$CB$19:$DA$24,M37,FALSE),"") ->  | F37: R-value | G37: =$N37 ->  | H37: R-value | I37: Architectural plans; product specifications | L37: 3 | M37: 5 | N37: =IF(ISBLANK(HLOOKUP($G$28,'1-Early Design Planning'!$G$30:$K$70,L37,FALSE)),"",HLOOKUP($G$28,'1-Early Design Planning'!$G$30:$K$70,L37,FALSE)) ->  | O37: =OFFSET(INDIRECT(SUBSTITUTE($G$28," ","_")&"_header"),L37-1,1) -> R-value | P37: E2 | Q37: =IFERROR(VLOOKUP(V37,Lists!$DT$5:$DZ$30,V$34,FALSE),0) -> 0 | S37: =$N37 ->  | T37: R-value | V37: =IF(G37="",0,IF(AND(G37>$E37,V36=0),"E2",0)) -> 0
D38: Roof Insulation - entirely above deck (R-value) | E38: =IF(AND($E$22<>"",$N$17<>""),VLOOKUP($E$22&$N$17,Lists!$CB$19:$DA$24,M38,FALSE),"") ->  | F38: R-value | G38: =$N38 ->  | H38: R-value | I38: Architectural plans; product specifications | L38: 4 | M38: 6 | N38: =IF(ISBLANK(HLOOKUP($G$28,'1-Early Design Planning'!$G$30:$K$70,L38,FALSE)),"",HLOOKUP($G$28,'1-Early Design Planning'!$G$30:$K$70,L38,FALSE)) ->  | O38: =OFFSET(INDIRECT(SUBSTITUTE($G$28," ","_")&"_header"),L38-1,1) -> R-value | P38: E3 | Q38: =IFERROR(VLOOKUP(V38,Lists!$DT$5:$DZ$30,V$34,FALSE),0) -> 0 | S38: =$N38 ->  | T38: R-value | V38: =IF(G38="",0,IF(G38>$E38,"E3",0)) -> 0
D39: Attic Roof Insulation - Cavity (R-value) | E39: =IF(AND($E$22<>"",$N$17<>""),VLOOKUP($E$22&$N$17,Lists!$CB$19:$DA$24,M39,FALSE),"") ->  | F39: R-value | H39: R-value | L39: 5 | M39: 7 | N39: =IF(ISBLANK(HLOOKUP($G$28,'1-Early Design Planning'!$G$30:$K$70,L39,FALSE)),"",HLOOKUP($G$28,'1-Early Design Planning'!$G$30:$K$70,L39,FALSE)) ->  | O39: =OFFSET(INDIRECT(SUBSTITUTE($G$28," ","_")&"_header"),L39-1,1) -> R-value | Q39: =IFERROR(VLOOKUP(V39,Lists!$DT$5:$DZ$30,V$34,FALSE),0) -> 0 | T39: R-value
D40: Foundation Insulation (R-value) | E40: =IF(AND($E$22<>"",$N$17<>""),VLOOKUP($E$22&$N$17,Lists!$CB$19:$DA$24,M40,FALSE),"") ->  | F40: R-value | H40: R-value | I40: Architectural plans; product specifications | L40: 6 | M40: 8 | N40: =IF(ISBLANK(HLOOKUP($G$28,'1-Early Design Planning'!$G$30:$K$70,L40,FALSE)),"",HLOOKUP($G$28,'1-Early Design Planning'!$G$30:$K$70,L40,FALSE)) ->  | O40: =OFFSET(INDIRECT(SUBSTITUTE($G$28," ","_")&"_header"),L40-1,1) -> R-value | P40: E7 | Q40: =IFERROR(VLOOKUP(V40,Lists!$DT$5:$DZ$30,V$34,FALSE),0) -> 0 | T40: R-value | V40: =IF(G40="",0,IF(G40>$E40,"E2",0)) -> 0
D41: Air Tightness (CFM/sq ft at 0.3 in) | E41: =IF(AND($E$22<>"",$N$17<>""),VLOOKUP($E$22&$N$17,Lists!$CB$19:$DA$24,M41,FALSE),"") ->  | F41: cfm/sq ft at 0.3 inH2O | H41: cfm/sq ft at 0.3 inH2O | I41: Blower door test results | L41: 7 | M41: 9 | N41: =IF(ISBLANK(HLOOKUP($G$28,'1-Early Design Planning'!$G$30:$K$70,L41,FALSE)),"",HLOOKUP($G$28,'1-Early Design Planning'!$G$30:$K$70,L41,FALSE)) ->  | O41: =OFFSET(INDIRECT(SUBSTITUTE($G$28," ","_")&"_header"),L41-1,1) -> cfm/sq ft at 0.3 inH2O | P41: E4 | Q41: =IFERROR(VLOOKUP(V41,Lists!$DT$5:$DZ$30,V$34,FALSE),0) -> 0 | T41: cfm/sq ft at 0.3 inH2O | V41: =IF(G41="",0,IF(G41<$E41,"E4",0)) -> 0
D42: Window - U-Value | E42: =IF(AND($E$22<>"",$N$17<>""),VLOOKUP($E$22&$N$17,Lists!$CB$19:$DA$24,M42,FALSE),"") ->  | F42: U-value | H42: U-value | I42: Architectural plans; product specifications | L42: 8 | M42: 10 | N42: =IF(ISBLANK(HLOOKUP($G$28,'1-Early Design Planning'!$G$30:$K$70,L42,FALSE)),"",HLOOKUP($G$28,'1-Early Design Planning'!$G$30:$K$70,L42,FALSE)) ->  | O42: =OFFSET(INDIRECT(SUBSTITUTE($G$28," ","_")&"_header"),L42-1,1) -> U-value | P42: E1 | Q42: =IFERROR(VLOOKUP(V42,Lists!$DT$5:$DZ$30,V$34,FALSE),0) -> 0 | T42: U-value | V42: =IF(G42="",0,IF(G42<$E42,"E1",0)) -> 0
D43: Window - SHGC | E43: =IF(AND($E$22<>"",$N$17<>""),VLOOKUP($E$22&$N$17,Lists!$CB$19:$DA$24,M43,FALSE),"") ->  | F43: SHGC | H43: SHGC | I43: Architectural plans; product specifications | L43: 9 | M43: 11 | N43: =IF(ISBLANK(HLOOKUP($G$28,'1-Early Design Planning'!$G$30:$K$70,L43,FALSE)),"",HLOOKUP($G$28,'1-Early Design Planning'!$G$30:$K$70,L43,FALSE)) ->  | O43: =OFFSET(INDIRECT(SUBSTITUTE($G$28," ","_")&"_header"),L43-1,1) -> SHGC | P43: E1 | Q43: =IFERROR(VLOOKUP(V43,Lists!$DT$5:$DZ$30,V$34,FALSE),0) -> 0 | T43: SHGC | V43: =IF(G43="",0,IF(AND(G43<$E43,V42=0),"E1",0)) -> 0
D44: Window-to-Wall Ratio | E44: =IF(AND($E$22<>"",$N$17<>""),IF(G44="",VLOOKUP($E$22&$N$17,Lists!$CB$19:$DA$24,M44,FALSE),MIN(G44,0.4)),"") ->  | F44: n/a | H44: n/a | I44: Architectural plans | L44: 10 | M44: 12 | N44: =IF(ISBLANK(HLOOKUP($G$28,'1-Early Design Planning'!$G$30:$K$70,L44,FALSE)),"",HLOOKUP($G$28,'1-Early Design Planning'!$G$30:$K$70,L44,FALSE)) ->  | O44: =OFFSET(INDIRECT(SUBSTITUTE($G$28," ","_")&"_header"),L44-1,1) -> n/a | P44: E5 | Q44: =IFERROR(VLOOKUP(V44,Lists!$DT$5:$DZ$30,V$34,FALSE),0) -> 0 | T44: n/a | V44: =IF(G44="",0,IF(G44<$E44,"E5",0)) -> 0
D45: Window Overhangs (Y or N) | E45: =IF(AND($E$22<>"",$N$17<>""),VLOOKUP($E$22&$N$17,Lists!$CB$19:$DA$24,M45,FALSE),"") ->  | F45: n/a | H45: n/a | I45: Architectural plans | L45: 11 | M45: 13 | N45: =IF(ISBLANK(HLOOKUP($G$28,'1-Early Design Planning'!$G$30:$K$70,L45,FALSE)),"",HLOOKUP($G$28,'1-Early Design Planning'!$G$30:$K$70,L45,FALSE)) ->  | O45: =OFFSET(INDIRECT(SUBSTITUTE($G$28," ","_")&"_header"),L45-1,1) -> n/a | P45: E6 | Q45: =IFERROR(VLOOKUP(V45,Lists!$DT$5:$DZ$30,V$34,FALSE),0) -> 0 | T45: n/a | V45: =IF(G45="Y","E6",0) -> 0
C46: Heating, Ventilating, and Air Conditioning System | D46: Cooling System Type | E46: =IF(AND($E$22<>"",$N$17<>""),"PTAC - DX coils","") ->  | F46: n/a | H46: n/a | I46: Mechanical schedule; mechanical plans; equipment cut sheets; invoice(s)* | L46: 12 | N46: =IF(ISBLANK(HLOOKUP($G$28,'1-Early Design Planning'!$G$30:$K$70,L46,FALSE)),"",HLOOKUP($G$28,'1-Early Design Planning'!$G$30:$K$70,L46,FALSE)) ->  | O46: =OFFSET(INDIRECT(SUBSTITUTE($G$28," ","_")&"_header"),L46-1,1) -> n/a | Q46: =IFERROR(VLOOKUP(V46,Lists!$DT$5:$DZ$30,V$34,FALSE),0) -> 0 | T46: n/a | V46: =IFERROR(VLOOKUP(G46,Lists!$EB$5:$EC$7,2,FALSE),0) -> 0
D47: Cooling Efficiency | E47: =IF(AND($E$22<>"",$N$17<>""),10.4,"") ->  | F47: EER | H47: =$O47 -> EER | I47: Mechanical schedule; mechanical plans; equipment cut sheets; invoice(s)* | L47: 13 | N47: =IF(ISBLANK(HLOOKUP($G$28,'1-Early Design Planning'!$G$30:$K$70,L47,FALSE)),"",HLOOKUP($G$28,'1-Early Design Planning'!$G$30:$K$70,L47,FALSE)) ->  | O47: =OFFSET(INDIRECT(SUBSTITUTE($G$28," ","_")&"_header"),L47-1,1) -> EER | P47: C | Q47: =IFERROR(VLOOKUP(V47,Lists!$DT$5:$DZ$30,V$34,FALSE),0) -> 0 | T47: =$O47 -> EER
D48: Heating Fuel | E48: =IF(AND($E$22<>"",$N$17<>""),"Gas","") ->  | F48: n/a | H48: n/a | I48: Mechanical schedule; mechanical plans; equipment cut sheets; invoice(s)* | L48: 14 | N48: =IF(ISBLANK(HLOOKUP($G$28,'1-Early Design Planning'!$G$30:$K$70,L48,FALSE)),"",HLOOKUP($G$28,'1-Early Design Planning'!$G$30:$K$70,L48,FALSE)) ->  | O48: =OFFSET(INDIRECT(SUBSTITUTE($G$28," ","_")&"_header"),L48-1,1) -> n/a | Q48: =IFERROR(VLOOKUP(V48,Lists!$DT$5:$DZ$30,V$34,FALSE),0) -> 0 | T48: n/a
D49: Heating System Type | E49: =IF(AND($E$22<>"",$N$17<>""),"PTAC - HW Coils (NG boiler)","") ->  | F49: n/a | H49: n/a | I49: Mechanical schedule; mechanical plans; equipment cut sheets; invoice(s)* | L49: 15 | N49: =IF(ISBLANK(HLOOKUP($G$28,'1-Early Design Planning'!$G$30:$K$70,L49,FALSE)),"",HLOOKUP($G$28,'1-Early Design Planning'!$G$30:$K$70,L49,FALSE)) ->  | O49: =OFFSET(INDIRECT(SUBSTITUTE($G$28," ","_")&"_header"),L49-1,1) -> n/a | Q49: =IFERROR(VLOOKUP(V49,Lists!$DT$5:$DZ$30,V$34,FALSE),0) -> 0 | T49: n/a | V49: =VLOOKUP(G49,Lists!$EB$10:$EC$15,2,FALSE) -> 
D50: Heating Efficiency | E50: =IF(AND($E$22<>"",$N$17<>""),0.82,"") ->  | F50: Et | H50: Et | I50: Mechanical schedule; mechanical plans; equipment cut sheets; invoice(s)* | L50: 16 | N50: =IF(ISBLANK(HLOOKUP($G$28,'1-Early Design Planning'!$G$30:$K$70,L50,FALSE)),"",HLOOKUP($G$28,'1-Early Design Planning'!$G$30:$K$70,L50,FALSE)) ->  | O50: =OFFSET(INDIRECT(SUBSTITUTE($G$28," ","_")&"_header"),L50-1,1) -> Et | P50: H | Q50: =IFERROR(VLOOKUP(V50,Lists!$DT$5:$DZ$30,V$34,FALSE),0) -> 0 | T50: =HLOOKUP($G$49&"_heat",Lists!$S$9:$X$10,2,FALSE) -> 
D51: Dedicated Outside Air System (Y or N) | E51: =IF(AND($E$22<>"",$N$17<>""),"N","") ->  | F51: n/a | H51: n/a | I51: Mechanical schedule; mechanical plans; equipment cut sheets; invoice(s)* | L51: 17 | N51: =IF(ISBLANK(HLOOKUP($G$28,'1-Early Design Planning'!$G$30:$K$70,L51,FALSE)),"",HLOOKUP($G$28,'1-Early Design Planning'!$G$30:$K$70,L51,FALSE)) ->  | O51: =OFFSET(INDIRECT(SUBSTITUTE($G$28," ","_")&"_header"),L51-1,1) -> n/a | P51: H | Q51: =IFERROR(VLOOKUP(V51,Lists!$DT$5:$DZ$30,V$34,FALSE),0) -> 0 | T51: n/a
D52: Outside Air Heating Coil Type | E52: =IF(AND($E$22<>"",$N$17<>""),"n/a","") ->  | F52: n/a | H52: n/a | I52: Mechanical schedule; mechanical plans; equipment cut sheets; invoice(s)* | L52: 18 | N52: =IF(ISBLANK(HLOOKUP($G$28,'1-Early Design Planning'!$G$30:$K$70,L52,FALSE)),"",HLOOKUP($G$28,'1-Early Design Planning'!$G$30:$K$70,L52,FALSE)) ->  | O52: =OFFSET(INDIRECT(SUBSTITUTE($G$28," ","_")&"_header"),L52-1,1) -> n/a | Q52: =IFERROR(VLOOKUP(V52,Lists!$DT$5:$DZ$30,V$34,FALSE),0) -> 0 | T52: n/a
D53: Outside Air Heating Coil Efficiency | E53: =IF(AND($E$22<>"",$N$17<>""),"n/a","") ->  | F53: n/a | H53: n/a | I53: Mechanical schedule; mechanical plans; equipment cut sheets; invoice(s)* | L53: 19 | N53: =IF(ISBLANK(HLOOKUP($G$28,'1-Early Design Planning'!$G$30:$K$70,L53,FALSE)),"",HLOOKUP($G$28,'1-Early Design Planning'!$G$30:$K$70,L53,FALSE)) ->  | O53: =OFFSET(INDIRECT(SUBSTITUTE($G$28," ","_")&"_header"),L53-1,1) -> Et | P53: H | Q53: =IFERROR(VLOOKUP(V53,Lists!$DT$5:$DZ$30,V$34,FALSE),0) -> 0 | T53: n/a
D54: Outside Air Cooling Coil Type | F54: n/a | H54: n/a | I54: Mechanical schedule; mechanical plans; equipment cut sheets; invoice(s)* | L54: 20 | N54: =IF(ISBLANK(HLOOKUP($G$28,'1-Early Design Planning'!$G$30:$K$70,L54,FALSE)),"",HLOOKUP($G$28,'1-Early Design Planning'!$G$30:$K$70,L54,FALSE)) ->  | O54: =OFFSET(INDIRECT(SUBSTITUTE($G$28," ","_")&"_header"),L54-1,1) -> n/a | Q54: =IFERROR(VLOOKUP(V54,Lists!$DT$5:$DZ$30,V$34,FALSE),0) -> 0 | T54: n/a
D55: Outside Air Cooling Coil Efficiency | F55: n/a | H55: n/a | I55: Mechanical schedule; mechanical plans; equipment cut sheets; invoice(s)* | L55: 21 | N55: =IF(ISBLANK(HLOOKUP($G$28,'1-Early Design Planning'!$G$30:$K$70,L55,FALSE)),"",HLOOKUP($G$28,'1-Early Design Planning'!$G$30:$K$70,L55,FALSE)) ->  | O55: =OFFSET(INDIRECT(SUBSTITUTE($G$28," ","_")&"_header"),L55-1,1) -> EER | P55: C | Q55: =IFERROR(VLOOKUP(V55,Lists!$DT$5:$DZ$30,V$34,FALSE),0) -> 0 | T55: n/a
D56: Heat Recovery (Y or N) | E56: =IF(AND($E$22<>"",$N$17<>""),"Y","") ->  | F56: n/a | G56: Y | H56: n/a | I56: Mechanical schedule; mechanical plans; equipment cut sheets; invoice(s)* | L56: 22 | N56: =IF(ISBLANK(HLOOKUP($G$28,'1-Early Design Planning'!$G$30:$K$70,L56,FALSE)),"",HLOOKUP($G$28,'1-Early Design Planning'!$G$30:$K$70,L56,FALSE)) -> Y | O56: =OFFSET(INDIRECT(SUBSTITUTE($G$28," ","_")&"_header"),L56-1,1) -> n/a | P56: H7 | Q56: =IFERROR(VLOOKUP(V56,Lists!$DT$5:$DZ$30,V$34,FALSE),0) -> 0 | S56: Y | T56: n/a
D57: Heat Recovery Sensible Efficiency | E57: =IF(AND($E$22<>"",$N$17<>""),0.6,"") ->  | F57: n/a | H57: n/a | I57: Mechanical schedule; mechanical plans; equipment cut sheets; invoice(s)* | L57: 23 | N57: =IF(ISBLANK(HLOOKUP($G$28,'1-Early Design Planning'!$G$30:$K$70,L57,FALSE)),"",HLOOKUP($G$28,'1-Early Design Planning'!$G$30:$K$70,L57,FALSE)) ->  | O57: =OFFSET(INDIRECT(SUBSTITUTE($G$28," ","_")&"_header"),L57-1,1) -> n/a | P57: H7 | Q57: =IFERROR(VLOOKUP(V57,Lists!$DT$5:$DZ$30,V$34,FALSE),0) -> 0 | T57: n/a
D58: Heat Recovery Latent Efficiency | E58: =IF(AND($E$22<>"",$N$17<>""),0.6,"") ->  | F58: n/a | H58: n/a | I58: Mechanical schedule; mechanical plans; equipment cut sheets; invoice(s)* | L58: 24 | N58: =IF(ISBLANK(HLOOKUP($G$28,'1-Early Design Planning'!$G$30:$K$70,L58,FALSE)),"",HLOOKUP($G$28,'1-Early Design Planning'!$G$30:$K$70,L58,FALSE)) ->  | O58: =OFFSET(INDIRECT(SUBSTITUTE($G$28," ","_")&"_header"),L58-1,1) -> n/a | P58: H7 | Q58: =IFERROR(VLOOKUP(V58,Lists!$DT$5:$DZ$30,V$34,FALSE),0) -> 0 | T58: n/a
D59: Bath Fan (Y or N) | E59: =IF(AND($E$22<>"",$N$17<>""),"Y","") ->  | F59: n/a | H59: n/a | L59: 25 | N59: =IF(ISBLANK(HLOOKUP($G$28,'1-Early Design Planning'!$G$30:$K$70,L59,FALSE)),"",HLOOKUP($G$28,'1-Early Design Planning'!$G$30:$K$70,L59,FALSE)) ->  | O59: =OFFSET(INDIRECT(SUBSTITUTE($G$28," ","_")&"_header"),L59-1,1) -> n/a | P59: H8 | Q59: =IFERROR(VLOOKUP(V59,Lists!$DT$5:$DZ$30,V$34,FALSE),0) -> 0 | T59: n/a
D60: Bath Fan Efficiency (W/cfm) | E60: =IF(AND($E$22<>"",$N$17<>""),1/2.8,"") ->  | F60: W/cfm | H60: W/cfm | I60: Equipment cut sheet; invoice(s) | L60: 26 | N60: =IF(ISBLANK(HLOOKUP($G$28,'1-Early Design Planning'!$G$30:$K$70,L60,FALSE)),"",HLOOKUP($G$28,'1-Early Design Planning'!$G$30:$K$70,L60,FALSE)) ->  | O60: =OFFSET(INDIRECT(SUBSTITUTE($G$28," ","_")&"_header"),L60-1,1) -> W/cfm | P60: H8 | Q60: =IFERROR(VLOOKUP(V60,Lists!$DT$5:$DZ$30,V$34,FALSE),0) -> 0 | T60: W/cfm | V60: =IF(G60="",0,IF(G60<$E60,"H8",0)) -> 0
C61: Lighting | D61: In-unit Lighting Power Density (W/sq ft) | E61: =IF(AND($E$22<>"",$N$17<>""),VLOOKUP($E$22&$N$17,Lists!$CB$19:$DA$24,M61,FALSE),"") ->  | F61: W/sq ft | H61: W/sq ft | L61: 27 | M61: 14 | N61: =IF(ISBLANK(HLOOKUP($G$28,'1-Early Design Planning'!$G$30:$K$70,L61,FALSE)),"",HLOOKUP($G$28,'1-Early Design Planning'!$G$30:$K$70,L61,FALSE)) ->  | O61: =OFFSET(INDIRECT(SUBSTITUTE($G$28," ","_")&"_header"),L61-1,1) -> W/sq ft | P61: L3 | Q61: =IFERROR(VLOOKUP(V61,Lists!$DT$5:$DZ$30,V$34,FALSE),0) -> 0 | T61: W/sq ft | V61: =IF(G61="",0,IF(G61<$E61,"L3",0)) -> 0
D62: Corridor Lighting Power Density (W/sq ft) | E62: =IF(AND($E$22<>"",$N$17<>""),VLOOKUP($E$22&$N$17,Lists!$CB$19:$DA$24,M62,FALSE),"") ->  | F62: W/sq ft | H62: W/sq ft | I62: Lighting plans and schedules; COMcheck documentation; invoice(s) | L62: 28 | M62: 15 | N62: =IF(ISBLANK(HLOOKUP($G$28,'1-Early Design Planning'!$G$30:$K$70,L62,FALSE)),"",HLOOKUP($G$28,'1-Early Design Planning'!$G$30:$K$70,L62,FALSE)) ->  | O62: =OFFSET(INDIRECT(SUBSTITUTE($G$28," ","_")&"_header"),L62-1,1) -> W/sq ft | P62: L1 | Q62: =IFERROR(VLOOKUP(V62,Lists!$DT$5:$DZ$30,V$34,FALSE),0) -> 0 | T62: W/sq ft | V62: =IF(G62="",0,IF(AND(G62<$E62,V61=0),"L3",0)) -> 0
D63: Office Lighting Power Density (W/sq ft) | E63: =IF(AND($E$22<>"",$N$17<>""),VLOOKUP($E$22&$N$17,Lists!$CB$19:$DA$24,M63,FALSE),"") ->  | F63: W/sq ft | H63: W/sq ft | L63: 29 | M63: 16 | N63: =IF(ISBLANK(HLOOKUP($G$28,'1-Early Design Planning'!$G$30:$K$70,L63,FALSE)),"",HLOOKUP($G$28,'1-Early Design Planning'!$G$30:$K$70,L63,FALSE)) ->  | O63: =OFFSET(INDIRECT(SUBSTITUTE($G$28," ","_")&"_header"),L63-1,1) -> W/sq ft | P63: L1 | Q63: =IFERROR(VLOOKUP(V63,Lists!$DT$5:$DZ$30,V$34,FALSE),0) -> 0 | T63: W/sq ft | V63: =IF(G63="",0,IF(AND(G63<$E63,V62=0,V61=0),"L3",0)) -> 0
D64: Elevator Lighting Power Density (W/sq ft) | E64: =IF(AND($E$22<>"",$N$17<>""),VLOOKUP($E$22&$N$17,Lists!$CB$19:$DA$24,M64,FALSE),"") ->  | F64: W/sq ft | H64: W/sq ft | L64: 30 | M64: 17 | N64: =IF(ISBLANK(HLOOKUP($G$28,'1-Early Design Planning'!$G$30:$K$70,L64,FALSE)),"",HLOOKUP($G$28,'1-Early Design Planning'!$G$30:$K$70,L64,FALSE)) ->  | O64: =OFFSET(INDIRECT(SUBSTITUTE($G$28," ","_")&"_header"),L64-1,1) -> W/sq ft | P64: L1 | Q64: =IFERROR(VLOOKUP(V64,Lists!$DT$5:$DZ$30,V$34,FALSE),0) -> 0 | T64: W/sq ft | V64: =IF(G64="",0,IF(AND(G64<$E64,V63=0,V62=0,V61=0),"L3",0)) -> 0
D65: Bi-level Lighting Control in Corridors (mid- and high-rise only) | E65: =IF(AND($E$22<>"",$N$17<>""),VLOOKUP($E$22&$N$17,Lists!$CB$19:$DA$24,M65,FALSE),"") ->  | F65: n/a | H65: n/a | I65: Lighting plans and schedules; sensor/controller cutsheet; invoice(s) | L65: 31 | M65: 18 | N65: =IF(ISBLANK(HLOOKUP($G$28,'1-Early Design Planning'!$G$30:$K$70,L65,FALSE)),"",HLOOKUP($G$28,'1-Early Design Planning'!$G$30:$K$70,L65,FALSE)) ->  | O65: =OFFSET(INDIRECT(SUBSTITUTE($G$28," ","_")&"_header"),L65-1,1) -> n/a | P65: L1 | Q65: =IFERROR(VLOOKUP(V65,Lists!$DT$5:$DZ$30,V$34,FALSE),0) -> 0 | T65: n/a | V65: =IF(G65="Y","L1",0) -> 0
D66: Exterior Lighting (% better than code) | E66: =IF(AND($E$22<>"",$N$17<>""),VLOOKUP($E$22&$N$17,Lists!$CB$19:$DA$24,M66,FALSE),"") ->  | F66: n/a | H66: n/a | I66: Lighting plans and schedules; COMcheck documentation; invoice(s) | L66: 32 | M66: 19 | N66: =IF(ISBLANK(HLOOKUP($G$28,'1-Early Design Planning'!$G$30:$K$70,L66,FALSE)),"",HLOOKUP($G$28,'1-Early Design Planning'!$G$30:$K$70,L66,FALSE)) ->  | O66: =OFFSET(INDIRECT(SUBSTITUTE($G$28," ","_")&"_header"),L66-1,1) -> n/a | P66: L2 | Q66: =IFERROR(VLOOKUP(V66,Lists!$DT$5:$DZ$30,V$34,FALSE),0) -> 0 | T66: n/a | V66: =IF(G66="",0,IF(G66>0,"L2",0)) -> 0
C67: Domestic Hot Water | D67: Domestic Hot Water Fuel | E67: =IF(AND($E$22<>"",$N$17<>""),"Gas","") ->  | F67: n/a | H67: n/a | I67: Plumbing schedule; equipment cut sheets; invoice(s) | L67: 33 | N67: =IF(ISBLANK(HLOOKUP($G$28,'1-Early Design Planning'!$G$30:$K$70,L67,FALSE)),"",HLOOKUP($G$28,'1-Early Design Planning'!$G$30:$K$70,L67,FALSE)) ->  | O67: =OFFSET(INDIRECT(SUBSTITUTE($G$28," ","_")&"_header"),L67-1,1) -> n/a | Q67: =IFERROR(VLOOKUP(V67,Lists!$DT$5:$DZ$30,V$34,FALSE),0) -> 0 | T67: n/a
D68: Water Heater Type | E68: =IF(AND($E$22<>"",$N$17<>""),VLOOKUP($E$22&$N$17,Lists!$CB$19:$DA$24,M68,FALSE),"") ->  | F68: n/a | H68: n/a | I68: Plumbing schedule; equipment cut sheets; invoice(s) | L68: 34 | M68: 21 | N68: =IF(ISBLANK(HLOOKUP($G$28,'1-Early Design Planning'!$G$30:$K$70,L68,FALSE)),"",HLOOKUP($G$28,'1-Early Design Planning'!$G$30:$K$70,L68,FALSE)) ->  | O68: =OFFSET(INDIRECT(SUBSTITUTE($G$28," ","_")&"_header"),L68-1,1) -> n/a | Q68: =IFERROR(VLOOKUP(V68,Lists!$DT$5:$DZ$30,V$34,FALSE),0) -> 0 | T68: n/a | V68: =VLOOKUP(G68,Lists!$EB$17:$EC$22,2,FALSE) -> 
D69: Water Heater Efficiency | E69: =IF(AND($E$22<>"",$N$17<>""),VLOOKUP($E$22&$N$17,Lists!$CB$19:$DA$24,M69,FALSE),"") ->  | F69: Et | H69: =IF($G$68="Heat Pump Water Heater - In-Unit","COP","Et") -> Et | I69: Plumbing schedule; equipment cut sheets; invoice(s) | L69: 35 | M69: 22 | N69: =IF(ISBLANK(HLOOKUP($G$28,'1-Early Design Planning'!$G$30:$K$70,L69,FALSE)),"",HLOOKUP($G$28,'1-Early Design Planning'!$G$30:$K$70,L69,FALSE)) ->  | O69: =OFFSET(INDIRECT(SUBSTITUTE($G$28," ","_")&"_header"),L69-1,1) -> Et | P69: DHW | Q69: =IFERROR(VLOOKUP(V69,Lists!$DT$5:$DZ$30,V$34,FALSE),0) -> 0 | T69: =IF($G$68="Heat Pump Water Heater - In-Unit","COP","Et") -> Et
D70: Kitchen Aerator Flow (GPM) | E70: =IF(AND($E$22<>"",$N$17<>""),VLOOKUP($E$22&$N$17,Lists!$CB$19:$DA$24,M70,FALSE),"") ->  | F70: gpm | H70: gpm | I70: Equipment cut sheets; invoice(s) | L70: 36 | M70: 23 | N70: =IF(ISBLANK(HLOOKUP($G$28,'1-Early Design Planning'!$G$30:$K$70,L70,FALSE)),"",HLOOKUP($G$28,'1-Early Design Planning'!$G$30:$K$70,L70,FALSE)) ->  | O70: =OFFSET(INDIRECT(SUBSTITUTE($G$28," ","_")&"_header"),L70-1,1) -> gpm | P70: D1 | Q70: =IFERROR(VLOOKUP(V70,Lists!$DT$5:$DZ$30,V$34,FALSE),0) -> 0 | T70: gpm | V70: =IF(G70="",0,IF(G70<$E70,"D1",0)) -> 0
D71: Bath Aerator Flow (GPM) | E71: =IF(AND($E$22<>"",$N$17<>""),VLOOKUP($E$22&$N$17,Lists!$CB$19:$DA$24,M71,FALSE),"") ->  | F71: gpm | H71: gpm | I71: Equipment cut sheets; invoice(s) | L71: 37 | M71: 24 | N71: =IF(ISBLANK(HLOOKUP($G$28,'1-Early Design Planning'!$G$30:$K$70,L71,FALSE)),"",HLOOKUP($G$28,'1-Early Design Planning'!$G$30:$K$70,L71,FALSE)) ->  | O71: =OFFSET(INDIRECT(SUBSTITUTE($G$28," ","_")&"_header"),L71-1,1) -> gpm | P71: D1 | Q71: =IFERROR(VLOOKUP(V71,Lists!$DT$5:$DZ$30,V$34,FALSE),0) -> 0 | T71: gpm | V71: =IF(G71="",0,IF(AND(G71<$E71,V70=0),"D1",0)) -> 0
C72: Appliances (In-Unit) | D72: ENERGY STAR® Refrigerators (Y or N) | E72: =IF(AND($E$22<>"",$N$17<>""),"N","") ->  | F72: n/a | H72: n/a | I72: Equipment cut sheets; invoice(s) | L72: 38 | N72: =IF(ISBLANK(HLOOKUP($G$28,'1-Early Design Planning'!$G$30:$K$70,L72,FALSE)),"",HLOOKUP($G$28,'1-Early Design Planning'!$G$30:$K$70,L72,FALSE)) ->  | O72: =OFFSET(INDIRECT(SUBSTITUTE($G$28," ","_")&"_header"),L72-1,1) -> n/a | P72: A1 | Q72: =IFERROR(VLOOKUP(V72,Lists!$DT$5:$DZ$30,V$34,FALSE),0) -> 0 | T72: n/a | V72: =IF(G72="Y","A2",0) -> 0
D73: ENERGY STAR® Clothes washers (Y or N) | E73: =IF(AND($E$22<>"",$N$17<>""),"N","") ->  | F73: n/a | H73: n/a | I73: Equipment cut sheets; invoice(s) | L73: 39 | N73: =IF(ISBLANK(HLOOKUP($G$28,'1-Early Design Planning'!$G$30:$K$70,L73,FALSE)),"",HLOOKUP($G$28,'1-Early Design Planning'!$G$30:$K$70,L73,FALSE)) ->  | O73: =OFFSET(INDIRECT(SUBSTITUTE($G$28," ","_")&"_header"),L73-1,1) -> n/a | P73: A1 | Q73: =IFERROR(VLOOKUP(V73,Lists!$DT$5:$DZ$30,V$34,FALSE),0) -> 0 | T73: n/a | V73: =IF(G73="Y","A3",0) -> 0
D74: ENERGY STAR® Electric Dryers (Y or N) | E74: =IF(AND($E$22<>"",$N$17<>""),"N","") ->  | F74: n/a | H74: n/a | I74: Equipment cut sheets; invoice(s) | L74: 40 | N74: =IF(ISBLANK(HLOOKUP($G$28,'1-Early Design Planning'!$G$30:$K$70,L74,FALSE)),"",HLOOKUP($G$28,'1-Early Design Planning'!$G$30:$K$70,L74,FALSE)) ->  | O74: =OFFSET(INDIRECT(SUBSTITUTE($G$28," ","_")&"_header"),L74-1,1) -> n/a | P74: A1 | Q74: =IFERROR(VLOOKUP(V74,Lists!$DT$5:$DZ$30,V$34,FALSE),0) -> 0 | T74: n/a | V74: =IF(G74="Y","A4",0) -> 0
D75: ENERGY STAR® Dishwashers (Y or N) | E75: =IF(AND($E$22<>"",$N$17<>""),"N","") ->  | F75: n/a | H75: n/a | I75: Equipment cut sheets; invoice(s) | L75: 41 | N75: =IF(ISBLANK(HLOOKUP($G$28,'1-Early Design Planning'!$G$30:$K$70,L75,FALSE)),"",HLOOKUP($G$28,'1-Early Design Planning'!$G$30:$K$70,L75,FALSE)) ->  | O75: =OFFSET(INDIRECT(SUBSTITUTE($G$28," ","_")&"_header"),L75-1,1) -> n/a | P75: A1 | Q75: =IFERROR(VLOOKUP(V75,Lists!$DT$5:$DZ$30,V$34,FALSE),0) -> 0 | T75: n/a | V75: =IF(G75="Y","A1",0) -> 0
I76: *If invoices are not available, program can conduct a site visit as equipment verification.
C77: RESULTS | M77: ="Heat"&G48 -> Heat
M78: ="DHW"&G67 -> DHW
D79: Project Name: | E79: =IF(E15<>"",E15,"") -> 
D80: Project City: | E80: =IF(E16<>"",E16,"") -> 
D81: Project Zip Code: | E81: =IF(E17<>"",E17,"") -> 
D82: Total Square Footage: | E82: =IF(E18<>"",E18,"") -> 
D83: Project Square Footage: | E83: =IF(E19<>"",E19,"") -> 
D84: Building Type: | E84: =IF(E22<>"",E22,"") -> 
C86: Note regarding the estimated energy savings:
C88: The following results are based on an analysis of low-, mid-, and high-rise buildings based on the US Department of Energy Commercial and Residential Prototype Building Models. Model results are used to demonstrate the relative savings potential of a suite of energy efficiency upgrades, as defined in the scenarios put into the Early Design Planning tab, over a baseline energy model that meets the New Buildings program requirements. Results are not predictive of actual energy use once the project is completed and occupied.
C94: Estimated Project Savings and Incentives for Prototypical Building With Above Characteristics:
G96: Final Results
D97: Estimated EUI Reduction (kBtu/sf/yr) | G97: ='Ops Calc'!O103 -> 0
D98: Estimated EUI Reduction (%) | G98: ='Ops Calc'!O104 -> 0 | M98: =IF(G98>0.15,"Best",IF(G98>0.1,"Better",IF(G98>0.05,"Good","Does not qualify"))) -> Does not qualify
D99: Estimated Energy Savings (kWh/yr) | G99: =ROUND('Ops Calc'!O105,2) -> 0
D100: Estimated Energy Savings (therms/yr) | G100: =ROUND('Ops Calc'!O106,2) -> 0
D101: Estimated Project Incentives ($) | G101: =IFERROR(IF(G98<0.05,"Does not qualify",IF(G98<0.1,ROUND('2-Incentive Application'!$L$25*$E$19,2),IF(G98<0.15,ROUND('2-Incentive Application'!$L$26*$E$19,2),ROUND('2-Incentive Application'!$L$27*$E$19,2)))),"Does not qualify") -> Does not qualify
I102: ='Version History'!C1 -> 2024v1.1
A104: HIDE FROM HERE DOWN

Sheet form ends here (hidden)
A1: HIDE THIS TAB
B5: sheets after this are either lists used in the earlier form or sheets being used by the program to develop the offering and will be removed later

Sheet Version History (hidden)
A1: HIDE THIS TAB | B1: current version: | C1: =A7 -> 2024v1.1
A3: Version | B3: Change Log | C3: Initiated by | D3: QC'ed by
A4: 2022v1.0 | B4: Initial version | C4: ZM, 8/20/21 | D4: PJ, 10/1/21
A5: 2023v1.0 | B5: - Updated code reference WWR on "3-Project Input" (E44) tab to match the final scenario (capped at 0.40) - Added "In-Unit" to Appliances grouping on "1-Early Design Planning" (C67) and "3-Project Input" (C72) tabs - Added "Electric" to dryer description on "1-Early Design Planning" (D69) and "3-Project Input" (D74) tabs - Removed formula from "Unit of Measure" column for Heating Efficiency on "3-Project Input" (H50) tab - Added fields for CEC Sector, Sub-sector, Electric Load Profile, and Gas Load Profile to "Ops Calc" tab (Note: This change is to a hidden tab with no impact to form user experience) - Fixed conditional formatting on "MF MSO SV" tab so that selections better than code are shaded green and selections worse than code are shaded red (Note: This change is to a hidden tabl with no impacts to form user experience) | C5: PJ, 12/19/22
A6: 2024v1.0 | B6: - Added "Electric Resistance" option to Heating System Type dropdown selection on both "1-Early Design Planning" and "3-Project Input" tabs - Removed in-unit restriction on HPWH option from Water Heater Type dropdown selections on both "1-Early Design Planning" and "3-Project Input" tabs - Rounded all savings and incentives values to two decimal places on both "1-Early Design Planning" and "3-Project Input" tabs (Note: This also results in the final savings and incentives in the "Installation Measures" table of the "Ops Calc" tab also rounded to two decimal places) - Renamed all the measures in the "Installation Measures" table of the "Ops Calc" tab to align with PT - Set the "Ops Calc" tab print area to one sheet | C6: PJ, 3/19/24 | D6: EB, 3/22/24
A7: 2024v1.1 | B7: - Updated "Ops Calc" tab so that Measure Names align with PT (in cell C8) - Corrected efficiency dropdown options on the "1-Early Design Planning" and "3-Project Input" tabs for Heating System Type = Electric Resistance and Water Heater Type = Heat Pump Water Heater | C7: PJ, 5/6/24 | D7: CNF, 5/6/24

Sheet Lists (hidden)
A1: HIDE THIS TAB | EE1: Not used
DS2: Measure savings by CZ & Building Type | DU2: High Rise4C | DV2: Mid Rise4C | DW2: Low Rise4C | DX2: High Rise5B | DY2: Mid Rise5B | DZ2: Low Rise5B | EE2: Cooling System savings by building type | EJ2: Heating System savings by building type
A3: LOOKUPS | DU3: 2 | DV3: 3 | DW3: 4 | DX3: 5 | DY3: 6 | DZ3: 7 | EE3: Climate Zone | EF3: Building Type | EG3: Cooling System | EH3: Relative savings | EJ3: Climate Zone | EK3: Building Type | EL3: HVAC System | EM3: Relative savings
DT4: Case | DU4: EUI% | EE4: 4C | EF4: High Rise | EG4: PTAC - DX Coils | EH4: 0 | EJ4: 4C | EK4: High Rise | EL4: PTAC - HW coils (NG boiler) | EM4: 0
A5: Building Type | C5: DHW System Type | E5: Y/N | DS5: A1_DRY | DT5: =IF(LEN(DS5)=6,LEFT(DS5,2),LEFT(DS5,3)) -> A1 | DU5: 0.01208373526 | DV5: 0.01208373526 | DW5: 0.01208373526 | DX5: 0.01023585317 | DY5: 0.01023585317 | DZ5: 0.01023585317 | EB5: DHP | EC5: H1 | EE5: 4C | EF5: High Rise | EG5: High-Efficiency Split System | EH5: 0.0113989115 | EJ5: 4C | EK5: High Rise | EL5: PTAC - HW (condensing NG boiler) | EM5: 0.01835034161
A6: Low Rise | C6: Central | E6: Y | DS6: A2_REF | DT6: =IF(LEN(DS6)=6,LEFT(DS6,2),LEFT(DS6,3)) -> A2 | DU6: 0.009481673101 | DV6: 0.009481673101 | DW6: 0.009481673101 | DX6: 0.008090023042 | DY6: 0.008090023042 | DZ6: 0.008090023042 | EB6: VRF | EC6: H2 | EE6: 4C | EF6: High Rise | EG6: DHP | EH6: 0.1348130915 | EJ6: 4C | EK6: High Rise | EL6: PTHP - DX coils | EM6: 0.08738126797
A7: Mid Rise | C7: In-Unit | E7: N | DS7: A3_CLO | DT7: A3 | DU7: 0.002831958705 | DV7: 0.002831958705 | DW7: 0.002831958705 | DX7: 0.002457218954 | DY7: 0.002457218954 | DZ7: 0.002457218954 | EB7: High-Efficiency Split System | EC7: H3 | EE7: 4C | EF7: High Rise | EG7: VRF | EH7: 0.1002093456 | EJ7: 4C | EK7: High Rise | EL7: Condensing Furnace | EM7: 0.0187628243
A8: High Rise | DS8: A4_DSH | DT8: A4 | DU8: 0.004277548791 | DV8: 0.004277548791 | DW8: 0.004277548791 | DX8: 0.003798362784 | DY8: 0.003798362784 | DZ8: 0.003798362784 | EB8: PTAC - DX coils | EE8: 4C | EF8: Mid Rise | EG8: PTAC - DX Coils | EH8: 0 | EJ8: 4C | EK8: Mid Rise | EL8: PTAC - HW coils (NG boiler) | EM8: 0
C9: DHWGas | E9: DHWElectric | G9: Appliance Type | I9: Cooling Systems | K9: HeatGas | L9: HeatElectric | N9: DHP_cool | O9: VRF_cool | P9: High-Efficiency Split System_cool | Q9: PTAC - DX coils_cool | S9: Furnace_heat | T9: PTAC - HW (condensing NG boiler)_heat | U9: PTAC - HW coils (NG boiler)_heat | V9: DHP_heat | W9: VRF_heat | X9: PTHP - DX coils_heat | Y9: Electric_Resistance_heat | Z9: DOAS_heat_coil | AA9: DOAS_cool_coil | AC9: Condensing - Central Storage Tank | AD9: Condensing - In-Unit Storage Tank | AE9: Condensing - Tankless | AF9: Standard - Tankless | AG9: Standard - Central Storage Tank | AH9: Heat Pump Water Heater | DS9: D1_AER | DT9: D1 | DU9: 0.0178660956 | DV9: 0.0178660956 | DW9: 0.0178660956 | DX9: 0.01881917368 | DY9: 0.01881917368 | DZ9: 0.01881917368 | EE9: 4C | EF9: Mid Rise | EG9: High-Efficiency Split System | EH9: 0.02014213149 | EJ9: 4C | EK9: Mid Rise | EL9: PTAC - HW (condensing NG boiler) | EM9: 0.03501222045
A10: Heating Fuel Type | C10: Condensing - Central Storage Tank | E10: Heat Pump Water Heater | G10: Standard Efficiency | I10: DHP | K10: Furnace | L10: DHP | N10: SEER | O10: SEER | P10: SEER | Q10: SEER | S10: Et | T10: Et | U10: Et | V10: COP | W10: COP | X10: COP | Y10: COP | Z10: Gas | AA10: DX | AC10: Et | AD10: Et | AE10: Et | AF10: Et | AG10: Et | AH10: COP | DS10: D2_HPW | DT10: D2 | DU10: 0.158955688 | DV10: 0.158955688 | DW10: 0.158955688 | DX10: 0.1746600868 | DY10: 0.1746600868 | DZ10: 0.1746600868 | EB10: Furnace | EC10: H10 | EE10: 4C | EF10: Mid Rise | EG10: DHP | EH10: 0.1605750111 | EJ10: 4C | EK10: Mid Rise | EL10: PTHP - DX coils | EM10: 0.1270034112
A11: Gas | C11: Condensing - Tankless | E11: Standard - Tankless | G11: ENERGY STAR | I11: VRF | K11: PTAC - HW (condensing NG boiler) | L11: VRF | N11: EER | O11: EER | P11: EER | Q11: EER | V11: HSPF | Z11: Electric | AC11: UEF | AD11: UEF | AE11: UEF | AF11: UEF | AG11: UEF | AH11: UEF | DS11: D3_CWH | DT11: D3 | DU11: 0.04995819551 | DV11: 0.04995819551 | DW11: 0.04995819551 | DX11: 0.05261599821 | DY11: 0.05261599821 | DZ11: 0.05261599821 | EB11: PTAC - HW (condensing NG boiler) | EC11: H9 | EE11: 4C | EF11: Mid Rise | EG11: VRF | EH11: 0.130083879 | EJ11: 4C | EK11: Mid Rise | EL11: Condensing Furnace | EM11: 0.03574152639
A12: Electric | C12: Standard - Tankless | E12: Standard - Central Storage Tank | I12: High-Efficiency Split System | K12: PTAC - HW coils (NG boiler) | L12: PTHP - DX coils | O12: COP | DS12: D4_TWH | DT12: D4 | DU12: 0.1893130798 | DV12: 0.1893130798 | DW12: 0.1893130798 | DX12: 0.2151626305 | DY12: 0.2151626305 | DZ12: 0.2151626305 | EB12: PTAC - HW coils (NG boiler) | EE12: 4C | EF12: Low Rise | EG12: PTAC - DX Coils | EH12: 0 | EJ12: 4c | EK12: Low Rise | EL12: PTAC - HW coils (NG boiler) | EM12: 0
C13: Standard - Central Storage Tank | I13: PTAC - DX coils | L13: Electric Resistance | DS13: E1_WIN | DT13: E1 | DU13: 0.01931168569 | DV13: 0.01931168569 | DW13: 0.01931168569 | DX13: 0.03115769692 | DY13: 0.03115769692 | DZ13: 0.03115769692 | EB13: DHP | EE13: 4C | EF13: Low Rise | EG13: High-Efficiency Split System | EH13: 0.01480395152 | EJ13: 4c | EK13: Low Rise | EL13: PTAC - HW (condensing NG boiler) | EM13: 0.08519949833
A14: Weather | K14: Zip Input | L14: CZ | M14: Weather File | CC14: Codes | DS14: E2_WAL | DT14: E2 | DU14: 0.009481673101 | DV14: 0.009481673101 | DW14: 0.009481673101 | DX14: 0.01184522577 | DY14: 0.01184522577 | DZ14: 0.01184522577 | EB14: VRF | EE14: 4C | EF14: Low Rise | EG14: DHP | EH14: 0.09580155223 | EJ14: 4C | EK14: Low Rise | EL14: PTHP - DX coils | EM14: 0.05403375726
H15: 90.1 Annex 1 | K15: ='1-Early Design Planning'!E9 -> 0 | L15: =VLOOKUP(K15,$K$19:$N$502,4,FALSE) ->  | M15: =VLOOKUP(VLOOKUP(K15,$P$19:$CA$513,63,FALSE),$A$19:$D$37,4,FALSE) ->  | DS15: E3_ROF | DT15: E3 | DU15: 0.007746964998 | DV15: 0.007746964998 | DW15: 0.007746964998 | DX15: 0.01104053947 | DY15: 0.01104053947 | DZ15: 0.01104053947 | EB15: PTHP - DX coils | EC15: H11 | EE15: 4C | EF15: Low Rise | EG15: VRF | EH15: 0.1158248978 | EJ15: 4c | EK15: Low Rise | EL15: Condensing Furnace | EM15: 0.01201809384
H16: Oregon (OR) | DS16: E4_AIR | DT16: E4 | DU16: 0.01902256767 | DV16: 0.01902256767 | DW16: 0.01902256767 | DX16: 0.0265978079 | DY16: 0.0265978079 | DZ16: 0.0265978079 | EE16: 5B | EF16: High Rise | EG16: PTAC - DX Coils | EH16: 0 | EJ16: 5B | EK16: High Rise | EL16: PTAC - HW coils (NG boiler) | EM16: 0
B17: https://www.mapdevelopers.com/what-county-am-i-in.php | H17: Zone 4C except… | K17: https://www.zipcodestogo.com/Oregon/ | P17: https://public.opendatasoft.com/explore/dataset/us-zip-code-latitude-and-longitude/table/ | U17: Lat Diff | AN17: Long Diff | BG17: Distance From | CE17: Envelope | CO17: Lighting | CU17: DHW | DS17: E5_WWR | DT17: E5 | DU17: 0 | DV17: 0 | DW17: 0 | DX17: 0 | DY17: 0 | DZ17: 0 | EB17: Condensing - Central Storage Tank | EC17: D3 | EE17: 5B | EF17: High Rise | EG17: High-Efficiency Split System | EH17: 0.01895434624 | EJ17: 5B | EK17: High Rise | EL17: PTAC - HW (condensing NG boiler) | EM17: 0.03273475339
A18: Location | B18: County | C18: ASHRAE CZ | D18: Weather File | E18: Latitude | F18: Longitude | H18: County | I18: Zone | K18: Zip Code | L18: City | M18: County | N18: CZ | P18: Zip | Q18: City | R18: State | S18: Latitude | T18: Longitude | U18: Klamath Falls | V18: La Grande | W18: Lakeview | X18: Medford | Y18: North Bend | Z18: Pendleton | AA18: Portland (PDX) | AB18: Portland (Hillsboro) | AC18: Portland (Troutdale) | AD18: Redmond | AE18: Roseburg | AF18: Salem | AG18: Sexton | AH18: Astoria | AI18: Aurora | AJ18: Baker | AK18: Burns | AL18: Corvallis | AM18: Eugene | AN18: Klamath Falls | AO18: La Grande | AP18: Lakeview | AQ18: Medford | AR18: North Bend | AS18: Pendleton | AT18: Portland (PDX) | AU18: Portland (Hillsboro) | AV18: Portland (Troutdale) | AW18: Redmond | AX18: Roseburg | AY18: Salem | AZ18: Sexton | BA18: Astoria | BB18: Aurora | BC18: Baker | BD18: Burns | BE18: Corvallis | BF18: Eugene | BG18: Klamath Falls | BH18: La Grande | BI18: Lakeview | BJ18: Medford | BK18: North Bend | BL18: Pendleton | BM18: Portland (PDX) | BN18: Portland (Hillsboro) | BO18: Portland (Troutdale) | BP18: Redmond | BQ18: Roseburg | BR18: Salem | BS18: Sexton | BT18: Astoria | BU18: Aurora | BV18: Baker | BW18: Burns | BX18: Corvallis | BY18: Eugene | BZ18: Closest TMY3 | CB18: Lookup | CC18: Building Type | CD18: CZ | CE18: :wall_base_cont_insul | CF18: :wall_base_cavity_insul | CG18: :roof_base_cont_insul | CH18: :attic_insul | CI18: :foundation_insul | CJ18: :air_leakage | CK18: :window_u | CL18: :window_shgc | CM18: :window_wall_ratio | CN18: :overhang | CO18: :lighting_density_residence | CP18: :lighting_density_corridor | CQ18: :lighting_density_office | CR18: :lighting_density_elevator | CS18: :lighting_schedule_corridor | CT18: :ext_light_w | CU18: :water_heater_fuel | CV18: :dhw_storage_type | CW18: :water_heater_eff | CX18: kitchen GPM | CY18: bath GPM | CZ18: showerhead GPM | DA18: prototype:ext_light_w | DS18: E6_OVR | DT18: E6 | DU18: 0.00745784698 | DV18: 0.00745784698 | DW18: 0.00745784698 | DX18: 0.005139506615 | DY18: 0.005139506615 | DZ18: 0.005139506615 | EB18: Condensing - In-Unit Storage Tank | EC18: D3 | EE18: 5B | EF18: High Rise | EG18: DHP | EH18: 0.1751642695 | EJ18: 5B | EK18: High Rise | EL18: PTHP - DX coils | EM18: 0.1270281608
A19: Klamath Falls | B19: Klamath | C19: =IFERROR(VLOOKUP(B19,$H$19:$I$36,2,FALSE),"4C") -> 5B | D19: USA_OR_Klamath.Falls.Intl.AP.725895_TMY3.epw | E19: 42.22 | F19: 121.74 | H19: Baker | I19: 5B | K19: 97001 | L19: Antelope | M19: Wasco | N19: =IFERROR(VLOOKUP(M19,$H$19:$I$36,2,FALSE),"4C") -> 5B | P19: 97452 | Q19: Lowell | R19: OR | S19: 43.864671 | T19: 122.70932 | U19: =$S19-VLOOKUP(U$18,$A$19:$F$37,5,FALSE) -> 1.644671 | V19: -1.418329 | W19: 1.697671 | X19: 1.674671 | Y19: 0.447671 | Z19: -1.835329 | AA19: -1.735329 | AB19: -1.668329 | AC19: -1.685326 | AD19: -0.385329 | AE19: 0.631671 | AF19: -1.035326 | AG19: 1.264671 | AH19: -2.285326 | AI19: -1.385329 | AJ19: -0.968329 | AK19: =$S19-VLOOKUP(AK$18,$A$19:$F$37,5,FALSE) -> 0.344671 | AL19: -0.618329 | AM19: -0.185326 | AN19: =$T19-VLOOKUP(AN$18,$A$19:$F$37,6,FALSE) -> 0.96932 | AO19: 4.70932 | AP19: 2.309323 | AQ19: 0.009323 | AR19: -1.54068 | AS19: 3.87632 | AT19: 0.09232 | AU19: -0.240677 | AV19: 0.30932 | AW19: 1.54232 | AX19: -0.640677 | AY19: -0.29068 | AZ19: -0.65768 | BA19: -1.17368 | BB19: -0.05768 | BC19: 4.89232 | BD19: =$T19-VLOOKUP(BD$18,$A$19:$F$37,6,FALSE) -> 3.68932 | BE19: -0.57368 | BF19: -0.36068 | BG19: =SQRT(U19^2+AN19^2) -> 1.909063635 | BH19: =SQRT(V19^2+AO19^2) -> 4.918267176 | BI19: 2.866192517 | BJ19: 1.674696951 | BK19: 1.604401504 | BL19: =SQRT(Z19^2+AS19^2) -> 4.288856407 | BM19: 1.73778299 | BN19: 1.685599914 | BO19: 1.713476755 | BP19: 1.589726209 | BQ19: 0.8997084364 | BR19: 1.075357982 | BS19: 1.425459828 | BT19: 2.569093161 | BU19: 1.386529271 | BV19: 4.987229294 | BW19: 3.705385292 | BX19: 0.8434687277 | BY19: 0.4055068294 | BZ19: =INDEX($BG$18:$BY$18,MATCH(MIN(BG19:BY19),BG19:BY19,0)) -> Eugene | CB19: =CC19&CD19 -> Low Rise4C | CC19: Low Rise | CD19: 4C | CE19: 7.5 | CF19: 13 | CG19: 30 | CH19: 49 | CI19: 15 | CJ19: 0.4 | CK19: 0.36 | CL19: 0.36 | CM19: 0.3 | CN19: N | CO19: 0.21 | CP19: 0.41 | CQ19: 0.66 | CR19: 0.65 | CS19: N | CT19: 0 | CV19: Standard - Central Storage Tank | CW19: 0.8 | CX19: 1.8 | CY19: 1.2 | CZ19: n/a | DA19: 1650 | DS19: E7_FND | DT19: E7 | DU19: 0.002253722671 | DV19: 0.002253722671 | DW19: 0.002253722671 | DX19: 0.001920761422 | DY19: 0.001920761422 | DZ19: 0.001920761422 | EB19: Condensing - Tankless | EC19: D4 | EE19: 5B | EF19: High Rise | EG19: VRF | EH19: 0.1322754581 | EJ19: 5B | EK19: High Rise | EL19: Condensing Furnace | EM19: 0.03332517302
A20: La Grande | B20: Union | C20: =IFERROR(VLOOKUP(B20,$H$19:$I$36,2,FALSE),"4C") -> 5B | D20: USA_OR_La.Grande.Muni.AP.726884_TMY3.epw | E20: 45.283 | F20: 118 | H20: Crook | I20: 5B | K20: 97002 | L20: Aurora | M20: Marion | N20: =IFERROR(VLOOKUP(M20,$H$19:$I$36,2,FALSE),"4C") -> 4C | P20: 97632 | Q20: Malin | R20: OR | S20: 42.026248 | T20: 121.41706 | U20: -0.193752 | V20: -3.256752 | W20: -0.140752 | X20: -0.163752 | Y20: -1.390752 | Z20: -3.673752 | AA20: -3.573752 | AB20: -3.506752 | AC20: -3.523749 | AD20: -2.223752 | AE20: -1.206752 | AF20: -2.873749 | AG20: -0.573752 | AH20: -4.123749 | AI20: -3.223752 | AJ20: -2.806752 | AK20: -1.493752 | AL20: -2.456752 | AM20: -2.023749 | AN20: -0.32294 | AO20: 3.41706 | AP20: 1.017063 | AQ20: -1.282937 | AR20: -2.83294 | AS20: 2.58406 | AT20: -1.19994 | AU20: -1.532937 | AV20: -0.98294 | AW20: 0.25006 | AX20: -1.932937 | AY20: -1.58294 | AZ20: -1.94994 | BA20: -2.46594 | BB20: -1.34994 | BC20: 3.60006 | BD20: 2.39706 | BE20: -1.86594 | BF20: -1.65294 | BG20: =SQRT(U20^2+AN20^2) -> 0.3766033472 | BH20: 4.720458943 | BI20: 1.026756189 | BJ20: 1.293345299 | BK20: 3.155905602 | BL20: 4.491527562 | BM20: 3.769822192 | BN20: 3.827166763 | BO20: 3.658275285 | BP20: 2.237767405 | BQ20: 2.278704859 | BR20: 3.280873719 | BS20: 2.032598672 | BT20: 4.804806541 | BU20: 3.494984258 | BV20: 4.564897457 | BW20: 2.824392268 | BX20: 3.085022281 | BY20: 2.613000317 | BZ20: =INDEX($BG$18:$BY$18,MATCH(MIN(BG20:BY20),BG20:BY20,0)) -> Klamath Falls | CB20: Low Rise5B | CC20: Low Rise | CD20: 5B | CE20: 10 | CF20: 13 | CG20: 30 | CH20: 49 | CI20: 20 | CJ20: 0.4 | CK20: 0.36 | CL20: 0.38 | CM20: 0.3 | CN20: N | CO20: 0.21 | CP20: 0.41 | CQ20: 0.66 | CR20: 0.65 | CS20: N | CT20: 0 | CV20: Standard - Central Storage Tank | CW20: 0.8 | CX20: 1.8 | CY20: 1.2 | CZ20: n/a | DA20: 1650 | DR20: Furnace | DS20: H10_HEF | DT20: H10 | DU20: 0.008325201032 | DV20: 0.008325201032 | DW20: 0.008325201032 | DX20: 0.01264991206 | DY20: 0.01264991206 | DZ20: 0.01264991206 | EB20: Standard - Tankless | EC20: D4 | EE20: 5B | EF20: Mid Rise | EG20: PTAC - DX Coils | EH20: 0 | EJ20: 5B | EK20: Mid Rise | EL20: PTAC - HW coils (NG boiler) | EM20: 0
A21: Lakeview | B21: Lake | C21: 5B | D21: USA_OR_Lakeview.AWOS.725976_TMY3.epw | E21: 42.167 | F21: 120.399997 | H21: Deschutes | I21: 5B | K21: 97004 | L21: Beavercreek | M21: Clackamas | N21: 4C | P21: 97352 | Q21: Jefferson | R21: OR | S21: 44.736025 | T21: 123.02553 | U21: 2.516025 | V21: -0.546975 | W21: 2.569025 | X21: 2.546025 | Y21: 1.319025 | Z21: -0.963975 | AA21: -0.863975 | AB21: -0.796975 | AC21: -0.813972 | AD21: 0.486025 | AE21: 1.503025 | AF21: -0.163972 | AG21: 2.136025 | AH21: -1.413972 | AI21: -0.513975 | AJ21: -0.096975 | AK21: 1.216025 | AL21: 0.253025 | AM21: 0.686028 | AN21: 1.28553 | AO21: 5.02553 | AP21: 2.625533 | AQ21: 0.325533 | AR21: -1.22447 | AS21: 4.19253 | AT21: 0.40853 | AU21: 0.075533 | AV21: 0.62553 | AW21: 1.85853 | AX21: -0.324467 | AY21: 0.02553 | AZ21: -0.34147 | BA21: -0.85747 | BB21: 0.25853 | BC21: 5.20853 | BD21: 4.00553 | BE21: -0.25747 | BF21: -0.04447 | BG21: 2.825414869 | BH21: 5.055208545 | BI21: 3.673324514 | BJ21: 2.566751845 | BK21: 1.79976491 | BL21: 4.301924639 | BM21: 0.9556932361 | BN21: 0.8005463039 | BO21: 1.026566217 | BP21: 1.921029428 | BQ21: 1.537648524 | BR21: 0.1659475751 | BS21: 2.163146912 | BT21: 1.65365402 | BU21: 0.5753330006 | BV21: 5.209432686 | BW21: 4.186046749 | BX21: 0.3609881598 | BY21: 0.6874678157 | BZ21: Salem | CB21: Mid Rise4C | CC21: Mid Rise | CD21: 4C | CE21: 7.5 | CF21: 13 | CG21: 30 | CH21: 49 | CI21: 15 | CJ21: 0.4 | CK21: 0.36 | CL21: 0.36 | CM21: 0.3 | CN21: N | CO21: 0.21 | CP21: 0.41 | CQ21: 0.66 | CR21: 0.65 | CS21: N | CT21: 0 | CV21: Standard - Central Storage Tank | CW21: 0.8 | CX21: 1.8 | CY21: 1.2 | CZ21: n/a | DA21: 1650 | DR21: PTHP - DX coils | DS21: H11_PHP | DT21: H11 | DU21: 0.04244112706 | DV21: 0.04244112706 | DW21: 0.04244112706 | DX21: 0.05315245574 | DY21: 0.05315245574 | DZ21: 0.05315245574 | EB21: Standard - Central Storage Tank | EE21: 5B | EF21: Mid Rise | EG21: High-Efficiency Split System | EH21: 0.02934693674 | EJ21: 5B | EK21: Mid Rise | EL21: PTAC - HW (condensing NG boiler) | EM21: 0.05237752708
A22: Medford | B22: Jackson | C22: 4C | D22: USA_OR_Medford-Rogue.Valley.Intl.AP.725970_TMY3.epw | E22: 42.19 | F22: 122.699997 | H22: Gilliam | I22: 5B | K22: 97005 | L22: Beaverton | M22: Washington | N22: 4C | P22: 97281 | Q22: Portland | R22: OR | S22: 45.548616 | T22: 123.114725 | U22: 3.328616 | V22: 0.265616 | W22: 3.381616 | X22: 3.358616 | Y22: 2.131616 | Z22: -0.151384 | AA22: -0.051384 | AB22: 0.015616 | AC22: -0.001381 | AD22: 1.298616 | AE22: 2.315616 | AF22: 0.648619 | AG22: 2.948616 | AH22: -0.601381 | AI22: 0.298616 | AJ22: 0.715616 | AK22: 2.028616 | AL22: 1.065616 | AM22: 1.498619 | AN22: 1.374725 | AO22: 5.114725 | AP22: 2.714728 | AQ22: 0.414728 | AR22: -1.135275 | AS22: 4.281725 | AT22: 0.497725 | AU22: 0.164728 | AV22: 0.714725 | AW22: 1.947725 | AX22: -0.235272 | AY22: 0.114725 | AZ22: -0.252275 | BA22: -0.768275 | BB22: 0.347725 | BC22: 5.297725 | BD22: 4.094725 | BE22: -0.168275 | BF22: 0.044725 | BG22: 3.601326603 | BH22: 5.121617292 | BI22: 4.336481856 | BJ22: 3.384124813 | BK22: 2.415085112 | BL22: 4.284400319 | BM22: 0.5003703539 | BN22: 0.1654665327 | BO22: 0.7147263342 | BP22: 2.340947712 | BQ22: 2.327537405 | BR22: 0.6586869004 | BS22: 2.95938828 | BT22: 0.9756564881 | BU22: 0.4583494203 | BV22: 5.34583917 | BW22: 4.569688797 | BX22: 1.078820622 | BY22: 1.499286241 | BZ22: Portland (Hillsboro) | CB22: Mid Rise5B | CC22: Mid Rise | CD22: 5B | CE22: 10 | CF22: 13 | CG22: 30 | CH22: 49 | CI22: 20 | CJ22: 0.4 | CK22: 0.36 | CL22: 0.38 | CM22: 0.3 | CN22: N | CO22: 0.21 | CP22: 0.41 | CQ22: 0.66 | CR22: 0.65 | CS22: N | CT22: 0 | CV22: Standard - Central Storage Tank | CW22: 0.8 | CX22: 1.8 | CY22: 1.2 | CZ22: n/a | DA22: 1650 | DR22: DHP | DS22: H1_DHP | DT22: H1 | DU22: 0.06412497835 | DV22: 0.06412497835 | DW22: 0.06412497835 | DX22: 0.08158470495 | DY22: 0.08158470495 | DZ22: 0.08158470495 | EB22: Heat Pump Water Heater | EC22: D2 | EE22: 5B | EF22: Mid Rise | EG22: DHP | EH22: 0.208780619 | EJ22: 5B | EK22: Mid Rise | EL22: PTHP - DX coils | EM22: 0.1570481993
A23: North Bend | B23: Coos | C23: 4C | D23: USA_OR_North.Bend.Muni.AP.726917_TMY3.epw | E23: 43.417 | F23: 124.25 | H23: Grant | I23: 5B | K23: 97006 | L23: Beaverton | M23: Washington | N23: 4C | P23: 97306 | Q23: Salem | R23: OR | S23: 44.858446 | T23: 123.05368 | U23: 2.638446 | V23: -0.424554 | W23: 2.691446 | X23: 2.668446 | Y23: 1.441446 | Z23: -0.841554 | AA23: -0.741554 | AB23: -0.674554 | AC23: -0.691551 | AD23: 0.608446 | AE23: 1.625446 | AF23: -0.041551 | AG23: 2.258446 | AH23: -1.291551 | AI23: -0.391554 | AJ23: 0.025446 | AK23: 1.338446 | AL23: 0.375446 | AM23: 0.808449 | AN23: 1.31368 | AO23: 5.05368 | AP23: 2.653683 | AQ23: 0.353683 | AR23: -1.19632 | AS23: 4.22068 | AT23: 0.43668 | AU23: 0.103683 | AV23: 0.65368 | AW23: 1.88668 | AX23: -0.296317 | AY23: 0.05368 | AZ23: -0.31332 | BA23: -0.82932 | BB23: 0.28668 | BC23: 5.23668 | BD23: 4.03368 | BE23: -0.22932 | BF23: -0.01632 | BG23: 2.94739757 | BH23: 5.071481799 | BI23: 3.779671287 | BJ23: 2.691783 | BK23: 1.873218651 | BL23: 4.303760309 | BM23: 0.8605764099 | BN23: 0.6824758336 | BO23: 0.9515988272 | BP23: 1.982364234 | BQ23: 1.652234385 | BR23: 0.06788245724 | BS23: 2.280076261 | BT23: 1.5348862 | BU23: 0.4852833784 | BV23: 5.236741823 | BW23: 4.249942592 | BX23: 0.4399401792 | BY23: 0.8086137075 | BZ23: Salem | CB23: High Rise4C | CC23: High Rise | CD23: 4C | CE23: 7.5 | CF23: 13 | CG23: 30 | CH23: 49 | CI23: 15 | CJ23: 0.4 | CK23: 0.36 | CL23: 0.36 | CM23: 0.3 | CN23: N | CO23: 0.21 | CP23: 0.41 | CQ23: 0.66 | CR23: 0.65 | CS23: N | CT23: 0 | CV23: Standard - Central Storage Tank | CW23: 0.8 | CX23: 1.8 | CY23: 1.2 | CZ23: n/a | DA23: 1650 | DR23: VRF | DS23: H2_VRF | DT23: H2 | DU23: 0.04244112706 | DV23: 0.04244112706 | DW23: 0.04244112706 | DX23: 0.06200400502 | DY23: 0.06200400502 | DZ23: 0.06200400502 | EE23: 5B | EF23: Mid Rise | EG23: VRF | EH23: 0.1737179494 | EJ23: 5B | EK23: Mid Rise | EL23: Condensing Furnace | EM23: 0.05331289573
A24: Pendleton | B24: Umatilla | C24: 5B | D24: USA_OR_Pendleton-Eastern.Oregon.Rgnl.AP.726880_TMY3.epw | E24: 45.7 | F24: 118.833 | H24: Harney | I24: 5B | K24: 97007 | L24: Beaverton | M24: Washington | N24: 4C | P24: 97390 | Q24: Tidewater | R24: OR | S24: 44.309872 | T24: 123.83344 | U24: 2.089872 | V24: -0.973128 | W24: 2.142872 | X24: 2.119872 | Y24: 0.892872 | Z24: -1.390128 | AA24: -1.290128 | AB24: -1.223128 | AC24: -1.240125 | AD24: 0.059872 | AE24: 1.076872 | AF24: -0.590125 | AG24: 1.709872 | AH24: -1.840125 | AI24: -0.940128 | AJ24: -0.523128 | AK24: 0.789872 | AL24: -0.173128 | AM24: 0.259875 | AN24: 2.09344 | AO24: 5.83344 | AP24: 3.433443 | AQ24: 1.133443 | AR24: -0.41656 | AS24: 5.00044 | AT24: 1.21644 | AU24: 0.883443 | AV24: 1.43344 | AW24: 2.66644 | AX24: 0.483443 | AY24: 0.83344 | AZ24: 0.46644 | BA24: -0.04956 | BB24: 1.06644 | BC24: 6.01644 | BD24: 4.81344 | BE24: 0.55044 | BF24: 0.76344 | BG24: 2.958049359 | BH24: 5.914051094 | BI24: 4.047274545 | BJ24: 2.403861546 | BK24: 0.9852627274 | BL24: 5.190072837 | BM24: 1.77317696 | BN24: 1.508811996 | BO24: 1.895431415 | BP24: 2.667112096 | BQ24: 1.180411131 | BR24: 1.021209944 | BS24: 1.772351131 | BT24: 1.840792278 | BU24: 1.421666251 | BV24: 6.039140103 | BW24: 4.877817382 | BX24: 0.5770246944 | BY24: 0.8064587089 | BZ24: Corvallis | CB24: High Rise5B | CC24: High Rise | CD24: 5B | CE24: 10 | CF24: 13 | CG24: 30 | CH24: 49 | CI24: 20 | CJ24: 0.4 | CK24: 0.36 | CL24: 0.38 | CM24: 0.3 | CN24: N | CO24: 0.21 | CP24: 0.41 | CQ24: 0.66 | CR24: 0.65 | CS24: N | CT24: 0 | CV24: Standard - Central Storage Tank | CW24: 0.8 | CX24: 1.8 | CY24: 1.2 | CZ24: n/a | DA24: 1650 | DR24: High-Efficiency Split System | DS24: H3_HES | DT24: H3 | DU24: 0.008903437066 | DV24: 0.008903437066 | DW24: 0.008903437066 | DX24: 0.007821794275 | DY24: 0.007821794275 | DZ24: 0.007821794275 | EE24: 5B | EF24: Low Rise | EG24: PTAC - DX Coils | EH24: 0 | EJ24: 5B | EK24: Low Rise | EL24: PTAC - HW coils (NG boiler) | EM24: 0
A25: Portland (PDX) | B25: Multnomah | C25: 4C | D25: USA_OR_Portland.Intl.AP.726980_TMY3.epw | E25: 45.6 | F25: 122.617 | H25: Hood River | I25: 5B | K25: 97008 | L25: Beaverton | M25: Washington | N25: 4C | P25: 97041 | Q25: Mount Hood Parkdale | R25: OR | S25: 45.503224 | T25: 121.59252 | U25: 3.283224 | V25: 0.220224 | W25: 3.336224 | X25: 3.313224 | Y25: 2.086224 | Z25: -0.196776 | AA25: -0.096776 | AB25: -0.029776 | AC25: -0.046773 | AD25: 1.253224 | AE25: 2.270224 | AF25: 0.603227 | AG25: 2.903224 | AH25: -0.646773 | AI25: 0.253224 | AJ25: 0.670224 | AK25: 1.983224 | AL25: 1.020224 | AM25: 1.453227 | AN25: -0.14748 | AO25: 3.59252 | AP25: 1.192523 | AQ25: -1.107477 | AR25: -2.65748 | AS25: 2.75952 | AT25: -1.02448 | AU25: -1.357477 | AV25: -0.80748 | AW25: 0.42552 | AX25: -1.757477 | AY25: -1.40748 | AZ25: -1.77448 | BA25: -2.29048 | BB25: -1.17448 | BC25: 3.77552 | BD25: 2.57252 | BE25: -1.69048 | BF25: -1.47748 | BG25: 3.286534677 | BH25: 3.599263614 | BI25: 3.542950985 | BJ25: 3.493416462 | BK25: 3.378539704 | BL25: 2.766526961 | BM25: 1.02904075 | BN25: 1.357803526 | BO25: 0.8088335205 | BP25: 1.32349449 | BQ25: 2.871000247 | BR25: 1.531301004 | BS25: 3.40257092 | BT25: 2.380044946 | BU25: 1.201468129 | BV25: 3.834547102 | BW25: 3.248235919 | BX25: 1.97448212 | BY25: 2.072393752 | BZ25: Portland (Troutdale) | DS25: H7_ERV | DT25: H7 | DU25: 0.01352932534 | DV25: 0.01352932534 | DW25: 0.01352932534 | DX25: 0.01855094492 | DY25: 0.01855094492 | DZ25: 0.01855094492 | EE25: 5B | EF25: Low Rise | EG25: High-Efficiency Split System | EH25: 0.04317695847 | EJ25: 5B | EK25: Low Rise | EL25: PTAC - HW (condensing NG boiler) | EM25: 0.09674085313
A26: Portland (Hillsboro) | B26: Washington | C26: 4C | D26: USA_OR_Portland-Hillsboro.AP.726986_TMY3.epw | E26: 45.533 | F26: 122.949997 | H26: Jefferson | I26: 5B | K26: 97009 | L26: Boring | M26: Clackamas | N26: 4C | P26: 97238 | Q26: Portland | R26: OR | S26: 45.580557 | T26: 122.374776 | U26: 3.360557 | V26: 0.297557 | W26: 3.413557 | X26: 3.390557 | Y26: 2.163557 | Z26: -0.119443 | AA26: -0.019443 | AB26: 0.047557 | AC26: 0.03056 | AD26: 1.330557 | AE26: 2.347557 | AF26: 0.68056 | AG26: 2.980557 | AH26: -0.56944 | AI26: 0.330557 | AJ26: 0.747557 | AK26: 2.060557 | AL26: 1.097557 | AM26: 1.53056 | AN26: 0.634776 | AO26: 4.374776 | AP26: 1.974779 | AQ26: -0.325221 | AR26: -1.875224 | AS26: 3.541776 | AT26: -0.242224 | AU26: -0.575221 | AV26: -0.025224 | AW26: 1.207776 | AX26: -0.975221 | AY26: -0.625224 | AZ26: -0.992224 | BA26: -1.508224 | BB26: -0.392224 | BC26: 4.557776 | BD26: 3.354776 | BE26: -0.908224 | BF26: -0.695224 | BG26: 3.419983029 | BH26: 4.384883718 | BI26: 3.943618071 | BJ26: 3.406118828 | BK26: 2.863117871 | BL26: 3.543789478 | BM26: 0.243003079 | BN26: 0.5771835645 | BO26: 0.03962529213 | BP26: 1.796971006 | BQ26: 2.542062129 | BR26: 0.9241574345 | BS26: 3.141373664 | BT26: 1.612141913 | BU26: 0.512940149 | BV26: 4.618675517 | BW26: 3.937056916 | BX26: 1.424605981 | BY26: 1.681056312 | BZ26: Portland (Troutdale) | DS26: H8_EXH | DT26: H8 | DU26: 0.009770791118 | DV26: 0.009770791118 | DW26: 0.009770791118 | DX26: 0.009162938106 | DY26: 0.009162938106 | DZ26: 0.009162938106 | EE26: 5B | EF26: Low Rise | EG26: DHP | EH26: 0.137095604 | EJ26: 5B | EK26: Low Rise | EL26: PTHP - DX coils | EM26: 0.0540428932
A27: Portland (Troutdale) | B27: Multnomah | C27: 4C | D27: USA_OR_Portland-Troutdale.AP.726985_TMY3.epw | E27: 45.549997 | F27: 122.4 | H27: Klamath | I27: 5B | K27: 97010 | L27: Bridal Veil | M27: Multnomah | N27: 4C | P27: 97215 | Q27: Portland | R27: OR | S27: 45.514241 | T27: 122.60089 | U27: 3.294241 | V27: 0.231241 | W27: 3.347241 | X27: 3.324241 | Y27: 2.097241 | Z27: -0.185759 | AA27: -0.085759 | AB27: -0.018759 | AC27: -0.035756 | AD27: 1.264241 | AE27: 2.281241 | AF27: 0.614244 | AG27: 2.914241 | AH27: -0.635756 | AI27: 0.264241 | AJ27: 0.681241 | AK27: 1.994241 | AL27: 1.031241 | AM27: 1.464244 | AN27: 0.86089 | AO27: 4.60089 | AP27: 2.200893 | AQ27: -0.099107 | AR27: -1.64911 | AS27: 3.76789 | AT27: -0.01611 | AU27: -0.349107 | AV27: 0.20089 | AW27: 1.43389 | AX27: -0.749107 | AY27: -0.39911 | AZ27: -0.76611 | BA27: -1.28211 | BB27: -0.16611 | BC27: 4.78389 | BD27: 3.58089 | BE27: -0.68211 | BF27: -0.46911 | BG27: 3.404872297 | BH27: 4.606697428 | BI27: 4.005989554 | BJ27: 3.325718031 | BK27: 2.667954948 | BL27: 3.77246623 | BM27: 0.08725902922 | BN27: 0.349610637 | BO27: 0.2040472583 | BP27: 1.911634337 | BQ27: 2.401087628 | BR27: 0.7325192719 | BS27: 3.013258226 | BT27: 1.431080621 | BU27: 0.3121151041 | BV27: 4.832151988 | BW27: 4.098752293 | BX27: 1.236419044 | BY27: 1.537554774 | BZ27: Portland (PDX) | CC27: Scenarios | DR27: PTAC - HW (condensing NG boiler) | DS27: H9_CBL | DT27: H9 | DU27: 0.007746964998 | DV27: 0.007746964998 | DW27: 0.007746964998 | DX27: 0.01211345453 | DY27: 0.01211345453 | DZ27: 0.01211345453 | EE27: 5B | EF27: Low Rise | EG27: VRF | EH27: 0.1609154763 | EJ27: 5B | EK27: Low Rise | EL27: Condensing Furnace | EM27: 0.04281699353
A28: Redmond | B28: Deschutes | C28: 5B | D28: USA_OR_Redmond-Roberts.Field.726835_TMY3.epw | E28: 44.25 | F28: 121.167 | H28: Lake | I28: 5B | K28: 97011 | L28: Brightwood | M28: Clackamas | N28: 4C | P28: 97207 | Q28: Portland | R28: OR | S28: 45.480324 | T28: 122.711117 | U28: 3.260324 | V28: 0.197324 | W28: 3.313324 | X28: 3.290324 | Y28: 2.063324 | Z28: -0.219676 | AA28: -0.119676 | AB28: -0.052676 | AC28: -0.069673 | AD28: 1.230324 | AE28: 2.247324 | AF28: 0.580327 | AG28: 2.880324 | AH28: -0.669673 | AI28: 0.230324 | AJ28: 0.647324 | AK28: 1.960324 | AL28: 0.997324 | AM28: 1.430327 | AN28: 0.971117 | AO28: 4.711117 | AP28: 2.31112 | AQ28: 0.01112 | AR28: -1.538883 | AS28: 3.878117 | AT28: 0.094117 | AU28: -0.23888 | AV28: 0.311117 | AW28: 1.544117 | AX28: -0.63888 | AY28: -0.288883 | AZ28: -0.655883 | BA28: -1.171883 | BB28: -0.055883 | BC28: 4.894117 | BD28: 3.691117 | BE28: -0.571883 | BF28: -0.358883 | BG28: 3.401879012 | BH28: 4.715247623 | BI28: 4.039726672 | BJ28: 3.290342791 | BK28: 2.573998216 | BL28: 3.884333792 | BM28: 0.1522509595 | BN28: 0.2446189187 | BO28: 0.3188230146 | BP28: 1.974333927 | BQ28: 2.33637172 | BR28: 0.6482536653 | BS28: 2.954056339 | BT28: 1.34973023 | BU28: 0.2370064444 | BV28: 4.936740784 | BW28: 4.179379726 | BX28: 1.149654438 | BY28: 1.474663465 | BZ28: Portland (PDX) | DS28: L1_COR | DT28: L1 | DU28: 0.003699312757 | DV28: 0.003699312757 | DW28: 0.003699312757 | DX28: 0.003261905252 | DY28: 0.003261905252 | DZ28: 0.003261905252
A29: Roseburg | B29: Douglas | C29: 4C | D29: USA_OR_Roseburg.Rgnl.AP.726904_TMY3.epw | E29: 43.233 | F29: 123.349997 | H29: Malheur | I29: 5B | K29: 97013 | L29: Canby | M29: Clackamas | N29: 4C | P29: 97427 | Q29: Culp Creek | R29: OR | S29: 43.685176 | T29: 122.79827 | U29: 1.465176 | V29: -1.597824 | W29: 1.518176 | X29: 1.495176 | Y29: 0.268176 | Z29: -2.014824 | AA29: -1.914824 | AB29: -1.847824 | AC29: -1.864821 | AD29: -0.564824 | AE29: 0.452176 | AF29: -1.214821 | AG29: 1.085176 | AH29: -2.464821 | AI29: -1.564824 | AJ29: -1.147824 | AK29: 0.165176 | AL29: -0.797824 | AM29: -0.364821 | AN29: 1.05827 | AO29: 4.79827 | AP29: 2.398273 | AQ29: 0.098273 | AR29: -1.45173 | AS29: 3.96527 | AT29: 0.18127 | AU29: -0.151727 | AV29: 0.39827 | AW29: 1.63127 | AX29: -0.551727 | AY29: -0.20173 | AZ29: -0.56873 | BA29: -1.08473 | BB29: 0.03127 | BC29: 4.98127 | BD29: 3.77827 | BE29: -0.48473 | BF29: -0.27173 | BG29: 1.807394839 | BH29: 5.05731515 | BI29: 2.838410074 | BJ29: 1.4984021 | BK29: 1.476292098 | BL29: 4.447795176 | BM29: 1.923384975 | BN29: 1.854042777 | BO29: 1.906876072 | BP29: 1.726287335 | BQ29: 0.7133483143 | BR29: 1.231456477 | BS29: 1.22517785 | BT29: 2.692950377 | BU29: 1.565136404 | BV29: 5.111805038 | BW29: 3.781878806 | BX29: 0.93353431 | BY29: 0.4548973015 | BZ29: Eugene | DS29: L2_EXT | DT29: L2 | DU29: 0.006012256895 | DV29: 0.006012256895 | DW29: 0.006012256895 | DX29: 0.005675964147 | DY29: 0.005675964147 | DZ29: 0.005675964147
A30: Salem | B30: Marion | C30: 4C | D30: USA_OR_Salem-McNary.Field.726940_TMY3.epw | E30: 44.899997 | F30: 123 | H30: Morrow | I30: 5B | K30: 97014 | L30: Cascade Locks | M30: Hood River | N30: 5B | P30: 97752 | Q30: Post | R30: OR | S30: 44.119652 | T30: 120.30118 | U30: 1.899652 | V30: -1.163348 | W30: 1.952652 | X30: 1.929652 | Y30: 0.702652 | Z30: -1.580348 | AA30: -1.480348 | AB30: -1.413348 | AC30: -1.430345 | AD30: -0.130348 | AE30: 0.886652 | AF30: -0.780345 | AG30: 1.519652 | AH30: -2.030345 | AI30: -1.130348 | AJ30: -0.713348 | AK30: 0.599652 | AL30: -0.363348 | AM30: 0.069655 | AN30: -1.43882 | AO30: 2.30118 | AP30: -0.098817 | AQ30: -2.398817 | AR30: -3.94882 | AS30: 1.46818 | AT30: -2.31582 | AU30: -2.648817 | AV30: -2.09882 | AW30: -0.86582 | AX30: -3.048817 | AY30: -2.69882 | AZ30: -3.06582 | BA30: -3.58182 | BB30: -2.46582 | BC30: 2.48418 | BD30: 1.28118 | BE30: -2.98182 | BF30: -2.76882 | BG30: 2.383040225 | BH30: 2.578528255 | BI30: 1.955150795 | BJ30: 3.078616547 | BK30: 4.010847694 | BL30: 2.157093487 | BM30: 2.748536424 | BN30: 3.002296466 | BO30: 2.539868542 | BP30: 0.8755768804 | BQ30: 3.175127851 | BR30: 2.809371409 | BS30: 3.421782353 | BT30: 4.117248515 | BU30: 2.712555045 | BV30: 2.584572623 | BW30: 1.414568738 | BX30: 3.003876209 | BY30: 2.769696014 | BZ30: Redmond | CF30: Envelope | CP30: Lighting | CV30: DHW | DB30: HVAC | DS30: L3_INT | DT30: L3 | DU30: 0 | DV30: 0 | DW30: 0 | DX30: 0 | DY30: 0 | DZ30: 0
A31: Sexton | B31: Washington | C31: 4C | D31: USA_OR_Sexton.Summit.725975_TMY3.epw | E31: 42.6 | F31: 123.367 | H31: Sherman | I31: 5B | K31: 97015 | L31: Clackamas | M31: Clackamas | N31: 4C | P31: 97385 | Q31: Sublimity | R31: OR | S31: 44.850245 | T31: 122.7645 | U31: 2.630245 | V31: -0.432755 | W31: 2.683245 | X31: 2.660245 | Y31: 1.433245 | Z31: -0.849755 | AA31: -0.749755 | AB31: -0.682755 | AC31: -0.699752 | AD31: 0.600245 | AE31: 1.617245 | AF31: -0.049752 | AG31: 2.250245 | AH31: -1.299752 | AI31: -0.399755 | AJ31: 0.017245 | AK31: 1.330245 | AL31: 0.367245 | AM31: 0.800248 | AN31: 1.0245 | AO31: 4.7645 | AP31: 2.364503 | AQ31: 0.064503 | AR31: -1.4855 | AS31: 3.9315 | AT31: 0.1475 | AU31: -0.185497 | AV31: 0.3645 | AW31: 1.5975 | AX31: -0.585497 | AY31: -0.2355 | AZ31: -0.6025 | BA31: -1.1185 | BB31: -0.0025 | BC31: 4.9475 | BD31: 3.7445 | BE31: -0.5185 | BF31: -0.3055 | BG31: 2.822727229 | BH31: 4.784112994 | BI31: 3.576405761 | BJ31: 2.661026888 | BK31: 2.064195117 | BL31: 4.022284899 | BM31: 0.7641261742 | BN31: 0.7075051428 | BO31: 0.7889950009 | BP31: 1.706546311 | BQ31: 1.719967478 | BR31: 0.2406979674 | BS31: 2.329508276 | BT31: 1.714758733 | BU31: 0.3997628172 | BV31: 4.947530054 | BW31: 3.973767986 | BX31: 0.6353826721 | BY31: 0.8565787246 | BZ31: Salem | CB31: Lookup | CC31: Scenario | CD31: Building Type | CE31: CZ | CF31: :wall_base_cont_insul | CG31: :wall_base_cavity_insul | CH31: :roof_base_cont_insul | CI31: :attic_insul | CJ31: :foundation_insul | CK31: :air_leakage | CL31: :window_u | CM31: :window_shgc | CN31: :window_wall_ratio | CO31: :overhang | CP31: :lighting_density_residence | CQ31: :lighting_density_corridor | CR31: :lighting_density_office | CS31: :lighting_density_elevator | CT31: :lighting_schedule_corridor | CU31: :ext_light_w | CV31: :water_heater_fuel | CW31: :dhw_storage_type | CX31: :water_heater_eff | CY31: kitchen GPM | CZ31: bath GPM | DA31: showerhead GPM | DB31: Cooling System Type | DC31: :cooling_coil_cop | DD31: :heating_coil_type | DE31: Heating System Type | DF31: :heating_coil_eff | DG31: :oa_system_type | DH31: :oa_heating_coil_type | DI31: :oa_heating_coil_eff | DJ31: :oa_cooling_coil_type | DK31: :oa_cooling_coil_cop | DL31: :oa_energy_recovery | DM31: :oa_er_sensible_eff | DN31: :oa_er_latent_eff | DO31: Bath Fan | DP31: :exhaust_fan_eff | DQ31: prototype:ext_light_w
A32: Astoria | B32: Clatsop | C32: 4C | D32: USA_OR_Astoria.Rgnl.AP.727910_TMY3.epw | E32: 46.149997 | F32: 123.883 | H32: Umatilla | I32: 5B | K32: 97016 | L32: Clatskanie | M32: Columbia | N32: 4C | P32: 97447 | Q32: Idleyld Park | R32: OR | S32: 43.333008 | T32: 122.78475 | U32: 1.113008 | V32: -1.949992 | W32: 1.166008 | X32: 1.143008 | Y32: -0.083992 | Z32: -2.366992 | AA32: -2.266992 | AB32: -2.199992 | AC32: -2.216989 | AD32: -0.916992 | AE32: 0.100008 | AF32: -1.566989 | AG32: 0.733008 | AH32: -2.816989 | AI32: -1.916992 | AJ32: -1.499992 | AK32: -0.186992 | AL32: -1.149992 | AM32: -0.716989 | AN32: 1.04475 | AO32: 4.78475 | AP32: 2.384753 | AQ32: 0.084753 | AR32: -1.46525 | AS32: 3.95175 | AT32: 0.16775 | AU32: -0.165247 | AV32: 0.38475 | AW32: 1.61775 | AX32: -0.565247 | AY32: -0.21525 | AZ32: -0.58225 | BA32: -1.09825 | BB32: 0.01775 | BC32: 4.96775 | BD32: 3.76475 | BE32: -0.49825 | BF32: -0.28525 | BG32: 1.526528536 | BH32: 5.166846365 | BI32: 2.65454733 | BJ32: 1.146145872 | BK32: 1.467655347 | BL32: 4.606406321 | BM32: 2.273190003 | BN32: 2.206189333 | BO32: 2.250127283 | BP32: 1.85956699 | BQ32: 0.5740259324 | BR32: 1.581703856 | BS32: 0.9361174021 | BT32: 3.023504604 | BU32: 1.917074175 | BV32: 5.189269319 | BW32: 3.769391008 | BX32: 1.253289537 | BY32: 0.771648099 | BZ32: Roseburg | CB32: =CC32&CD32&CE32 -> GoodLow Rise4C | CC32: Good | CD32: Low Rise | CE32: 4C | CF32: =CF38 -> 7.5 | CG32: =CG38 -> 13 | CH32: 30 | CI32: n/a | CJ32: 15 | CK32: 0.08 | CL32: 0.36 | CM32: 0.36 | CN32: 0.3 | CO32: N | CP32: 0.21 | CQ32: 0.35 | CR32: 0.66 | CS32: 0.65 | CT32: N | CU32: 0.25 | CV32: Gas | CW32: Standard - Central Storage Tank | CX32: 0.8 | CY32: 0.5 | CZ32: 0.5 | DA32: n/a | DB32: PTAC - DX coils | DC32: 10.4 | DD32: Gas | DE32: PTAC - HW coils (NG boiler) | DF32: 0.82 | DG32: N | DH32: n/a | DI32: n/a | DJ32: n/a | DK32: n/a | DL32: Y | DM32: 0.6 | DN32: 0.6 | DO32: Y | DP32: 0.1 | DQ32: 1237.5
A33: Aurora | B33: Marion | C33: 4C | D33: USA_OR_Aurora.State.AP.726959_TMY3.epw | E33: 45.25 | F33: 122.767 | H33: Union | I33: 5B | K33: 97017 | L33: Colton | M33: Clackamas | N33: 4C | P33: 97884 | Q33: Unity | R33: OR | S33: 44.471344 | T33: 118.20623 | U33: 2.251344 | V33: -0.811656 | W33: 2.304344 | X33: 2.281344 | Y33: 1.054344 | Z33: -1.228656 | AA33: -1.128656 | AB33: -1.061656 | AC33: -1.078653 | AD33: 0.221344 | AE33: 1.238344 | AF33: -0.428653 | AG33: 1.871344 | AH33: -1.678653 | AI33: -0.778656 | AJ33: -0.361656 | AK33: 0.951344 | AL33: -0.011656 | AM33: 0.421347 | AN33: -3.53377 | AO33: 0.20623 | AP33: -2.193767 | AQ33: -4.493767 | AR33: -6.04377 | AS33: -0.62677 | AT33: -4.41077 | AU33: -4.743767 | AV33: -4.19377 | AW33: -2.96077 | AX33: -5.143767 | AY33: -4.79377 | AZ33: -5.16077 | BA33: -5.67677 | BB33: -4.56077 | BC33: 0.38923 | BD33: -0.81377 | BE33: -5.07677 | BF33: -4.86377 | BG33: 4.18999764 | BH33: 0.837446282 | BI33: 3.181605714 | BJ33: 5.039689702 | BK33: 6.135046624 | BL33: =SQRT(Z33^2+AS33^2) -> 1.379288294 | BM33: 4.5528844 | BN33: 4.861114976 | BO33: 4.330265478 | BP33: 2.969032192 | BQ33: 5.290731028 | BR33: 4.812896655 | BS33: 5.489578796 | BT33: 5.919762962 | BU33: 4.626762168 | BV33: 0.5313144598 | BW33: 1.251909349 | BX33: 5.076783381 | BY33: 4.881986471 | BZ33: Baker | CB33: =CC33&CD33&CE33 -> BetterLow Rise4C | CC33: Better | CD33: Low Rise | CE33: 4C | CF33: =CF39 -> 7.5 | CG33: 13 | CH33: 30 | CI33: n/a | CJ33: 15 | CK33: 0.08 | CL33: 0.22 | CM33: 0.28 | CN33: 0.3 | CO33: N | CP33: 0.21 | CQ33: 0.35 | CR33: 0.66 | CS33: 0.65 | CT33: N | CU33: 0.25 | CV33: Gas | CW33: Condensing - Central Storage Tank | CX33: 0.94 | CY33: 0.5 | CZ33: 0.5 | DA33: n/a | DB33: DHP | DC33: 12 | DD33: Electric | DE33: DHP | DF33: 3.7 | DG33: N | DH33: n/a | DI33: n/a | DJ33: n/a | DK33: n/a | DL33: Y | DM33: 0.6 | DN33: 0.6 | DO33: Y | DP33: 0.1 | DQ33: 1237.5
A34: Baker | B34: Baker | C34: 5B | D34: USA_OR_Baker.Muni.AP.726886_TMY3.epw | E34: 44.833 | F34: 117.817 | H34: Wallowa | I34: 5B | K34: 97018 | L34: Columbia City | M34: Columbia | N34: 4C | P34: 97850 | Q34: La Grande | R34: OR | S34: 45.32627 | T34: 118.08197 | U34: 3.10627 | V34: 0.04327 | W34: 3.15927 | X34: 3.13627 | Y34: 1.90927 | Z34: -0.37373 | AA34: -0.27373 | AB34: -0.20673 | AC34: -0.223727 | AD34: 1.07627 | AE34: 2.09327 | AF34: 0.426273 | AG34: 2.72627 | AH34: -0.823727 | AI34: 0.07627 | AJ34: 0.49327 | AK34: 1.80627 | AL34: 0.84327 | AM34: 1.276273 | AN34: -3.65803 | AO34: 0.08197 | AP34: -2.318027 | AQ34: -4.618027 | AR34: -6.16803 | AS34: -0.75103 | AT34: -4.53503 | AU34: -4.868027 | AV34: -4.31803 | AW34: -3.08503 | AX34: -5.268027 | AY34: -4.91803 | AZ34: -5.28503 | BA34: -5.80103 | BB34: -4.68503 | BC34: 0.26497 | BD34: -0.93803 | BE34: -5.20103 | BF34: -4.98803 | BG34: 4.798968305 | BH34: 0.09268966393 | BI34: 3.918448176 | BJ34: 5.582325939 | BK34: 6.456772105 | BL34: 0.8388803096 | BM34: 4.543283528 | BN34: 4.872414613 | BO34: 4.323822019 | BP34: 3.267379258 | BQ34: 5.668676015 | BR34: 4.936469158 | BS34: 5.946771411 | BT34: 5.859221384 | BU34: 4.685650778 | BV34: 0.5599324904 | BW34: 2.035316092 | BX34: 5.268948411 | BY34: 5.148719846 | BZ34: La Grande | CB34: BestLow Rise4C | CC34: Best | CD34: Low Rise | CE34: 4C | CF34: 12 | CG34: 21 | CH34: 49 | CI34: n/a | CJ34: 25 | CK34: 0.08 | CL34: 0.22 | CM34: 0.28 | CN34: 0.3 | CO34: Y | CP34: 0.21 | CQ34: 0.35 | CR34: 0.66 | CS34: 0.65 | CT34: Y | CU34: 0.25 | CV34: Electric | CW34: Heat Pump Water Heater | CX34: 2.85 | CY34: 0.5 | CZ34: 0.5 | DA34: n/a | DB34: VRF | DC34: 12 | DD34: Electric | DE34: VRF | DF34: 3.7 | DG34: Y | DH34: GAS | DI34: 0.96 | DJ34: DX | DK34: 11.5 | DL34: Y | DM34: 0.8 | DN34: 0.8 | DO34: Y | DP34: 0.1 | DQ34: 1237.5
A35: Burns | B35: Harney | C35: 5B | D35: USA_OR_Burns.Muni.AP.726830_TMY3.epw | E35: 43.52 | F35: 119.02 | H35: Wasco | I35: 5B | K35: 97019 | L35: Corbett | M35: Multnomah | N35: 4C | P35: 97008 | Q35: Beaverton | R35: OR | S35: 45.46059 | T35: 122.80683 | U35: =$S35-VLOOKUP(U$18,$A$19:$F$37,5,FALSE) -> 3.24059 | V35: 0.17759 | W35: 3.29359 | X35: 3.27059 | Y35: 2.04359 | Z35: -0.23941 | AA35: -0.13941 | AB35: -0.07241 | AC35: -0.089407 | AD35: 1.21059 | AE35: 2.22759 | AF35: 0.560593 | AG35: 2.86059 | AH35: -0.689407 | AI35: 0.21059 | AJ35: 0.62759 | AK35: =$S35-VLOOKUP(AK$18,$A$19:$F$37,5,FALSE) -> 1.94059 | AL35: 0.97759 | AM35: 1.410593 | AN35: =$T35-VLOOKUP(AN$18,$A$19:$F$37,6,FALSE) -> 1.06683 | AO35: 4.80683 | AP35: 2.406833 | AQ35: 0.106833 | AR35: -1.44317 | AS35: 3.97383 | AT35: 0.18983 | AU35: -0.143167 | AV35: 0.40683 | AW35: 1.63983 | AX35: -0.543167 | AY35: -0.19317 | AZ35: -0.56017 | BA35: -1.07617 | BB35: 0.03983 | BC35: 4.98983 | BD35: =$T35-VLOOKUP(BD$18,$A$19:$F$37,6,FALSE) -> 3.78683 | BE35: -0.47617 | BF35: -0.26317 | BG35: 3.411678443 | BH35: 4.810109443 | BI35: 4.079286724 | BJ35: 3.272334371 | BK35: 2.5017993 | BL35: 3.981035295 | BM35: 0.2355219247 | BN35: 0.1604368972 | BO35: 0.4165384263 | BP35: 2.038276374 | BQ35: 2.292855773 | BR35: 0.5929411105 | BS35: 2.914921196 | BT35: 1.278054725 | BU35: 0.2143235335 | BV35: 5.029142336 | BW35: 4.255111162 | BX35: 1.087391409 | BY35: 1.434932424 | BZ35: Portland (Hillsboro) | CB35: GoodLow Rise5B | CC35: Good | CD35: Low Rise | CE35: 5B | CF35: 10 | CG35: 13 | CH35: 30 | CI35: n/a | CJ35: 20 | CK35: 0.08 | CL35: 0.36 | CM35: 0.38 | CN35: 0.3 | CO35: N | CP35: 0.21 | CQ35: 0.35 | CR35: 0.66 | CS35: 0.65 | CT35: N | CU35: 0.25 | CV35: Gas | CW35: Standard - Central Storage Tank | CX35: 0.8 | CY35: 0.5 | CZ35: 0.5 | DA35: n/a | DB35: PTAC - DX coils | DC35: 10.4 | DD35: Gas | DE35: PTAC - HW coils (NG boiler) | DF35: 0.82 | DG35: N | DH35: n/a | DI35: n/a | DJ35: n/a | DK35: n/a | DL35: Y | DM35: 0.6 | DN35: 0.6 | DO35: Y | DP35: 0.1 | DQ35: 1237.5
A36: Corvallis | B36: Benton | C36: 4C | D36: USA_OR_Corvallis.Muni.AP.726945_TMY3.epw | E36: 44.483 | F36: 123.283 | H36: Wheeler | I36: 5B | K36: 97020 | L36: Donald | M36: Marion | N36: 4C | P36: 97862 | Q36: Milton Freewater | R36: OR | S36: 45.938511 | T36: 118.36952 | U36: 3.718511 | V36: 0.655511 | W36: 3.771511 | X36: 3.748511 | Y36: 2.521511 | Z36: 0.238511 | AA36: 0.338511 | AB36: 0.405511 | AC36: 0.388514 | AD36: 1.688511 | AE36: 2.705511 | AF36: 1.038514 | AG36: 3.338511 | AH36: -0.211486 | AI36: 0.688511 | AJ36: 1.105511 | AK36: 2.418511 | AL36: 1.455511 | AM36: 1.888514 | AN36: -3.37048 | AO36: 0.36952 | AP36: -2.030477 | AQ36: -4.330477 | AR36: -5.88048 | AS36: -0.46348 | AT36: -4.24748 | AU36: -4.580477 | AV36: -4.03048 | AW36: -2.79748 | AX36: -4.980477 | AY36: -4.63048 | AZ36: -4.99748 | BA36: -5.51348 | BB36: -4.39748 | BC36: 0.55252 | BD36: -0.65048 | BE36: -4.91348 | BF36: -4.70048 | BG36: 5.018710939 | BH36: 0.7524890043 | BI36: 4.283355235 | BJ36: 5.72750956 | BK36: 6.398285923 | BL36: 0.5212496595 | BM36: 4.260947787 | BN36: 4.598391971 | BO36: 4.049161908 | BP36: 3.267562356 | BQ36: 5.667886812 | BR36: 4.745509073 | BS36: 6.01003012 | BT36: 5.517534598 | BU36: 4.451053555 | BV36: 1.235893572 | BW36: 2.504459959 | BX36: 5.12452905 | BY36: 5.065668501 | BZ36: Pendleton | CB36: BetterLow Rise5B | CC36: Better | CD36: Low Rise | CE36: 5B | CF36: 10 | CG36: 13 | CH36: 30 | CI36: n/a | CJ36: 20 | CK36: 0.08 | CL36: 0.22 | CM36: 0.28 | CN36: 0.3 | CO36: N | CP36: 0.21 | CQ36: 0.35 | CR36: 0.66 | CS36: 0.65 | CT36: N | CU36: 0.25 | CV36: Gas | CW36: Condensing - Central Storage Tank | CX36: 0.94 | CY36: 0.5 | CZ36: 0.5 | DA36: n/a | DB36: DHP | DC36: 12 | DD36: Electric | DE36: DHP | DF36: 3.7 | DG36: N | DH36: n/a | DI36: n/a | DJ36: n/a | DK36: n/a | DL36: Y | DM36: 0.6 | DN36: 0.6 | DO36: Y | DP36: 0.1 | DQ36: 1237.5
A37: Eugene | B37: Lane | C37: 4C | D37: USA_OR_Eugene-Mahlon.Sweet.AP.726930_TMY3.epw | E37: 44.049997 | F37: 123.07 | K37: 97021 | L37: Dufur | M37: Wasco | N37: 5B | P37: 97524 | Q37: Eagle Point | R37: OR | S37: 42.484283 | T37: 122.74031 | U37: 0.264283 | V37: -2.798717 | W37: 0.317283 | X37: 0.294283 | Y37: -0.932717 | Z37: -3.215717 | AA37: -3.115717 | AB37: -3.048717 | AC37: -3.065714 | AD37: -1.765717 | AE37: -0.748717 | AF37: -2.415714 | AG37: -0.115717 | AH37: -3.665714 | AI37: -2.765717 | AJ37: -2.348717 | AK37: -1.035717 | AL37: -1.998717 | AM37: -1.565714 | AN37: 1.00031 | AO37: 4.74031 | AP37: 2.340313 | AQ37: 0.040313 | AR37: -1.50969 | AS37: 3.90731 | AT37: 0.12331 | AU37: -0.209687 | AV37: 0.34031 | AW37: 1.57331 | AX37: -0.609687 | AY37: -0.25969 | AZ37: -0.62669 | BA37: -1.14269 | BB37: -0.02669 | BC37: 4.92331 | BD37: 3.72031 | BE37: -0.54269 | BF37: -0.32969 | BG37: 1.034633075 | BH37: 5.504848385 | BI37: 2.361722558 | BJ37: 0.2970313486 | BK37: 1.774577386 | BL37: 5.060425601 | BM37: 3.118156151 | BN37: 3.055919499 | BO37: 3.084544249 | BP37: 2.364965302 | BQ37: 0.9655544439 | BR37: 2.429632282 | BS37: 0.6372839086 | BT37: 3.839687431 | BU37: 2.76584578 | BV37: 5.454855901 | BW37: 3.861789249 | BX37: 2.071082346 | BY37: 1.600048695 | BZ37: Medford | CB37: BestLow Rise5B | CC37: Best | CD37: Low Rise | CE37: 5B | CF37: 16 | CG37: 21 | CH37: 49 | CI37: n/a | CJ37: 25 | CK37: 0.08 | CL37: 0.22 | CM37: 0.28 | CN37: 0.3 | CO37: Y | CP37: 0.21 | CQ37: 0.35 | CR37: 0.66 | CS37: 0.65 | CT37: Y | CU37: 0.25 | CV37: Electric | CW37: Heat Pump Water Heater | CX37: 2.85 | CY37: 0.5 | CZ37: 0.5 | DA37: n/a | DB37: VRF | DC37: 12 | DD37: Electric | DE37: VRF | DF37: 3.7 | DG37: Y | DH37: GAS | DI37: 0.96 | DJ37: DX | DK37: 12.5 | DL37: Y | DM37: 0.8 | DN37: 0.8 | DO37: Y | DP37: 0.1 | DQ37: 1237.5
K38: 97022 | L38: Eagle Creek | M38: Clackamas | N38: 4C | P38: 97230 | Q38: Portland | R38: OR | S38: 45.539473 | T38: 122.50488 | U38: 3.319473 | V38: 0.256473 | W38: 3.372473 | X38: 3.349473 | Y38: 2.122473 | Z38: -0.160527 | AA38: -0.060527 | AB38: 0.006473 | AC38: -0.010524 | AD38: 1.289473 | AE38: 2.306473 | AF38: 0.639476 | AG38: 2.939473 | AH38: -0.610524 | AI38: 0.289473 | AJ38: 0.706473 | AK38: 2.019473 | AL38: 1.056473 | AM38: 1.489476 | AN38: 0.76488 | AO38: 4.50488 | AP38: 2.104883 | AQ38: -0.195117 | AR38: -1.74512 | AS38: 3.67188 | AT38: -0.11212 | AU38: -0.445117 | AV38: 0.10488 | AW38: 1.33788 | AX38: -0.845117 | AY38: -0.49512 | AZ38: -0.86212 | BA38: -1.37812 | BB38: -0.26212 | BC38: 4.68788 | BD38: 3.48488 | BE38: -0.77812 | BF38: -0.56512 | BG38: 3.40645599 | BH38: 4.512174887 | BI38: 3.97543791 | BJ38: 3.355151267 | BK38: 2.747787374 | BL38: 3.675387279 | BM38: 0.1274143325 | BN38: 0.4451640635 | BO38: 0.1054066837 | BP38: 1.858134417 | BQ38: 2.456428392 | BR38: 0.8087480256 | BS38: 3.063291108 | BT38: 1.507300331 | BU38: 0.3905144199 | BV38: 4.740814592 | BW38: 4.027736314 | BX38: 1.312099819 | BY38: 1.593078582 | BZ38: Portland (Troutdale) | CB38: GoodMid Rise4C | CC38: Good | CD38: Mid Rise | CE38: 4C | CF38: 7.5 | CG38: 13 | CH38: 30 | CI38: n/a | CJ38: 15 | CK38: 0.08 | CL38: 0.36 | CM38: 0.36 | CN38: 0.3 | CO38: N | CP38: 0.21 | CQ38: 0.35 | CR38: 0.66 | CS38: 0.65 | CT38: N | CU38: =1-(DQ38/1650) -> 0.25 | CV38: Gas | CW38: Standard - Central Storage Tank | CX38: 0.8 | CY38: 0.5 | CZ38: 0.5 | DA38: n/a | DB38: PTAC - DX coils | DC38: 10.4 | DD38: Gas | DE38: PTAC - HW coils (NG boiler) | DF38: 0.82 | DG38: N | DH38: n/a | DI38: n/a | DJ38: n/a | DK38: n/a | DL38: Y | DM38: 0.6 | DN38: 0.6 | DO38: Y | DP38: 0.1 | DQ38: 1237.5
K39: 97023 | L39: Estacada | M39: Clackamas | N39: 4C | P39: 97063 | Q39: Tygh Valley | R39: OR | S39: 45.262423 | T39: 121.23304 | U39: 3.042423 | V39: -0.020577 | W39: 3.095423 | X39: 3.072423 | Y39: 1.845423 | Z39: -0.437577 | AA39: -0.337577 | AB39: -0.270577 | AC39: -0.287574 | AD39: 1.012423 | AE39: 2.029423 | AF39: 0.362426 | AG39: 2.662423 | AH39: -0.887574 | AI39: 0.012423 | AJ39: 0.429423 | AK39: 1.742423 | AL39: 0.779423 | AM39: 1.212426 | AN39: -0.50696 | AO39: 3.23304 | AP39: 0.833043 | AQ39: -1.466957 | AR39: -3.01696 | AS39: 2.40004 | AT39: -1.38396 | AU39: -1.716957 | AV39: -1.16696 | AW39: 0.06604 | AX39: -2.116957 | AY39: -1.76696 | AZ39: -2.13396 | BA39: -2.64996 | BB39: -1.53396 | BC39: 3.41604 | BD39: 2.21304 | BE39: -2.04996 | BF39: -1.83696 | BG39: 3.084371273 | BH39: 3.233105482 | BI39: 3.205558327 | BJ39: 3.404665318 | BK39: 3.536613308 | BL39: 2.439603581 | BM39: 1.424536245 | BN39: 1.738146499 | BO39: 1.201871227 | BP39: 1.014574597 | BQ39: 2.932586683 | BR39: 1.80374617 | BS39: 3.412078767 | BT39: 2.79465125 | BU39: 1.534010304 | BV39: 3.442925122 | BW39: 2.816661846 | BX39: 2.19313388 | BY39: 2.200999511 | BZ39: Redmond | CB39: BetterMid Rise4C | CC39: Better | CD39: Mid Rise | CE39: 4C | CF39: 7.5 | CG39: 13 | CH39: 30 | CI39: n/a | CJ39: 15 | CK39: 0.08 | CL39: 0.22 | CM39: 0.28 | CN39: 0.3 | CO39: N | CP39: 0.21 | CQ39: 0.35 | CR39: 0.66 | CS39: 0.65 | CT39: N | CU39: =1-(DQ39/1650) -> 0.25 | CV39: Gas | CW39: Condensing - Central Storage Tank | CX39: 0.94 | CY39: 0.5 | CZ39: 0.5 | DA39: n/a | DB39: DHP | DC39: 12 | DD39: Electric | DE39: DHP | DF39: 3.7 | DG39: N | DH39: n/a | DI39: n/a | DJ39: n/a | DK39: n/a | DL39: Y | DM39: 0.6 | DN39: 0.6 | DO39: Y | DP39: 0.1 | DQ39: 1237.5
K40: 97024 | L40: Fairview | M40: Multnomah | N40: 4C | P40: 97229 | Q40: Portland | R40: OR | S40: 45.540967 | T40: 122.81728 | U40: 3.320967 | V40: 0.257967 | W40: 3.373967 | X40: 3.350967 | Y40: 2.123967 | Z40: -0.159033 | AA40: -0.059033 | AB40: 0.007967 | AC40: -0.00903 | AD40: 1.290967 | AE40: 2.307967 | AF40: 0.64097 | AG40: 2.940967 | AH40: -0.60903 | AI40: 0.290967 | AJ40: 0.707967 | AK40: 2.020967 | AL40: 1.057967 | AM40: 1.49097 | AN40: 1.07728 | AO40: 4.81728 | AP40: 2.417283 | AQ40: 0.117283 | AR40: -1.43272 | AS40: 3.98428 | AT40: 0.20028 | AU40: -0.132717 | AV40: 0.41728 | AW40: 1.65028 | AX40: -0.532717 | AY40: -0.18272 | AZ40: -0.54972 | BA40: -1.06572 | BB40: 0.05028 | BC40: 5.00028 | BD40: 3.79728 | BE40: -0.46572 | BF40: -0.25272 | BG40: 3.491325538 | BH40: 4.824182166 | BI40: 4.150531342 | BJ40: 3.35301881 | BK40: 2.562015304 | BL40: 3.987452647 | BM40: 0.2087988829 | BN40: 0.1329559144 | BO40: 0.4173776938 | BP40: 2.095237427 | BQ40: 2.368649209 | BR40: 0.6665051682 | BS40: 2.991902233 | BT40: 1.22746758 | BU40: 0.2952793144 | BV40: 5.050150231 | BW40: 4.301586104 | BX40: 1.155936543 | BY40: 1.512236403 | BZ40: Portland (Hillsboro) | CB40: BestMid Rise4C | CC40: Best | CD40: Mid Rise | CE40: 4C | CF40: 12 | CG40: 21 | CH40: 49 | CI40: n/a | CJ40: 25 | CK40: 0.08 | CL40: 0.22 | CM40: 0.28 | CN40: 0.3 | CO40: Y | CP40: 0.21 | CQ40: 0.35 | CR40: 0.66 | CS40: 0.65 | CT40: Y | CU40: 0.25 | CV40: Electric | CW40: Heat Pump Water Heater | CX40: 2.85 | CY40: 0.5 | CZ40: 0.5 | DA40: n/a | DB40: VRF | DC40: 12 | DD40: Electric | DE40: VRF | DF40: 3.7 | DG40: Y | DH40: GAS | DI40: 0.96 | DJ40: DX | DK40: 11.5 | DL40: Y | DM40: 0.8 | DN40: 0.8 | DO40: Y | DP40: 0.1 | DQ40: 1237.5
K41: 97026 | L41: Gervais | M41: Marion | N41: 4C | P41: 97370 | Q41: Philomath | R41: OR | S41: 44.578526 | T41: 123.43709 | U41: 2.358526 | V41: -0.704474 | W41: 2.411526 | X41: 2.388526 | Y41: 1.161526 | Z41: -1.121474 | AA41: -1.021474 | AB41: -0.954474 | AC41: -0.971471 | AD41: 0.328526 | AE41: 1.345526 | AF41: -0.321471 | AG41: 1.978526 | AH41: -1.571471 | AI41: -0.671474 | AJ41: -0.254474 | AK41: 1.058526 | AL41: 0.095526 | AM41: 0.528529 | AN41: 1.69709 | AO41: 5.43709 | AP41: 3.037093 | AQ41: 0.737093 | AR41: -0.81291 | AS41: 4.60409 | AT41: 0.82009 | AU41: 0.487093 | AV41: 1.03709 | AW41: 2.27009 | AX41: 0.087093 | AY41: 0.43709 | AZ41: 0.07009 | BA41: -0.44591 | BB41: 0.67009 | BC41: 5.62009 | BD41: 4.41709 | BE41: 0.15409 | BF41: 0.36709 | BG41: 2.905642676 | BH41: 5.482538763 | BI41: 3.878065438 | BJ41: 2.499672487 | BK41: 1.417732456 | BL41: 4.738707488 | BM41: 1.30994532 | BN41: 1.071578372 | BO41: 1.421024832 | BP41: 2.293738856 | BQ41: 1.348341725 | BR41: 0.5425783556 | BS41: 1.979767093 | BT41: 1.633510585 | BU41: 0.9486295066 | BV41: 5.625848258 | BW41: 4.542153824 | BX41: 0.1812979448 | BY41: 0.6435044459 | BZ41: Corvallis | CB41: GoodMid Rise5B | CC41: Good | CD41: Mid Rise | CE41: 5B | CF41: 10 | CG41: 13 | CH41: 30 | CI41: n/a | CJ41: 20 | CK41: 0.08 | CL41: 0.36 | CM41: 0.38 | CN41: 0.3 | CO41: N | CP41: 0.21 | CQ41: 0.35 | CR41: 0.66 | CS41: 0.65 | CT41: N | CU41: 0.25 | CV41: Gas | CW41: Standard - Central Storage Tank | CX41: 0.8 | CY41: 0.5 | CZ41: 0.5 | DA41: n/a | DB41: PTAC - DX coils | DC41: 10.4 | DD41: Gas | DE41: PTAC - HW coils (NG boiler) | DF41: 0.82 | DG41: N | DH41: n/a | DI41: n/a | DJ41: n/a | DK41: n/a | DL41: Y | DM41: 0.6 | DN41: 0.6 | DO41: Y | DP41: 0.1 | DQ41: 1237.5
K42: 97027 | L42: Gladstone | M42: Clackamas | N42: 4C | P42: 97467 | Q42: Reedsport | R42: OR | S42: 43.68516 | T42: 124.00262 | U42: 1.46516 | V42: -1.59784 | W42: 1.51816 | X42: 1.49516 | Y42: 0.26816 | Z42: -2.01484 | AA42: -1.91484 | AB42: -1.84784 | AC42: -1.864837 | AD42: -0.56484 | AE42: 0.45216 | AF42: -1.214837 | AG42: 1.08516 | AH42: -2.464837 | AI42: -1.56484 | AJ42: -1.14784 | AK42: 0.16516 | AL42: -0.79784 | AM42: -0.364837 | AN42: 2.26262 | AO42: 6.00262 | AP42: 3.602623 | AQ42: 1.302623 | AR42: -0.24738 | AS42: 5.16962 | AT42: 1.38562 | AU42: 1.052623 | AV42: 1.60262 | AW42: 2.83562 | AX42: 0.652623 | AY42: 1.00262 | AZ42: 0.63562 | BA42: 0.11962 | BB42: 1.23562 | BC42: 6.18562 | BD42: 4.98262 | BE42: 0.71962 | BF42: 0.93262 | BG42: 2.695578433 | BH42: 6.211645477 | BI42: 3.909437589 | BJ42: 1.983010365 | BK42: 0.3648378407 | BL42: 5.548382753 | BM42: 2.363589433 | BN42: 2.126623579 | BO42: 2.458863132 | BP42: 2.891329281 | BQ42: 0.7939555691 | BR42: 1.575143105 | BS42: 1.257610834 | BT42: 2.467737908 | BU42: 1.99386083 | BV42: 6.291218598 | BW42: 4.985356546 | BX42: 1.074430831 | BY42: 1.001442011 | BZ42: North Bend | CB42: BetterMid Rise5B | CC42: Better | CD42: Mid Rise | CE42: 5B | CF42: 10 | CG42: 13 | CH42: 30 | CI42: n/a | CJ42: 20 | CK42: 0.08 | CL42: 0.22 | CM42: 0.28 | CN42: 0.3 | CO42: N | CP42: 0.21 | CQ42: 0.35 | CR42: 0.66 | CS42: 0.65 | CT42: N | CU42: 0.25 | CV42: Gas | CW42: Condensing - Central Storage Tank | CX42: 0.94 | CY42: 0.5 | CZ42: 0.5 | DA42: n/a | DB42: DHP | DC42: 12 | DD42: Electric | DE42: DHP | DF42: 3.7 | DG42: N | DH42: n/a | DI42: n/a | DJ42: n/a | DK42: n/a | DL42: Y | DM42: 0.6 | DN42: 0.6 | DO42: Y | DP42: 0.1 | DQ42: 1237.5
K43: 97028 | L43: Government Camp | M43: Clackamas | N43: 4C | P43: 97470 | Q43: Roseburg | R43: OR | S43: 43.227287 | T43: 123.35138 | U43: 1.007287 | V43: -2.055713 | W43: 1.060287 | X43: 1.037287 | Y43: -0.189713 | Z43: -2.472713 | AA43: -2.372713 | AB43: -2.305713 | AC43: -2.32271 | AD43: -1.022713 | AE43: -0.005713 | AF43: -1.67271 | AG43: 0.627287 | AH43: -2.92271 | AI43: -2.022713 | AJ43: -1.605713 | AK43: -0.292713 | AL43: -1.255713 | AM43: -0.82271 | AN43: 1.61138 | AO43: 5.35138 | AP43: 2.951383 | AQ43: 0.651383 | AR43: -0.89862 | AS43: 4.51838 | AT43: 0.73438 | AU43: 0.401383 | AV43: 0.95138 | AW43: 2.18438 | AX43: 0.001383 | AY43: 0.35138 | AZ43: -0.01562 | BA43: -0.53162 | BB43: 0.58438 | BC43: 5.53438 | BD43: 4.33138 | BE43: 0.06838 | BF43: 0.28138 | BG43: 1.900308555 | BH43: 5.732645449 | BI43: 3.136059651 | BJ43: 1.224852699 | BK43: 0.9184274205 | BL43: 5.150734647 | BM43: 2.483763468 | BN43: 2.340389017 | BO43: 2.510001125 | BP43: 2.411940684 | BQ43: 0.005878014801 | BR43: 1.70921814 | BS43: 0.6274814458 | BT43: 2.970665509 | BU43: 2.10543769 | BV43: 5.762610192 | BW43: 4.341259449 | BX43: 1.257573442 | BY43: 0.869497814 | BZ43: Roseburg | CB43: BestMid Rise5B | CC43: Best | CD43: Mid Rise | CE43: 5B | CF43: 16 | CG43: 21 | CH43: 49 | CI43: n/a | CJ43: 25 | CK43: 0.08 | CL43: 0.22 | CM43: 0.28 | CN43: 0.3 | CO43: Y | CP43: 0.21 | CQ43: 0.35 | CR43: 0.66 | CS43: 0.65 | CT43: Y | CU43: 0.25 | CV43: Electric | CW43: Heat Pump Water Heater | CX43: 2.85 | CY43: 0.5 | CZ43: 0.5 | DA43: n/a | DB43: VRF | DC43: 12 | DD43: Electric | DE43: VRF | DF43: 3.7 | DG43: Y | DH43: GAS | DI43: 0.96 | DJ43: DX | DK43: 12.5 | DL43: Y | DM43: 0.8 | DN43: 0.8 | DO43: Y | DP43: 0.1 | DQ43: 1237.5
K44: 97029 | L44: Grass Valley | M44: Sherman | N44: 5B | P44: 97819 | Q44: Bridgeport | R44: OR | S44: 44.489628 | T44: 117.73478 | U44: 2.269628 | V44: -0.793372 | W44: 2.322628 | X44: 2.299628 | Y44: 1.072628 | Z44: -1.210372 | AA44: -1.110372 | AB44: -1.043372 | AC44: -1.060369 | AD44: 0.239628 | AE44: 1.256628 | AF44: -0.410369 | AG44: 1.889628 | AH44: -1.660369 | AI44: -0.760372 | AJ44: -0.343372 | AK44: 0.969628 | AL44: 0.006628 | AM44: 0.439631 | AN44: -4.00522 | AO44: -0.26522 | AP44: -2.665217 | AQ44: -4.965217 | AR44: -6.51522 | AS44: -1.09822 | AT44: -4.88222 | AU44: -5.215217 | AV44: -4.66522 | AW44: -3.43222 | AX44: -5.615217 | AY44: -5.26522 | AZ44: -5.63222 | BA44: -6.14822 | BB44: -5.03222 | BC44: -0.08222 | BD44: -1.28522 | BE44: -5.54822 | BF44: -5.33522 | BG44: 4.603585397 | BH44: 0.8365290065 | BI44: 3.535248574 | BJ44: 5.471898098 | BK44: 6.602925297 | BL44: 1.634346214 | BM44: 5.006895056 | BN44: 5.318563104 | BO44: 4.78420945 | BP44: 3.440574909 | BQ44: 5.754109478 | BR44: 5.28118778 | BS44: 5.9407572 | BT44: 6.368471903 | BU44: 5.089342168 | BV44: 0.3530785448 | BW44: 1.609959287 | BX44: 5.548223959 | BY44: 5.353302519 | BZ44: Baker | CB44: GoodHigh Rise4C | CC44: Good | CD44: High Rise | CE44: 4C | CF44: =CF38 -> 7.5 | CG44: =CG38 -> 13 | CH44: 30 | CI44: n/a | CJ44: 15 | CK44: 0.08 | CL44: 0.36 | CM44: 0.36 | CN44: 0.3 | CO44: N | CP44: 0.21 | CQ44: 0.35 | CR44: 0.66 | CS44: 0.65 | CT44: N | CU44: 0.25 | CV44: Gas | CW44: Standard - Central Storage Tank | CX44: 0.8 | CY44: 0.5 | CZ44: 0.5 | DA44: n/a | DB44: PTAC - DX coils | DC44: 10.4 | DD44: Gas | DE44: PTAC - HW coils (NG boiler) | DF44: 0.82 | DG44: N | DH44: n/a | DI44: n/a | DJ44: n/a | DK44: n/a | DL44: Y | DM44: 0.6 | DN44: 0.6 | DO44: Y | DP44: 0.1 | DQ44: 1237.5
K45: 97030 | L45: Gresham | M45: Multnomah | N45: 4C | P45: 97455 | Q45: Pleasant Hill | R45: OR | S45: 43.960764 | T45: 122.91541 | U45: 1.740764 | V45: -1.322236 | W45: 1.793764 | X45: 1.770764 | Y45: 0.543764 | Z45: -1.739236 | AA45: -1.639236 | AB45: -1.572236 | AC45: -1.589233 | AD45: -0.289236 | AE45: 0.727764 | AF45: -0.939233 | AG45: 1.360764 | AH45: -2.189233 | AI45: -1.289236 | AJ45: -0.872236 | AK45: 0.440764 | AL45: -0.522236 | AM45: -0.089233 | AN45: 1.17541 | AO45: 4.91541 | AP45: 2.515413 | AQ45: 0.215413 | AR45: -1.33459 | AS45: 4.08241 | AT45: 0.29841 | AU45: -0.034587 | AV45: 0.51541 | AW45: 1.74841 | AX45: -0.434587 | AY45: -0.08459 | AZ45: -0.45159 | BA45: -0.96759 | BB45: 0.14841 | BC45: 5.09841 | BD45: 3.89541 | BE45: -0.36759 | BF45: -0.15459 | BG45: 2.100439947 | BH45: 5.090143761 | BI45: 3.089480838 | BJ45: 1.78381835 | BK45: 1.441114068 | BL45: 4.437455721 | BM45: 1.666176219 | BN45: 1.572616387 | BO45: 1.670721101 | BP45: 1.772172393 | BQ45: 0.8476475094 | BR45: 0.943034515 | BS45: 1.433740629 | BT45: 2.393527008 | BU45: 1.297749973 | BV45: 5.172482979 | BW45: 3.920266824 | BX45: 0.6386335787 | BY45: 0.178495368 | BZ45: Eugene | CB45: BetterHigh Rise4C | CC45: Better | CD45: High Rise | CE45: 4C | CF45: =CF39 -> 7.5 | CG45: 13 | CH45: 30 | CI45: n/a | CJ45: 15 | CK45: 0.08 | CL45: 0.22 | CM45: 0.28 | CN45: 0.3 | CO45: N | CP45: 0.21 | CQ45: 0.35 | CR45: 0.66 | CS45: 0.65 | CT45: N | CU45: 0.25 | CV45: Gas | CW45: Condensing - Central Storage Tank | CX45: 0.94 | CY45: 0.5 | CZ45: 0.5 | DA45: n/a | DB45: DHP | DC45: 12 | DD45: Electric | DE45: DHP | DF45: 3.7 | DG45: N | DH45: n/a | DI45: n/a | DJ45: n/a | DK45: n/a | DL45: Y | DM45: 0.6 | DN45: 0.6 | DO45: Y | DP45: 0.1 | DQ45: 1237.5
K46: 97031 | L46: Hood River | M46: Hood River | N46: 5B | P46: 97741 | Q46: Madras | R46: OR | S46: 44.64079 | T46: 121.12506 | U46: 2.42079 | V46: -0.64221 | W46: 2.47379 | X46: 2.45079 | Y46: 1.22379 | Z46: -1.05921 | AA46: -0.95921 | AB46: -0.89221 | AC46: -0.909207 | AD46: 0.39079 | AE46: 1.40779 | AF46: -0.259207 | AG46: 2.04079 | AH46: -1.509207 | AI46: -0.60921 | AJ46: -0.19221 | AK46: 1.12079 | AL46: 0.15779 | AM46: 0.590793 | AN46: -0.61494 | AO46: 3.12506 | AP46: 0.725063 | AQ46: -1.574937 | AR46: -3.12494 | AS46: 2.29206 | AT46: -1.49194 | AU46: -1.824937 | AV46: -1.27494 | AW46: -0.04194 | AX46: -2.224937 | AY46: -1.87494 | AZ46: -2.24194 | BA46: -2.75794 | BB46: -1.64194 | BC46: 3.30806 | BD46: 2.10506 | BE46: -2.15794 | BF46: -1.94494 | BG46: 2.497674003 | BH46: 3.190365761 | BI46: 2.577858281 | BJ46: 2.913210974 | BK46: 3.356026217 | BL46: 2.52496829 | BM46: 1.773687906 | BN46: 2.031362532 | BO46: 1.56592764 | BP46: 0.3930340796 | BQ46: 2.632910431 | BR46: 1.892772642 | BS46: 3.0316858 | BT46: 3.143873218 | BU46: 1.751314874 | BV46: 3.313639336 | BW46: 2.384837065 | BX46: 2.163701164 | BY46: 2.032689837 | BZ46: Redmond | CB46: BestHigh Rise4C | CC46: Best | CD46: High Rise | CE46: 4C | CF46: 12 | CG46: 21 | CH46: 49 | CI46: n/a | CJ46: 25 | CK46: 0.08 | CL46: 0.22 | CM46: 0.28 | CN46: 0.3 | CO46: Y | CP46: 0.21 | CQ46: 0.35 | CR46: 0.66 | CS46: 0.65 | CT46: Y | CU46: 0.25 | CV46: Electric | CW46: Heat Pump Water Heater | CX46: 2.85 | CY46: 0.5 | CZ46: 0.5 | DA46: n/a | DB46: VRF | DC46: 12 | DD46: Electric | DE46: VRF | DF46: 3.7 | DG46: Y | DH46: GAS | DI46: 0.96 | DJ46: DX | DK46: 11.5 | DL46: Y | DM46: 0.8 | DN46: 0.8 | DO46: Y | DP46: 0.1 | DQ46: 1237.5
K47: 97032 | L47: Hubbard | M47: Marion | N47: 4C | P47: 97254 | Q47: Portland | R47: OR | S47: 45.596678 | T47: 122.59418 | U47: 3.376678 | V47: 0.313678 | W47: 3.429678 | X47: 3.406678 | Y47: 2.179678 | Z47: -0.103322 | AA47: -0.003322 | AB47: 0.063678 | AC47: 0.046681 | AD47: 1.346678 | AE47: 2.363678 | AF47: 0.696681 | AG47: 2.996678 | AH47: -0.553319 | AI47: 0.346678 | AJ47: 0.763678 | AK47: 2.076678 | AL47: 1.113678 | AM47: 1.546681 | AN47: 0.85418 | AO47: 4.59418 | AP47: 2.194183 | AQ47: -0.105817 | AR47: -1.65582 | AS47: 3.76118 | AT47: -0.02282 | AU47: -0.355817 | AV47: 0.19418 | AW47: 1.42718 | AX47: -0.755817 | AY47: -0.40582 | AZ47: -0.77282 | BA47: -1.28882 | BB47: -0.17282 | BC47: 4.77718 | BD47: 3.57418 | BE47: -0.68882 | BF47: -0.47582 | BG47: 3.483041457 | BH47: 4.604876085 | BI47: 4.071502207 | BJ47: 3.408321028 | BK47: 2.737286258 | BL47: 3.762598893 | BM47: 0.02306053087 | BN47: 0.3614700889 | BO47: 0.1997122634 | BP47: 1.962239636 | BQ47: 2.481578736 | BR47: 0.8062594422 | BS47: 3.094726125 | BT47: 1.402575812 | BU47: 0.3873659614 | BV47: 4.837835553 | BW47: 4.133685303 | BX47: 1.309485273 | BY47: 1.618217163 | BZ47: Portland (PDX) | CB47: GoodHigh Rise5B | CC47: Good | CD47: High Rise | CE47: 5B | CF47: 10 | CG47: 13 | CH47: 30 | CI47: n/a | CJ47: 20 | CK47: 0.08 | CL47: 0.36 | CM47: 0.38 | CN47: 0.3 | CO47: N | CP47: 0.21 | CQ47: 0.35 | CR47: 0.66 | CS47: 0.65 | CT47: N | CU47: 0.25 | CV47: Gas | CW47: Standard - Central Storage Tank | CX47: 0.8 | CY47: 0.5 | CZ47: 0.5 | DA47: n/a | DB47: PTAC - DX coils | DC47: 10.4 | DD47: Gas | DE47: PTAC - HW coils (NG boiler) | DF47: 0.82 | DG47: N | DH47: n/a | DI47: n/a | DJ47: n/a | DK47: n/a | DL47: Y | DM47: 0.6 | DN47: 0.6 | DO47: Y | DP47: 0.1 | DQ47: 1237.5
K48: 97033 | L48: Kent | M48: Sherman | N48: 5B | P48: 97795 | Q48: Roseburg North | R48: OR | S48: 43.276877 | T48: 123.348568 | U48: 1.056877 | V48: -2.006123 | W48: 1.109877 | X48: 1.086877 | Y48: -0.140123 | Z48: -2.423123 | AA48: -2.323123 | AB48: -2.256123 | AC48: -2.27312 | AD48: -0.973123 | AE48: 0.043877 | AF48: -1.62312 | AG48: 0.676877 | AH48: -2.87312 | AI48: -1.973123 | AJ48: -1.556123 | AK48: -0.243123 | AL48: -1.206123 | AM48: -0.77312 | AN48: 1.608568 | AO48: 5.348568 | AP48: 2.948571 | AQ48: 0.648571 | AR48: -0.901432 | AS48: 4.515568 | AT48: 0.731568 | AU48: 0.398571 | AV48: 0.948568 | AW48: 2.181568 | AX48: -0.001429 | AY48: 0.348568 | AZ48: -0.018432 | BA48: -0.534432 | BB48: 0.581568 | BC48: 5.531568 | BD48: 4.328568 | BE48: 0.065568 | BF48: 0.278568 | BG48: 1.924702575 | BH48: 5.712417102 | BI48: 3.150539303 | BJ48: 1.265680037 | BK48: 0.912257697 | BL48: 5.124634566 | BM48: 2.435588679 | BN48: 2.291058671 | BO48: 2.463098818 | BP48: 2.388766902 | BQ48: 0.04390026389 | BR48: 1.660125955 | BS48: 0.6771279139 | BT48: 2.922402453 | BU48: 2.057045384 | BV48: 5.746282566 | BW48: 4.335390377 | BX48: 1.207903909 | BY48: 0.821775313 | BZ48: Roseburg | CB48: BetterHigh Rise5B | CC48: Better | CD48: High Rise | CE48: 5B | CF48: 10 | CG48: 13 | CH48: 30 | CI48: n/a | CJ48: 20 | CK48: 0.08 | CL48: 0.22 | CM48: 0.28 | CN48: 0.3 | CO48: N | CP48: 0.21 | CQ48: 0.35 | CR48: 0.66 | CS48: 0.65 | CT48: N | CU48: 0.25 | CV48: Gas | CW48: Condensing - Central Storage Tank | CX48: 0.94 | CY48: 0.5 | CZ48: 0.5 | DA48: n/a | DB48: DHP | DC48: 12 | DD48: Electric | DE48: DHP | DF48: 3.7 | DG48: N | DH48: n/a | DI48: n/a | DJ48: n/a | DK48: n/a | DL48: Y | DM48: 0.6 | DN48: 0.6 | DO48: Y | DP48: 0.1 | DQ48: 1237.5
K49: 97034 | L49: Lake Oswego | M49: Clackamas | N49: 4C | P49: 97448 | Q49: Junction City | R49: OR | S49: 44.204189 | T49: 123.2294 | U49: 1.984189 | V49: -1.078811 | W49: 2.037189 | X49: 2.014189 | Y49: 0.787189 | Z49: -1.495811 | AA49: -1.395811 | AB49: -1.328811 | AC49: -1.345808 | AD49: -0.045811 | AE49: 0.971189 | AF49: -0.695808 | AG49: 1.604189 | AH49: -1.945808 | AI49: -1.045811 | AJ49: -0.628811 | AK49: 0.684189 | AL49: -0.278811 | AM49: 0.154192 | AN49: 1.4894 | AO49: 5.2294 | AP49: 2.829403 | AQ49: 0.529403 | AR49: -1.0206 | AS49: 4.3964 | AT49: 0.6124 | AU49: 0.279403 | AV49: 0.8294 | AW49: 2.0624 | AX49: -0.120597 | AY49: 0.2294 | AZ49: -0.1376 | BA49: -0.6536 | BB49: 0.4624 | BC49: 5.4124 | BD49: 4.2094 | BE49: -0.0536 | BF49: 0.1594 | BG49: 2.480991404 | BH49: 5.339518474 | BI49: 3.48649686 | BJ49: 2.082600505 | BK49: 1.288910735 | BL49: 4.643897448 | BM49: 1.524244766 | BN49: 1.357867707 | BO49: 1.580855317 | BP49: 2.062908725 | BQ49: 0.978647899 | BR49: 0.732648028 | BS49: 1.610079535 | BT49: 2.052647494 | BU49: 1.143474708 | BV49: 5.448805101 | BW49: 4.26464101 | BX49: 0.2839164203 | BY49: 0.2217736072 | BZ49: Eugene | CB49: BestHigh Rise5B | CC49: Best | CD49: High Rise | CE49: 5B | CF49: 16 | CG49: 21 | CH49: 49 | CI49: n/a | CJ49: 25 | CK49: 0.08 | CL49: 0.22 | CM49: 0.28 | CN49: 0.3 | CO49: Y | CP49: 0.21 | CQ49: 0.35 | CR49: 0.66 | CS49: 0.65 | CT49: Y | CU49: 0.25 | CV49: Electric | CW49: Heat Pump Water Heater | CX49: 2.85 | CY49: 0.5 | CZ49: 0.5 | DA49: n/a | DB49: VRF | DC49: 12 | DD49: Electric | DE49: VRF | DF49: 3.7 | DG49: Y | DH49: GAS | DI49: 0.96 | DJ49: DX | DK49: 12.5 | DL49: Y | DM49: 0.8 | DN49: 0.8 | DO49: Y | DP49: 0.1 | DQ49: 1237.5
K50: 97035 | L50: Lake Oswego | M50: Clackamas | N50: 4C | P50: 97355 | Q50: Lebanon | R50: OR | S50: 44.527304 | T50: 122.85512 | U50: 2.307304 | V50: -0.755696 | W50: 2.360304 | X50: 2.337304 | Y50: 1.110304 | Z50: -1.172696 | AA50: -1.072696 | AB50: -1.005696 | AC50: -1.022693 | AD50: 0.277304 | AE50: 1.294304 | AF50: -0.372693 | AG50: 1.927304 | AH50: -1.622693 | AI50: -0.722696 | AJ50: -0.305696 | AK50: 1.007304 | AL50: 0.044304 | AM50: 0.477307 | AN50: 1.11512 | AO50: 4.85512 | AP50: 2.455123 | AQ50: 0.155123 | AR50: -1.39488 | AS50: 4.02212 | AT50: 0.23812 | AU50: -0.094877 | AV50: 0.45512 | AW50: 1.68812 | AX50: -0.494877 | AY50: -0.14488 | AZ50: -0.51188 | BA50: -1.02788 | BB50: 0.08812 | BC50: 5.03812 | BD50: 3.83512 | BE50: -0.42788 | BF50: -0.21488 | BG50: 2.562644018 | BH50: 4.913579821 | BI50: 3.405681124 | BJ50: 2.342445972 | BK50: 1.782825058 | BL50: 4.1895901 | BM50: 1.098807464 | BN50: 1.010161418 | BO50: 1.119390543 | BP50: 1.71074447 | BQ50: 1.385686144 | BR50: 0.3998628348 | BS50: 1.994121822 | BT50: 1.920851339 | BU50: 0.7280485168 | BV50: 5.047385777 | BW50: 3.965199461 | BX50: 0.4301675706 | BY50: 0.5234456864 | BZ50: Salem
K51: 97036 | L51: Marylhurst | M51: Clackamas | N51: 4C | P51: 97348 | Q51: Halsey | R51: OR | S51: 44.381732 | T51: 123.12153 | U51: =$S51-VLOOKUP(U$18,$A$19:$F$37,5,FALSE) -> 2.161732 | V51: -0.901268 | W51: 2.214732 | X51: 2.191732 | Y51: 0.964732 | Z51: -1.318268 | AA51: -1.218268 | AB51: -1.151268 | AC51: -1.168265 | AD51: 0.131732 | AE51: 1.148732 | AF51: -0.518265 | AG51: 1.781732 | AH51: -1.768265 | AI51: -0.868268 | AJ51: -0.451268 | AK51: =$S51-VLOOKUP(AK$18,$A$19:$F$37,5,FALSE) -> 0.861732 | AL51: -0.101268 | AM51: 0.331735 | AN51: =$T51-VLOOKUP(AN$18,$A$19:$F$37,6,FALSE) -> 1.38153 | AO51: 5.12153 | AP51: 2.721533 | AQ51: 0.421533 | AR51: -1.12847 | AS51: 4.28853 | AT51: 0.50453 | AU51: 0.171533 | AV51: 0.72153 | AW51: 1.95453 | AX51: -0.228467 | AY51: 0.12153 | AZ51: -0.24547 | BA51: -0.76147 | BB51: 0.35453 | BC51: 5.30453 | BD51: =$T51-VLOOKUP(BD$18,$A$19:$F$37,6,FALSE) -> 4.10153 | BE51: -0.16147 | BF51: 0.05153 | BG51: 2.565484434 | BH51: 5.200226298 | BI51: 3.508814572 | BJ51: 2.231900363 | BK51: 1.484638802 | BL51: 4.486571083 | BM51: 1.318608145 | BN51: 1.163976623 | BO51: =SQRT(AC51^2+AV51^2) -> 1.373116401 | BP51: 1.958964227 | BQ51: 1.171231138 | BR51: 0.532323352 | BS51: 1.79856177 | BT51: 1.925252625 | BU51: 0.9378597127 | BV51: 5.323690574 | BW51: 4.191077473 | BX51: 0.1905984489 | BY51: 0.3357133467 | BZ51: Corvallis
K52: 97037 | L52: Maupin | M52: Wasco | N52: 5B | P52: 97494 | Q52: Wilbur | R52: OR | S52: 43.32843 | T52: 123.333177 | U52: 1.10843 | V52: -1.95457 | W52: 1.16143 | X52: 1.13843 | Y52: -0.08857 | Z52: -2.37157 | AA52: -2.27157 | AB52: -2.20457 | AC52: -2.221567 | AD52: -0.92157 | AE52: 0.09543 | AF52: -1.571567 | AG52: 0.72843 | AH52: -2.821567 | AI52: -1.92157 | AJ52: -1.50457 | AK52: -0.19157 | AL52: -1.15457 | AM52: -0.721567 | AN52: 1.593177 | AO52: 5.333177 | AP52: 2.93318 | AQ52: 0.63318 | AR52: -0.916823 | AS52: 4.500177 | AT52: 0.716177 | AU52: 0.38318 | AV52: 0.933177 | AW52: 2.166177 | AX52: -0.01682 | AY52: 0.333177 | AZ52: -0.033823 | BA52: -0.549823 | BB52: 0.566177 | BC52: 5.516177 | BD52: 4.313177 | BE52: 0.050177 | BF52: 0.263177 | BG52: 1.9408323 | BH52: 5.68006345 | BI52: 3.154752694 | BJ52: 1.302666411 | BK52: 0.9210912323 | BL52: 5.086839618 | BM52: 2.381793392 | BN52: 2.2376228 | BO52: 2.409601471 | BP52: 2.354063308 | BQ52: 0.09690096646 | BR52: 1.606496109 | BS52: 0.7292148245 | BT52: 2.874638354 | BU52: 2.003244284 | BV52: 5.717686558 | BW52: 4.3174292 | BX52: 1.155659819 | BY52: 0.7680631932 | BZ52: Roseburg
K53: 97038 | L53: Molalla | M53: Clackamas | N53: 4C | P53: 99362 | Q53: Walla Walla | R53: OR | S53: 45.986775 | T53: 118.07919 | U53: 3.766775 | V53: 0.703775 | W53: 3.819775 | X53: 3.796775 | Y53: 2.569775 | Z53: 0.286775 | AA53: 0.386775 | AB53: 0.453775 | AC53: 0.436778 | AD53: 1.736775 | AE53: 2.753775 | AF53: 1.086778 | AG53: 3.386775 | AH53: -0.163222 | AI53: 0.736775 | AJ53: 1.153775 | AK53: 2.466775 | AL53: 1.503775 | AM53: 1.936778 | AN53: -3.66081 | AO53: 0.07919 | AP53: -2.320807 | AQ53: -4.620807 | AR53: -6.17081 | AS53: -0.75381 | AT53: -4.53781 | AU53: -4.870807 | AV53: -4.32081 | AW53: -3.08781 | AX53: -5.270807 | AY53: -4.92081 | AZ53: -5.28781 | BA53: -5.80381 | BB53: -4.68781 | BC53: 0.26219 | BD53: -0.94081 | BE53: -5.20381 | BF53: -4.99081 | BG53: 5.252630175 | BH53: 0.7082162853 | BI53: 4.469544292 | BJ53: 5.980581722 | BK53: 6.684507432 | BL53: 0.8065168422 | BM53: 4.554263332 | BN53: 4.891898668 | BO53: 4.342830192 | BP53: 3.542733125 | BQ53: 5.946821267 | BR53: 5.039390586 | BS53: 6.279425093 | BT53: 5.806104713 | BU53: 4.745355624 | BV53: 1.183190748 | BW53: 2.640095142 | BX53: 5.416731281 | BY53: 5.353437538 | BZ53: La Grande
K54: 97039 | L54: Moro | M54: Sherman | N54: 5B | P54: 97522 | Q54: Butte Falls | R54: OR | S54: 42.530663 | T54: 122.54822 | U54: 0.310663 | V54: -2.752337 | W54: 0.363663 | X54: 0.340663 | Y54: -0.886337 | Z54: -3.169337 | AA54: -3.069337 | AB54: -3.002337 | AC54: -3.019334 | AD54: -1.719337 | AE54: -0.702337 | AF54: -2.369334 | AG54: -0.069337 | AH54: -3.619334 | AI54: -2.719337 | AJ54: -2.302337 | AK54: -0.989337 | AL54: -1.952337 | AM54: -1.519334 | AN54: 0.80822 | AO54: 4.54822 | AP54: 2.148223 | AQ54: -0.151777 | AR54: -1.70178 | AS54: 3.71522 | AT54: -0.06878 | AU54: -0.401777 | AV54: 0.14822 | AW54: 1.38122 | AX54: -0.801777 | AY54: -0.45178 | AZ54: -0.81878 | BA54: -1.33478 | BB54: -0.21878 | BC54: 4.73122 | BD54: 3.52822 | BE54: -0.73478 | BF54: -0.52178 | BG54: 0.8658701219 | BH54: 5.316170062 | BI54: 2.17878701 | BJ54: 0.3729444158 | BK54: 1.918762217 | BL54: 4.883396018 | BM54: 3.07010754 | BN54: 3.029100893 | BO54: 3.022969893 | BP54: 2.205422501 | BQ54: 1.065890998 | BR54: 2.412021719 | BS54: 0.8217105987 | BT54: 3.85761795 | BU54: 2.728123606 | BV54: 5.261672581 | BW54: 3.664304036 | BX54: 2.08603006 | BY54: 1.606433992 | BZ54: Medford
K55: 97040 | L55: Mosier | M55: Wasco | N55: 5B | P55: 97075 | Q55: Beaverton | R55: OR | S55: 45.548616 | T55: 123.114725 | U55: 3.328616 | V55: 0.265616 | W55: 3.381616 | X55: 3.358616 | Y55: 2.131616 | Z55: -0.151384 | AA55: -0.051384 | AB55: 0.015616 | AC55: -0.001381 | AD55: 1.298616 | AE55: 2.315616 | AF55: 0.648619 | AG55: 2.948616 | AH55: -0.601381 | AI55: 0.298616 | AJ55: 0.715616 | AK55: 2.028616 | AL55: 1.065616 | AM55: 1.498619 | AN55: 1.374725 | AO55: 5.114725 | AP55: 2.714728 | AQ55: 0.414728 | AR55: -1.135275 | AS55: 4.281725 | AT55: 0.497725 | AU55: 0.164728 | AV55: 0.714725 | AW55: 1.947725 | AX55: -0.235272 | AY55: 0.114725 | AZ55: -0.252275 | BA55: -0.768275 | BB55: 0.347725 | BC55: 5.297725 | BD55: 4.094725 | BE55: -0.168275 | BF55: 0.044725 | BG55: 3.601326603 | BH55: 5.121617292 | BI55: 4.336481856 | BJ55: 3.384124813 | BK55: 2.415085112 | BL55: 4.284400319 | BM55: 0.5003703539 | BN55: 0.1654665327 | BO55: 0.7147263342 | BP55: 2.340947712 | BQ55: 2.327537405 | BR55: 0.6586869004 | BS55: 2.95938828 | BT55: 0.9756564881 | BU55: 0.4583494203 | BV55: 5.34583917 | BW55: 4.569688797 | BX55: 1.078820622 | BY55: 1.499286241 | BZ55: Portland (Hillsboro)
K56: 97041 | L56: Mount Hood Parkdale | M56: Hood River | N56: 5B | P56: 97392 | Q56: Turner | R56: OR | S56: 44.807739 | T56: 122.9485 | U56: 2.587739 | V56: -0.475261 | W56: 2.640739 | X56: 2.617739 | Y56: 1.390739 | Z56: -0.892261 | AA56: -0.792261 | AB56: -0.725261 | AC56: -0.742258 | AD56: 0.557739 | AE56: 1.574739 | AF56: -0.092258 | AG56: 2.207739 | AH56: -1.342258 | AI56: -0.442261 | AJ56: -0.025261 | AK56: 1.287739 | AL56: 0.324739 | AM56: 0.757742 | AN56: 1.2085 | AO56: 4.9485 | AP56: 2.548503 | AQ56: 0.248503 | AR56: -1.3015 | AS56: 4.1155 | AT56: 0.3315 | AU56: -0.001497 | AV56: 0.5485 | AW56: 1.7815 | AX56: -0.401497 | AY56: -0.0515 | AZ56: -0.4185 | BA56: -0.9345 | BB56: 0.1815 | BC56: 5.1315 | BD56: 3.9285 | BE56: -0.3345 | BF56: -0.1215 | BG56: 2.856022651 | BH56: 4.971269985 | BI56: 3.669927793 | BJ56: 2.629507789 | BK56: 1.904745972 | BL56: 4.211112673 | BM56: 0.8588188063 | BN56: 0.725262545 | BO56: 0.9229296769 | BP56: 1.866765931 | BQ56: 1.625116229 | BR56: 0.105658831 | BS56: 2.247054459 | BT56: 1.635526456 | BU56: 0.4780554802 | BV56: 5.131562176 | BW56: 4.134172708 | BX56: 0.4662034622 | BY56: 0.7674211286 | BZ56: Salem
K57: 97042 | L57: Mulino | M57: Clackamas | N57: 4C | P57: 97432 | Q57: Dillard | R57: OR | S57: 43.113502 | T57: 123.418068 | U57: 0.893502 | V57: -2.169498 | W57: 0.946502 | X57: 0.923502 | Y57: -0.303498 | Z57: -2.586498 | AA57: -2.486498 | AB57: -2.419498 | AC57: -2.436495 | AD57: -1.136498 | AE57: -0.119498 | AF57: -1.786495 | AG57: 0.513502 | AH57: -3.036495 | AI57: -2.136498 | AJ57: -1.719498 | AK57: -0.406498 | AL57: -1.369498 | AM57: -0.936495 | AN57: 1.678068 | AO57: 5.418068 | AP57: 3.018071 | AQ57: 0.718071 | AR57: -0.831932 | AS57: 4.585068 | AT57: 0.801068 | AU57: 0.468071 | AV57: 1.018068 | AW57: 2.251068 | AX57: 0.068071 | AY57: 0.418068 | AZ57: 0.051068 | BA57: -0.464932 | BB57: 0.651068 | BC57: 5.601068 | BD57: 4.398068 | BE57: 0.135068 | BF57: 0.348068 | BG57: 1.901120206 | BH57: 5.836281558 | BI57: 3.16300784 | BJ57: 1.169821313 | BK57: 0.8855630348 | BL57: 5.264296769 | BM57: 2.612351861 | BN57: 2.464358138 | BO57: 2.640638244 | BP57: 2.521692853 | BQ57: 0.1375261177 | BR57: 1.834760267 | BS57: 0.5160351196 | BT57: 3.071882753 | BU57: 2.233497984 | BV57: 5.85906444 | BW57: 4.416813643 | BX57: 1.376142484 | BY57: 0.9990866918 | BZ57: Roseburg
K58: 97044 | L58: Odell | M58: Hood River | N58: 5B | P58: 97911 | Q58: Juntura | R58: OR | S58: 43.722896 | T58: 118.07394 | U58: 1.502896 | V58: -1.560104 | W58: 1.555896 | X58: 1.532896 | Y58: 0.305896 | Z58: -1.977104 | AA58: -1.877104 | AB58: -1.810104 | AC58: -1.827101 | AD58: -0.527104 | AE58: 0.489896 | AF58: -1.177101 | AG58: 1.122896 | AH58: -2.427101 | AI58: -1.527104 | AJ58: -1.110104 | AK58: 0.202896 | AL58: -0.760104 | AM58: -0.327101 | AN58: -3.66606 | AO58: 0.07394 | AP58: -2.326057 | AQ58: -4.626057 | AR58: -6.17606 | AS58: -0.75906 | AT58: -4.54306 | AU58: -4.876057 | AV58: -4.32606 | AW58: -3.09306 | AX58: -5.276057 | AY58: -4.92606 | AZ58: -5.29306 | BA58: -5.80906 | BB58: -4.69306 | BC58: 0.25694 | BD58: -0.94606 | BE58: -5.20906 | BF58: -4.99606 | BG58: 3.962157532 | BH58: 1.561855184 | BI58: 2.798455562 | BJ58: 4.873414975 | BK58: 6.183630769 | BL58: 2.117808374 | BM58: 4.915578663 | BN58: 5.201192975 | BO58: 4.696072102 | BP58: 3.137651796 | BQ58: 5.298752264 | BR58: 5.064744208 | BS58: 5.410857565 | BT58: 6.295712616 | BU58: 4.935266841 | BV58: 1.139451208 | BW58: 0.9675723799 | BX58: 5.264224936 | BY58: 5.006756494 | BZ58: Burns
K59: 97045 | L59: Oregon City | M59: Clackamas | N59: 4C | P59: 97027 | Q59: Gladstone | R59: OR | S59: 45.385642 | T59: 122.59272 | U59: 3.165642 | V59: 0.102642 | W59: 3.218642 | X59: 3.195642 | Y59: 1.968642 | Z59: -0.314358 | AA59: -0.214358 | AB59: -0.147358 | AC59: -0.164355 | AD59: 1.135642 | AE59: 2.152642 | AF59: 0.485645 | AG59: 2.785642 | AH59: -0.764355 | AI59: 0.135642 | AJ59: 0.552642 | AK59: 1.865642 | AL59: 0.902642 | AM59: 1.335645 | AN59: 0.85272 | AO59: 4.59272 | AP59: 2.192723 | AQ59: -0.107277 | AR59: -1.65728 | AS59: 3.75972 | AT59: -0.02428 | AU59: -0.357277 | AV59: 0.19272 | AW59: 1.42572 | AX59: -0.757277 | AY59: -0.40728 | AZ59: -0.77428 | BA59: -1.29028 | BB59: -0.17428 | BC59: 4.77572 | BD59: 3.57272 | BE59: -0.69028 | BF59: -0.47728 | BG59: 3.278478408 | BH59: 4.593866822 | BI59: 3.894571925 | BJ59: 3.197442126 | BK59: 2.573349631 | BL59: 3.772839174 | BM59: 0.2157286967 | BN59: 0.3864728126 | BO59: 0.2532855393 | BP59: 1.822734284 | BQ59: 2.281958815 | BR59: 0.6338202146 | BS59: 2.891247286 | BT59: 1.499686982 | BU59: 0.2208444488 | BV59: 4.807589281 | BW59: 4.030502236 | BX59: 1.136331403 | BY59: 1.418359533 | BZ59: Portland (PDX)
K60: 97048 | L60: Rainier | M60: Columbia | N60: 4C | P60: 97101 | Q60: Amity | R60: OR | S60: 45.100504 | T60: 123.22834 | U60: 2.880504 | V60: -0.182496 | W60: 2.933504 | X60: 2.910504 | Y60: 1.683504 | Z60: -0.599496 | AA60: -0.499496 | AB60: -0.432496 | AC60: -0.449493 | AD60: 0.850504 | AE60: 1.867504 | AF60: 0.200507 | AG60: 2.500504 | AH60: -1.049493 | AI60: -0.149496 | AJ60: 0.267504 | AK60: 1.580504 | AL60: 0.617504 | AM60: 1.050507 | AN60: 1.48834 | AO60: 5.22834 | AP60: 2.828343 | AQ60: 0.528343 | AR60: -1.02166 | AS60: 4.39534 | AT60: 0.61134 | AU60: 0.278343 | AV60: 0.82834 | AW60: 2.06134 | AX60: -0.121657 | AY60: 0.22834 | AZ60: -0.13866 | BA60: -0.65466 | BB60: 0.46134 | BC60: 5.41134 | BD60: 4.20834 | BE60: -0.05466 | BF60: 0.15834 | BG60: 3.242292283 | BH60: 5.231524056 | BI60: 4.074919612 | BJ60: 2.958070293 | BK60: 1.969257442 | BL60: 4.436035299 | BM60: 0.7894509799 | BN60: 0.5143224822 | BO60: 0.9424389172 | BP60: 2.229905749 | BQ60: 1.871462427 | BR60: 0.303878615 | BS60: 2.504345593 | BT60: 1.236937861 | BU60: 0.4849573689 | BV60: 5.417947857 | BW60: 4.495344086 | BX60: 0.6199184669 | BY60: 1.062373057 | BZ60: Salem
K61: 97049 | L61: Rhododendron | M61: Clackamas | N61: 4C | P61: 97305 | Q61: Salem | R61: OR | S61: 44.995029 | T61: 122.95801 | U61: 2.775029 | V61: -0.287971 | W61: 2.828029 | X61: 2.805029 | Y61: 1.578029 | Z61: -0.704971 | AA61: -0.604971 | AB61: -0.537971 | AC61: -0.554968 | AD61: 0.745029 | AE61: 1.762029 | AF61: 0.095032 | AG61: 2.395029 | AH61: -1.154968 | AI61: -0.254971 | AJ61: 0.162029 | AK61: 1.475029 | AL61: 0.512029 | AM61: 0.945032 | AN61: 1.21801 | AO61: 4.95801 | AP61: 2.558013 | AQ61: 0.258013 | AR61: -1.29199 | AS61: 4.12501 | AT61: 0.34101 | AU61: 0.008013 | AV61: 0.55801 | AW61: 1.79101 | AX61: -0.391987 | AY61: -0.04199 | AZ61: -0.40899 | BA61: -0.92499 | BB61: 0.19101 | BC61: 5.14101 | BD61: 3.93801 | BE61: -0.32499 | BF61: -0.11199 | BG61: 3.030566665 | BH61: 4.966365921 | BI61: 3.813289726 | BJ61: 2.81687032 | BK61: 2.039464068 | BL61: 4.184816795 | BM61: 0.6944621883 | BN61: 0.5380306729 | BO61: 0.7869972307 | BP61: 1.939789945 | BQ61: 1.805103877 | BR61: 0.1038953374 | BS61: 2.429698897 | BT61: 1.479715372 | BU61: 0.3185828478 | BV61: 5.143562697 | BW61: 4.205191234 | BX61: 0.6064587347 | BY61: 0.951644493 | BZ61: Salem
K62: 97050 | L62: Rufus | M62: Sherman | N62: 5B | P62: 97311 | Q62: Salem | R62: OR | S62: 44.943841 | T62: 123.028607 | U62: 2.723841 | V62: -0.339159 | W62: 2.776841 | X62: 2.753841 | Y62: 1.526841 | Z62: -0.756159 | AA62: -0.656159 | AB62: -0.589159 | AC62: -0.606156 | AD62: 0.693841 | AE62: 1.710841 | AF62: 0.043844 | AG62: 2.343841 | AH62: -1.206156 | AI62: -0.306159 | AJ62: 0.110841 | AK62: 1.423841 | AL62: 0.460841 | AM62: 0.893844 | AN62: 1.288607 | AO62: 5.028607 | AP62: 2.62861 | AQ62: 0.32861 | AR62: -1.221393 | AS62: 4.195607 | AT62: 0.411607 | AU62: 0.07861 | AV62: 0.628607 | AW62: 1.861607 | AX62: -0.32139 | AY62: 0.028607 | AZ62: -0.338393 | BA62: -0.854393 | BB62: 0.261607 | BC62: 5.211607 | BD62: 4.008607 | BE62: -0.254393 | BF62: -0.041393 | BG62: 3.013273601 | BH62: 5.040031467 | BI62: 3.823667934 | BJ62: 2.773377866 | BK62: 1.955260673 | BL62: 4.26320238 | BM62: 0.7745740479 | BN62: 0.5943802313 | BO62: 0.8732536039 | BP62: 1.986704798 | BQ62: 1.74076663 | BR62: 0.05235128255 | BS62: 2.368142828 | BT62: 1.478106794 | BU62: 0.4027052964 | BV62: 5.212785556 | BW62: 4.25396912 | BX62: 0.5263936034 | BY62: 0.8948019204 | BZ62: Salem
K63: 97051 | L63: Saint Helens | M63: Columbia | N63: 4C | P63: 97737 | Q63: Gilchrist | R63: OR | S63: 43.521016 | T63: 121.65255 | U63: 1.301016 | V63: -1.761984 | W63: 1.354016 | X63: 1.331016 | Y63: 0.104016 | Z63: -2.178984 | AA63: -2.078984 | AB63: -2.011984 | AC63: -2.028981 | AD63: -0.728984 | AE63: 0.288016 | AF63: -1.378981 | AG63: 0.921016 | AH63: -2.628981 | AI63: -1.728984 | AJ63: -1.311984 | AK63: 0.001016 | AL63: -0.961984 | AM63: -0.528981 | AN63: -0.08745 | AO63: 3.65255 | AP63: 1.252553 | AQ63: -1.047447 | AR63: -2.59745 | AS63: 2.81955 | AT63: -0.96445 | AU63: -1.297447 | AV63: -0.74745 | AW63: 0.48555 | AX63: -1.697447 | AY63: -1.34745 | AZ63: -1.71445 | BA63: -2.23045 | BB63: -1.11445 | BC63: 3.83555 | BD63: 2.63255 | BE63: -1.63045 | BF63: -1.41745 | BG63: 1.303951738 | BH63: 4.055330951 | BI63: 1.844518459 | BJ63: 1.693738117 | BK63: 2.599531848 | BL63: 3.563401952 | BM63: 2.291798044 | BN63: 2.394044347 | BO63: 2.162277827 | BP63: 0.8758861083 | BQ63: 1.721708319 | BR63: 1.928006769 | BS63: 1.94617812 | BT63: 3.447672882 | BU63: 2.05703293 | BV63: 4.053732332 | BW63: 2.632550196 | BX63: 1.893087536 | BY63: 1.512939325 | BZ63: Redmond
K64: 97053 | L64: Warren | M64: Columbia | N64: 4C | P64: 97240 | Q64: Portland | R64: OR | S64: 45.580557 | T64: 122.374776 | U64: 3.360557 | V64: 0.297557 | W64: 3.413557 | X64: 3.390557 | Y64: 2.163557 | Z64: -0.119443 | AA64: -0.019443 | AB64: 0.047557 | AC64: 0.03056 | AD64: 1.330557 | AE64: 2.347557 | AF64: 0.68056 | AG64: 2.980557 | AH64: -0.56944 | AI64: 0.330557 | AJ64: 0.747557 | AK64: 2.060557 | AL64: 1.097557 | AM64: 1.53056 | AN64: 0.634776 | AO64: 4.374776 | AP64: 1.974779 | AQ64: -0.325221 | AR64: -1.875224 | AS64: 3.541776 | AT64: -0.242224 | AU64: -0.575221 | AV64: -0.025224 | AW64: 1.207776 | AX64: -0.975221 | AY64: -0.625224 | AZ64: -0.992224 | BA64: -1.508224 | BB64: -0.392224 | BC64: 4.557776 | BD64: 3.354776 | BE64: -0.908224 | BF64: -0.695224 | BG64: 3.419983029 | BH64: 4.384883718 | BI64: 3.943618071 | BJ64: 3.406118828 | BK64: 2.863117871 | BL64: 3.543789478 | BM64: 0.243003079 | BN64: 0.5771835645 | BO64: 0.03962529213 | BP64: 1.796971006 | BQ64: 2.542062129 | BR64: 0.9241574345 | BS64: 3.141373664 | BT64: 1.612141913 | BU64: 0.512940149 | BV64: 4.618675517 | BW64: 3.937056916 | BX64: 1.424605981 | BY64: 1.681056312 | BZ64: Portland (Troutdale)
K65: 97054 | L65: Deer Island | M65: Columbia | N65: 4C | P65: 97479 | Q65: Sutherlin | R65: OR | S65: 43.397697 | T65: 123.27314 | U65: 1.177697 | V65: -1.885303 | W65: 1.230697 | X65: 1.207697 | Y65: -0.019303 | Z65: -2.302303 | AA65: -2.202303 | AB65: -2.135303 | AC65: -2.1523 | AD65: -0.852303 | AE65: 0.164697 | AF65: -1.5023 | AG65: 0.797697 | AH65: -2.7523 | AI65: -1.852303 | AJ65: -1.435303 | AK65: -0.122303 | AL65: -1.085303 | AM65: -0.6523 | AN65: 1.53314 | AO65: 5.27314 | AP65: 2.873143 | AQ65: 0.573143 | AR65: -0.97686 | AS65: 4.44014 | AT65: 0.65614 | AU65: 0.323143 | AV65: 0.87314 | AW65: 2.10614 | AX65: -0.076857 | AY65: 0.27314 | AZ65: -0.09386 | BA65: -0.60986 | BB65: 0.50614 | BC65: 5.45614 | BD65: 4.25314 | BE65: -0.00986 | BF65: 0.20314 | BG65: 1.933258514 | BH65: 5.600033291 | BI65: 3.125630465 | BJ65: 1.336796522 | BK65: 0.9770506975 | BL65: 5.001543994 | BM65: 2.297968277 | BN65: 2.159615776 | BO65: 2.322664149 | BP65: 2.27205768 | BQ65: 0.1817473528 | BR65: 1.526928535 | BS65: 0.8031999772 | BT65: 2.81905738 | BU65: 1.920209391 | BV65: 5.641769084 | BW65: 4.254898105 | BX65: 1.085347788 | BY65: 0.683199202 | BZ65: Roseburg
K66: 97055 | L66: Sandy | M66: Clackamas | N66: 4C | P66: 97394 | Q66: Waldport | R66: OR | S66: 44.424255 | T66: 124.04868 | U66: 2.204255 | V66: -0.858745 | W66: 2.257255 | X66: 2.234255 | Y66: 1.007255 | Z66: -1.275745 | AA66: -1.175745 | AB66: -1.108745 | AC66: -1.125742 | AD66: 0.174255 | AE66: 1.191255 | AF66: -0.475742 | AG66: 1.824255 | AH66: -1.725742 | AI66: -0.825745 | AJ66: -0.408745 | AK66: 0.904255 | AL66: -0.058745 | AM66: 0.374258 | AN66: 2.30868 | AO66: 6.04868 | AP66: 3.648683 | AQ66: 1.348683 | AR66: -0.20132 | AS66: 5.21568 | AT66: 1.43168 | AU66: 1.098683 | AV66: 1.64868 | AW66: 2.88168 | AX66: 0.698683 | AY66: 1.04868 | AZ66: 0.68168 | BA66: 0.16568 | BB66: 1.28168 | BC66: 6.23168 | BD66: 5.02868 | BE66: 0.76568 | BF66: 0.97868 | BG66: 3.191981116 | BH66: 6.109334883 | BI66: 4.29046475 | BJ66: 2.609758847 | BK66: 1.027176897 | BL66: 5.369436019 | BM66: 1.85258844 | BN66: 1.560903523 | BO66: 1.99635688 | BP66: 2.886943787 | BQ66: 1.381030923 | BR66: 1.15154687 | BS66: 1.947458325 | BT66: 1.733676819 | BU66: 1.524650264 | BV66: 6.245070704 | BW66: 5.10933456 | BX66: 0.7679302295 | BY66: 1.047799405 | BZ66: Corvallis
K67: 97056 | L67: Scappoose | M67: Columbia | N67: 4C | P67: 97038 | Q67: Molalla | R67: OR | S67: 45.10799 | T67: 122.56555 | U67: =$S67-VLOOKUP(U$18,$A$19:$F$37,5,FALSE) -> 2.88799 | V67: -0.17501 | W67: 2.94099 | X67: 2.91799 | Y67: 1.69099 | Z67: -0.59201 | AA67: -0.49201 | AB67: -0.42501 | AC67: -0.442007 | AD67: 0.85799 | AE67: 1.87499 | AF67: 0.207993 | AG67: 2.50799 | AH67: -1.042007 | AI67: -0.14201 | AJ67: 0.27499 | AK67: =$S67-VLOOKUP(AK$18,$A$19:$F$37,5,FALSE) -> 1.58799 | AL67: 0.62499 | AM67: 1.057993 | AN67: =$T67-VLOOKUP(AN$18,$A$19:$F$37,6,FALSE) -> 0.82555 | AO67: 4.56555 | AP67: 2.165553 | AQ67: -0.134447 | AR67: -1.68445 | AS67: 3.73255 | AT67: -0.05145 | AU67: -0.384447 | AV67: 0.16555 | AW67: 1.39855 | AX67: -0.784447 | AY67: -0.43445 | AZ67: -0.80145 | BA67: -1.31745 | BB67: -0.20145 | BC67: 4.74855 | BD67: =$T67-VLOOKUP(BD$18,$A$19:$F$37,6,FALSE) -> 3.54555 | BE67: -0.71745 | BF67: -0.50445 | BG67: 3.003667599 | BH67: 4.568903074 | BI67: 3.652265321 | BJ67: 2.921085695 | BK67: 2.386800994 | BL67: 3.779206973 | BM67: 0.494692776 | BN67: 0.5730907397 | BO67: 0.4719925747 | BP67: 1.640758648 | BQ67: 2.032472533 | BR67: 0.481671974 | BS67: 2.632932954 | BT67: 1.679718158 | BU67: 0.2464730058 | BV67: 4.756505714 | BW67: 3.884924329 | BX67: 0.9514972426 | BY67: 1.172100248 | BZ67: Aurora
K68: 97057 | L68: Shaniko | M68: Wasco | N68: 5B | P68: 97918 | Q68: Vale | R68: OR | S68: 44.029403 | T68: 117.33282 | U68: 1.809403 | V68: -1.253597 | W68: 1.862403 | X68: 1.839403 | Y68: 0.612403 | Z68: -1.670597 | AA68: -1.570597 | AB68: -1.503597 | AC68: -1.520594 | AD68: -0.220597 | AE68: 0.796403 | AF68: -0.870594 | AG68: 1.429403 | AH68: -2.120594 | AI68: -1.220597 | AJ68: -0.803597 | AK68: 0.509403 | AL68: -0.453597 | AM68: -0.020594 | AN68: -4.40718 | AO68: -0.66718 | AP68: -3.067177 | AQ68: -5.367177 | AR68: -6.91718 | AS68: -1.50018 | AT68: -5.28418 | AU68: -5.617177 | AV68: -5.06718 | AW68: -3.83418 | AX68: -6.017177 | AY68: -5.66718 | AZ68: -6.03418 | BA68: -6.55018 | BB68: -5.43418 | BC68: -0.48418 | BD68: -1.68718 | BE68: -5.95018 | BF68: -5.73718 | BG68: 4.7641552 | BH68: 1.4200826 | BI68: 3.588331044 | BJ68: 5.673622506 | BK68: 6.944236213 | BL68: 2.245313869 | BM68: 5.512652103 | BN68: 5.814936061 | BO68: 5.290417683 | BP68: 3.840520708 | BQ68: 6.069652114 | BR68: 5.733660529 | BS68: 6.201170955 | BT68: 6.884894839 | BU68: 5.569575326 | BV68: 0.9381888993 | BW68: 1.762403974 | BX68: 5.967444367 | BY68: 5.737216962 | BZ68: Baker
K69: 97058 | L69: The Dalles | M69: Wasco | N69: 5B | P69: 97335 | Q69: Crabtree | R69: OR | S69: 44.634439 | T69: 122.893292 | U69: 2.414439 | V69: -0.648561 | W69: 2.467439 | X69: 2.444439 | Y69: 1.217439 | Z69: -1.065561 | AA69: -0.965561 | AB69: -0.898561 | AC69: -0.915558 | AD69: 0.384439 | AE69: 1.401439 | AF69: -0.265558 | AG69: 2.034439 | AH69: -1.515558 | AI69: -0.615561 | AJ69: -0.198561 | AK69: 1.114439 | AL69: 0.151439 | AM69: 0.584442 | AN69: 1.153292 | AO69: 4.893292 | AP69: 2.493295 | AQ69: 0.193295 | AR69: -1.356708 | AS69: 4.060292 | AT69: 0.276292 | AU69: -0.056705 | AV69: 0.493292 | AW69: 1.726292 | AX69: -0.456705 | AY69: -0.106708 | AZ69: -0.473708 | BA69: -0.989708 | BB69: 0.126292 | BC69: 5.076292 | BD69: 3.873292 | BE69: -0.389708 | BF69: -0.176708 | BG69: 2.675742537 | BH69: 4.936085288 | BI69: 3.507816297 | BJ69: 2.45206953 | BK69: 1.822858831 | BL69: 4.197784102 | BM69: 1.004313354 | BN69: 0.900348448 | BO69: 1.039992043 | BP69: 1.768580621 | BQ69: 1.473977859 | BR69: 0.2861951233 | BS69: 2.088861248 | BT69: 1.810093361 | BU69: 0.6283828562 | BV69: 5.080173908 | BW69: 4.030429903 | BX69: 0.4180981894 | BY69: 0.6105720012 | BZ69: Salem
K70: 97060 | L70: Troutdale | M70: Multnomah | N70: 4C | P70: 97758 | Q70: Riley | R70: OR | S70: 43.547855 | T70: 119.54235 | U70: 1.327855 | V70: -1.735145 | W70: 1.380855 | X70: 1.357855 | Y70: 0.130855 | Z70: -2.152145 | AA70: -2.052145 | AB70: -1.985145 | AC70: -2.002142 | AD70: -0.702145 | AE70: 0.314855 | AF70: -1.352142 | AG70: 0.947855 | AH70: -2.602142 | AI70: -1.702145 | AJ70: -1.285145 | AK70: 0.027855 | AL70: -0.935145 | AM70: -0.502142 | AN70: -2.19765 | AO70: 1.54235 | AP70: -0.857647 | AQ70: -3.157647 | AR70: -4.70765 | AS70: 0.70935 | AT70: -3.07465 | AU70: -3.407647 | AV70: -2.85765 | AW70: -1.62465 | AX70: -3.807647 | AY70: -3.45765 | AZ70: -3.82465 | BA70: -4.34065 | BB70: -3.22465 | BC70: 1.72535 | BD70: 0.52235 | BE70: -3.74065 | BF70: -3.52765 | BG70: 2.56765738 | BH70: 2.321545109 | BI70: 1.625521119 | BJ70: 3.437223411 | BK70: 4.709468288 | BL70: 2.266032993 | BM70: 3.696589201 | BN70: =SQRT(AB70^2+AU70^2) -> 3.943711291 | BO70: 3.48923145 | BP70: 1.769885653 | BQ70: 3.820642531 | BR70: 3.712631346 | BS70: 3.94035236 | BT70: 5.060868049 | BU70: 3.64632215 | BV70: 2.151378696 | BW70: 0.523092175 | BX70: 3.85576952 | BY70: 3.563209384 | BZ70: Burns
K71: 97062 | L71: Tualatin | M71: Washington | N71: 4C | P71: 97264 | Q71: Chiloquin | R71: OR | S71: 42.577154 | T71: 121.860525 | U71: 0.357154 | V71: -2.705846 | W71: 0.410154 | X71: 0.387154 | Y71: -0.839846 | Z71: -3.122846 | AA71: -3.022846 | AB71: -2.955846 | AC71: -2.972843 | AD71: -1.672846 | AE71: -0.655846 | AF71: -2.322843 | AG71: -0.022846 | AH71: -3.572843 | AI71: -2.672846 | AJ71: -2.255846 | AK71: -0.942846 | AL71: -1.905846 | AM71: -1.472843 | AN71: 0.120525 | AO71: 3.860525 | AP71: 1.460528 | AQ71: -0.839472 | AR71: -2.389475 | AS71: 3.027525 | AT71: -0.756475 | AU71: -1.089472 | AV71: -0.539475 | AW71: 0.693525 | AX71: -1.489472 | AY71: -1.139475 | AZ71: -1.506475 | BA71: -2.022475 | BB71: -0.906475 | BC71: 4.043525 | BD71: 2.840525 | BE71: -1.422475 | BF71: -1.209475 | BG71: =SQRT(U71^2+AN71^2) -> 0.3769419787 | BH71: 4.714366962 | BI71: 1.517026151 | BJ71: 0.9244465688 | BK71: 2.53277162 | BL71: 4.349491323 | BM71: 3.116063601 | BN71: 3.150234089 | BO71: 3.021395171 | BP71: 1.810908795 | BQ71: 1.62747068 | BR71: 2.587277117 | BS71: 1.506648222 | BT71: 4.105558699 | BU71: 2.822375359 | BV71: 4.630219822 | BW71: 2.99291511 | BX71: 2.378168224 | BY71: 1.905805939 | BZ71: Klamath Falls
K72: 97063 | L72: Tygh Valley | M72: Wasco | N72: 5B | P72: 97312 | Q72: Salem | R72: OR | S72: 44.936357 | T72: 123.038116 | U72: 2.716357 | V72: -0.346643 | W72: 2.769357 | X72: 2.746357 | Y72: 1.519357 | Z72: -0.763643 | AA72: -0.663643 | AB72: -0.596643 | AC72: -0.61364 | AD72: 0.686357 | AE72: 1.703357 | AF72: 0.03636 | AG72: 2.336357 | AH72: -1.21364 | AI72: -0.313643 | AJ72: 0.103357 | AK72: 1.416357 | AL72: 0.453357 | AM72: 0.88636 | AN72: 1.298116 | AO72: 5.038116 | AP72: 2.638119 | AQ72: 0.338119 | AR72: -1.211884 | AS72: 4.205116 | AT72: 0.421116 | AU72: 0.088119 | AV72: 0.638116 | AW72: 1.871116 | AX72: -0.311881 | AY72: 0.038116 | AZ72: -0.328884 | BA72: -0.844884 | BB72: 0.271116 | BC72: 5.221116 | BD72: 4.018116 | BE72: -0.244884 | BF72: -0.031884 | BG72: 3.01059803 | BH72: 5.050027148 | BI72: 3.82478889 | BJ72: 2.767092559 | BK72: 1.94347846 | BL72: 4.27389181 | BM72: 0.785977555 | BN72: 0.6031151031 | BO72: 0.885294346 | BP72: 1.993028102 | BQ72: 1.731673996 | BR72: 0.0526771208 | BS72: 2.359391599 | BT72: 1.478766724 | BU72: 0.414579084 | BV72: 5.222138925 | BW72: 4.260436989 | BX72: 0.515267642 | BY72: 0.8869332777 | BZ72: Salem
K73: 97064 | L73: Vernonia | M73: Columbia | N73: 4C | P73: 97828 | Q73: Enterprise | R73: OR | S73: 45.547098 | T73: 117.26823 | U73: 3.327098 | V73: 0.264098 | W73: 3.380098 | X73: 3.357098 | Y73: 2.130098 | Z73: -0.152902 | AA73: -0.052902 | AB73: 0.014098 | AC73: -0.002899 | AD73: 1.297098 | AE73: 2.314098 | AF73: 0.647101 | AG73: 2.947098 | AH73: -0.602899 | AI73: 0.297098 | AJ73: 0.714098 | AK73: 2.027098 | AL73: 1.064098 | AM73: 1.497101 | AN73: -4.47177 | AO73: -0.73177 | AP73: -3.131767 | AQ73: -5.431767 | AR73: -6.98177 | AS73: -1.56477 | AT73: -5.34877 | AU73: -5.681767 | AV73: -5.13177 | AW73: -3.89877 | AX73: -6.081767 | AY73: -5.73177 | AZ73: -6.09877 | BA73: -6.61477 | BB73: -5.49877 | BC73: -0.54877 | BD73: -1.75177 | BE73: -6.01477 | BF73: -5.80177 | BG73: 5.573715819 | BH73: 0.777968564 | BI73: 4.607930884 | BJ73: 6.385467855 | BK73: 7.299481476 | BL73: 1.572222686 | BM73: 5.349031607 | BN73: 5.68178449 | BO73: 5.131770819 | BP73: 4.108877065 | BQ73: 6.507145257 | BR73: 5.768182299 | BS73: 6.773505897 | BT73: 6.642188597 | BU73: 5.506790239 | BV73: 0.9006022799 | BW73: 2.679146214 | BX73: 6.108171797 | BY73: 5.991814962 | BZ73: La Grande
K74: 97065 | L74: Wasco | M74: Sherman | N74: 5B | P74: 97450 | Q74: Langlois | R74: OR | S74: 42.915024 | T74: 124.37576 | U74: 0.695024 | V74: -2.367976 | W74: 0.748024 | X74: 0.725024 | Y74: -0.501976 | Z74: -2.784976 | AA74: -2.684976 | AB74: -2.617976 | AC74: -2.634973 | AD74: -1.334976 | AE74: -0.317976 | AF74: -1.984973 | AG74: 0.315024 | AH74: -3.234973 | AI74: -2.334976 | AJ74: -1.917976 | AK74: -0.604976 | AL74: -1.567976 | AM74: -1.134973 | AN74: 2.63576 | AO74: 6.37576 | AP74: 3.975763 | AQ74: 1.675763 | AR74: 0.12576 | AS74: 5.54276 | AT74: 1.75876 | AU74: 1.425763 | AV74: 1.97576 | AW74: 3.20876 | AX74: 1.025763 | AY74: 1.37576 | AZ74: 1.00876 | BA74: 0.49276 | BB74: 1.60876 | BC74: 6.55876 | BD74: 5.35576 | BE74: 1.09276 | BF74: 1.30576 | BG74: 2.725855671 | BH74: 6.8012959 | BI74: 4.045519909 | BJ74: 1.825881002 | BK74: 0.5174895962 | BL74: 6.203086307 | BM74: 3.209724732 | BN74: 2.98103983 | BO74: 3.293434421 | BP74: 3.475385109 | BQ74: =SQRT(AE74^2+AX74^2) -> 1.073917347 | BR74: 2.415125957 | BS74: 1.056805024 | BT74: 3.272287079 | BU74: 2.835528462 | BV74: 6.833444569 | BW74: 5.38982014 | BX74: 1.911196786 | BY74: 1.730078868 | BZ74: North Bend
K75: 97067 | L75: Welches | M75: Clackamas | N75: 4C | P75: 97035 | Q75: Lake Oswego | R75: OR | S75: 45.41387 | T75: 122.72492 | U75: 3.19387 | V75: 0.13087 | W75: 3.24687 | X75: 3.22387 | Y75: 1.99687 | Z75: -0.28613 | AA75: -0.18613 | AB75: -0.11913 | AC75: -0.136127 | AD75: 1.16387 | AE75: 2.18087 | AF75: 0.513873 | AG75: 2.81387 | AH75: -0.736127 | AI75: 0.16387 | AJ75: 0.58087 | AK75: 1.89387 | AL75: 0.93087 | AM75: 1.363873 | AN75: 0.98492 | AO75: 4.72492 | AP75: 2.324923 | AQ75: 0.024923 | AR75: -1.52508 | AS75: 3.89192 | AT75: 0.10792 | AU75: -0.225077 | AV75: 0.32492 | AW75: 1.55792 | AX75: -0.625077 | AY75: -0.27508 | AZ75: -0.64208 | BA75: -1.15808 | BB75: -0.04208 | BC75: 4.90792 | BD75: 3.70492 | BE75: -0.55808 | BF75: -0.34508 | BG75: 3.342285593 | BH75: 4.72673206 | BI75: 3.993423563 | BJ75: 3.223966336 | BK75: 2.512639808 | BL75: 3.902423819 | BM75: 0.2151536737 | BN75: 0.2546597982 | BO75: 0.3522833611 | BP75: 1.944661437 | BQ75: 2.268681382 | BR75: 0.5828674519 | BS75: 2.88619665 | BT75: 1.372236221 | BU75: 0.1691865931 | BV75: 4.942174489 | BW75: 4.160910451 | BX75: 1.085344297 | BY75: 1.406851011 | BZ75: Aurora
K76: 97068 | L76: West Linn | M76: Clackamas | N76: 4C | P76: 97050 | Q76: Rufus | R76: OR | S76: 45.693219 | T76: 120.73221 | U76: 3.473219 | V76: 0.410219 | W76: 3.526219 | X76: 3.503219 | Y76: 2.276219 | Z76: -0.006781 | AA76: 0.093219 | AB76: 0.160219 | AC76: 0.143222 | AD76: 1.443219 | AE76: 2.460219 | AF76: 0.793222 | AG76: 3.093219 | AH76: -0.456778 | AI76: 0.443219 | AJ76: 0.860219 | AK76: 2.173219 | AL76: 1.210219 | AM76: 1.643222 | AN76: -1.00779 | AO76: 2.73221 | AP76: 0.332213 | AQ76: -1.967787 | AR76: -3.51779 | AS76: 1.89921 | AT76: -1.88479 | AU76: -2.217787 | AV76: -1.66779 | AW76: -0.43479 | AX76: -2.617787 | AY76: -2.26779 | AZ76: -2.63479 | BA76: -3.15079 | BB76: -2.03479 | BC76: 2.91521 | BD76: 1.71221 | BE76: -2.55079 | BF76: -2.33779 | BG76: 3.616474928 | BH76: 2.762833892 | BI76: 3.541833694 | BJ76: 4.018050403 | BK76: 4.189990384 | BL76: 1.899222106 | BM76: 1.887093831 | BN76: 2.223566798 | BO76: 1.673928321 | BP76: 1.507290094 | BQ76: 3.592420675 | BR76: 2.402513814 | BS76: 4.063264959 | BT76: 3.183727967 | BU76: 2.082501723 | BV76: 3.039477928 | BW76: 2.766684642 | BX76: 2.82332422 | BY76: 2.857523513 | BZ76: Redmond
K77: 97070 | L77: Wilsonville | M77: Clackamas | N77: 4C | P77: 97366 | Q77: South Beach | R77: OR | S77: 44.567998 | T77: 124.05401 | U77: 2.347998 | V77: -0.715002 | W77: 2.400998 | X77: 2.377998 | Y77: 1.150998 | Z77: -1.132002 | AA77: -1.032002 | AB77: -0.965002 | AC77: -0.981999 | AD77: 0.317998 | AE77: 1.334998 | AF77: -0.331999 | AG77: 1.967998 | AH77: -1.581999 | AI77: -0.682002 | AJ77: -0.265002 | AK77: 1.047998 | AL77: 0.084998 | AM77: 0.518001 | AN77: 2.31401 | AO77: 6.05401 | AP77: 3.654013 | AQ77: 1.354013 | AR77: -0.19599 | AS77: 5.22101 | AT77: 1.43701 | AU77: 1.104013 | AV77: 1.65401 | AW77: 2.88701 | AX77: 0.704013 | AY77: 1.05401 | AZ77: 0.68701 | BA77: 0.17101 | BB77: 1.28701 | BC77: 6.23701 | BD77: 5.03401 | BE77: 0.77101 | BF77: 0.98401 | BG77: 3.296625075 | BH77: 6.096086035 | BI77: 4.372253698 | BJ77: 2.736462258 | BK77: 1.167565191 | BL77: 5.342319154 | BM77: 1.769187912 | BN77: 1.466312915 | BO77: 1.923556892 | BP77: 2.9044706 | BQ77: 1.509256096 | BR77: 1.105061273 | BS77: 2.084466087 | BT77: 1.591215025 | BU77: 1.456544358 | BV77: 6.242637247 | BW77: 5.141940926 | BX77: 0.7756810428 | BY77: 1.112025502 | BZ77: Corvallis
K78: 97071 | L78: Woodburn | M78: Marion | N78: 4C | P78: 97537 | Q78: Rogue River | R78: OR | S78: 42.528269 | T78: 123.1515 | U78: 0.308269 | V78: -2.754731 | W78: 0.361269 | X78: 0.338269 | Y78: -0.888731 | Z78: -3.171731 | AA78: -3.071731 | AB78: -3.004731 | AC78: -3.021728 | AD78: -1.721731 | AE78: -0.704731 | AF78: -2.371728 | AG78: -0.071731 | AH78: -3.621728 | AI78: -2.721731 | AJ78: -2.304731 | AK78: -0.991731 | AL78: -1.954731 | AM78: -1.521728 | AN78: 1.4115 | AO78: 5.1515 | AP78: 2.751503 | AQ78: 0.451503 | AR78: -1.0985 | AS78: 4.3185 | AT78: 0.5345 | AU78: 0.201503 | AV78: 0.7515 | AW78: 1.9845 | AX78: -0.198497 | AY78: 0.1515 | AZ78: -0.2155 | BA78: -0.7315 | BB78: 0.3845 | BC78: 5.3345 | BD78: 4.1315 | BE78: -0.1315 | BF78: 0.0815 | BG78: 1.444770579 | BH78: 5.841788693 | BI78: 2.775118745 | BJ78: 0.5641638728 | BK78: 1.412991522 | BL78: 5.358107855 | BM78: 3.117887359 | BN78: 3.011480008 | BO78: 3.113774615 | BP78: 2.62727956 | BQ78: 0.7321521982 | BR78: 2.376561793 | BS78: 0.2271246054 | BT78: 3.694862102 | BU78: 2.748756062 | BV78: 5.811082105 | BW78: 4.248861333 | BX78: 1.959149186 | BY78: 1.523908907 | BZ78: Sexton
K79: 97075 | L79: Beaverton | M79: Washington | N79: 4C | P79: 97416 | Q79: Camas Valley | R79: OR | S79: 43.054446 | T79: 123.6864 | U79: 0.834446 | V79: -2.228554 | W79: 0.887446 | X79: 0.864446 | Y79: -0.362554 | Z79: -2.645554 | AA79: -2.545554 | AB79: -2.478554 | AC79: -2.495551 | AD79: -1.195554 | AE79: -0.178554 | AF79: -1.845551 | AG79: 0.454446 | AH79: -3.095551 | AI79: -2.195554 | AJ79: -1.778554 | AK79: -0.465554 | AL79: -1.428554 | AM79: -0.995551 | AN79: 1.9464 | AO79: 5.6864 | AP79: 3.286403 | AQ79: 0.986403 | AR79: -0.5636 | AS79: 4.8534 | AT79: 1.0694 | AU79: 0.736403 | AV79: 1.2864 | AW79: 2.5194 | AX79: 0.336403 | AY79: 0.6864 | AZ79: 0.3194 | BA79: -0.1966 | BB79: 0.9194 | BC79: 5.8694 | BD79: 4.6664 | BE79: 0.4034 | BF79: 0.6164 | BG79: 2.117728284 | BH79: 6.107503409 | BI79: 3.404115903 | BJ79: 1.311585973 | BK79: 0.6701420468 | BL79: 5.527607758 | BM79: 2.761061667 | BN79: 2.585637119 | BO79: 2.807596793 | BP79: 2.788678133 | BQ79: 0.3808523458 | BR79: 1.969061567 | BS79: 0.555461544 | BT79: 3.1017878 | BU79: 2.380284379 | BV79: 6.132952852 | BW79: 4.689566023 | BX79: 1.484418435 | BY79: 1.170927305 | BZ79: Roseburg
K80: 97076 | L80: Beaverton | M80: Washington | N80: 4C | P80: 97013 | Q80: Canby | R80: OR | S80: 45.247004 | T80: 122.68208 | U80: 3.027004 | V80: -0.035996 | W80: 3.080004 | X80: 3.057004 | Y80: 1.830004 | Z80: -0.452996 | AA80: -0.352996 | AB80: -0.285996 | AC80: -0.302993 | AD80: 0.997004 | AE80: 2.014004 | AF80: 0.347007 | AG80: 2.647004 | AH80: -0.902993 | AI80: -0.002996 | AJ80: 0.414004 | AK80: 1.727004 | AL80: 0.764004 | AM80: 1.197007 | AN80: 0.94208 | AO80: 4.68208 | AP80: 2.282083 | AQ80: -0.017917 | AR80: -1.56792 | AS80: 3.84908 | AT80: 0.06508 | AU80: -0.267917 | AV80: 0.28208 | AW80: 1.51508 | AX80: -0.667917 | AY80: -0.31792 | AZ80: -0.68492 | BA80: -1.20092 | BB80: -0.08492 | BC80: 4.86508 | BD80: 3.66208 | BE80: -0.60092 | BF80: -0.38792 | BG80: 3.170215756 | BH80: 4.682218367 | BI80: 3.833318074 | BJ80: 3.057056505 | BK80: 2.409831481 | BL80: 3.875644749 | BM80: 0.3589450967 | BN80: 0.391884206 | BO80: 0.4139732895 | BP80: 1.813693575 | BQ80: 2.121868335 | BR80: 0.4706240373 | BS80: 2.734180971 | BT80: 1.50253293 | BU80: 0.0849728334 | BV80: 4.882663486 | BW80: 4.048873021 | BX80: 0.9720118098 | BY80: 1.258295547 | BZ80: Aurora
K81: 97077 | L81: Beaverton | M81: Washington | N81: 4C | P81: 97040 | Q81: Mosier | R81: OR | S81: 45.636848 | T81: 121.40926 | U81: 3.416848 | V81: 0.353848 | W81: 3.469848 | X81: 3.446848 | Y81: 2.219848 | Z81: -0.063152 | AA81: 0.036848 | AB81: 0.103848 | AC81: 0.086851 | AD81: 1.386848 | AE81: 2.403848 | AF81: 0.736851 | AG81: 3.036848 | AH81: -0.513149 | AI81: 0.386848 | AJ81: 0.803848 | AK81: 2.116848 | AL81: 1.153848 | AM81: 1.586851 | AN81: -0.33074 | AO81: 3.40926 | AP81: 1.009263 | AQ81: -1.290737 | AR81: -2.84074 | AS81: 2.57626 | AT81: -1.20774 | AU81: -1.540737 | AV81: -0.99074 | AW81: 0.24226 | AX81: -1.940737 | AY81: -1.59074 | AZ81: -1.95774 | BA81: -2.47374 | BB81: -1.35774 | BC81: 3.59226 | BD81: 2.38926 | BE81: -1.87374 | BF81: -1.66074 | BG81: 3.432817968 | BH81: 3.4275738 | BI81: 3.613648703 | BJ81: 3.68059277 | BK81: 3.605208578 | BL81: 2.577033908 | BM81: 1.208301983 | BN81: 1.54423279 | BO81: 0.9945395134 | BP81: 1.407848459 | BQ81: 3.08948949 | BR81: 1.753112416 | BS81: 3.613196878 | BT81: 2.526402874 | BU81: 1.411775224 | BV81: 3.681100856 | BW81: 3.192116665 | BX81: 2.20051512 | BY81: 2.296987907 | BZ81: Portland (Troutdale)
K82: 97078 | L82: Beaverton | M82: Washington | N82: 4C | P82: 97293 | Q82: Portland | R82: OR | S82: 45.580557 | T82: 122.374776 | U82: 3.360557 | V82: 0.297557 | W82: 3.413557 | X82: 3.390557 | Y82: 2.163557 | Z82: -0.119443 | AA82: -0.019443 | AB82: 0.047557 | AC82: 0.03056 | AD82: 1.330557 | AE82: 2.347557 | AF82: 0.68056 | AG82: 2.980557 | AH82: -0.56944 | AI82: 0.330557 | AJ82: 0.747557 | AK82: 2.060557 | AL82: 1.097557 | AM82: 1.53056 | AN82: 0.634776 | AO82: 4.374776 | AP82: 1.974779 | AQ82: -0.325221 | AR82: -1.875224 | AS82: 3.541776 | AT82: -0.242224 | AU82: -0.575221 | AV82: -0.025224 | AW82: 1.207776 | AX82: -0.975221 | AY82: -0.625224 | AZ82: -0.992224 | BA82: -1.508224 | BB82: -0.392224 | BC82: 4.557776 | BD82: 3.354776 | BE82: -0.908224 | BF82: -0.695224 | BG82: 3.419983029 | BH82: 4.384883718 | BI82: 3.943618071 | BJ82: 3.406118828 | BK82: 2.863117871 | BL82: 3.543789478 | BM82: 0.243003079 | BN82: 0.5771835645 | BO82: 0.03962529213 | BP82: 1.796971006 | BQ82: 2.542062129 | BR82: 0.9241574345 | BS82: 3.141373664 | BT82: 1.612141913 | BU82: 0.512940149 | BV82: 4.618675517 | BW82: 3.937056916 | BX82: 1.424605981 | BY82: 1.681056312 | BZ82: Portland (Troutdale)
K83: 97080 | L83: Gresham | M83: Multnomah | N83: 4C | P83: 97437 | Q83: Elmira | R83: OR | S83: 44.099732 | T83: 123.38787 | U83: =$S83-VLOOKUP(U$18,$A$19:$F$37,5,FALSE) -> 1.879732 | V83: -1.183268 | W83: 1.932732 | X83: 1.909732 | Y83: 0.682732 | Z83: -1.600268 | AA83: -1.500268 | AB83: -1.433268 | AC83: -1.450265 | AD83: -0.150268 | AE83: 0.866732 | AF83: -0.800265 | AG83: 1.499732 | AH83: -2.050265 | AI83: -1.150268 | AJ83: -0.733268 | AK83: =$S83-VLOOKUP(AK$18,$A$19:$F$37,5,FALSE) -> 0.579732 | AL83: -0.383268 | AM83: 0.049735 | AN83: =$T83-VLOOKUP(AN$18,$A$19:$F$37,6,FALSE) -> 1.64787 | AO83: 5.38787 | AP83: 2.987873 | AQ83: 0.687873 | AR83: -0.86213 | AS83: 4.55487 | AT83: 0.77087 | AU83: 0.437873 | AV83: 0.98787 | AW83: 2.22087 | AX83: 0.037873 | AY83: 0.38787 | AZ83: 0.02087 | BA83: -0.49513 | BB83: 0.62087 | BC83: 5.57087 | BD83: =$T83-VLOOKUP(BD$18,$A$19:$F$37,6,FALSE) -> 4.36787 | BE83: 0.10487 | BF83: 0.31787 | BG83: 2.499773575 | BH83: 5.516272863 | BI83: 3.558488169 | BJ83: 2.029838805 | BK83: 1.099723202 | BL83: 4.827804717 | BM83: 1.686726009 | BN83: 1.498662712 | BO83: 1.754752321 | BP83: 2.225947894 | BQ83: 0.8675590608 | BR83: 0.88930715 | BS83: 1.499877205 | BT83: 2.109203709 | BU83: 1.307132751 | BV83: 5.618921117 | BW83: 4.406174932 | BX83: 0.3973563599 | BY83: 0.3217373263 | BZ83: Eugene
K84: 97086 | L84: Happy Valley | M84: Clackamas | N84: =IFERROR(VLOOKUP(M84,$H$19:$I$36,2,FALSE),"4C") -> 4C | P84: 97435 | Q84: Drain | R84: OR | S84: 43.703855 | T84: 123.35279 | U84: 1.483855 | V84: -1.579145 | W84: 1.536855 | X84: 1.513855 | Y84: 0.286855 | Z84: -1.996145 | AA84: -1.896145 | AB84: -1.829145 | AC84: -1.846142 | AD84: -0.546145 | AE84: 0.470855 | AF84: -1.196142 | AG84: 1.103855 | AH84: -2.446142 | AI84: -1.546145 | AJ84: -1.129145 | AK84: 0.183855 | AL84: -0.779145 | AM84: -0.346142 | AN84: 1.61279 | AO84: 5.35279 | AP84: 2.952793 | AQ84: 0.652793 | AR84: -0.89721 | AS84: 4.51979 | AT84: 0.73579 | AU84: 0.402793 | AV84: 0.95279 | AW84: 2.18579 | AX84: 0.002793 | AY84: 0.35279 | AZ84: -0.01421 | BA84: -0.53021 | BB84: 0.58579 | BC84: 5.53579 | BD84: 4.33279 | BE84: 0.06979 | BF84: 0.28279 | BG84: 2.191555896 | BH84: 5.580865499 | BI84: 3.328800053 | BJ84: 1.648604156 | BK84: 0.9419509409 | BL84: 4.940961091 | BM84: 2.033900879 | BN84: 1.872969202 | BO84: 2.077510305 | BP84: 2.252987413 | BQ84: 0.4708632836 | BR84: 1.247083184 | BS84: 1.103946459 | BT84: 2.502944931 | BU84: 1.653394776 | BV84: 5.64977339 | BW84: 4.336689042 | BX84: 0.7822643895 | BY84: 0.4469725587 | BZ84: =INDEX($BG$18:$BY$18,MATCH(MIN(BG84:BY84),BG84:BY84,0)) -> Eugene
K85: 97089 | L85: Damascus | M85: Clackamas | N85: 4C | P85: 97021 | Q85: Dufur | R85: OR | S85: 45.430024 | T85: 121.17922 | U85: 3.210024 | V85: 0.147024 | W85: 3.263024 | X85: 3.240024 | Y85: 2.013024 | Z85: -0.269976 | AA85: -0.169976 | AB85: -0.102976 | AC85: -0.119973 | AD85: 1.180024 | AE85: 2.197024 | AF85: 0.530027 | AG85: 2.830024 | AH85: -0.719973 | AI85: 0.180024 | AJ85: 0.597024 | AK85: 1.910024 | AL85: 0.947024 | AM85: 1.380027 | AN85: -0.56078 | AO85: 3.17922 | AP85: 0.779223 | AQ85: -1.520777 | AR85: -3.07078 | AS85: 2.34622 | AT85: -1.43778 | AU85: -1.770777 | AV85: -1.22078 | AW85: 0.01222 | AX85: -2.170777 | AY85: -1.82078 | AZ85: -2.18778 | BA85: -2.70378 | BB85: -1.58778 | BC85: 3.36222 | BD85: 2.15922 | BE85: -2.10378 | BF85: -1.89078 | BG85: 3.258639024 | BH85: 3.182617769 | BI85: 3.354774822 | BJ85: 3.579178426 | BK85: 3.671778239 | BL85: 2.361701787 | BM85: 1.447792516 | BN85: 1.773768655 | BO85: 1.226661049 | BP85: 1.180087272 | BQ85: 3.088557469 | BR85: 1.89635662 | BS85: 3.577068237 | BT85: 2.797997035 | BU85: 1.597953056 | BV85: 3.414814927 | BW85: 2.882780375 | BX85: 2.307107441 | BY85: 2.340838211 | BZ85: Redmond
K86: 97101 | L86: Amity | M86: Yamhill | N86: 4C | P86: 97006 | Q86: Beaverton | R86: OR | S86: 45.517695 | T86: 122.85826 | U86: 3.297695 | V86: 0.234695 | W86: 3.350695 | X86: 3.327695 | Y86: 2.100695 | Z86: -0.182305 | AA86: -0.082305 | AB86: -0.015305 | AC86: -0.032302 | AD86: 1.267695 | AE86: 2.284695 | AF86: 0.617698 | AG86: 2.917695 | AH86: -0.632302 | AI86: 0.267695 | AJ86: 0.684695 | AK86: 1.997695 | AL86: 1.034695 | AM86: 1.467698 | AN86: 1.11826 | AO86: 4.85826 | AP86: 2.458263 | AQ86: 0.158263 | AR86: -1.39174 | AS86: 4.02526 | AT86: 0.24126 | AU86: -0.091737 | AV86: 0.45826 | AW86: 1.69126 | AX86: -0.491737 | AY86: -0.14174 | AZ86: -0.50874 | BA86: -1.02474 | BB86: 0.09126 | BC86: 5.04126 | BD86: 3.83826 | BE86: -0.42474 | BF86: -0.21174 | BG86: 3.482139822 | BH86: 4.863925572 | BI86: 4.155744694 | BJ86: 3.331456317 | BK86: 2.519892797 | BL86: 4.029386204 | BM86: 0.2549127314 | BN86: 0.09300494715 | BO86: 0.459397047 | BP86: 2.113625085 | BQ86: 2.337014446 | BR86: 0.6337515655 | BS86: 2.961715803 | BT86: 1.204117057 | BU86: 0.2828232675 | BV86: 5.087544558 | BW86: 4.327011109 | BX86: 1.118480134 | BY86: 1.482892864 | BZ86: Portland (Hillsboro)
K87: 97102 | L87: Arch Cape | M87: Clatsop | N87: 4C | P87: 97730 | Q87: Camp Sherman | R87: OR | S87: 44.46723 | T87: 121.64724 | U87: 2.24723 | V87: -0.81577 | W87: 2.30023 | X87: 2.27723 | Y87: 1.05023 | Z87: -1.23277 | AA87: -1.13277 | AB87: -1.06577 | AC87: -1.082767 | AD87: 0.21723 | AE87: 1.23423 | AF87: -0.432767 | AG87: 1.86723 | AH87: -1.682767 | AI87: -0.78277 | AJ87: -0.36577 | AK87: 0.94723 | AL87: -0.01577 | AM87: 0.417233 | AN87: -0.09276 | AO87: 3.64724 | AP87: 1.247243 | AQ87: -1.052757 | AR87: -2.60276 | AS87: 2.81424 | AT87: -0.96976 | AU87: -1.302757 | AV87: -0.75276 | AW87: 0.48024 | AX87: -1.702757 | AY87: -1.35276 | AZ87: -1.71976 | BA87: -2.23576 | BB87: -1.11976 | BC87: 3.83024 | BD87: 2.62724 | BE87: -1.63576 | BF87: -1.42276 | BG87: 2.249143635 | BH87: 3.737357397 | BI87: 2.616614827 | BJ87: 2.508799269 | BK87: 2.806660412 | BL87: 3.072404376 | BM87: 1.491174816 | BN87: 1.683164132 | BO87: 1.318723623 | BP87: 0.5270856956 | BQ87: 2.103022847 | BR87: 1.420298171 | BS87: 2.538527591 | BT87: 2.798272244 | BU87: 1.366232532 | BV87: 3.847665026 | BW87: 2.792782607 | BX87: 1.635836016 | BY87: 1.482676429 | BZ87: Redmond
K88: 97103 | L88: Astoria | M88: Clatsop | N88: 4C | P88: 97145 | Q88: Tolovana Park | R88: OR | S88: 45.868839 | T88: 123.95909 | U88: 3.648839 | V88: 0.585839 | W88: 3.701839 | X88: 3.678839 | Y88: 2.451839 | Z88: 0.168839 | AA88: 0.268839 | AB88: 0.335839 | AC88: 0.318842 | AD88: 1.618839 | AE88: 2.635839 | AF88: 0.968842 | AG88: 3.268839 | AH88: -0.281158 | AI88: 0.618839 | AJ88: 1.035839 | AK88: 2.348839 | AL88: 1.385839 | AM88: 1.818842 | AN88: 2.21909 | AO88: 5.95909 | AP88: 3.559093 | AQ88: 1.259093 | AR88: -0.29091 | AS88: 5.12609 | AT88: 1.34209 | AU88: 1.009093 | AV88: 1.55909 | AW88: 2.79209 | AX88: 0.609093 | AY88: 0.95909 | AZ88: 0.59209 | BA88: 0.07609 | BB88: 1.19209 | BC88: 6.14209 | BD88: 4.93909 | BE88: 0.67609 | BF88: 0.88909 | BG88: 4.270642396 | BH88: 5.987817713 | BI88: 5.135246339 | BJ88: 3.888337893 | BK88: 2.469036879 | BL88: 5.128869787 | BM88: 1.368751247 | BN88: 1.063511409 | BO88: 1.591358492 | BP88: 3.227445782 | BQ88: 2.705298785 | BR88: 1.363271231 | BS88: 3.322029346 | BT88: 0.291272225 | BU88: 1.343145664 | BV88: 6.228822682 | BW88: 5.469154841 | BX88: 1.541962199 | BY88: 2.024516547 | BZ88: Astoria
K89: 97106 | L89: Banks | M89: Washington | N89: 4C | P89: 97024 | Q89: Fairview | R89: OR | S89: 45.542239 | T89: 122.44553 | U89: 3.322239 | V89: 0.259239 | W89: 3.375239 | X89: 3.352239 | Y89: 2.125239 | Z89: -0.157761 | AA89: -0.057761 | AB89: 0.009239 | AC89: -0.007758 | AD89: 1.292239 | AE89: 2.309239 | AF89: 0.642242 | AG89: 2.942239 | AH89: -0.607758 | AI89: 0.292239 | AJ89: 0.709239 | AK89: 2.022239 | AL89: 1.059239 | AM89: 1.492242 | AN89: 0.70553 | AO89: 4.44553 | AP89: 2.045533 | AQ89: -0.254467 | AR89: -1.80447 | AS89: 3.61253 | AT89: -0.17147 | AU89: -0.504467 | AV89: 0.04553 | AW89: 1.27853 | AX89: -0.904467 | AY89: -0.55447 | AZ89: -0.92147 | BA89: -1.43747 | BB89: -0.32147 | BC89: 4.62853 | BD89: 3.42553 | BE89: -0.83747 | BF89: -0.62447 | BG89: 3.396328099 | BH89: 4.453082285 | BI89: 3.946700338 | BJ89: 3.361883366 | BK89: 2.787965708 | BL89: 3.61597311 | BM89: 0.1809372654 | BN89: 0.5045515962 | BO89: 0.04618622591 | BP89: 1.817834039 | BQ89: 2.480049458 | BR89: 0.8484761443 | BS89: 3.083160277 | BT89: 1.56066966 | BU89: 0.4344497601 | BV89: 4.682553782 | BW89: 3.977902255 | BX89: 1.350312282 | BY89: 1.617636847 | BZ89: Portland (Troutdale)
K90: 97107 | L90: Bay City | M90: Tillamook | N90: 4C | P90: 97831 | Q90: Fox | R90: OR | S90: 44.477794 | T90: 118.947769 | U90: 2.257794 | V90: -0.805206 | W90: 2.310794 | X90: 2.287794 | Y90: 1.060794 | Z90: -1.222206 | AA90: -1.122206 | AB90: -1.055206 | AC90: -1.072203 | AD90: 0.227794 | AE90: 1.244794 | AF90: -0.422203 | AG90: 1.877794 | AH90: -1.672203 | AI90: -0.772206 | AJ90: -0.355206 | AK90: 0.957794 | AL90: -0.005206 | AM90: 0.427797 | AN90: -2.792231 | AO90: 0.947769 | AP90: -1.452228 | AQ90: -3.752228 | AR90: -5.302231 | AS90: 0.114769 | AT90: -3.669231 | AU90: -4.002228 | AV90: -3.452231 | AW90: -2.219231 | AX90: -4.402228 | AY90: -4.052231 | AZ90: -4.419231 | BA90: -4.935231 | BB90: -3.819231 | BC90: 1.130769 | BD90: -0.072231 | BE90: -4.335231 | BF90: -4.122231 | BG90: 3.59084777 | BH90: 1.243632896 | BI90: 2.729237087 | BJ90: 4.394680461 | BK90: 5.407304087 | BL90: 1.227582759 | BM90: 3.837004357 | BN90: 4.138996094 | BO90: 3.614902233 | BP90: 2.230891377 | BQ90: 4.574835895 | BR90: 4.07416635 | BS90: 4.801636485 | BT90: 5.210831785 | BU90: 3.896514794 | BV90: 1.18524674 | BW90: 0.9605137499 | BX90: 4.335234126 | BY90: 4.144369517 | BZ90: Burns
K91: 97108 | L91: Beaver | M91: Tillamook | N91: 4C | P91: 97294 | Q91: Portland | R91: OR | S91: 45.580557 | T91: 122.374776 | U91: 3.360557 | V91: 0.297557 | W91: 3.413557 | X91: 3.390557 | Y91: 2.163557 | Z91: -0.119443 | AA91: -0.019443 | AB91: 0.047557 | AC91: 0.03056 | AD91: 1.330557 | AE91: 2.347557 | AF91: 0.68056 | AG91: 2.980557 | AH91: -0.56944 | AI91: 0.330557 | AJ91: 0.747557 | AK91: 2.060557 | AL91: 1.097557 | AM91: 1.53056 | AN91: 0.634776 | AO91: 4.374776 | AP91: 1.974779 | AQ91: -0.325221 | AR91: -1.875224 | AS91: 3.541776 | AT91: -0.242224 | AU91: -0.575221 | AV91: -0.025224 | AW91: 1.207776 | AX91: -0.975221 | AY91: -0.625224 | AZ91: -0.992224 | BA91: -1.508224 | BB91: -0.392224 | BC91: 4.557776 | BD91: 3.354776 | BE91: -0.908224 | BF91: -0.695224 | BG91: 3.419983029 | BH91: 4.384883718 | BI91: 3.943618071 | BJ91: 3.406118828 | BK91: 2.863117871 | BL91: 3.543789478 | BM91: 0.243003079 | BN91: 0.5771835645 | BO91: 0.03962529213 | BP91: 1.796971006 | BQ91: 2.542062129 | BR91: 0.9241574345 | BS91: 3.141373664 | BT91: 1.612141913 | BU91: 0.512940149 | BV91: 4.618675517 | BW91: 3.937056916 | BX91: 1.424605981 | BY91: 1.681056312 | BZ91: Portland (Troutdale)
K92: 97109 | L92: Buxton | M92: Washington | N92: 4C | P92: 97480 | Q92: Swisshome | R92: OR | S92: 44.127179 | T92: 123.83519 | U92: 1.907179 | V92: -1.155821 | W92: 1.960179 | X92: 1.937179 | Y92: 0.710179 | Z92: -1.572821 | AA92: -1.472821 | AB92: -1.405821 | AC92: -1.422818 | AD92: -0.122821 | AE92: 0.894179 | AF92: -0.772818 | AG92: 1.527179 | AH92: -2.022818 | AI92: -1.122821 | AJ92: -0.705821 | AK92: 0.607179 | AL92: -0.355821 | AM92: 0.077182 | AN92: 2.09519 | AO92: 5.83519 | AP92: 3.435193 | AQ92: 1.135193 | AR92: -0.41481 | AS92: 5.00219 | AT92: 1.21819 | AU92: 0.885193 | AV92: 1.43519 | AW92: 2.66819 | AX92: 0.485193 | AY92: 0.83519 | AZ92: 0.46819 | BA92: -0.04781 | BB92: 1.06819 | BC92: 6.01819 | BD92: 4.81519 | BE92: 0.55219 | BF92: 0.76519 | BG92: 2.833223054 | BH92: 5.948559869 | BI92: 3.955104633 | BJ92: 2.245289653 | BK92: 0.8224485079 | BL92: 5.243631441 | BM92: 1.911331623 | BN92: 1.661294475 | BO92: 2.020935773 | BP92: 2.671015326 | BQ92: 1.017333933 | BR92: 1.137888394 | BS92: 1.597334522 | BT92: 2.023382924 | BU92: 1.549760263 | BV92: 6.059438436 | BW92: 4.853320623 | BX92: 0.6569036308 | BY92: 0.7690726866 | BZ92: Corvallis
K93: 97110 | L93: Cannon Beach | M93: Clatsop | N93: 4C | P93: 97481 | Q93: Tenmile | R93: OR | S93: 43.098515 | T93: 123.55647 | U93: 0.878515 | V93: -2.184485 | W93: 0.931515 | X93: 0.908515 | Y93: -0.318485 | Z93: -2.601485 | AA93: -2.501485 | AB93: -2.434485 | AC93: -2.451482 | AD93: -1.151485 | AE93: -0.134485 | AF93: -1.801482 | AG93: 0.498515 | AH93: -3.051482 | AI93: -2.151485 | AJ93: -1.734485 | AK93: -0.421485 | AL93: -1.384485 | AM93: -0.951482 | AN93: 1.81647 | AO93: 5.55647 | AP93: 3.156473 | AQ93: 0.856473 | AR93: -0.69353 | AS93: 4.72347 | AT93: 0.93947 | AU93: 0.606473 | AV93: 1.15647 | AW93: 2.38947 | AX93: 0.206473 | AY93: 0.55647 | AZ93: 0.18947 | BA93: -0.32653 | BB93: 0.78947 | BC93: 5.73947 | BD93: 4.53647 | BE93: 0.27347 | BF93: 0.48647 | BG93: 2.01775912 | BH93: 5.970455056 | BI93: 3.291054845 | BJ93: 1.248577392 | BK93: 0.7631622083 | BL93: 5.392484867 | BM93: 2.67208366 | BN93: 2.508889538 | BO93: 2.710569471 | BP93: 2.65244879 | BQ93: 0.246408837 | BR93: 1.885469771 | BS93: 0.5333067467 | BT93: 3.068902774 | BU93: 2.291757096 | BV93: 5.995828058 | BW93: 4.556008085 | BX93: 1.411235117 | BY93: 1.068630459 | BZ93: Roseburg
K94: 97111 | L94: Carlton | M94: Yamhill | N94: 4C | P94: 97533 | Q94: Murphy | R94: OR | S94: 42.308007 | T94: 123.327323 | U94: 0.088007 | V94: -2.974993 | W94: 0.141007 | X94: 0.118007 | Y94: -1.108993 | Z94: -3.391993 | AA94: -3.291993 | AB94: -3.224993 | AC94: -3.24199 | AD94: -1.941993 | AE94: -0.924993 | AF94: -2.59199 | AG94: -0.291993 | AH94: -3.84199 | AI94: -2.941993 | AJ94: -2.524993 | AK94: -1.211993 | AL94: -2.174993 | AM94: -1.74199 | AN94: 1.587323 | AO94: 5.327323 | AP94: 2.927326 | AQ94: 0.627326 | AR94: -0.922677 | AS94: 4.494323 | AT94: 0.710323 | AU94: 0.377326 | AV94: 0.927323 | AW94: 2.160323 | AX94: -0.022674 | AY94: 0.327323 | AZ94: -0.039677 | BA94: -0.555677 | BB94: 0.560323 | BC94: 5.510323 | BD94: 4.307323 | BE94: 0.044323 | BF94: 0.257323 | BG94: 1.589760843 | BH94: 6.101717274 | BI94: 2.930720131 | BJ94: 0.6383287259 | BK94: 1.442635893 | BL94: 5.630679865 | BM94: 3.367755436 | BN94: 3.246991648 | BO94: 3.372006392 | BP94: 2.904880768 | BQ94: 0.9252708578 | BR94: 2.612575837 | BS94: 0.2946763926 | BT94: 3.881966523 | BU94: 2.994876404 | BV94: 6.061291052 | BW94: 4.474590312 | BX94: 2.17544457 | BY94: 1.760893037 | BZ94: Sexton
K95: 97112 | L95: Cloverdale | M95: Tillamook | N95: 4C | P95: 97460 | Q95: Norway | R95: OR | S95: 43.138755 | T95: 124.127089 | U95: 0.918755 | V95: -2.144245 | W95: 0.971755 | X95: 0.948755 | Y95: -0.278245 | Z95: -2.561245 | AA95: -2.461245 | AB95: -2.394245 | AC95: -2.411242 | AD95: -1.111245 | AE95: -0.094245 | AF95: -1.761242 | AG95: 0.538755 | AH95: -3.011242 | AI95: -2.111245 | AJ95: -1.694245 | AK95: -0.381245 | AL95: -1.344245 | AM95: -0.911242 | AN95: 2.387089 | AO95: 6.127089 | AP95: 3.727092 | AQ95: 1.427092 | AR95: -0.122911 | AS95: 5.294089 | AT95: 1.510089 | AU95: 1.177092 | AV95: 1.727089 | AW95: 2.960089 | AX95: 0.777092 | AY95: 1.127089 | AZ95: 0.760089 | BA95: 0.244089 | BB95: 1.360089 | BC95: 6.310089 | BD95: 5.107089 | BE95: 0.844089 | BF95: 1.057089 | BG95: 2.557792924 | BH95: 6.491456403 | BI95: 3.85169087 | BJ95: 1.713688311 | BK95: 0.3041831586 | BL95: 5.881101452 | BM95: 2.887576101 | BN95: 2.66794953 | BO95: 2.965960957 | BP95: 3.161802071 | BQ95: 0.7827861116 | BR95: 2.09100526 | BS95: 0.9316610102 | BT95: 3.021118638 | BU95: 2.511413454 | BV95: 6.53358166 | BW95: 5.12129923 | BX95: 1.587287264 | BY95: 1.395635746 | BZ95: North Bend
K96: 97113 | L96: Cornelius | M96: Washington | N96: 4C | P96: 97701 | Q96: Bend | R96: OR | S96: 44.091256 | T96: 121.29769 | U96: 1.871256 | V96: -1.191744 | W96: 1.924256 | X96: 1.901256 | Y96: 0.674256 | Z96: -1.608744 | AA96: -1.508744 | AB96: -1.441744 | AC96: -1.458741 | AD96: -0.158744 | AE96: 0.858256 | AF96: -0.808741 | AG96: 1.491256 | AH96: -2.058741 | AI96: -1.158744 | AJ96: -0.741744 | AK96: 0.571256 | AL96: -0.391744 | AM96: 0.041259 | AN96: -0.44231 | AO96: 3.29769 | AP96: 0.897693 | AQ96: -1.402307 | AR96: -2.95231 | AS96: 2.46469 | AT96: -1.31931 | AU96: -1.652307 | AV96: -1.10231 | AW96: 0.13069 | AX96: -2.052307 | AY96: -1.70231 | AZ96: -2.06931 | BA96: -2.58531 | BB96: -1.46931 | BC96: 3.48069 | BD96: 2.27769 | BE96: -1.98531 | BF96: -1.77231 | BG96: 1.922820104 | BH96: 3.506424546 | BI96: 2.123349683 | BJ96: 2.362464666 | BK96: 3.028325526 | BL96: 2.943255689 | BM96: 2.004217387 | BN96: 2.1928849 | BO96: 1.828390724 | BP96: 0.2056198766 | BQ96: 2.224537566 | BR96: 1.88465417 | BS96: 2.550664293 | BT96: 3.304881587 | BU96: 1.87124545 | BV96: 3.558846307 | BW96: 2.348234476 | BX96: 2.02359066 | BY96: 1.772790185 | BZ96: Redmond
K97: 97114 | L97: Dayton | M97: Yamhill | N97: 4C | P97: 97005 | Q97: Beaverton | R97: OR | S97: 45.49106 | T97: 122.80359 | U97: 3.27106 | V97: 0.20806 | W97: 3.32406 | X97: 3.30106 | Y97: 2.07406 | Z97: -0.20894 | AA97: -0.10894 | AB97: -0.04194 | AC97: -0.058937 | AD97: 1.24106 | AE97: 2.25806 | AF97: 0.591063 | AG97: 2.89106 | AH97: -0.658937 | AI97: 0.24106 | AJ97: 0.65806 | AK97: 1.97106 | AL97: 1.00806 | AM97: 1.441063 | AN97: 1.06359 | AO97: 4.80359 | AP97: 2.403593 | AQ97: 0.103593 | AR97: -1.44641 | AS97: 3.97059 | AT97: 0.18659 | AU97: -0.146407 | AV97: 0.40359 | AW97: 1.63659 | AX97: -0.546407 | AY97: -0.19641 | AZ97: -0.56341 | BA97: -1.07941 | BB97: 0.03659 | BC97: 4.98659 | BD97: 3.78359 | BE97: -0.47941 | BF97: -0.26641 | BG97: 3.439630389 | BH97: 4.808093786 | BI97: 4.102028059 | BJ97: 3.302685064 | BK97: 2.528601742 | BL97: 3.97608361 | BM97: 0.2160642305 | BN97: 0.1522956771 | BO97: 0.4078706389 | BP97: 2.053936891 | BQ97: 2.323229557 | BR97: 0.6228421614 | BS97: 2.945447123 | BT97: 1.264643791 | BU97: 0.2438211469 | BV97: 5.029823336 | BW97: 4.266219733 | BX97: 1.116252172 | BY97: 1.465481784 | BZ97: Portland (Hillsboro)
K98: 97115 | L98: Dundee | M98: Yamhill | N98: 4C | P98: 97902 | Q98: Arock | R98: OR | S98: 42.915641 | T98: 117.497988 | U98: 0.695641 | V98: -2.367359 | W98: 0.748641 | X98: 0.725641 | Y98: -0.501359 | Z98: -2.784359 | AA98: -2.684359 | AB98: -2.617359 | AC98: -2.634356 | AD98: -1.334359 | AE98: -0.317359 | AF98: -1.984356 | AG98: 0.315641 | AH98: -3.234356 | AI98: -2.334359 | AJ98: -1.917359 | AK98: -0.604359 | AL98: -1.567359 | AM98: -1.134356 | AN98: -4.242012 | AO98: -0.502012 | AP98: -2.902009 | AQ98: -5.202009 | AR98: -6.752012 | AS98: -1.335012 | AT98: -5.119012 | AU98: -5.452009 | AV98: -4.902012 | AW98: -3.669012 | AX98: -5.852009 | AY98: -5.502012 | AZ98: -5.869012 | BA98: -6.385012 | BB98: -5.269012 | BC98: -0.319012 | BD98: -1.522012 | BE98: -5.785012 | BF98: -5.572012 | BG98: 4.298672145 | BH98: 2.420000968 | BI98: 2.997018449 | BJ98: 5.252375891 | BK98: 6.770600187 | BL98: 3.087865295 | BM98: 5.780144211 | BN98: 6.047724388 | BO98: 5.565029486 | BP98: 3.904121284 | BQ98: 5.860607995 | BR98: 5.848914838 | BS98: 5.877493607 | BT98: 7.157474204 | BU98: 5.762960992 | BV98: 1.943716592 | BW98: 1.637611165 | BX98: 5.993578069 | BY98: 5.686306469 | BZ98: Burns
K99: 97116 | L99: Forest Grove | M99: Washington | N99: 4C | P99: 97492 | Q99: Westfir | R99: OR | S99: 43.756923 | T99: 122.51777 | U99: =$S99-VLOOKUP(U$18,$A$19:$F$37,5,FALSE) -> 1.536923 | V99: -1.526077 | W99: 1.589923 | X99: 1.566923 | Y99: 0.339923 | Z99: -1.943077 | AA99: -1.843077 | AB99: -1.776077 | AC99: -1.793074 | AD99: -0.493077 | AE99: 0.523923 | AF99: -1.143074 | AG99: 1.156923 | AH99: -2.393074 | AI99: -1.493077 | AJ99: -1.076077 | AK99: =$S99-VLOOKUP(AK$18,$A$19:$F$37,5,FALSE) -> 0.236923 | AL99: -0.726077 | AM99: -0.293074 | AN99: =$T99-VLOOKUP(AN$18,$A$19:$F$37,6,FALSE) -> 0.77777 | AO99: 4.51777 | AP99: 2.117773 | AQ99: -0.182227 | AR99: -1.73223 | AS99: 3.68477 | AT99: -0.09923 | AU99: -0.432227 | AV99: 0.11777 | AW99: 1.35077 | AX99: -0.832227 | AY99: -0.48223 | AZ99: -0.84923 | BA99: -1.36523 | BB99: -0.24923 | BC99: 4.70077 | BD99: =$T99-VLOOKUP(BD$18,$A$19:$F$37,6,FALSE) -> 3.49777 | BE99: -0.76523 | BF99: -0.55223 | BG99: 1.722515161 | BH99: 4.768559194 | BI99: 2.648172507 | BJ99: 1.577483555 | BK99: 1.765267237 | BL99: 4.165702604 | BM99: 1.845746305 | BN99: 1.827914027 | BO99: 1.796937434 | BP99: 1.437951502 | BQ99: 0.9834109464 | BR99: 1.240630462 | BS99: 1.435152403 | BT99: 2.755114539 | BU99: 1.513735288 | BV99: 4.822362523 | BW99: 3.505784859 | BX99: 1.054876658 | BY99: 0.6251802479 | BZ99: Eugene
K100: 97117 | L100: Gales Creek Country Store | M100: Washington | N100: 4C | P100: 97325 | Q100: Aumsville | R100: OR | S100: 44.838001 | T100: 122.8593 | U100: 2.618001 | V100: -0.444999 | W100: 2.671001 | X100: 2.648001 | Y100: 1.421001 | Z100: -0.861999 | AA100: -0.761999 | AB100: -0.694999 | AC100: -0.711996 | AD100: 0.588001 | AE100: 1.605001 | AF100: -0.061996 | AG100: 2.238001 | AH100: -1.311996 | AI100: -0.411999 | AJ100: 0.005001 | AK100: 1.318001 | AL100: 0.355001 | AM100: 0.788004 | AN100: 1.1193 | AO100: 4.8593 | AP100: 2.459303 | AQ100: 0.159303 | AR100: -1.3907 | AS100: 4.0263 | AT100: 0.2423 | AU100: -0.090697 | AV100: 0.4593 | AW100: 1.6923 | AX100: -0.490697 | AY100: -0.1407 | AZ100: -0.5077 | BA100: -1.0237 | BB100: 0.0923 | BC100: 5.0423 | BD100: 3.8393 | BE100: -0.4237 | BF100: -0.2107 | BG100: 2.847237561 | BH100: 4.879633244 | BI100: 3.630759919 | BJ100: 2.652788484 | BK100: 1.988288292 | BL100: 4.117539795 | BM100: 0.7995947511 | BN100: 0.7008919716 | BO100: 0.8472867248 | BP100: 1.791542482 | BQ100: 1.678336008 | BR100: 0.1537530293 | BS100: 2.294865522 | BT100: 1.664119946 | BU100: 0.4222113997 | BV100: 5.04230248 | BW100: 4.059230361 | BX100: 0.5527634214 | BY100: 0.8156867009 | BZ100: Salem
K101: 97118 | L101: Garibaldi | M101: Tillamook | N101: 4C | P101: 97759 | Q101: Sisters | R101: OR | S101: 44.322689 | T101: 121.54897 | U101: 2.102689 | V101: -0.960311 | W101: 2.155689 | X101: 2.132689 | Y101: 0.905689 | Z101: -1.377311 | AA101: -1.277311 | AB101: -1.210311 | AC101: -1.227308 | AD101: 0.072689 | AE101: 1.089689 | AF101: -0.577308 | AG101: 1.722689 | AH101: -1.827308 | AI101: -0.927311 | AJ101: -0.510311 | AK101: 0.802689 | AL101: -0.160311 | AM101: 0.272692 | AN101: -0.19103 | AO101: 3.54897 | AP101: 1.148973 | AQ101: -1.151027 | AR101: -2.70103 | AS101: 2.71597 | AT101: -1.06803 | AU101: -1.401027 | AV101: -0.85103 | AW101: 0.38197 | AX101: -1.801027 | AY101: -1.45103 | AZ101: -1.81803 | BA101: -2.33403 | BB101: -1.21803 | BC101: 3.73197 | BD101: 2.52897 | BE101: -1.73403 | BF101: -1.52103 | BG101: 2.111348738 | BH101: 3.67659969 | BI101: 2.44277179 | BJ101: 2.423473855 | BK101: 2.848830572 | BL101: 3.045238682 | BM101: 1.664995937 | BN101: 1.851412804 | BO101: 1.493498238 | BP101: 0.3888248598 | BQ101: 2.105022653 | BR101: 1.561657001 | BS101: 2.50457391 | BT101: 2.964245362 | BU101: 1.530850343 | BV101: 3.766698474 | BW101: 2.653299623 | BX101: 1.741424606 | BY101: 1.545280941 | BZ101: Redmond
K102: 97119 | L102: Gaston | M102: Washington | N102: 4C | P102: 97117 | Q102: Gales Creek | R102: OR | S102: 45.622824 | T102: 123.25977 | U102: 3.402824 | V102: 0.339824 | W102: 3.455824 | X102: 3.432824 | Y102: 2.205824 | Z102: -0.077176 | AA102: 0.022824 | AB102: 0.089824 | AC102: 0.072827 | AD102: 1.372824 | AE102: 2.389824 | AF102: 0.722827 | AG102: 3.022824 | AH102: -0.527173 | AI102: 0.372824 | AJ102: 0.789824 | AK102: 2.102824 | AL102: 1.139824 | AM102: 1.572827 | AN102: 1.51977 | AO102: 5.25977 | AP102: 2.859773 | AQ102: 0.559773 | AR102: -0.99023 | AS102: 4.42677 | AT102: 0.64277 | AU102: 0.309773 | AV102: 0.85977 | AW102: 2.09277 | AX102: -0.090227 | AY102: 0.25977 | AZ102: -0.10723 | BA102: -0.62323 | BB102: 0.49277 | BC102: 5.44277 | BD102: 4.23977 | BE102: -0.02323 | BF102: 0.18977 | BG102: 3.726783067 | BH102: 5.270736268 | BI102: 4.485646122 | BJ102: 3.478164232 | BK102: 2.41789474 | BL102: 4.427442689 | BM102: 0.6431750989 | BN102: 0.322533196 | BO102: 0.8628489003 | BP102: 2.50286476 | BQ102: 2.391526638 | BR102: 0.768088097 | BS102: 3.024725311 | BT102: =SQRT(AH102^2+BA102^2) -> 0.8162885549 | BU102: 0.6179158582 | BV102: 5.499778834 | BW102: 4.732601655 | BX102: 1.140060693 | BY102: 1.584234018 | BZ102: Portland (Hillsboro)
K103: 97121 | L103: Hammond | M103: Clatsop | N103: 4C | P103: 97271 | Q103: Portland | R103: OR | S103: 45.580557 | T103: 122.374776 | U103: 3.360557 | V103: 0.297557 | W103: 3.413557 | X103: 3.390557 | Y103: 2.163557 | Z103: -0.119443 | AA103: -0.019443 | AB103: 0.047557 | AC103: 0.03056 | AD103: 1.330557 | AE103: 2.347557 | AF103: 0.68056 | AG103: 2.980557 | AH103: -0.56944 | AI103: 0.330557 | AJ103: 0.747557 | AK103: 2.060557 | AL103: 1.097557 | AM103: 1.53056 | AN103: 0.634776 | AO103: 4.374776 | AP103: 1.974779 | AQ103: -0.325221 | AR103: -1.875224 | AS103: 3.541776 | AT103: -0.242224 | AU103: -0.575221 | AV103: -0.025224 | AW103: 1.207776 | AX103: -0.975221 | AY103: -0.625224 | AZ103: -0.992224 | BA103: -1.508224 | BB103: -0.392224 | BC103: 4.557776 | BD103: 3.354776 | BE103: -0.908224 | BF103: -0.695224 | BG103: 3.419983029 | BH103: 4.384883718 | BI103: 3.943618071 | BJ103: 3.406118828 | BK103: 2.863117871 | BL103: 3.543789478 | BM103: 0.243003079 | BN103: 0.5771835645 | BO103: 0.03962529213 | BP103: 1.796971006 | BQ103: 2.542062129 | BR103: 0.9241574345 | BS103: 3.141373664 | BT103: 1.612141913 | BU103: 0.512940149 | BV103: 4.618675517 | BW103: 3.937056916 | BX103: 1.424605981 | BY103: 1.681056312 | BZ103: Portland (Troutdale)
K104: 97122 | L104: Hebo | M104: Tillamook | N104: 4C | P104: 97037 | Q104: Maupin | R104: OR | S104: 45.093643 | T104: 121.10814 | U104: 2.873643 | V104: -0.189357 | W104: 2.926643 | X104: 2.903643 | Y104: 1.676643 | Z104: -0.606357 | AA104: -0.506357 | AB104: -0.439357 | AC104: -0.456354 | AD104: 0.843643 | AE104: 1.860643 | AF104: 0.193646 | AG104: 2.493643 | AH104: -1.056354 | AI104: -0.156357 | AJ104: 0.260643 | AK104: 1.573643 | AL104: 0.610643 | AM104: 1.043646 | AN104: -0.63186 | AO104: 3.10814 | AP104: 0.708143 | AQ104: -1.591857 | AR104: -3.14186 | AS104: 2.27514 | AT104: -1.50886 | AU104: -1.841857 | AV104: -1.29186 | AW104: -0.05886 | AX104: -2.241857 | AY104: -1.89186 | AZ104: -2.25886 | BA104: -2.77486 | BB104: -1.65886 | BC104: 3.29114 | BD104: 2.08814 | BE104: -2.17486 | BF104: -1.96186 | BG104: 2.94229012 | BH104: 3.113902749 | BI104: 3.011097102 | BJ104: 3.311366996 | BK104: 3.561237988 | BL104: 2.354555336 | BM104: 1.5915577 | BN104: 1.893534204 | BO104: 1.370095337 | BP104: 0.8456938045 | BQ104: 2.913402681 | BR104: 1.901744734 | BS104: 3.364625375 | BT104: 2.969129804 | BU104: 1.666212475 | BV104: 3.301444725 | BW104: 2.614704754 | BX104: 2.258960135 | BY104: 2.222181728 | BZ104: Redmond
K105: 97123 | L105: Hillsboro | M105: Washington | N105: 4C | P105: 97001 | Q105: Antelope | R105: OR | S105: 44.904051 | T105: 120.67244 | U105: 2.684051 | V105: -0.378949 | W105: 2.737051 | X105: 2.714051 | Y105: 1.487051 | Z105: -0.795949 | AA105: -0.695949 | AB105: -0.628949 | AC105: -0.645946 | AD105: 0.654051 | AE105: 1.671051 | AF105: 0.004054 | AG105: 2.304051 | AH105: -1.245946 | AI105: -0.345949 | AJ105: 0.071051 | AK105: 1.384051 | AL105: 0.421051 | AM105: 0.854054 | AN105: -1.06756 | AO105: 2.67244 | AP105: 0.272443 | AQ105: -2.027557 | AR105: -3.57756 | AS105: 1.83944 | AT105: -1.94456 | AU105: -2.277557 | AV105: -1.72756 | AW105: -0.49456 | AX105: -2.677557 | AY105: -2.32756 | AZ105: -2.69456 | BA105: -3.21056 | BB105: -2.09456 | BC105: 2.85544 | BD105: 1.65244 | BE105: -2.61056 | BF105: -2.39756 | BG105: 2.888566102 | BH105: 2.699173558 | BI105: 2.750576915 | BJ105: 3.387781017 | BK105: 3.874307194 | BL105: 2.004264036 | BM105: 2.06534709 | BN105: 2.362803998 | BO105: 1.844372465 | BP105: 0.8199831121 | BQ105: 3.156219722 | BR105: 2.327563531 | BS105: 3.545321509 | BT105: 3.443846243 | BU105: 2.122937188 | BV105: 2.856323833 | BW105: 2.155494172 | BX105: 2.644297158 | BY105: 2.545133039 | BZ105: Redmond
K106: 97124 | L106: Hillsboro | M106: Washington | N106: 4C | P106: 97523 | Q106: Cave Junction | R106: OR | S106: 42.139958 | T106: 123.60245 | U106: -0.080042 | V106: -3.143042 | W106: -0.027042 | X106: -0.050042 | Y106: -1.277042 | Z106: -3.560042 | AA106: -3.460042 | AB106: -3.393042 | AC106: -3.410039 | AD106: -2.110042 | AE106: -1.093042 | AF106: -2.760039 | AG106: -0.460042 | AH106: -4.010039 | AI106: -3.110042 | AJ106: -2.693042 | AK106: -1.380042 | AL106: -2.343042 | AM106: -1.910039 | AN106: 1.86245 | AO106: 5.60245 | AP106: 3.202453 | AQ106: 0.902453 | AR106: -0.64755 | AS106: 4.76945 | AT106: 0.98545 | AU106: 0.652453 | AV106: 1.20245 | AW106: 2.43545 | AX106: 0.252453 | AY106: 0.60245 | AZ106: 0.23545 | BA106: -0.28055 | BB106: 0.83545 | BC106: 5.78545 | BD106: 4.58245 | BE106: 0.31945 | BF106: 0.53245 | BG106: 1.864169178 | BH106: 6.423874144 | BI106: 3.202567171 | BJ106: 0.9038393768 | BK106: 1.431837027 | BL106: 5.951600822 | BM106: 3.59763844 | BN106: 3.455203168 | BO106: 3.615833512 | BP106: 3.222373961 | BQ106: 1.121816977 | BR106: 2.825024121 | BS106: 0.5167933284 | BT106: 4.019840928 | BU106: 3.220300909 | BV106: 6.381528572 | BW106: 4.785745911 | BX106: 2.364718612 | BY106: 1.98286459 | BZ106: Sexton
K107: 97125 | L107: Manning | M107: Washington | N107: 4C | P107: 97490 | Q107: Walton | R107: OR | S107: 44.004968 | T107: 123.63206 | U107: 1.784968 | V107: -1.278032 | W107: 1.837968 | X107: 1.814968 | Y107: 0.587968 | Z107: -1.695032 | AA107: -1.595032 | AB107: -1.528032 | AC107: -1.545029 | AD107: -0.245032 | AE107: 0.771968 | AF107: -0.895029 | AG107: 1.404968 | AH107: -2.145029 | AI107: -1.245032 | AJ107: -0.828032 | AK107: 0.484968 | AL107: -0.478032 | AM107: -0.045029 | AN107: 1.89206 | AO107: 5.63206 | AP107: 3.232063 | AQ107: 0.932063 | AR107: -0.61794 | AS107: 4.79906 | AT107: 1.01506 | AU107: 0.682063 | AV107: 1.23206 | AW107: 2.46506 | AX107: 0.282063 | AY107: 0.63206 | AZ107: 0.26506 | BA107: -0.25094 | BB107: 0.86506 | BC107: 5.81506 | BD107: 4.61206 | BE107: 0.34906 | BF107: 0.56206 | BG107: 2.601153937 | BH107: 5.775245937 | BI107: 3.718112102 | BJ107: =SQRT(X107^2+AQ107^2) -> 2.040306417 | BK107: 0.8529690572 | BL107: 5.089608076 | BM107: 1.890627908 | BN107: 1.673347462 | BO107: 1.976129159 | BP107: 2.477208406 | BQ107: 0.8218844986 | BR107: 1.095708335 | BS107: 1.429752386 | BT107: 2.159657448 | BU107: 1.516058536 | BV107: 5.873717715 | BW107: 4.637487618 | BX107: 0.5919100241 | BY107: 0.5638608467 | BZ107: Eugene
K108: 97127 | L108: Lafayette | M108: Yamhill | N108: 4C | P108: 97371 | Q108: Rickreall | R108: OR | S108: 44.964115 | T108: 123.20681 | U108: 2.744115 | V108: -0.318885 | W108: 2.797115 | X108: 2.774115 | Y108: 1.547115 | Z108: -0.735885 | AA108: -0.635885 | AB108: -0.568885 | AC108: -0.585882 | AD108: 0.714115 | AE108: 1.731115 | AF108: 0.064118 | AG108: 2.364115 | AH108: -1.185882 | AI108: -0.285885 | AJ108: 0.131115 | AK108: 1.444115 | AL108: 0.481115 | AM108: 0.914118 | AN108: 1.46681 | AO108: 5.20681 | AP108: 2.806813 | AQ108: 0.506813 | AR108: -1.04319 | AS108: 4.37381 | AT108: 0.58981 | AU108: 0.256813 | AV108: 0.80681 | AW108: 2.03981 | AX108: -0.143187 | AY108: 0.20681 | AZ108: -0.16019 | BA108: -0.67619 | BB108: 0.43981 | BC108: 5.38981 | BD108: 4.18681 | BE108: -0.07619 | BF108: 0.13681 | BG108: =SQRT(U108^2+AN108^2) -> 3.111542818 | BH108: 5.21656573 | BI108: 3.962581424 | BJ108: 2.820030753 | BK108: 1.865960932 | BL108: 4.435283604 | BM108: 0.867309385 | BN108: 0.6241658916 | BO108: 0.9970958299 | BP108: 2.161199914 | BQ108: 1.737026672 | BR108: 0.2165213477 | BS108: 2.36953594 | BT108: 1.365118689 | BU108: 0.5245598815 | BV108: 5.391404546 | BW108: 4.428865104 | BX108: 0.487110418 | BY108: 0.9242990285 | BZ108: Salem
K109: 97128 | L109: Mcminnville | M109: Yamhill | N109: 4C | P109: 97631 | Q109: Monmouth | R109: OR | S109: 44.855049 | T109: 123.237656 | U109: 2.635049 | V109: -0.427951 | W109: 2.688049 | X109: 2.665049 | Y109: 1.438049 | Z109: -0.844951 | AA109: -0.744951 | AB109: -0.677951 | AC109: -0.694948 | AD109: 0.605049 | AE109: 1.622049 | AF109: -0.044948 | AG109: 2.255049 | AH109: -1.294948 | AI109: -0.394951 | AJ109: 0.022049 | AK109: 1.335049 | AL109: 0.372049 | AM109: 0.805052 | AN109: 1.497656 | AO109: 5.237656 | AP109: 2.837659 | AQ109: 0.537659 | AR109: -1.012344 | AS109: 4.404656 | AT109: 0.620656 | AU109: 0.287659 | AV109: 0.837656 | AW109: 2.070656 | AX109: -0.112341 | AY109: 0.237656 | AZ109: -0.129344 | BA109: -0.645344 | BB109: 0.470656 | BC109: 5.420656 | BD109: 4.217656 | BE109: -0.045344 | BF109: 0.167656 | BG109: 3.030916813 | BH109: 5.255110126 | BI109: 3.908697485 | BJ109: 2.718742977 | BK109: 1.758643028 | BL109: 4.484967856 | BM109: 0.9696215049 | BN109: 0.7364545191 | BO109: 1.088402636 | BP109: 2.157243742 | BQ109: 1.625934642 | BR109: 0.2418691734 | BS109: 2.258755379 | BT109: 1.446844567 | BU109: 0.6144130229 | BV109: 5.420700843 | BW109: 4.423909805 | BX109: 0.3748019967 | BY109: 0.8223243016 | BZ109: Salem
K110: 97130 | L110: Manzanita | M110: Tillamook | N110: 4C | P110: 97011 | Q110: Brightwood | R110: OR | S110: 45.371086 | T110: 122.01227 | U110: 3.151086 | V110: 0.088086 | W110: 3.204086 | X110: 3.181086 | Y110: 1.954086 | Z110: -0.328914 | AA110: -0.228914 | AB110: -0.161914 | AC110: -0.178911 | AD110: 1.121086 | AE110: 2.138086 | AF110: 0.471089 | AG110: 2.771086 | AH110: -0.778911 | AI110: 0.121086 | AJ110: 0.538086 | AK110: 1.851086 | AL110: 0.888086 | AM110: 1.321089 | AN110: 0.27227 | AO110: 4.01227 | AP110: 1.612273 | AQ110: -0.687727 | AR110: -2.23773 | AS110: 3.17927 | AT110: -0.60473 | AU110: -0.937727 | AV110: -0.38773 | AW110: 0.84527 | AX110: -1.337727 | AY110: -0.98773 | AZ110: -1.35473 | BA110: -1.87073 | BB110: -0.75473 | BC110: 4.19527 | BD110: 2.99227 | BE110: -1.27073 | BF110: -1.05773 | BG110: 3.162826889 | BH110: 4.01323681 | BI110: 3.586863717 | BJ110: 3.254577786 | BK110: 2.970839553 | BL110: 3.196238751 | BM110: 0.6466065205 | BN110: 0.9516028951 | BO110: 0.4270172114 | BP110: 1.404035324 | BQ110: 2.522087483 | BR110: 1.094319605 | BS110: 3.084511467 | BT110: 2.026408912 | BU110: 0.7643815751 | BV110: 4.229636736 | BW110: 3.518550715 | BX110: 1.550306897 | BY110: 1.69235602 | BZ110: Portland (Troutdale)
K111: 97131 | L111: Nehalem | M111: Tillamook | N111: 4C | P111: 97202 | Q111: Portland | R111: OR | S111: 45.481791 | T111: 122.64055 | U111: 3.261791 | V111: 0.198791 | W111: 3.314791 | X111: 3.291791 | Y111: 2.064791 | Z111: -0.218209 | AA111: -0.118209 | AB111: -0.051209 | AC111: -0.068206 | AD111: 1.231791 | AE111: 2.248791 | AF111: 0.581794 | AG111: 2.881791 | AH111: -0.668206 | AI111: 0.231791 | AJ111: 0.648791 | AK111: 1.961791 | AL111: 0.998791 | AM111: 1.431794 | AN111: 0.90055 | AO111: 4.64055 | AP111: 2.240553 | AQ111: -0.059447 | AR111: -1.60945 | AS111: 3.80755 | AT111: 0.02355 | AU111: -0.309447 | AV111: 0.24055 | AW111: 1.47355 | AX111: -0.709447 | AY111: -0.35945 | AZ111: -0.72645 | BA111: -1.24245 | BB111: -0.12645 | BC111: 4.82355 | BD111: 3.62055 | BE111: -0.64245 | BF111: -0.42945 | BG111: 3.383824882 | BH111: 4.644805934 | BI111: 4.000989518 | BJ111: 3.292327738 | BK111: 2.617955534 | BL111: 3.813797605 | BM111: 0.1205320297 | BN111: 0.3136555555 | BO111: 0.2500327197 | BP111: 1.920588105 | BQ111: 2.358044955 | BR111: 0.6838775921 | BS111: 2.971943635 | BT111: 1.410737843 | BU111: 0.2640391452 | BV111: 4.866987196 | BW111: 4.117888565 | BX111: 1.187571246 | BY111: 1.49481148 | BZ111: Portland (PDX)
K112: 97132 | L112: Newberg | M112: Yamhill | N112: 4C | P112: 97222 | Q112: Portland | R112: OR | S112: 45.442634 | T112: 122.61833 | U112: 3.222634 | V112: 0.159634 | W112: 3.275634 | X112: 3.252634 | Y112: 2.025634 | Z112: -0.257366 | AA112: -0.157366 | AB112: -0.090366 | AC112: -0.107363 | AD112: 1.192634 | AE112: 2.209634 | AF112: 0.542637 | AG112: 2.842634 | AH112: -0.707363 | AI112: 0.192634 | AJ112: 0.609634 | AK112: 1.922634 | AL112: 0.959634 | AM112: 1.392637 | AN112: 0.87833 | AO112: 4.61833 | AP112: 2.218333 | AQ112: -0.081667 | AR112: -1.63167 | AS112: 3.78533 | AT112: 0.00133 | AU112: -0.331667 | AV112: 0.21833 | AW112: 1.45133 | AX112: -0.731667 | AY112: -0.38167 | AZ112: -0.74867 | BA112: -1.26467 | BB112: -0.14867 | BC112: 4.80133 | BD112: 3.59833 | BE112: -0.66467 | BF112: -0.45167 | BG112: 3.340184649 | BH112: 4.621088076 | BI112: 3.956106596 | BJ112: 3.253659084 | BK112: 2.601065184 | BL112: 3.794069117 | BM112: 0.1573716202 | BN112: 0.3437572004 | BO112: 0.2432998205 | BP112: 1.878492648 | BQ112: 2.327620891 | BR112: 0.6634206077 | BS112: 2.939570517 | BT112: 1.449052319 | BU112: 0.2433323383 | BV112: 4.839878447 | BW112: 4.079767185 | BX112: 1.167340406 | BY112: 1.46405041 | BZ112: Portland (PDX)
K113: 97133 | L113: North Plains | M113: Washington | N113: 4C | P113: 97383 | Q113: Stayton | R113: OR | S113: 44.798379 | T113: 122.7601 | U113: 2.578379 | V113: -0.484621 | W113: 2.631379 | X113: 2.608379 | Y113: 1.381379 | Z113: -0.901621 | AA113: -0.801621 | AB113: -0.734621 | AC113: -0.751618 | AD113: 0.548379 | AE113: 1.565379 | AF113: -0.101618 | AG113: 2.198379 | AH113: -1.351618 | AI113: -0.451621 | AJ113: -0.034621 | AK113: 1.278379 | AL113: 0.315379 | AM113: 0.748382 | AN113: 1.0201 | AO113: 4.7601 | AP113: 2.360103 | AQ113: 0.060103 | AR113: -1.4899 | AS113: 3.9271 | AT113: 0.1431 | AU113: -0.189897 | AV113: 0.3601 | AW113: 1.5931 | AX113: -0.589897 | AY113: -0.2399 | AZ113: -0.6069 | BA113: -1.1229 | BB113: -0.0069 | BC113: 4.9431 | BD113: 3.7401 | BE113: -0.5229 | BF113: -0.3099 | BG113: 2.77284011 | BH113: 4.784705793 | BI113: 3.534719453 | BJ113: 2.609071363 | BK113: 2.031750465 | BL113: 4.029272247 | BM113: 0.8142934592 | BN113: 0.7587680042 | BO113: 0.8334276381 | BP113: 1.684840389 | BQ113: 1.67283887 | BR113: 0.2605345043 | BS113: 2.280613478 | BT113: 1.757206769 | BU113: 0.4516737071 | BV113: 4.94322124 | BW113: 3.952543596 | BX113: 0.610645825 | BY113: 0.8100084123 | BZ113: Salem
K114: 97134 | L114: Oceanside | M114: Tillamook | N114: 4C | P114: 97258 | Q114: Portland | R114: OR | S114: 45.580557 | T114: 122.374776 | U114: 3.360557 | V114: 0.297557 | W114: 3.413557 | X114: 3.390557 | Y114: 2.163557 | Z114: -0.119443 | AA114: -0.019443 | AB114: 0.047557 | AC114: 0.03056 | AD114: 1.330557 | AE114: 2.347557 | AF114: 0.68056 | AG114: 2.980557 | AH114: -0.56944 | AI114: 0.330557 | AJ114: 0.747557 | AK114: 2.060557 | AL114: 1.097557 | AM114: 1.53056 | AN114: 0.634776 | AO114: 4.374776 | AP114: 1.974779 | AQ114: -0.325221 | AR114: -1.875224 | AS114: 3.541776 | AT114: -0.242224 | AU114: -0.575221 | AV114: -0.025224 | AW114: 1.207776 | AX114: -0.975221 | AY114: -0.625224 | AZ114: -0.992224 | BA114: -1.508224 | BB114: -0.392224 | BC114: 4.557776 | BD114: 3.354776 | BE114: -0.908224 | BF114: -0.695224 | BG114: 3.419983029 | BH114: 4.384883718 | BI114: 3.943618071 | BJ114: 3.406118828 | BK114: 2.863117871 | BL114: 3.543789478 | BM114: 0.243003079 | BN114: 0.5771835645 | BO114: 0.03962529213 | BP114: 1.796971006 | BQ114: 2.542062129 | BR114: 0.9241574345 | BS114: 3.141373664 | BT114: 1.612141913 | BU114: 0.512940149 | BV114: 4.618675517 | BW114: 3.937056916 | BX114: 1.424605981 | BY114: 1.681056312 | BZ114: Portland (Troutdale)
K115: 97135 | L115: Pacific City | M115: Tillamook | N115: 4C | P115: 97834 | Q115: Halfway | R115: OR | S115: 44.919974 | T115: 117.13838 | U115: =$S115-VLOOKUP(U$18,$A$19:$F$37,5,FALSE) -> 2.699974 | V115: -0.363026 | W115: 2.752974 | X115: 2.729974 | Y115: 1.502974 | Z115: -0.780026 | AA115: -0.680026 | AB115: -0.613026 | AC115: -0.630023 | AD115: 0.669974 | AE115: 1.686974 | AF115: 0.019977 | AG115: 2.319974 | AH115: -1.230023 | AI115: -0.330026 | AJ115: 0.086974 | AK115: =$S115-VLOOKUP(AK$18,$A$19:$F$37,5,FALSE) -> 1.399974 | AL115: 0.436974 | AM115: 0.869977 | AN115: =$T115-VLOOKUP(AN$18,$A$19:$F$37,6,FALSE) -> -4.60162 | AO115: -0.86162 | AP115: -3.261617 | AQ115: -5.561617 | AR115: -7.11162 | AS115: -1.69462 | AT115: -5.47862 | AU115: -5.811617 | AV115: -5.26162 | AW115: -4.02862 | AX115: -6.211617 | AY115: -5.86162 | AZ115: -6.22862 | BA115: -6.74462 | BB115: -5.62862 | BC115: -0.67862 | BD115: =$T115-VLOOKUP(BD$18,$A$19:$F$37,6,FALSE) -> -1.88162 | BE115: -6.14462 | BF115: -5.93162 | BG115: 5.33523816 | BH115: 0.9349742783 | BI115: 4.268139091 | BJ115: 6.195509801 | BK115: 7.268704827 | BL115: 1.865523386 | BM115: 5.520662321 | BN115: 5.843859429 | BO115: 5.299205035 | BP115: 4.083949591 | BQ115: 6.436619224 | BR115: 5.861654042 | BS115: 6.646652275 | BT115: 6.855862858 | BU115: 5.638286997 | BV115: 0.6841707251 | BW115: 2.345297641 | BX115: 6.160138085 | BY115: 5.995079299 | BZ115: Baker
K116: 97136 | L116: Rockaway Beach | M116: Tillamook | N116: 4C | P116: 97639 | Q116: Sprague River | R116: OR | S116: 42.440695 | T116: 121.43464 | U116: 0.220695 | V116: -2.842305 | W116: 0.273695 | X116: 0.250695 | Y116: -0.976305 | Z116: -3.259305 | AA116: -3.159305 | AB116: -3.092305 | AC116: -3.109302 | AD116: -1.809305 | AE116: -0.792305 | AF116: -2.459302 | AG116: -0.159305 | AH116: -3.709302 | AI116: -2.809305 | AJ116: -2.392305 | AK116: -1.079305 | AL116: -2.042305 | AM116: -1.609302 | AN116: -0.30536 | AO116: 3.43464 | AP116: 1.034643 | AQ116: -1.265357 | AR116: -2.81536 | AS116: 2.60164 | AT116: -1.18236 | AU116: -1.515357 | AV116: -0.96536 | AW116: 0.26764 | AX116: -1.915357 | AY116: -1.56536 | AZ116: -1.93236 | BA116: -2.44836 | BB116: -1.33236 | BC116: 3.61764 | BD116: 2.41464 | BE116: -1.84836 | BF116: -1.63536 | BG116: 0.3767638685 | BH116: 4.458189054 | BI116: 1.070231326 | BJ116: 1.289952061 | BK116: 2.979836134 | BL116: 4.170323701 | BM116: 3.3733045 | BN116: 3.443640087 | BO116: 3.2557148 | BP116: 1.828993098 | BQ116: 2.072761359 | BR116: 2.915221819 | BS116: 1.938915484 | BT116: 4.444478374 | BU116: 3.109240704 | BV116: 4.337100689 | BW116: 2.64487913 | BX116: 2.754531612 | BY116: 2.294396491 | BZ116: Klamath Falls
K117: 97137 | L117: Saint Paul | M117: Marion | N117: 4C | P117: 97839 | Q117: Lexington | R117: OR | S117: 45.512792 | T117: 119.64344 | U117: 3.292792 | V117: 0.229792 | W117: 3.345792 | X117: 3.322792 | Y117: 2.095792 | Z117: -0.187208 | AA117: -0.087208 | AB117: -0.020208 | AC117: -0.037205 | AD117: 1.262792 | AE117: 2.279792 | AF117: 0.612795 | AG117: 2.912792 | AH117: -0.637205 | AI117: 0.262792 | AJ117: 0.679792 | AK117: 1.992792 | AL117: 1.029792 | AM117: 1.462795 | AN117: -2.09656 | AO117: 1.64344 | AP117: -0.756557 | AQ117: -3.056557 | AR117: -4.60656 | AS117: 0.81044 | AT117: -2.97356 | AU117: -3.306557 | AV117: -2.75656 | AW117: -1.52356 | AX117: -3.706557 | AY117: -3.35656 | AZ117: -3.72356 | BA117: -4.23956 | BB117: -3.12356 | BC117: 1.82644 | BD117: 0.62344 | BE117: -3.63956 | BF117: -3.42656 | BG117: 3.903593599 | BH117: 1.65942743 | BI117: 3.43026276 | BJ117: 4.514807567 | BK117: 5.060902997 | BL117: 0.8317811184 | BM117: 2.974838535 | BN117: 3.30661875 | BO117: 2.756811065 | BP117: 1.97885793 | BQ117: 4.351553327 | BR117: 3.412039382 | BS117: 4.727500006 | BT117: 4.287178467 | BU117: 3.134595143 | BV117: 1.948845873 | BW117: 2.088036731 | BX117: 3.782442142 | BY117: 3.725732498 | BZ117: Pendleton
K118: 97138 | L118: Seaside | M118: Clatsop | N118: 4C | P118: 97444 | Q118: Gold Beach | R118: OR | S118: 42.451203 | T118: 124.39036 | U118: 0.231203 | V118: -2.831797 | W118: 0.284203 | X118: 0.261203 | Y118: -0.965797 | Z118: -3.248797 | AA118: -3.148797 | AB118: -3.081797 | AC118: -3.098794 | AD118: -1.798797 | AE118: -0.781797 | AF118: -2.448794 | AG118: -0.148797 | AH118: -3.698794 | AI118: -2.798797 | AJ118: -2.381797 | AK118: -1.068797 | AL118: -2.031797 | AM118: -1.598794 | AN118: 2.65036 | AO118: 6.39036 | AP118: 3.990363 | AQ118: 1.690363 | AR118: 0.14036 | AS118: 5.55736 | AT118: 1.77336 | AU118: 1.440363 | AV118: 1.99036 | AW118: 3.22336 | AX118: 1.040363 | AY118: 1.39036 | AZ118: 1.02336 | BA118: 0.50736 | BB118: 1.62336 | BC118: 6.57336 | BD118: 5.37036 | BE118: 1.10736 | BF118: 1.32036 | BG118: 2.660425334 | BH118: 6.989690635 | BI118: 4.000470999 | BJ118: 1.710425116 | BK118: 0.9759430182 | BL118: 6.437307831 | BM118: 3.6138246 | BN118: 3.401781639 | BO118: 3.682941377 | BP118: 3.691303338 | BQ118: 1.301369172 | BR118: 2.815971055 | BS118: 1.034120997 | BT118: 3.733428883 | BU118: 3.235515776 | BV118: 6.991567681 | BW118: 5.475682018 | BX118: 2.31396742 | BY118: 2.073521831 | BZ118: North Bend
K119: 97140 | L119: Sherwood | M119: Washington | N119: 4C | P119: 97722 | Q119: Diamond | R119: OR | S119: 42.965788 | T119: 118.68196 | U119: 0.745788 | V119: -2.317212 | W119: 0.798788 | X119: 0.775788 | Y119: -0.451212 | Z119: -2.734212 | AA119: -2.634212 | AB119: -2.567212 | AC119: -2.584209 | AD119: -1.284212 | AE119: -0.267212 | AF119: -1.934209 | AG119: 0.365788 | AH119: -3.184209 | AI119: -2.284212 | AJ119: -1.867212 | AK119: -0.554212 | AL119: -1.517212 | AM119: -1.084209 | AN119: -3.05804 | AO119: 0.68196 | AP119: -1.718037 | AQ119: -4.018037 | AR119: -5.56804 | AS119: -0.15104 | AT119: -3.93504 | AU119: -4.268037 | AV119: -3.71804 | AW119: -2.48504 | AX119: -4.668037 | AY119: -4.31804 | AZ119: -4.68504 | BA119: -5.20104 | BB119: -4.08504 | BC119: 0.86496 | BD119: -0.33804 | BE119: -4.60104 | BF119: -4.38804 | BG119: 3.147667133 | BH119: 2.415479434 | BI119: 1.8946539 | BJ119: 4.092244904 | BK119: 5.586292304 | BL119: 2.738380606 | BM119: 4.735357712 | BN119: 4.980634225 | BO119: 4.527908744 | BP119: 2.797252985 | BQ119: 4.675678741 | BR119: 4.731451563 | BS119: 4.69929789 | BT119: 6.098360766 | BU119: 4.6802966 | BV119: 2.057823232 | BW119: 0.6491702262 | BX119: 4.844739553 | BY119: 4.520000464 | BZ119: Burns
K120: 97141 | L120: Tillamook | M120: Tillamook | N120: 4C | P120: 97211 | Q120: Portland | R120: OR | S120: 45.56544 | T120: 122.64635 | U120: 3.34544 | V120: 0.28244 | W120: 3.39844 | X120: 3.37544 | Y120: 2.14844 | Z120: -0.13456 | AA120: -0.03456 | AB120: 0.03244 | AC120: 0.015443 | AD120: 1.31544 | AE120: 2.33244 | AF120: 0.665443 | AG120: 2.96544 | AH120: -0.584557 | AI120: 0.31544 | AJ120: 0.73244 | AK120: 2.04544 | AL120: 1.08244 | AM120: 1.515443 | AN120: 0.90635 | AO120: 4.64635 | AP120: 2.246353 | AQ120: -0.053647 | AR120: -1.60365 | AS120: 3.81335 | AT120: 0.02935 | AU120: -0.303647 | AV120: 0.24635 | AW120: 1.47935 | AX120: -0.703647 | AY120: -0.35365 | AZ120: -0.72065 | BA120: -1.23665 | BB120: -0.12065 | BC120: 4.82935 | BD120: 3.62635 | BE120: -0.63665 | BF120: -0.42365 | BG120: 3.466040842 | BH120: 4.654926495 | BI120: 4.073757017 | BJ120: 3.375866288 | BK120: 2.68094904 | BL120: 3.815723341 | BM120: 0.04534110828 | BN120: 0.3053749404 | BO120: 0.2468335649 | BP120: 1.979610774 | BQ120: 2.436266704 | BR120: 0.7535799286 | BS120: 3.051748813 | BT120: 1.367848716 | BU120: 0.3377259482 | BV120: 4.884576724 | BW120: 4.163440779 | BX120: 1.255786437 | BY120: 1.573545935 | BZ120: Portland (PDX)
K121: 97143 | L121: Netarts | M121: Tillamook | N121: 4C | P121: 97280 | Q121: Portland | R121: OR | S121: 45.580557 | T121: 122.374776 | U121: 3.360557 | V121: 0.297557 | W121: 3.413557 | X121: 3.390557 | Y121: 2.163557 | Z121: -0.119443 | AA121: -0.019443 | AB121: 0.047557 | AC121: 0.03056 | AD121: 1.330557 | AE121: 2.347557 | AF121: 0.68056 | AG121: 2.980557 | AH121: -0.56944 | AI121: 0.330557 | AJ121: 0.747557 | AK121: 2.060557 | AL121: 1.097557 | AM121: 1.53056 | AN121: 0.634776 | AO121: 4.374776 | AP121: 1.974779 | AQ121: -0.325221 | AR121: -1.875224 | AS121: 3.541776 | AT121: -0.242224 | AU121: -0.575221 | AV121: -0.025224 | AW121: 1.207776 | AX121: -0.975221 | AY121: -0.625224 | AZ121: -0.992224 | BA121: -1.508224 | BB121: -0.392224 | BC121: 4.557776 | BD121: 3.354776 | BE121: -0.908224 | BF121: -0.695224 | BG121: 3.419983029 | BH121: 4.384883718 | BI121: 3.943618071 | BJ121: 3.406118828 | BK121: 2.863117871 | BL121: 3.543789478 | BM121: 0.243003079 | BN121: 0.5771835645 | BO121: 0.03962529213 | BP121: 1.796971006 | BQ121: 2.542062129 | BR121: 0.9241574345 | BS121: 3.141373664 | BT121: 1.612141913 | BU121: 0.512940149 | BV121: 4.618675517 | BW121: 3.937056916 | BX121: 1.424605981 | BY121: 1.681056312 | BZ121: Portland (Troutdale)
K122: 97144 | L122: Timber | M122: Washington | N122: 4C | P122: 97357 | Q122: Logsden | R122: OR | S122: 44.745464 | T122: 123.81722 | U122: 2.525464 | V122: -0.537536 | W122: 2.578464 | X122: 2.555464 | Y122: 1.328464 | Z122: -0.954536 | AA122: -0.854536 | AB122: -0.787536 | AC122: -0.804533 | AD122: 0.495464 | AE122: 1.512464 | AF122: -0.154533 | AG122: 2.145464 | AH122: -1.404533 | AI122: -0.504536 | AJ122: -0.087536 | AK122: 1.225464 | AL122: 0.262464 | AM122: 0.695467 | AN122: 2.07722 | AO122: 5.81722 | AP122: 3.417223 | AQ122: 1.117223 | AR122: -0.43278 | AS122: 4.98422 | AT122: 1.20022 | AU122: 0.867223 | AV122: 1.41722 | AW122: 2.65022 | AX122: 0.467223 | AY122: 0.81722 | AZ122: 0.45022 | BA122: -0.06578 | BB122: 1.05022 | BC122: 6.00022 | BD122: 4.79722 | BE122: 0.53422 | BF122: 0.74722 | BG122: 3.269986444 | BH122: 5.842002523 | BI122: 4.280874867 | BJ122: 2.789011202 | BK122: 1.397181136 | BL122: 5.074799305 | BM122: 1.473349865 | BN122: 1.17144726 | BO122: 1.629658208 | BP122: 2.69613624 | BQ122: 1.582986002 | BR122: 0.8317024567 | BS122: 2.192193838 | BT122: 1.406072529 | BU122: 1.165126012 | BV122: 6.000858489 | BW122: 4.95127072 | BX122: 0.5952128692 | BY122: 1.020789928 | BZ122: Corvallis
K123: 97145 | L123: Surfcrest Market | M123: Clatsop | N123: 4C | P123: 97282 | Q123: Portland | R123: OR | S123: 45.580557 | T123: 122.374776 | U123: 3.360557 | V123: 0.297557 | W123: 3.413557 | X123: 3.390557 | Y123: 2.163557 | Z123: -0.119443 | AA123: -0.019443 | AB123: 0.047557 | AC123: 0.03056 | AD123: 1.330557 | AE123: 2.347557 | AF123: 0.68056 | AG123: 2.980557 | AH123: -0.56944 | AI123: 0.330557 | AJ123: 0.747557 | AK123: 2.060557 | AL123: 1.097557 | AM123: 1.53056 | AN123: 0.634776 | AO123: 4.374776 | AP123: 1.974779 | AQ123: -0.325221 | AR123: -1.875224 | AS123: 3.541776 | AT123: -0.242224 | AU123: -0.575221 | AV123: -0.025224 | AW123: 1.207776 | AX123: -0.975221 | AY123: -0.625224 | AZ123: -0.992224 | BA123: -1.508224 | BB123: -0.392224 | BC123: 4.557776 | BD123: 3.354776 | BE123: -0.908224 | BF123: -0.695224 | BG123: 3.419983029 | BH123: 4.384883718 | BI123: 3.943618071 | BJ123: 3.406118828 | BK123: 2.863117871 | BL123: 3.543789478 | BM123: 0.243003079 | BN123: 0.5771835645 | BO123: 0.03962529213 | BP123: 1.796971006 | BQ123: 2.542062129 | BR123: 0.9241574345 | BS123: 3.141373664 | BT123: 1.612141913 | BU123: 0.512940149 | BV123: 4.618675517 | BW123: 3.937056916 | BX123: 1.424605981 | BY123: 1.681056312 | BZ123: Portland (Troutdale)
K124: 97146 | L124: Warrenton | M124: Clatsop | N124: 4C | P124: 97026 | Q124: Gervais | R124: OR | S124: 45.10649 | T124: 122.90363 | U124: 2.88649 | V124: -0.17651 | W124: 2.93949 | X124: 2.91649 | Y124: 1.68949 | Z124: -0.59351 | AA124: -0.49351 | AB124: -0.42651 | AC124: -0.443507 | AD124: 0.85649 | AE124: 1.87349 | AF124: 0.206493 | AG124: 2.50649 | AH124: -1.043507 | AI124: -0.14351 | AJ124: 0.27349 | AK124: 1.58649 | AL124: 0.62349 | AM124: 1.056493 | AN124: 1.16363 | AO124: 4.90363 | AP124: 2.503633 | AQ124: 0.203633 | AR124: -1.34637 | AS124: 4.07063 | AT124: 0.28663 | AU124: -0.046367 | AV124: 0.50363 | AW124: 1.73663 | AX124: -0.446367 | AY124: -0.09637 | AZ124: -0.46337 | BA124: -0.97937 | BB124: 0.13663 | BC124: 5.08663 | BD124: 3.88363 | BE124: -0.37937 | BF124: -0.16637 | BG124: 3.112211319 | BH124: 4.906805779 | BI124: 3.861188892 | BJ124: 2.923590313 | BK124: 2.160344564 | BL124: 4.113670225 | BM124: 0.5707091002 | BN124: 0.429022935 | BO124: 0.6710749853 | BP124: 1.936351951 | BQ124: 1.925930497 | BR124: 0.2278739475 | BS124: 2.548961333 | BT124: 1.43110882 | BU124: 0.1981486235 | BV124: 5.093976986 | BW124: 4.195179674 | BX124: 0.7298365413 | BY124: 1.069512242 | BZ124: Aurora
K125: 97147 | L125: Wheeler | M125: Tillamook | N125: 4C | P125: 97212 | Q125: Portland | R125: OR | S125: 45.54424 | T125: 122.64353 | U125: 3.32424 | V125: 0.26124 | W125: 3.37724 | X125: 3.35424 | Y125: 2.12724 | Z125: -0.15576 | AA125: -0.05576 | AB125: 0.01124 | AC125: -0.005757 | AD125: 1.29424 | AE125: 2.31124 | AF125: 0.644243 | AG125: 2.94424 | AH125: -0.605757 | AI125: 0.29424 | AJ125: 0.71124 | AK125: 2.02424 | AL125: 1.06124 | AM125: 1.494243 | AN125: 0.90353 | AO125: 4.64353 | AP125: 2.243533 | AQ125: -0.056467 | AR125: -1.60647 | AS125: 3.81053 | AT125: 0.02653 | AU125: -0.306467 | AV125: 0.24353 | AW125: 1.47653 | AX125: -0.706467 | AY125: -0.35647 | AZ125: -0.72347 | BA125: -1.23947 | BB125: -0.12347 | BC125: 4.82653 | BD125: 3.62353 | BE125: -0.63947 | BF125: -0.42647 | BG125: 3.444842237 | BH125: 4.650872735 | BI125: 4.054527141 | BJ125: 3.354715264 | BK125: 2.665688631 | BL125: 3.81371211 | BM125: 0.06174964372 | BN125: 0.3066730502 | BO125: 0.2435980377 | BP125: 1.963465818 | BQ125: 2.41680077 | BR125: 0.7362879219 | BS125: 3.031824206 | BT125: 1.379575088 | BU125: 0.3190956259 | BV125: 4.878652906 | BW125: 4.150604443 | BX125: 1.239012598 | BY125: 1.55391081 | BZ125: Portland (PDX)
K126: 97148 | L126: Yamhill | M126: Yamhill | N126: 4C | P126: 97308 | Q126: Salem | R126: OR | S126: 44.984465 | T126: 122.457024 | U126: 2.764465 | V126: -0.298535 | W126: 2.817465 | X126: 2.794465 | Y126: 1.567465 | Z126: -0.715535 | AA126: -0.615535 | AB126: -0.548535 | AC126: -0.565532 | AD126: 0.734465 | AE126: 1.751465 | AF126: 0.084468 | AG126: 2.384465 | AH126: -1.165532 | AI126: -0.265535 | AJ126: 0.151465 | AK126: 1.464465 | AL126: 0.501465 | AM126: 0.934468 | AN126: 0.717024 | AO126: 4.457024 | AP126: 2.057027 | AQ126: -0.242973 | AR126: -1.792976 | AS126: 3.624024 | AT126: -0.159976 | AU126: -0.492973 | AV126: 0.057024 | AW126: 1.290024 | AX126: -0.892973 | AY126: -0.542976 | AZ126: -0.909976 | BA126: -1.425976 | BB126: -0.309976 | BC126: 4.640024 | BD126: 3.437024 | BE126: -0.825976 | BF126: -0.612976 | BG126: 2.855939452 | BH126: 4.467010867 | BI126: 3.488476617 | BJ126: 2.805008113 | BK126: 2.381535106 | BL126: 3.693987045 | BM126: 0.6359840067 | BN126: 0.7375045932 | BO126: 0.5683996654 | BP126: 1.484453016 | BQ126: 1.965968063 | BR126: 0.5495068513 | BS126: 2.552200944 | BT126: 1.841703667 | BU126: 0.4081592297 | BV126: 4.642495489 | BW126: 3.73601281 | BX126: 0.9662833429 | BY126: 1.117573273 | BZ126: Aurora
K127: 97149 | L127: Neskowin | M127: Tillamook | N127: 4C | P127: 97489 | Q127: Walterville | R127: OR | S127: 44.131706 | T127: 122.6367 | U127: 1.911706 | V127: -1.151294 | W127: 1.964706 | X127: 1.941706 | Y127: 0.714706 | Z127: -1.568294 | AA127: -1.468294 | AB127: -1.401294 | AC127: -1.418291 | AD127: -0.118294 | AE127: 0.898706 | AF127: -0.768291 | AG127: 1.531706 | AH127: -2.018291 | AI127: -1.118294 | AJ127: -0.701294 | AK127: 0.611706 | AL127: -0.351294 | AM127: 0.081709 | AN127: 0.8967 | AO127: 4.6367 | AP127: 2.236703 | AQ127: -0.063297 | AR127: -1.6133 | AS127: 3.8037 | AT127: 0.0197 | AU127: -0.313297 | AV127: 0.2367 | AW127: 1.4697 | AX127: -0.713297 | AY127: -0.3633 | AZ127: -0.7303 | BA127: -1.2463 | BB127: -0.1303 | BC127: 4.8197 | BD127: 3.6167 | BE127: -0.6463 | BF127: -0.4333 | BG127: 2.111561205 | BH127: 4.777495658 | BI127: 2.977063986 | BJ127: 1.942737425 | BK127: 1.764523039 | BL127: 4.114326161 | BM127: 1.468426151 | BN127: 1.435889928 | BO127: 1.437906899 | BP127: 1.47445297 | BQ127: 1.147373124 | BR127: 0.8498576061 | BS127: 1.696897569 | BT127: 2.372079731 | BU127: 1.125859476 | BV127: 4.870453918 | BW127: 3.66806531 | BX127: 0.7356025859 | BY127: 0.4409367876 | BZ127: Eugene
K128: 97201 | L128: Portland | M128: Multnomah | N128: 4C | P128: 97622 | Q128: Bly | R128: OR | S128: 42.334534 | T128: 120.97637 | U128: 0.114534 | V128: -2.948466 | W128: 0.167534 | X128: 0.144534 | Y128: -1.082466 | Z128: -3.365466 | AA128: -3.265466 | AB128: -3.198466 | AC128: -3.215463 | AD128: -1.915466 | AE128: -0.898466 | AF128: -2.565463 | AG128: -0.265466 | AH128: -3.815463 | AI128: -2.915466 | AJ128: -2.498466 | AK128: -1.185466 | AL128: -2.148466 | AM128: -1.715463 | AN128: -0.76363 | AO128: 2.97637 | AP128: 0.576373 | AQ128: -1.723627 | AR128: -3.27363 | AS128: 2.14337 | AT128: -1.64063 | AU128: -1.973627 | AV128: -1.42363 | AW128: -0.19063 | AX128: -2.373627 | AY128: -2.02363 | AZ128: -2.39063 | BA128: -2.90663 | BB128: -1.79063 | BC128: 3.15937 | BD128: 1.95637 | BE128: -2.30663 | BF128: -2.09363 | BG128: 0.7721714926 | BH128: 4.189538176 | BI128: 0.6002278536 | BJ128: 1.729676303 | BK128: 3.447953889 | BL128: 3.990037137 | BM128: 3.654440449 | BN128: 3.758375751 | BO128: 3.516521674 | BP128: 1.924928517 | BQ128: 2.53798075 | BR128: 3.26751875 | BS128: 2.405324093 | BT128: 4.796483698 | BU128: 3.42144674 | BV128: 4.027896616 | BW128: 2.287512451 | BX128: 3.152213208 | BY128: 2.706676907 | BZ128: Lakeview
K129: 97202 | L129: Portland | M129: Multnomah | N129: 4C | P129: 97641 | Q129: Christmas Valley | R129: OR | S129: 43.256842 | T129: 120.65084 | U129: 1.036842 | V129: -2.026158 | W129: 1.089842 | X129: 1.066842 | Y129: -0.160158 | Z129: -2.443158 | AA129: -2.343158 | AB129: -2.276158 | AC129: -2.293155 | AD129: -0.993158 | AE129: 0.023842 | AF129: -1.643155 | AG129: 0.656842 | AH129: -2.893155 | AI129: -1.993158 | AJ129: -1.576158 | AK129: -0.263158 | AL129: -1.226158 | AM129: -0.793155 | AN129: -1.08916 | AO129: 2.65084 | AP129: 0.250843 | AQ129: -2.049157 | AR129: -3.59916 | AS129: 1.81784 | AT129: -1.96616 | AU129: -2.299157 | AV129: -1.74916 | AW129: -0.51616 | AX129: -2.699157 | AY129: -2.34916 | AZ129: -2.71616 | BA129: -3.23216 | BB129: -2.11616 | BC129: 2.83384 | BD129: 1.63084 | BE129: -2.63216 | BF129: -2.41916 | BG129: 1.503765553 | BH129: 3.336505499 | BI129: 1.118337067 | BJ129: 2.310237274 | BK129: 3.60272165 | BL129: 3.04525258 | BM129: 3.058786452 | BN129: 3.235277137 | BO129: 2.884115213 | BP129: 1.11927832 | BQ129: 2.699262298 | BR129: 2.866794562 | BS129: 2.794452819 | BT129: 4.337880141 | BU129: 2.907028029 | BV129: 3.242672229 | BW129: 1.651935604 | BX129: 2.903744084 | BY129: 2.545865267 | BZ129: Lakeview
K130: 97203 | L130: Portland | M130: Multnomah | N130: 4C | P130: 97269 | Q130: Portland | R130: OR | S130: 45.173284 | T130: 122.259861 | U130: 2.953284 | V130: -0.109716 | W130: 3.006284 | X130: 2.983284 | Y130: 1.756284 | Z130: -0.526716 | AA130: -0.426716 | AB130: -0.359716 | AC130: -0.376713 | AD130: 0.923284 | AE130: 1.940284 | AF130: 0.273287 | AG130: 2.573284 | AH130: -0.976713 | AI130: -0.076716 | AJ130: 0.340284 | AK130: 1.653284 | AL130: 0.690284 | AM130: 1.123287 | AN130: 0.519861 | AO130: 4.259861 | AP130: 1.859864 | AQ130: -0.440136 | AR130: -1.990139 | AS130: 3.426861 | AT130: -0.357139 | AU130: -0.690136 | AV130: -0.140139 | AW130: 1.092861 | AX130: -1.090136 | AY130: -0.740139 | AZ130: -1.107139 | BA130: -1.623139 | BB130: -0.507139 | BC130: 4.442861 | BD130: 3.239861 | BE130: -1.023139 | BF130: -0.810139 | BG130: 2.998690021 | BH130: 4.261273676 | BI130: 3.535086645 | BJ130: 3.015576748 | BK130: 2.654277063 | BL130: 3.46710341 | BM130: 0.5564483893 | BN130: 0.7782565767 | BO130: 0.4019348501 | BP130: 1.430663661 | BQ130: 2.225555773 | BR130: =SQRT(AF130^2+AY130^2) -> 0.7889813202 | BS130: 2.80134741 | BT130: 1.894346457 | BU130: 0.5129086761 | BV130: 4.455873322 | BW130: 3.637313196 | BX130: 1.234222595 | BY130: 1.38495447 | BZ130: Portland (Troutdale)
K131: 97204 | L131: Portland | M131: Multnomah | N131: 4C | P131: 97016 | Q131: Clatskanie | R131: OR | S131: 46.078338 | T131: 123.26993 | U131: =$S131-VLOOKUP(U$18,$A$19:$F$37,5,FALSE) -> 3.858338 | V131: 0.795338 | W131: 3.911338 | X131: 3.888338 | Y131: 2.661338 | Z131: 0.378338 | AA131: 0.478338 | AB131: 0.545338 | AC131: 0.528341 | AD131: 1.828338 | AE131: 2.845338 | AF131: 1.178341 | AG131: 3.478338 | AH131: -0.071659 | AI131: 0.828338 | AJ131: 1.245338 | AK131: =$S131-VLOOKUP(AK$18,$A$19:$F$37,5,FALSE) -> 2.558338 | AL131: 1.595338 | AM131: 2.028341 | AN131: =$T131-VLOOKUP(AN$18,$A$19:$F$37,6,FALSE) -> 1.52993 | AO131: 5.26993 | AP131: 2.869933 | AQ131: 0.569933 | AR131: -0.98007 | AS131: 4.43693 | AT131: 0.65293 | AU131: 0.319933 | AV131: 0.86993 | AW131: 2.10293 | AX131: -0.080067 | AY131: 0.26993 | AZ131: -0.09707 | BA131: -0.61307 | BB131: 0.50293 | BC131: 5.45293 | BD131: =$T131-VLOOKUP(BD$18,$A$19:$F$37,6,FALSE) -> 4.24993 | BE131: -0.01307 | BF131: 0.19993 | BG131: 4.150597298 | BH131: 5.32960831 | BI131: 4.851296772 | BJ131: 3.929884989 | BK131: 2.836063673 | BL131: 4.453031267 | BM131: 0.8093978176 | BN131: 0.6322583797 | BO131: 1.01780274 | BP131: 2.786599079 | BQ131: 2.846464308 | BR131: 1.208862985 | BS131: 3.479692203 | BT131: 0.6172437421 | BU131: 0.9690626539 | BV131: 5.593327482 | BW131: 4.960544156 | BX131: 1.595391538 | BY131: 2.038170556 | BZ131: Astoria
K132: 97205 | L132: Portland | M132: Multnomah | N132: 4C | P132: 97487 | Q132: Veneta | R132: OR | S132: 44.023225 | T132: 123.38399 | U132: 1.803225 | V132: -1.259775 | W132: 1.856225 | X132: 1.833225 | Y132: 0.606225 | Z132: -1.676775 | AA132: -1.576775 | AB132: -1.509775 | AC132: -1.526772 | AD132: -0.226775 | AE132: 0.790225 | AF132: -0.876772 | AG132: 1.423225 | AH132: -2.126772 | AI132: -1.226775 | AJ132: -0.809775 | AK132: 0.503225 | AL132: -0.459775 | AM132: -0.026772 | AN132: 1.64399 | AO132: 5.38399 | AP132: 2.983993 | AQ132: 0.683993 | AR132: -0.86601 | AS132: 4.55099 | AT132: 0.76699 | AU132: 0.433993 | AV132: 0.98399 | AW132: 2.21699 | AX132: 0.033993 | AY132: 0.38399 | AZ132: 0.01699 | BA132: -0.49901 | BB132: 0.61699 | BC132: 5.56699 | BD132: 4.36399 | BE132: 0.10099 | BF132: 0.31399 | BG132: 2.440148258 | BH132: 5.529410581 | BI132: 3.514226156 | BJ132: 1.956670725 | BK132: 1.057110245 | BL132: 4.850060245 | BM132: 1.753423241 | BN132: 1.570913898 | BO132: 1.816389017 | BP132: 2.22855818 | BQ132: 0.7909557982 | BR132: 0.9571715939 | BS132: 1.423326407 | BT132: 2.184529725 | BU132: 1.373191014 | BV132: 5.6255767 | BW132: 4.39290839 | BX132: 0.4707356272 | BY132: 0.3151292752 | BZ132: Eugene
K133: 97206 | L133: Portland | M133: Multnomah | N133: 4C | P133: 97869 | Q133: Prairie City | R133: OR | S133: 44.441241 | T133: 118.69325 | U133: 2.221241 | V133: -0.841759 | W133: 2.274241 | X133: 2.251241 | Y133: 1.024241 | Z133: -1.258759 | AA133: -1.158759 | AB133: -1.091759 | AC133: -1.108756 | AD133: 0.191241 | AE133: 1.208241 | AF133: -0.458756 | AG133: 1.841241 | AH133: -1.708756 | AI133: -0.808759 | AJ133: -0.391759 | AK133: 0.921241 | AL133: -0.041759 | AM133: 0.391244 | AN133: -3.04675 | AO133: 0.69325 | AP133: -1.706747 | AQ133: -4.006747 | AR133: -5.55675 | AS133: -0.13975 | AT133: -3.92375 | AU133: -4.256747 | AV133: -3.70675 | AW133: -2.47375 | AX133: -4.656747 | AY133: -4.30675 | AZ133: -4.67375 | BA133: -5.18975 | BB133: -4.07375 | BC133: 0.87625 | BD133: -0.32675 | BE133: -4.58975 | BF133: -4.37675 | BG133: 3.770490305 | BH133: 1.090483277 | BI133: 2.843441128 | BJ133: 4.595879411 | BK133: 5.650357528 | BL133: 1.266492907 | BM133: 4.091275655 | BN133: 4.394523039 | BO133: 3.869022542 | BP133: 2.48113123 | BQ133: 4.810939507 | BR133: 4.331114479 | BS133: 5.023356197 | BT133: 5.463822117 | BU133: 4.153255372 | BV133: 0.9598380992 | BW133: 0.9774715047 | BX133: 4.589939964 | BY133: 4.394202138 | BZ133: Baker
K134: 97207 | L134: Portland | M134: Multnomah | N134: 4C | P134: 97180 | Q134: Sherwood | R134: OR | S134: 45.354615 | T134: 122.850808 | U134: 3.134615 | V134: 0.071615 | W134: 3.187615 | X134: 3.164615 | Y134: 1.937615 | Z134: -0.345385 | AA134: -0.245385 | AB134: -0.178385 | AC134: -0.195382 | AD134: 1.104615 | AE134: 2.121615 | AF134: 0.454618 | AG134: 2.754615 | AH134: -0.795382 | AI134: 0.104615 | AJ134: 0.521615 | AK134: 1.834615 | AL134: 0.871615 | AM134: 1.304618 | AN134: 1.110808 | AO134: 4.850808 | AP134: 2.450811 | AQ134: 0.150811 | AR134: -1.399192 | AS134: 4.017808 | AT134: 0.233808 | AU134: -0.099189 | AV134: 0.450808 | AW134: 1.683808 | AX134: -0.499189 | AY134: -0.149192 | AZ134: -0.516192 | BA134: -1.032192 | BB134: 0.083808 | BC134: 5.033808 | BD134: 3.830808 | BE134: -0.432192 | BF134: -0.219192 | BG134: 3.325613569 | BH134: 4.851336616 | BI134: 4.020866069 | BJ134: 3.168206441 | BK134: 2.389997937 | BL134: 4.032625934 | BM134: 0.3389394918 | BN134: 0.2041069963 | BO134: 0.4913267536 | BP134: 2.013798321 | BQ134: 2.179550382 | BR134: 0.4784723386 | BS134: 2.802562752 | BT134: 1.303093569 | BU134: 0.1340450637 | BV134: 5.060761325 | BW134: 4.247458314 | BX134: 0.9728836688 | BY134: 1.322903344 | BZ134: Aurora
K135: 97208 | L135: Portland | M135: Multnomah | N135: 4C | P135: 97253 | Q135: Portland | R135: OR | S135: 45.580557 | T135: 122.374776 | U135: 3.360557 | V135: 0.297557 | W135: 3.413557 | X135: 3.390557 | Y135: 2.163557 | Z135: -0.119443 | AA135: -0.019443 | AB135: 0.047557 | AC135: 0.03056 | AD135: 1.330557 | AE135: 2.347557 | AF135: 0.68056 | AG135: 2.980557 | AH135: -0.56944 | AI135: 0.330557 | AJ135: 0.747557 | AK135: 2.060557 | AL135: 1.097557 | AM135: 1.53056 | AN135: 0.634776 | AO135: 4.374776 | AP135: 1.974779 | AQ135: -0.325221 | AR135: -1.875224 | AS135: 3.541776 | AT135: -0.242224 | AU135: -0.575221 | AV135: -0.025224 | AW135: 1.207776 | AX135: -0.975221 | AY135: -0.625224 | AZ135: -0.992224 | BA135: -1.508224 | BB135: -0.392224 | BC135: 4.557776 | BD135: 3.354776 | BE135: -0.908224 | BF135: -0.695224 | BG135: 3.419983029 | BH135: 4.384883718 | BI135: 3.943618071 | BJ135: 3.406118828 | BK135: 2.863117871 | BL135: 3.543789478 | BM135: 0.243003079 | BN135: 0.5771835645 | BO135: 0.03962529213 | BP135: 1.796971006 | BQ135: 2.542062129 | BR135: 0.9241574345 | BS135: 3.141373664 | BT135: 1.612141913 | BU135: 0.512940149 | BV135: 4.618675517 | BW135: 3.937056916 | BX135: 1.424605981 | BY135: 1.681056312 | BZ135: Portland (Troutdale)
K136: 97209 | L136: Portland | M136: Multnomah | N136: 4C | P136: 97345 | Q136: Foster | R136: OR | S136: 44.407794 | T136: 122.60034 | U136: 2.187794 | V136: -0.875206 | W136: 2.240794 | X136: 2.217794 | Y136: 0.990794 | Z136: -1.292206 | AA136: -1.192206 | AB136: -1.125206 | AC136: -1.142203 | AD136: 0.157794 | AE136: 1.174794 | AF136: -0.492203 | AG136: 1.807794 | AH136: -1.742203 | AI136: -0.842206 | AJ136: -0.425206 | AK136: 0.887794 | AL136: -0.075206 | AM136: 0.357797 | AN136: 0.86034 | AO136: 4.60034 | AP136: 2.200343 | AQ136: -0.099657 | AR136: -1.64966 | AS136: 3.76734 | AT136: -0.01666 | AU136: -0.349657 | AV136: 0.20034 | AW136: 1.43334 | AX136: -0.749657 | AY136: -0.39966 | AZ136: -0.76666 | BA136: -1.28266 | BB136: -0.16666 | BC136: 4.78334 | BD136: 3.58034 | BE136: -0.68266 | BF136: -0.46966 | BG136: 2.350878028 | BH136: 4.682853154 | BI136: 3.140488349 | BJ136: 2.220031924 | BK136: 1.924331278 | BL136: 3.982793871 | BM136: 1.192322399 | BN136: 1.178282038 | BO136: 1.159639517 | BP136: 1.441999481 | BQ136: 1.393602009 | BR136: 0.6340283186 | BS136: 1.963641185 | BT136: 2.163443544 | BU136: 0.8585374203 | BV136: 4.802201755 | BW136: 3.688768453 | BX136: 0.6867900829 | BY136: 0.5904229067 | BZ136: Eugene
K137: 97210 | L137: Portland | M137: Multnomah | N137: 4C | P137: 97459 | Q137: North Bend | R137: OR | S137: 43.434529 | T137: 124.20994 | U137: 1.214529 | V137: -1.848471 | W137: 1.267529 | X137: 1.244529 | Y137: 0.017529 | Z137: -2.265471 | AA137: -2.165471 | AB137: -2.098471 | AC137: -2.115468 | AD137: -0.815471 | AE137: 0.201529 | AF137: -1.465468 | AG137: 0.834529 | AH137: -2.715468 | AI137: -1.815471 | AJ137: -1.398471 | AK137: -0.085471 | AL137: -1.048471 | AM137: -0.615468 | AN137: 2.46994 | AO137: 6.20994 | AP137: 3.809943 | AQ137: 1.509943 | AR137: -0.04006 | AS137: 5.37694 | AT137: 1.59294 | AU137: 1.259943 | AV137: 1.80994 | AW137: 3.04294 | AX137: 0.859943 | AY137: 1.20994 | AZ137: 0.84294 | BA137: 0.32694 | BB137: 1.44294 | BC137: 6.39294 | BD137: 5.18994 | BE137: 0.92694 | BF137: 1.13994 | BG137: 2.752396101 | BH137: 6.479212903 | BI137: 4.015257828 | BJ137: 1.956726934 | BK137: 0.04372721625 | BL137: 5.834710157 | BM137: 2.688256404 | BN137: 2.447659474 | BO137: 2.784077525 | BP137: 3.150313761 | BQ137: 0.8832417003 | BR137: 1.900408183 | BS137: 1.186164616 | BT137: 2.735078833 | BU137: 2.319053858 | BV137: 6.544112085 | BW137: 5.190643746 | BX137: 1.399467471 | BY137: 1.295478314 | BZ137: North Bend
K138: 97211 | L138: Portland | M138: Multnomah | N138: 4C | P138: 97329 | Q138: Cascadia | R138: OR | S138: 44.400432 | T138: 122.35469 | U138: 2.180432 | V138: -0.882568 | W138: 2.233432 | X138: 2.210432 | Y138: 0.983432 | Z138: -1.299568 | AA138: -1.199568 | AB138: -1.132568 | AC138: -1.149565 | AD138: 0.150432 | AE138: 1.167432 | AF138: -0.499565 | AG138: 1.800432 | AH138: -1.749565 | AI138: -0.849568 | AJ138: -0.432568 | AK138: 0.880432 | AL138: -0.082568 | AM138: 0.350435 | AN138: 0.61469 | AO138: 4.35469 | AP138: 1.954693 | AQ138: -0.345307 | AR138: -1.89531 | AS138: 3.52169 | AT138: -0.26231 | AU138: -0.595307 | AV138: -0.04531 | AW138: 1.18769 | AX138: -0.995307 | AY138: -0.64531 | AZ138: -1.01231 | BA138: -1.52831 | BB138: -0.41231 | BC138: 4.53769 | BD138: 3.33469 | BE138: -0.92831 | BF138: -0.71531 | BG138: 2.26541994 | BH138: 4.443225323 | BI138: 2.968003238 | BJ138: 2.237240834 | BK138: 2.135260756 | BL138: 3.753821712 | BM138: 1.227912832 | BN138: 1.27949236 | BO138: 1.150457598 | BP138: 1.197178902 | BQ138: 1.534123039 | BR138: 0.8160822173 | BS138: 2.065508877 | BT138: 2.323081821 | BU138: 0.9443332689 | BV138: 4.558261249 | BW138: 3.448958959 | BX138: 0.9319747479 | BY138: 0.7965381882 | BZ138: Eugene
K139: 97212 | L139: Portland | M139: Multnomah | N139: 4C | P139: 97503 | Q139: White City | R139: OR | S139: 42.471919 | T139: 122.87201 | U139: 0.251919 | V139: -2.811081 | W139: 0.304919 | X139: 0.281919 | Y139: -0.945081 | Z139: -3.228081 | AA139: -3.128081 | AB139: -3.061081 | AC139: -3.078078 | AD139: -1.778081 | AE139: -0.761081 | AF139: -2.428078 | AG139: -0.128081 | AH139: -3.678078 | AI139: -2.778081 | AJ139: -2.361081 | AK139: -1.048081 | AL139: -2.011081 | AM139: -1.578078 | AN139: 1.13201 | AO139: 4.87201 | AP139: 2.472013 | AQ139: 0.172013 | AR139: -1.37799 | AS139: 4.03901 | AT139: 0.25501 | AU139: -0.077987 | AV139: 0.47201 | AW139: 1.70501 | AX139: -0.477987 | AY139: -0.12799 | AZ139: -0.49499 | BA139: -1.01099 | BB139: 0.10501 | BC139: 5.05501 | BD139: 3.85201 | BE139: -0.41099 | BF139: -0.19799 | BG139: 1.159702472 | BH139: 5.624825138 | BI139: 2.490747653 | BJ139: 0.3302526226 | BK139: 1.67093822 | BL139: 5.17050372 | BM139: 3.138458354 | BN139: 3.062074274 | BO139: 3.114058062 | BP139: 2.463459182 | BQ139: 0.8987301379 | BR139: 2.431448995 | BS139: 0.511292326 | BT139: 3.814493224 | BU139: 2.780064953 | BV139: 5.579231989 | BW139: 3.99204895 | BX139: 2.052646966 | BY139: 1.590449689 | BZ139: Medford
K140: 97213 | L140: Portland | M140: Multnomah | N140: 4C | P140: 97920 | Q140: Westfall | R140: OR | S140: 44.032437 | T140: 117.7115 | U140: 1.812437 | V140: -1.250563 | W140: 1.865437 | X140: 1.842437 | Y140: 0.615437 | Z140: -1.667563 | AA140: -1.567563 | AB140: -1.500563 | AC140: -1.51756 | AD140: -0.217563 | AE140: 0.799437 | AF140: -0.86756 | AG140: 1.432437 | AH140: -2.11756 | AI140: -1.217563 | AJ140: -0.800563 | AK140: 0.512437 | AL140: -0.450563 | AM140: -0.01756 | AN140: -4.0285 | AO140: -0.2885 | AP140: -2.688497 | AQ140: -4.988497 | AR140: -6.5385 | AS140: -1.1215 | AT140: -4.9055 | AU140: -5.238497 | AV140: -4.6885 | AW140: -3.4555 | AX140: -5.638497 | AY140: -5.2885 | AZ140: -5.6555 | BA140: -6.1715 | BB140: -5.0555 | BC140: -0.1055 | BD140: -1.3085 | BE140: -5.5715 | BF140: -5.3585 | BG140: 4.417435922 | BH140: 1.283409548 | BI140: 3.272288392 | BJ140: 5.317863896 | BK140: 6.567400167 | BL140: 2.009609069 | BM140: 5.149872232 | BN140: 5.449177932 | BO140: 4.927983422 | BP140: 3.462342258 | BQ140: 5.694887877 | BR140: 5.359187681 | BS140: 5.834085705 | BT140: 6.524681801 | BU140: 5.200051914 | BV140: 0.8074845924 | BW140: 1.405262939 | BX140: 5.589688656 | BY140: 5.358528772 | BZ140: Baker
K141: 97214 | L141: Portland | M141: Multnomah | N141: 4C | P141: 97322 | Q141: Albany | R141: OR | S141: 44.62205 | T141: 123.061329 | U141: 2.40205 | V141: -0.66095 | W141: 2.45505 | X141: 2.43205 | Y141: 1.20505 | Z141: -1.07795 | AA141: -0.97795 | AB141: -0.91095 | AC141: -0.927947 | AD141: 0.37205 | AE141: 1.38905 | AF141: -0.277947 | AG141: 2.02205 | AH141: -1.527947 | AI141: -0.62795 | AJ141: -0.21095 | AK141: 1.10205 | AL141: 0.13905 | AM141: 0.572053 | AN141: 1.321329 | AO141: 5.061329 | AP141: 2.661332 | AQ141: 0.361332 | AR141: -1.188671 | AS141: 4.228329 | AT141: 0.444329 | AU141: 0.111332 | AV141: 0.661329 | AW141: 1.894329 | AX141: -0.288668 | AY141: 0.061329 | AZ141: -0.305671 | BA141: -0.821671 | BB141: 0.294329 | BC141: 5.244329 | BD141: 4.041329 | BE141: -0.221671 | BF141: -0.008671 | BG141: 2.741487649 | BH141: 5.104302709 | BI141: 3.62076767 | BJ141: 2.458745212 | BK141: 1.692655975 | BL141: 4.363569907 | BM141: 1.07415756 | BN141: 0.9177280189 | BO141: 1.139491852 | BP141: 1.930518988 | BQ141: 1.418727993 | BR141: 0.2846327125 | BS141: 2.045023463 | BT141: 1.734867507 | BU141: 0.6935061375 | BV141: 5.248569954 | BW141: 4.188896548 | BX141: 0.2616733359 | BY141: 0.5721187124 | BZ141: Corvallis
K142: 97215 | L142: Portland | M142: Multnomah | N142: 4C | P142: 97440 | Q142: Eugene | R142: OR | S142: 43.863845 | T142: 122.99879 | U142: 1.643845 | V142: -1.419155 | W142: 1.696845 | X142: 1.673845 | Y142: 0.446845 | Z142: -1.836155 | AA142: -1.736155 | AB142: -1.669155 | AC142: -1.686152 | AD142: -0.386155 | AE142: 0.630845 | AF142: -1.036152 | AG142: 1.263845 | AH142: -2.286152 | AI142: -1.386155 | AJ142: -0.969155 | AK142: 0.343845 | AL142: -0.619155 | AM142: -0.186152 | AN142: 1.25879 | AO142: 4.99879 | AP142: 2.598793 | AQ142: 0.298793 | AR142: -1.25121 | AS142: 4.16579 | AT142: 0.38179 | AU142: 0.048793 | AV142: 0.59879 | AW142: 1.83179 | AX142: -0.351207 | AY142: -0.00121 | AZ142: -0.36821 | BA142: -0.88421 | BB142: 0.23179 | BC142: 5.18179 | BD142: 3.97879 | BE142: -0.28421 | BF142: -0.07121 | BG142: 2.07045373 | BH142: 5.196335476 | BI142: 3.103708751 | BJ142: 1.700304191 | BK142: 1.328607135 | BL142: 4.552501676 | BM142: 1.777638261 | BN142: 1.66986801 | BO142: 1.789317756 | BP142: 1.872049756 | BQ142: 0.7220192317 | BR142: 1.036152707 | BS142: 1.316390059 | BT142: 2.451187119 | BU142: 1.405401113 | BV142: 5.271641966 | BW142: 3.993619818 | BX142: 0.6812695782 | BY142: 0.1993073787 | BZ142: Eugene
K143: 97216 | L143: Portland | M143: Multnomah | N143: 4C | P143: 97118 | Q143: Garibaldi | R143: OR | S143: 45.561139 | T143: 123.91004 | U143: 3.341139 | V143: 0.278139 | W143: 3.394139 | X143: 3.371139 | Y143: 2.144139 | Z143: -0.138861 | AA143: -0.038861 | AB143: 0.028139 | AC143: 0.011142 | AD143: 1.311139 | AE143: 2.328139 | AF143: 0.661142 | AG143: 2.961139 | AH143: -0.588858 | AI143: 0.311139 | AJ143: 0.728139 | AK143: 2.041139 | AL143: 1.078139 | AM143: 1.511142 | AN143: 2.17004 | AO143: 5.91004 | AP143: 3.510043 | AQ143: 1.210043 | AR143: -0.33996 | AS143: 5.07704 | AT143: 1.29304 | AU143: 0.960043 | AV143: 1.51004 | AW143: 2.74304 | AX143: 0.560043 | AY143: 0.91004 | AZ143: 0.54304 | BA143: 0.02704 | BB143: 1.14304 | BC143: 6.09304 | BD143: 4.89004 | BE143: 0.62704 | BF143: 0.84004 | BG143: 3.984003441 | BH143: 5.916581285 | BI143: 4.882681785 | BJ143: 3.581728943 | BK143: 2.170922581 | BL143: 5.078938623 | BM143: 1.293623832 | BN143: 0.9604552906 | BO143: 1.510081106 | BP143: 3.04028846 | BQ143: 2.394552018 | BR143: 1.124847343 | BS143: 3.010520988 | BT143: 0.5894785032 | BU143: 1.184629866 | BV143: 6.136393309 | BW143: 5.298937593 | BX143: 1.247222059 | BY143: 1.728935321 | BZ143: Astoria
K144: 97217 | L144: Portland | M144: Multnomah | N144: 4C | P144: 97210 | Q144: Portland | R144: OR | S144: 45.534839 | T144: 122.7095 | U144: 3.314839 | V144: 0.251839 | W144: 3.367839 | X144: 3.344839 | Y144: 2.117839 | Z144: -0.165161 | AA144: -0.065161 | AB144: 0.001839 | AC144: -0.015158 | AD144: 1.284839 | AE144: 2.301839 | AF144: 0.634842 | AG144: 2.934839 | AH144: -0.615158 | AI144: 0.284839 | AJ144: 0.701839 | AK144: 2.014839 | AL144: 1.051839 | AM144: 1.484842 | AN144: 0.9695 | AO144: 4.7095 | AP144: 2.309503 | AQ144: 0.009503 | AR144: -1.5405 | AS144: 3.8765 | AT144: 0.0925 | AU144: -0.240497 | AV144: 0.3095 | AW144: 1.5425 | AX144: -0.640497 | AY144: -0.2905 | AZ144: -0.6575 | BA144: -1.1735 | BB144: -0.0575 | BC144: 4.8925 | BD144: 3.6895 | BE144: -0.5735 | BF144: -0.3605 | BG144: 3.453706393 | BH144: 4.716228698 | BI144: 4.083643427 | BJ144: 3.344852499 | BK144: 2.618851328 | BL144: 3.880016805 | BM144: 0.1131468335 | BN144: 0.240504031 | BO144: 0.309870965 | BP144: 2.007515257 | BQ144: 2.389288427 | BR144: 0.698150854 | BS144: 3.007588104 | BT144: 1.324960986 | BU144: 0.2905847655 | BV144: 4.942583761 | BW144: =SQRT(AK144^2+BD144^2) -> 4.203806186 | BX144: 1.198026516 | BY144: 1.527977753 | BZ144: Portland (PDX)
K145: 97218 | L145: Portland | M145: Multnomah | N145: 4C | P145: 97868 | Q145: Pilot Rock | R145: OR | S145: 45.402303 | T145: 118.76751 | U145: 3.182303 | V145: 0.119303 | W145: 3.235303 | X145: 3.212303 | Y145: 1.985303 | Z145: -0.297697 | AA145: -0.197697 | AB145: -0.130697 | AC145: -0.147694 | AD145: 1.152303 | AE145: 2.169303 | AF145: 0.502306 | AG145: 2.802303 | AH145: -0.747694 | AI145: 0.152303 | AJ145: 0.569303 | AK145: 1.882303 | AL145: 0.919303 | AM145: 1.352306 | AN145: -2.97249 | AO145: 0.76751 | AP145: -1.632487 | AQ145: -3.932487 | AR145: -5.48249 | AS145: -0.06549 | AT145: -3.84949 | AU145: -4.182487 | AV145: -3.63249 | AW145: -2.39949 | AX145: -4.582487 | AY145: -4.23249 | AZ145: -4.59949 | BA145: -5.11549 | BB145: -3.99949 | BC145: 0.95051 | BD145: -0.25249 | BE145: -4.51549 | BF145: -4.30249 | BG145: 4.354623885 | BH145: 0.7767269829 | BI145: 3.623837649 | BJ145: 5.077730258 | BK145: 5.83087683 | BL145: 0.304815426 | BM145: 3.854563187 | BN145: 4.184528553 | BO145: 3.635491317 | BP145: 2.661832914 | BQ145: 5.070016037 | BR145: 4.262192267 | BS145: 5.385927066 | BT145: 5.169843736 | BU145: 4.002388845 | BV145: 1.107959912 | BW145: 1.899161864 | BX145: 4.608119784 | BY145: 4.510005734 | BZ145: Pendleton
K146: 97219 | L146: Portland | M146: Multnomah | N146: 4C | P146: 97751 | Q146: Paulina | R146: OR | S146: 44.113537 | T146: 119.79377 | U146: 1.893537 | V146: -1.169463 | W146: 1.946537 | X146: 1.923537 | Y146: 0.696537 | Z146: -1.586463 | AA146: -1.486463 | AB146: -1.419463 | AC146: -1.43646 | AD146: -0.136463 | AE146: 0.880537 | AF146: -0.78646 | AG146: 1.513537 | AH146: -2.03646 | AI146: -1.136463 | AJ146: -0.719463 | AK146: 0.593537 | AL146: -0.369463 | AM146: 0.06354 | AN146: -1.94623 | AO146: 1.79377 | AP146: -0.606227 | AQ146: -2.906227 | AR146: -4.45623 | AS146: 0.96077 | AT146: -2.82323 | AU146: -3.156227 | AV146: -2.60623 | AW146: -1.37323 | AX146: -3.556227 | AY146: -3.20623 | AZ146: -3.57323 | BA146: -4.08923 | BB146: -2.97323 | BC146: 1.97677 | BD146: 0.77377 | BE146: -3.48923 | BF146: -3.27623 | BG146: 2.715380928 | BH146: 2.141320742 | BI146: 2.038753901 | BJ146: 3.485132704 | BK146: 4.510338081 | BL146: 1.85470856 | BM146: 3.19064255 | BN146: 3.460728837 | BO146: 2.975878382 | BP146: 1.379993762 | BQ146: 3.663617868 | BR146: 3.301277048 | BS146: 3.880562702 | BT146: 4.568256924 | BU146: 3.183024471 | BV146: 2.10362702 | BW146: 0.975195459 | BX146: 3.508736083 | BY146: 3.276846097 | BZ146: Burns
K147: 97220 | L147: Portland | M147: Multnomah | N147: 4C | P147: 97621 | Q147: Beatty | R147: OR | S147: 42.476579 | T147: 121.23055 | U147: =$S147-VLOOKUP(U$18,$A$19:$F$37,5,FALSE) -> 0.256579 | V147: -2.806421 | W147: 0.309579 | X147: 0.286579 | Y147: -0.940421 | Z147: -3.223421 | AA147: -3.123421 | AB147: -3.056421 | AC147: -3.073418 | AD147: -1.773421 | AE147: -0.756421 | AF147: -2.423418 | AG147: -0.123421 | AH147: -3.673418 | AI147: -2.773421 | AJ147: -2.356421 | AK147: =$S147-VLOOKUP(AK$18,$A$19:$F$37,5,FALSE) -> -1.043421 | AL147: -2.006421 | AM147: -1.573418 | AN147: =$T147-VLOOKUP(AN$18,$A$19:$F$37,6,FALSE) -> -0.50945 | AO147: 3.23055 | AP147: 0.830553 | AQ147: -1.469447 | AR147: -3.01945 | AS147: 2.39755 | AT147: -1.38645 | AU147: -1.719447 | AV147: -1.16945 | AW147: 0.06355 | AX147: -2.119447 | AY147: -1.76945 | AZ147: -2.13645 | BA147: -2.65245 | BB147: -1.53645 | BC147: 3.41355 | BD147: =$T147-VLOOKUP(BD$18,$A$19:$F$37,6,FALSE) -> 2.21055 | BE147: -2.05245 | BF147: -1.83945 | BG147: 0.57041396 | BH147: 4.279305099 | BI147: 0.8863731963 | BJ147: 1.49713126 | BK147: 3.162510073 | BL147: 4.017298713 | BM147: 3.417309226 | BN147: 3.506879997 | BO147: 3.288390413 | BP147: 1.774559282 | BQ147: 2.250384037 | BR147: 3.00065128 | BS147: 2.140011997 | BT147: 4.530948113 | BU147: 3.170574498 | BV147: 4.147896278 | BW147: 2.444434226 | BX147: 2.870239752 | BY147: 2.420582679 | BZ147: Klamath Falls
K148: 97221 | L148: Portland | M148: Multnomah | N148: =IFERROR(VLOOKUP(M148,$H$19:$I$36,2,FALSE),"4C") -> 4C | P148: 97364 | Q148: Neotsu | R148: OR | S148: 44.997061 | T148: 123.98589 | U148: 2.777061 | V148: -0.285939 | W148: 2.830061 | X148: 2.807061 | Y148: 1.580061 | Z148: -0.702939 | AA148: -0.602939 | AB148: -0.535939 | AC148: -0.552936 | AD148: 0.747061 | AE148: 1.764061 | AF148: 0.097064 | AG148: 2.397061 | AH148: -1.152936 | AI148: -0.252939 | AJ148: 0.164061 | AK148: 1.477061 | AL148: 0.514061 | AM148: 0.947064 | AN148: 2.24589 | AO148: 5.98589 | AP148: 3.585893 | AQ148: 1.285893 | AR148: -0.26411 | AS148: 5.15289 | AT148: 1.36889 | AU148: 1.035893 | AV148: 1.58589 | AW148: 2.81889 | AX148: 0.635893 | AY148: 0.98589 | AZ148: 0.61889 | BA148: 0.10289 | BB148: 1.21889 | BC148: 6.16889 | BD148: 4.96589 | BE148: 0.70289 | BF148: 0.91589 | BG148: 3.57156684 | BH148: 5.992715595 | BI148: 4.568136805 | BJ148: 3.087573848 | BK148: 1.601982165 | BL148: 5.200615213 | BM148: 1.495792522 | BN148: 1.166321105 | BO148: 1.679519369 | BP148: 2.916203177 | BQ148: 1.875172291 | BR148: 0.9906566066 | BS148: 2.475666833 | BT148: 1.157517936 | BU148: 1.244857811 | BV148: 6.171071207 | BW148: 5.180904621 | BX148: 0.870811727 | BY148: 1.317491826 | BZ148: =INDEX($BG$18:$BY$18,MATCH(MIN(BG148:BY148),BG148:BY148,0)) -> Corvallis
K149: 97222 | L149: Portland | M149: Clackamas | N149: 4C | P149: 97856 | Q149: Long Creek | R149: OR | S149: 44.743532 | T149: 119.11886 | U149: 2.523532 | V149: -0.539468 | W149: 2.576532 | X149: 2.553532 | Y149: 1.326532 | Z149: -0.956468 | AA149: -0.856468 | AB149: -0.789468 | AC149: -0.806465 | AD149: 0.493532 | AE149: 1.510532 | AF149: -0.156465 | AG149: 2.143532 | AH149: -1.406465 | AI149: -0.506468 | AJ149: -0.089468 | AK149: 1.223532 | AL149: 0.260532 | AM149: 0.693535 | AN149: -2.62114 | AO149: 1.11886 | AP149: -1.281137 | AQ149: -3.581137 | AR149: -5.13114 | AS149: 0.28586 | AT149: -3.49814 | AU149: -3.831137 | AV149: -3.28114 | AW149: -2.04814 | AX149: -4.231137 | AY149: -3.88114 | AZ149: -4.24814 | BA149: -4.76414 | BB149: -3.64814 | BC149: 1.30186 | BD149: 0.09886 | BE149: -4.16414 | BF149: -3.95114 | BG149: 3.638487138 | BH149: 1.24212456 | BI149: 2.877469228 | BJ149: 4.398302842 | BK149: 5.299838191 | BL149: 0.9982719943 | BM149: 3.601460939 | BN149: 3.911632707 | BO149: 3.378796457 | BP149: 2.106763227 | BQ149: 4.492685971 | BR149: 3.884292599 | BS149: 4.758300421 | BT149: 4.96741117 | BU149: 3.683128466 | BV149: 1.304930643 | BW149: 1.227519391 | BX149: 4.172282213 | BY149: 4.011545599 | BZ149: Pendleton
K150: 97223 | L150: Portland | M150: Washington | N150: 4C | P150: 97214 | Q150: Portland | R150: OR | S150: 45.51379 | T150: 122.6458 | U150: 3.29379 | V150: 0.23079 | W150: 3.34679 | X150: 3.32379 | Y150: 2.09679 | Z150: -0.18621 | AA150: -0.08621 | AB150: -0.01921 | AC150: -0.036207 | AD150: 1.26379 | AE150: 2.28079 | AF150: 0.613793 | AG150: 2.91379 | AH150: -0.636207 | AI150: 0.26379 | AJ150: 0.68079 | AK150: 1.99379 | AL150: 1.03079 | AM150: 1.463793 | AN150: 0.9058 | AO150: 4.6458 | AP150: 2.245803 | AQ150: -0.054197 | AR150: -1.6042 | AS150: 3.8128 | AT150: 0.0288 | AU150: -0.304197 | AV150: 0.2458 | AW150: 1.4788 | AX150: -0.704197 | AY150: -0.3542 | AZ150: -0.7212 | BA150: -1.2372 | BB150: -0.1212 | BC150: 4.8288 | BD150: 3.6258 | BE150: -0.6372 | BF150: -0.4242 | BG150: 3.416068823 | BH150: 4.65152896 | BI150: 4.030463301 | BJ150: 3.324231833 | BK150: 2.640073094 | BL150: 3.817344365 | BM150: 0.09089336664 | BN150: 0.304802951 | BO150: 0.2484523835 | BP150: 1.94525438 | BQ150: =SQRT(AE150^2+AX150^2) -> 2.387026694 | BR150: 0.7086603466 | BS150: 3.001716443 | BT150: 1.391194877 | BU150: 0.2903008855 | BV150: 4.876554569 | BW150: 4.137828441 | BX150: 1.211838217 | BY150: 1.524019549 | BZ150: Portland (PDX)
K151: 97224 | L151: Portland | M151: Washington | N151: 4C | P151: 97425 | Q151: Crescent Lake | R151: OR | S151: 43.472276 | T151: 121.92768 | U151: 1.252276 | V151: -1.810724 | W151: 1.305276 | X151: 1.282276 | Y151: 0.055276 | Z151: -2.227724 | AA151: -2.127724 | AB151: -2.060724 | AC151: -2.077721 | AD151: -0.777724 | AE151: 0.239276 | AF151: -1.427721 | AG151: 0.872276 | AH151: -2.677721 | AI151: -1.777724 | AJ151: -1.360724 | AK151: -0.047724 | AL151: -1.010724 | AM151: -0.577721 | AN151: 0.18768 | AO151: 3.92768 | AP151: 1.527683 | AQ151: -0.772317 | AR151: -2.32232 | AS151: 3.09468 | AT151: -0.68932 | AU151: -1.022317 | AV151: -0.47232 | AW151: 0.76068 | AX151: -1.422317 | AY151: -1.07232 | AZ151: -1.43932 | BA151: -1.95532 | BB151: -0.83932 | BC151: 4.11068 | BD151: 2.90768 | BE151: -1.35532 | BF151: -1.14232 | BG151: 1.266261806 | BH151: 4.324973016 | BI151: 2.009368255 | BJ151: 1.496898557 | BK151: 2.322977748 | BL151: 3.813108774 | BM151: 2.236598194 | BN151: 2.300372894 | BO151: 2.130730095 | BP151: 1.08788266 | BQ151: 1.442303246 | BR151: 1.785569219 | BS151: 1.683005491 | BT151: 3.315639615 | BU151: 1.965899459 | BV151: 4.330041555 | BW151: 2.908071623 | BX151: 1.690696693 | BY151: 1.280100206 | BZ151: Redmond
K152: 97225 | L152: Portland | M152: Washington | N152: 4C | P152: 97007 | Q152: Beaverton | R152: OR | S152: 45.469079 | T152: 122.85602 | U152: 3.249079 | V152: 0.186079 | W152: 3.302079 | X152: 3.279079 | Y152: 2.052079 | Z152: -0.230921 | AA152: -0.130921 | AB152: -0.063921 | AC152: -0.080918 | AD152: 1.219079 | AE152: 2.236079 | AF152: 0.569082 | AG152: 2.869079 | AH152: -0.680918 | AI152: 0.219079 | AJ152: 0.636079 | AK152: 1.949079 | AL152: 0.986079 | AM152: 1.419082 | AN152: 1.11602 | AO152: 4.85602 | AP152: 2.456023 | AQ152: 0.156023 | AR152: -1.39398 | AS152: 4.02302 | AT152: 0.23902 | AU152: -0.093977 | AV152: 0.45602 | AW152: 1.68902 | AX152: -0.493977 | AY152: -0.14398 | AZ152: -0.51098 | BA152: -1.02698 | BB152: 0.08902 | BC152: 5.03902 | BD152: 3.83602 | BE152: -0.42698 | BF152: -0.21398 | BG152: 3.435406088 | BH152: 4.859583895 | BI152: 4.115309794 | BJ152: 3.282788794 | BK152: 2.480767716 | BL152: 4.029641973 | BM152: 0.2725268219 | BN152: 0.1136554916 | BO152: 0.4631435664 | BP152: 2.083012762 | BQ152: 2.289991828 | BR152: 0.5870132563 | BS152: 2.91422629 | BT152: 1.232208279 | BU152: 0.2364744566 | BV152: 5.079007684 | BW152: 4.302784957 | BX152: 1.074552798 | BY152: 1.435124093 | BZ152: Portland (Hillsboro)
K153: 97226 | L153: Portland | M153: Multnomah | N153: 4C | P153: 97042 | Q153: Mulino | R153: OR | S153: 45.21307 | T153: 122.54321 | U153: 2.99307 | V153: -0.06993 | W153: 3.04607 | X153: 3.02307 | Y153: 1.79607 | Z153: -0.48693 | AA153: -0.38693 | AB153: -0.31993 | AC153: -0.336927 | AD153: 0.96307 | AE153: 1.98007 | AF153: 0.313073 | AG153: 2.61307 | AH153: -0.936927 | AI153: -0.03693 | AJ153: 0.38007 | AK153: 1.69307 | AL153: 0.73007 | AM153: 1.163073 | AN153: 0.80321 | AO153: 4.54321 | AP153: 2.143213 | AQ153: -0.156787 | AR153: -1.70679 | AS153: 3.71021 | AT153: -0.07379 | AU153: -0.406787 | AV153: 0.14321 | AW153: 1.37621 | AX153: -0.806787 | AY153: -0.45679 | AZ153: -0.82379 | BA153: -1.33979 | BB153: -0.22379 | BC153: 4.72621 | BD153: 3.52321 | BE153: -0.73979 | BF153: -0.52679 | BG153: 3.098969882 | BH153: 4.543748156 | BI153: 3.724500558 | BJ153: 3.027133031 | BK153: 2.477700456 | BL153: 3.742026065 | BM153: 0.3939032737 | BN153: 0.5175237852 | BO153: 0.3660995868 | BP153: 1.679719557 | BQ153: 2.138125924 | BR153: 0.5537795657 | BS153: 2.739847585 | BT153: 1.634891265 | BU153: 0.2268166418 | BV153: 4.741467512 | BW153: 3.908899427 | BX153: 1.039370699 | BY153: 1.27681107 | BZ153: Aurora
K154: 97228 | L154: Portland | M154: Multnomah | N154: 4C | P154: 97208 | Q154: Portland | R154: OR | S154: 45.532165 | T154: 122.564824 | U154: 3.312165 | V154: 0.249165 | W154: 3.365165 | X154: 3.342165 | Y154: 2.115165 | Z154: -0.167835 | AA154: -0.067835 | AB154: -0.000835 | AC154: -0.017832 | AD154: 1.282165 | AE154: 2.299165 | AF154: 0.632168 | AG154: 2.932165 | AH154: -0.617832 | AI154: 0.282165 | AJ154: 0.699165 | AK154: 2.012165 | AL154: 1.049165 | AM154: 1.482168 | AN154: 0.824824 | AO154: 4.564824 | AP154: 2.164827 | AQ154: -0.135173 | AR154: -1.685176 | AS154: 3.731824 | AT154: -0.052176 | AU154: -0.385173 | AV154: 0.164824 | AW154: 1.397824 | AX154: -0.785173 | AY154: -0.435176 | AZ154: -0.802176 | BA154: -1.318176 | BB154: -0.202176 | BC154: 4.747824 | BD154: 3.544824 | BE154: -0.718176 | BF154: -0.505176 | BG154: 3.413322665 | BH154: 4.571619117 | BI154: 4.001351199 | BJ154: 3.344897402 | BK154: 2.704392932 | BL154: 3.735596198 | BM154: 0.08557991704 | BN154: 0.3851739051 | BO154: 0.1657857992 | BP154: 1.896802315 | BQ154: 2.429538297 | BR154: 0.7674728211 | BS154: 3.039914131 | BT154: 1.45578307 | BU154: 0.347119896 | BV154: 4.799027446 | BW154: 4.07609926 | BX154: 1.271425957 | BY154: 1.56589424 | BZ154: Portland (PDX)
K155: 97229 | L155: Portland | M155: Washington | N155: 4C | P155: 97018 | Q155: Columbia City | R155: OR | S155: 45.891952 | T155: 122.8132 | U155: 3.671952 | V155: 0.608952 | W155: 3.724952 | X155: 3.701952 | Y155: 2.474952 | Z155: 0.191952 | AA155: 0.291952 | AB155: 0.358952 | AC155: 0.341955 | AD155: 1.641952 | AE155: 2.658952 | AF155: 0.991955 | AG155: 3.291952 | AH155: -0.258045 | AI155: 0.641952 | AJ155: 1.058952 | AK155: 2.371952 | AL155: 1.408952 | AM155: 1.841955 | AN155: 1.0732 | AO155: 4.8132 | AP155: 2.413203 | AQ155: 0.113203 | AR155: -1.4368 | AS155: 3.9802 | AT155: 0.1962 | AU155: -0.136797 | AV155: 0.4132 | AW155: 1.6462 | AX155: -0.536797 | AY155: -0.1868 | AZ155: -0.5538 | BA155: -1.0698 | BB155: 0.0462 | BC155: 4.9962 | BD155: 3.7932 | BE155: -0.4698 | BF155: -0.2568 | BG155: 3.82557051 | BH155: 4.851568486 | BI155: 4.438334837 | BJ155: 3.703682428 | BK155: 2.861779454 | BL155: 3.98482592 | BM155: 0.3517533373 | BN155: 0.3841353375 | BO155: 0.5363464011 | BP155: 2.325076517 | BQ155: 2.712595944 | BR155: 1.009390391 | BS155: 3.338209462 | BT155: 1.100481377 | BU155: 0.6436123137 | BV155: 5.1071904 | BW155: 4.473759329 | BX155: 1.485213041 | BY155: 1.859770002 | BZ155: Portland (PDX)
K156: 97230 | L156: Portland | M156: Multnomah | N156: 4C | P156: 97466 | Q156: Powers | R156: OR | S156: 42.873137 | T156: 124.07835 | U156: 0.653137 | V156: -2.409863 | W156: 0.706137 | X156: 0.683137 | Y156: -0.543863 | Z156: -2.826863 | AA156: -2.726863 | AB156: -2.659863 | AC156: -2.67686 | AD156: -1.376863 | AE156: -0.359863 | AF156: -2.02686 | AG156: 0.273137 | AH156: -3.27686 | AI156: -2.376863 | AJ156: -1.959863 | AK156: -0.646863 | AL156: -1.609863 | AM156: -1.17686 | AN156: 2.33835 | AO156: 6.07835 | AP156: 3.678353 | AQ156: 1.378353 | AR156: -0.17165 | AS156: 5.24535 | AT156: 1.46135 | AU156: 1.128353 | AV156: 1.67835 | AW156: 2.91135 | AX156: 0.728353 | AY156: 1.07835 | AZ156: 0.71135 | BA156: 0.19535 | BB156: 1.31135 | BC156: 6.26135 | BD156: 5.05835 | BE156: 0.79535 | BF156: 1.00835 | BG156: 2.427852686 | BH156: 6.53863735 | BI156: 3.74551869 | BJ156: 1.53835404 | BK156: 0.5703075357 | BL156: 5.958594721 | BM156: 3.093755912 | BN156: 2.889299512 | BO156: 3.159499673 | BP156: 3.220514018 | BQ156: 0.8124035151 | BR156: 2.295865889 | BS156: 0.7619859863 | BT156: 3.28267773 | BU156: 2.714611674 | BV156: 6.56091204 | BW156: 5.09954277 | BX156: 1.795617025 | BY156: 1.549764234 | BZ156: North Bend
K157: 97231 | L157: Portland | M157: Multnomah | N157: 4C | P157: 97076 | Q157: Beaverton | R157: OR | S157: 45.548616 | T157: 123.114725 | U157: 3.328616 | V157: 0.265616 | W157: 3.381616 | X157: 3.358616 | Y157: 2.131616 | Z157: -0.151384 | AA157: -0.051384 | AB157: 0.015616 | AC157: -0.001381 | AD157: 1.298616 | AE157: 2.315616 | AF157: 0.648619 | AG157: 2.948616 | AH157: -0.601381 | AI157: 0.298616 | AJ157: 0.715616 | AK157: 2.028616 | AL157: 1.065616 | AM157: 1.498619 | AN157: 1.374725 | AO157: 5.114725 | AP157: 2.714728 | AQ157: 0.414728 | AR157: -1.135275 | AS157: 4.281725 | AT157: 0.497725 | AU157: 0.164728 | AV157: 0.714725 | AW157: 1.947725 | AX157: -0.235272 | AY157: 0.114725 | AZ157: -0.252275 | BA157: -0.768275 | BB157: 0.347725 | BC157: 5.297725 | BD157: 4.094725 | BE157: -0.168275 | BF157: 0.044725 | BG157: 3.601326603 | BH157: 5.121617292 | BI157: 4.336481856 | BJ157: 3.384124813 | BK157: 2.415085112 | BL157: 4.284400319 | BM157: 0.5003703539 | BN157: 0.1654665327 | BO157: 0.7147263342 | BP157: 2.340947712 | BQ157: 2.327537405 | BR157: 0.6586869004 | BS157: 2.95938828 | BT157: 0.9756564881 | BU157: 0.4583494203 | BV157: 5.34583917 | BW157: 4.569688797 | BX157: 1.078820622 | BY157: 1.499286241 | BZ157: Portland (Hillsboro)
K158: 97232 | L158: Portland | M158: Multnomah | N158: 4C | P158: 97423 | Q158: Coquille | R158: OR | S158: 43.187219 | T158: 124.16396 | U158: 0.967219 | V158: -2.095781 | W158: 1.020219 | X158: 0.997219 | Y158: -0.229781 | Z158: -2.512781 | AA158: -2.412781 | AB158: -2.345781 | AC158: -2.362778 | AD158: -1.062781 | AE158: -0.045781 | AF158: -1.712778 | AG158: 0.587219 | AH158: -2.962778 | AI158: -2.062781 | AJ158: -1.645781 | AK158: -0.332781 | AL158: -1.295781 | AM158: -0.862778 | AN158: 2.42396 | AO158: 6.16396 | AP158: 3.763963 | AQ158: 1.463963 | AR158: -0.08604 | AS158: 5.33096 | AT158: 1.54696 | AU158: 1.213963 | AV158: 1.76396 | AW158: 2.99696 | AX158: 0.813963 | AY158: 1.16396 | AZ158: 0.79696 | BA158: 0.28096 | BB158: 1.39696 | BC158: 6.34696 | BD158: 5.14396 | BE158: 0.88096 | BF158: 1.09396 | BG158: 2.609807402 | BH158: 6.51050696 | BI158: 3.899777465 | BJ158: 1.771336614 | BK158: 0.2453613449 | BL158: 5.893488176 | BM158: 2.866111895 | BN158: 2.641286555 | BO158: 2.948605562 | BP158: 3.179822746 | BQ158: 0.8152494498 | BR158: 2.070847981 | BS158: 0.9899350461 | BT158: 2.976069891 | BU158: 2.491297392 | BV158: 6.556866351 | BW158: 5.154713152 | BX158: 1.566888293 | BY158: 1.393245979 | BZ158: North Bend
K159: 97233 | L159: Portland | M159: Multnomah | N159: 4C | P159: 97103 | Q159: Astoria | R159: OR | S159: 46.155007 | T159: 123.7417 | U159: 3.935007 | V159: 0.872007 | W159: 3.988007 | X159: 3.965007 | Y159: 2.738007 | Z159: 0.455007 | AA159: 0.555007 | AB159: 0.622007 | AC159: 0.60501 | AD159: 1.905007 | AE159: 2.922007 | AF159: 1.25501 | AG159: 3.555007 | AH159: 0.00501 | AI159: 0.905007 | AJ159: 1.322007 | AK159: 2.635007 | AL159: 1.672007 | AM159: 2.10501 | AN159: 2.0017 | AO159: 5.7417 | AP159: 3.341703 | AQ159: 1.041703 | AR159: -0.5083 | AS159: 4.9087 | AT159: 1.1247 | AU159: 0.791703 | AV159: 1.3417 | AW159: 2.5747 | AX159: 0.391703 | AY159: 0.7417 | AZ159: 0.3747 | BA159: -0.1413 | BB159: 0.9747 | BC159: 5.9247 | BD159: 4.7217 | BE159: 0.4587 | BF159: 0.6717 | BG159: 4.414870664 | BH159: 5.807539505 | BI159: 5.202997095 | BJ159: 4.099564081 | BK159: 2.78478926 | BL159: 4.929743103 | BM159: 1.254186135 | BN159: 1.006819918 | BO159: 1.471800255 | BP159: 3.202831834 | BQ159: 2.948144526 | BR159: 1.457795936 | BS159: 3.574699268 | BT159: 0.1413887906 | BU159: 1.330066825 | BV159: 6.070401354 | BW159: 5.40719084 | BX159: 1.733785771 | BY159: 2.209580954 | BZ159: Astoria
K160: 97236 | L160: Portland | M160: Multnomah | N160: 4C | P160: 97826 | Q160: Echo | R160: OR | S160: 45.720228 | T160: 119.22894 | U160: 3.500228 | V160: 0.437228 | W160: 3.553228 | X160: 3.530228 | Y160: 2.303228 | Z160: 0.020228 | AA160: 0.120228 | AB160: 0.187228 | AC160: 0.170231 | AD160: 1.470228 | AE160: 2.487228 | AF160: 0.820231 | AG160: 3.120228 | AH160: -0.429769 | AI160: 0.470228 | AJ160: 0.887228 | AK160: 2.200228 | AL160: 1.237228 | AM160: 1.670231 | AN160: -2.51106 | AO160: 1.22894 | AP160: -1.171057 | AQ160: -3.471057 | AR160: -5.02106 | AS160: 0.39594 | AT160: -3.38806 | AU160: -3.721057 | AV160: -3.17106 | AW160: -1.93806 | AX160: -4.121057 | AY160: -3.77106 | AZ160: -4.13806 | BA160: -4.65406 | BB160: -3.53806 | BC160: 1.41194 | BD160: 0.20894 | BE160: -4.05406 | BF160: -3.84106 | BG160: 4.307785786 | BH160: 1.304400954 | BI160: 3.741230241 | BJ160: 4.950832903 | BK160: 5.524120088 | BL160: 0.3964563729 | BM160: 3.390192522 | BN160: 3.725764287 | BO160: 3.175625941 | BP160: 2.432621412 | BQ160: 4.81346174 | BR160: 3.859232102 | BS160: 5.182601985 | BT160: 4.673860918 | BU160: 3.569171183 | BV160: 1.667557522 | BW160: 2.210126507 | BX160: 4.238647851 | BY160: 4.188485826 | BZ160: Pendleton
K161: 97238 | L161: Portland | M161: Multnomah | N161: 4C | P161: 97438 | Q161: Fall Creek | R161: OR | S161: 43.958389 | T161: 122.75701 | U161: 1.738389 | V161: -1.324611 | W161: 1.791389 | X161: 1.768389 | Y161: 0.541389 | Z161: -1.741611 | AA161: -1.641611 | AB161: -1.574611 | AC161: -1.591608 | AD161: -0.291611 | AE161: 0.725389 | AF161: -0.941608 | AG161: 1.358389 | AH161: -2.191608 | AI161: -1.291611 | AJ161: -0.874611 | AK161: 0.438389 | AL161: -0.524611 | AM161: -0.091608 | AN161: 1.01701 | AO161: 4.75701 | AP161: 2.357013 | AQ161: 0.057013 | AR161: -1.49299 | AS161: 3.92401 | AT161: 0.14001 | AU161: -0.192987 | AV161: 0.35701 | AW161: 1.59001 | AX161: -0.592987 | AY161: -0.24299 | AZ161: -0.60999 | BA161: -1.12599 | BB161: -0.00999 | BC161: 4.94001 | BD161: 3.73701 | BE161: -0.52599 | BF161: -0.31299 | BG161: 2.014027223 | BH161: 4.937989312 | BI161: 2.960504152 | BJ161: 1.769307813 | BK161: 1.588118758 | BL161: 4.293141432 | BM161: 1.64757078 | BN161: 1.586393326 | BO161: 1.631156696 | BP161: 1.616529856 | BQ161: 0.936921973 | BR161: 0.9724555341 | BS161: 1.489062952 | BT161: 2.463939753 | BU161: 1.291649633 | BV161: 5.016835975 | BW161: 3.762635865 | BX161: 0.7428877314 | BY161: 0.326120784 | BZ161: Eugene
K162: 97239 | L162: Portland | M162: Multnomah | N162: 4C | P162: 97842 | Q162: Imnaha | R162: OR | S162: 45.479993 | T162: 116.79861 | U162: 3.259993 | V162: 0.196993 | W162: 3.312993 | X162: 3.289993 | Y162: 2.062993 | Z162: -0.220007 | AA162: -0.120007 | AB162: -0.053007 | AC162: -0.070004 | AD162: 1.229993 | AE162: 2.246993 | AF162: 0.579996 | AG162: 2.879993 | AH162: -0.670004 | AI162: 0.229993 | AJ162: 0.646993 | AK162: 1.959993 | AL162: 0.996993 | AM162: 1.429996 | AN162: -4.94139 | AO162: -1.20139 | AP162: -3.601387 | AQ162: -5.901387 | AR162: -7.45139 | AS162: -2.03439 | AT162: -5.81839 | AU162: -6.151387 | AV162: -5.60139 | AW162: -4.36839 | AX162: -6.551387 | AY162: -6.20139 | AZ162: -6.56839 | BA162: -7.08439 | BB162: -5.96839 | BC162: -1.01839 | BD162: -2.22139 | BE162: -6.48439 | BF162: -6.27139 | BG162: 5.919872422 | BH162: 1.217433437 | BI162: 4.89345593 | BJ162: 6.756509636 | BK162: 7.731697941 | BL162: 2.046251635 | BM162: 5.819627469 | BN162: 6.151615379 | BO162: 5.601827424 | BP162: 4.5382501 | BQ162: 6.926012501 | BR162: 6.228453523 | BS162: 7.172036452 | BT162: 7.11600218 | BU162: 5.972819767 | BV162: 1.206531448 | BW162: 2.962456091 | BX162: 6.560587528 | BY162: 6.432357351 | BZ162: Baker
K163: 97240 | L163: Portland | M163: Multnomah | N163: 4C | P163: 97257 | Q163: Grants Pass | R163: OR | S163: 42.421567 | T163: 123.33749 | U163: =$S163-VLOOKUP(U$18,$A$19:$F$37,5,FALSE) -> 0.201567 | V163: -2.861433 | W163: 0.254567 | X163: 0.231567 | Y163: -0.995433 | Z163: -3.278433 | AA163: -3.178433 | AB163: -3.111433 | AC163: -3.12843 | AD163: -1.828433 | AE163: -0.811433 | AF163: -2.47843 | AG163: -0.178433 | AH163: -3.72843 | AI163: -2.828433 | AJ163: -2.411433 | AK163: =$S163-VLOOKUP(AK$18,$A$19:$F$37,5,FALSE) -> -1.098433 | AL163: -2.061433 | AM163: -1.62843 | AN163: =$T163-VLOOKUP(AN$18,$A$19:$F$37,6,FALSE) -> 1.59749 | AO163: 5.33749 | AP163: 2.937493 | AQ163: 0.637493 | AR163: -0.91251 | AS163: 4.50449 | AT163: 0.72049 | AU163: 0.387493 | AV163: 0.93749 | AW163: 2.17049 | AX163: -0.012507 | AY163: 0.33749 | AZ163: -0.02951 | BA163: -0.54551 | BB163: 0.57049 | BC163: 5.52049 | BD163: =$T163-VLOOKUP(BD$18,$A$19:$F$37,6,FALSE) -> 4.31749 | BE163: 0.05449 | BF163: 0.26749 | BG163: 1.610156376 | BH163: 6.056120731 | BI163: 2.948502922 | BJ163: 0.6782481851 | BK163: 1.350393038 | BL163: 5.571225457 | BM163: =SQRT(AA163^2+AT163^2) -> 3.259070753 | BN163: 3.135469046 | BO163: 3.265878406 | BP163: 2.837991204 | BQ163: 0.8115293824 | BR163: 2.501302614 | BS163: 0.180856782 | BT163: 3.768125718 | BU163: 2.885392881 | BV163: 6.024186165 | BW163: 4.455028053 | BX163: 2.062153043 | BY163: 1.650253061 | BZ163: Sexton
K164: 97242 | L164: Portland | M164: Multnomah | N164: 4C | P164: 97544 | Q164: Williams | R164: OR | S164: 42.155392 | T164: 123.2978 | U164: -0.064608 | V164: -3.127608 | W164: -0.011608 | X164: -0.034608 | Y164: -1.261608 | Z164: -3.544608 | AA164: -3.444608 | AB164: -3.377608 | AC164: -3.394605 | AD164: -2.094608 | AE164: -1.077608 | AF164: -2.744605 | AG164: -0.444608 | AH164: -3.994605 | AI164: -3.094608 | AJ164: -2.677608 | AK164: -1.364608 | AL164: -2.327608 | AM164: -1.894605 | AN164: 1.5578 | AO164: 5.2978 | AP164: 2.897803 | AQ164: 0.597803 | AR164: -0.9522 | AS164: 4.4648 | AT164: 0.6808 | AU164: 0.347803 | AV164: 0.8978 | AW164: 2.1308 | AX164: -0.052197 | AY164: 0.2978 | AZ164: -0.0692 | BA164: -0.5852 | BB164: 0.5308 | BC164: 5.4808 | BD164: 4.2778 | BE164: 0.0148 | BF164: 0.2278 | BG164: =SQRT(U164^2+AN164^2) -> 1.559139196 | BH164: 6.152122938 | BI164: 2.89782625 | BJ164: 0.5988039249 | BK164: 1.580613674 | BL164: 5.700761784 | BM164: 3.511240936 | BN164: 3.395467969 | BO164: 3.51132282 | BP164: 2.987924248 | BQ164: 1.078871414 | BR164: 2.760713938 | BS164: 0.4499610135 | BT164: 4.037242641 | BU164: 3.139800521 | BV164: 6.099897806 | BW164: 4.49018127 | BX164: 2.327655052 | BY164: 1.908250756 | BZ164: Sexton
K165: 97251 | L165: Portland | M165: Multnomah | N165: 4C | P165: 97914 | Q165: Ontario | R165: OR | S165: 44.057074 | T165: 116.99148 | U165: 1.837074 | V165: -1.225926 | W165: 1.890074 | X165: 1.867074 | Y165: 0.640074 | Z165: -1.642926 | AA165: -1.542926 | AB165: -1.475926 | AC165: -1.492923 | AD165: -0.192926 | AE165: 0.824074 | AF165: -0.842923 | AG165: 1.457074 | AH165: -2.092923 | AI165: -1.192926 | AJ165: -0.775926 | AK165: 0.537074 | AL165: -0.425926 | AM165: 0.007077 | AN165: -4.74852 | AO165: -1.00852 | AP165: -3.408517 | AQ165: -5.708517 | AR165: -7.25852 | AS165: -1.84152 | AT165: -5.62552 | AU165: -5.958517 | AV165: -5.40852 | AW165: -4.17552 | AX165: -6.358517 | AY165: -6.00852 | AZ165: -6.37552 | BA165: -6.89152 | BB165: -5.77552 | BC165: -0.82552 | BD165: -2.02852 | BE165: -6.29152 | BF165: -6.07852 | BG165: 5.091491242 | BH165: 1.587453038 | BI165: 3.897482247 | BJ165: 6.006091213 | BK165: 7.286686992 | BL165: 2.467873934 | BM165: 5.833274887 | BN165: 6.13858961 | BO165: 5.610784943 | BP165: 4.179974607 | BQ165: 6.411695283 | BR165: 6.067357891 | BS165: 6.539902133 | BT165: 7.202317307 | BU165: 5.897431959 | BV165: 1.132936198 | BW165: 2.098414133 | BX165: 6.305920779 | BY165: 6.07852412 | BZ165: Baker
K166: 97253 | L166: Portland | M166: Multnomah | N166: 4C | P166: 97528 | Q166: Grants Pass | R166: OR | S166: 42.396421 | T166: 123.535027 | U166: 0.176421 | V166: -2.886579 | W166: 0.229421 | X166: 0.206421 | Y166: -1.020579 | Z166: -3.303579 | AA166: -3.203579 | AB166: -3.136579 | AC166: -3.153576 | AD166: -1.853579 | AE166: -0.836579 | AF166: -2.503576 | AG166: -0.203579 | AH166: -3.753576 | AI166: -2.853579 | AJ166: -2.436579 | AK166: -1.123579 | AL166: -2.086579 | AM166: -1.653576 | AN166: 1.795027 | AO166: 5.535027 | AP166: 3.13503 | AQ166: 0.83503 | AR166: -0.714973 | AS166: 4.702027 | AT166: 0.918027 | AU166: 0.58503 | AV166: 1.135027 | AW166: 2.368027 | AX166: 0.18503 | AY166: 0.535027 | AZ166: 0.168027 | BA166: -0.347973 | BB166: 0.768027 | BC166: 5.718027 | BD166: 4.515027 | BE166: 0.252027 | BF166: 0.465027 | BG166: 1.803675775 | BH166: 6.242504482 | BI166: 3.143413288 | BJ166: 0.8601655249 | BK166: 1.246101074 | BL166: 5.746537402 | BM166: 3.332520365 | BN166: 3.190672018 | BO166: 3.351615712 | BP166: 3.007209168 | BQ166: 0.8567966644 | BR166: 2.560106771 | BS166: 0.2639649256 | BT166: 3.769670807 | BU166: 2.955127507 | BV166: 6.215524917 | BW166: 4.652730229 | BX166: 2.101744402 | BY166: 1.717720495 | BZ166: Sexton
K167: 97254 | L167: Portland | M167: Multnomah | N167: 4C | P167: 97307 | Q167: Keizer | R167: OR | S167: 44.984465 | T167: 122.457024 | U167: 2.764465 | V167: -0.298535 | W167: 2.817465 | X167: 2.794465 | Y167: 1.567465 | Z167: -0.715535 | AA167: -0.615535 | AB167: -0.548535 | AC167: -0.565532 | AD167: 0.734465 | AE167: 1.751465 | AF167: 0.084468 | AG167: 2.384465 | AH167: -1.165532 | AI167: -0.265535 | AJ167: 0.151465 | AK167: 1.464465 | AL167: 0.501465 | AM167: 0.934468 | AN167: 0.717024 | AO167: 4.457024 | AP167: 2.057027 | AQ167: -0.242973 | AR167: -1.792976 | AS167: 3.624024 | AT167: -0.159976 | AU167: -0.492973 | AV167: 0.057024 | AW167: 1.290024 | AX167: -0.892973 | AY167: -0.542976 | AZ167: -0.909976 | BA167: -1.425976 | BB167: -0.309976 | BC167: 4.640024 | BD167: 3.437024 | BE167: -0.825976 | BF167: -0.612976 | BG167: 2.855939452 | BH167: 4.467010867 | BI167: 3.488476617 | BJ167: 2.805008113 | BK167: 2.381535106 | BL167: 3.693987045 | BM167: 0.6359840067 | BN167: 0.7375045932 | BO167: 0.5683996654 | BP167: 1.484453016 | BQ167: 1.965968063 | BR167: 0.5495068513 | BS167: 2.552200944 | BT167: 1.841703667 | BU167: 0.4081592297 | BV167: 4.642495489 | BW167: 3.73601281 | BX167: 0.9662833429 | BY167: 1.117573273 | BZ167: Aurora
K168: 97255 | L168: Portland | M168: Multnomah | N168: 4C | P168: 97338 | Q168: Dallas | R168: OR | S168: 44.920815 | T168: 123.33432 | U168: 2.700815 | V168: -0.362185 | W168: 2.753815 | X168: 2.730815 | Y168: 1.503815 | Z168: -0.779185 | AA168: -0.679185 | AB168: -0.612185 | AC168: -0.629182 | AD168: 0.670815 | AE168: 1.687815 | AF168: 0.020818 | AG168: 2.320815 | AH168: -1.229182 | AI168: -0.329185 | AJ168: 0.087815 | AK168: 1.400815 | AL168: 0.437815 | AM168: 0.870818 | AN168: 1.59432 | AO168: 5.33432 | AP168: 2.934323 | AQ168: 0.634323 | AR168: -0.91568 | AS168: 4.50132 | AT168: 0.71732 | AU168: 0.384323 | AV168: 0.93432 | AW168: 2.16732 | AX168: -0.015677 | AY168: 0.33432 | AZ168: -0.03268 | BA168: -0.54868 | BB168: 0.56732 | BC168: 5.51732 | BD168: 4.31432 | BE168: 0.05132 | BF168: 0.26432 | BG168: 3.136280907 | BH168: 5.346601522 | BI168: 4.024145689 | BJ168: 2.803518545 | BK168: 1.760661642 | BL168: 4.568261267 | BM168: 0.9878462667 | BN168: 0.7228240744 | BO168: 1.126420815 | BP168: 2.268759297 | BQ168: 1.687887805 | BR168: 0.334967538 | BS168: 2.321045076 | BT168: 1.346082513 | BU168: 0.6559075748 | BV168: 5.518018798 | BW168: 4.536037889 | BX168: 0.4408125641 | BY168: 0.9100489281 | BZ168: Salem
K169: 97256 | L169: Portland | M169: Multnomah | N169: 4C | P169: 97019 | Q169: Corbett | R169: OR | S169: 45.514515 | T169: 122.23283 | U169: 3.294515 | V169: 0.231515 | W169: 3.347515 | X169: 3.324515 | Y169: 2.097515 | Z169: -0.185485 | AA169: -0.085485 | AB169: -0.018485 | AC169: -0.035482 | AD169: 1.264515 | AE169: 2.281515 | AF169: 0.614518 | AG169: 2.914515 | AH169: -0.635482 | AI169: 0.264515 | AJ169: 0.681515 | AK169: 1.994515 | AL169: 1.031515 | AM169: 1.464518 | AN169: 0.49283 | AO169: 4.23283 | AP169: 1.832833 | AQ169: -0.467167 | AR169: -2.01717 | AS169: 3.39983 | AT169: -0.38417 | AU169: -0.717167 | AV169: -0.16717 | AW169: 1.06583 | AX169: -1.117167 | AY169: -0.76717 | AZ169: -1.13417 | BA169: -1.65017 | BB169: -0.53417 | BC169: 4.41583 | BD169: 3.21283 | BE169: -1.05017 | BF169: -0.83717 | BG169: 3.33117254 | BH169: 4.239156638 | BI169: 3.816429415 | BJ169: 3.357178129 | BK169: 2.910076285 | BL169: 3.404886006 | BM169: 0.3935660988 | BN169: 0.7174051861 | BO169: 0.1708940643 | BP169: 1.653781054 | BQ169: 2.540348953 | BR169: 0.9829456654 | BS169: 3.127417349 | BT169: 1.76830382 | BU169: 0.5960753091 | BV169: 4.468111154 | BW169: 3.781582565 | BX169: 1.472032684 | BY169: 1.686910365 | BZ169: Portland (Troutdale)
K170: 97258 | L170: Portland | M170: Multnomah | N170: 4C | P170: 97128 | Q170: Mcminnville | R170: OR | S170: 45.210104 | T170: 123.20747 | U170: 2.990104 | V170: -0.072896 | W170: 3.043104 | X170: 3.020104 | Y170: 1.793104 | Z170: -0.489896 | AA170: -0.389896 | AB170: -0.322896 | AC170: -0.339893 | AD170: 0.960104 | AE170: 1.977104 | AF170: 0.310107 | AG170: 2.610104 | AH170: -0.939893 | AI170: -0.039896 | AJ170: 0.377104 | AK170: 1.690104 | AL170: 0.727104 | AM170: 1.160107 | AN170: 1.46747 | AO170: 5.20747 | AP170: 2.807473 | AQ170: 0.507473 | AR170: -1.04253 | AS170: 4.37447 | AT170: 0.59047 | AU170: 0.257473 | AV170: 0.80747 | AW170: 2.04047 | AX170: -0.142527 | AY170: 0.20747 | AZ170: -0.15953 | BA170: -0.67553 | BB170: 0.44047 | BC170: 5.39047 | BD170: 4.18747 | BE170: -0.07553 | BF170: 0.13747 | BG170: 3.330794219 | BH170: 5.207980187 | BI170: 4.140336532 | BJ170: 3.062442982 | BK170: 2.0741482 | BL170: 4.401816201 | BM170: 0.7075830069 | BN170: 0.4129820487 | BO170: 0.8760907786 | BP170: 2.255064858 | BQ170: 1.982234641 | BR170: 0.3731087675 | BS170: 2.614974706 | BT170: 1.157471223 | BU170: 0.4422731189 | BV170: 5.403644534 | BW170: 4.515678967 | BX170: 0.731016421 | BY170: 1.168223546 | BZ170: Salem
K171: 97259 | L171: Portland | M171: Multnomah | N171: 4C | P171: 97132 | Q171: Newberg | R171: OR | S171: 45.310304 | T171: 122.972 | U171: 3.090304 | V171: 0.027304 | W171: 3.143304 | X171: 3.120304 | Y171: 1.893304 | Z171: -0.389696 | AA171: -0.289696 | AB171: -0.222696 | AC171: -0.239693 | AD171: 1.060304 | AE171: 2.077304 | AF171: 0.410307 | AG171: 2.710304 | AH171: -0.839693 | AI171: 0.060304 | AJ171: 0.477304 | AK171: 1.790304 | AL171: 0.827304 | AM171: 1.260307 | AN171: 1.232 | AO171: 4.972 | AP171: 2.572003 | AQ171: 0.272003 | AR171: -1.278 | AS171: 4.139 | AT171: 0.355 | AU171: 0.022003 | AV171: 0.572 | AW171: 1.805 | AX171: -0.377997 | AY171: -0.028 | AZ171: -0.395 | BA171: -0.911 | BB171: 0.205 | BC171: 5.155 | BD171: 3.952 | BE171: -0.311 | BF171: -0.098 | BG171: 3.326830746 | BH171: 4.97207497 | BI171: 4.061472574 | BJ171: 3.132137079 | BK171: 2.284268819 | BL171: 4.157304893 | BM171: 0.4582016722 | BN171: 0.2237803397 | BO171: 0.6201908853 | BP171: 2.093387105 | BQ171: 2.11141508 | BR171: 0.4112612725 | BS171: 2.738936431 | BT171: 1.238953322 | BU171: 0.213685686 | BV171: 5.177049749 | BW171: 4.338604892 | BX171: 0.8838285515 | BY171: 1.264111441 | BZ171: Aurora
K172: 97266 | L172: Portland | M172: Multnomah | N172: 4C | P172: 97121 | Q172: Hammond | R172: OR | S172: 46.187903 | T172: 123.96437 | U172: 3.967903 | V172: 0.904903 | W172: 4.020903 | X172: 3.997903 | Y172: 2.770903 | Z172: 0.487903 | AA172: 0.587903 | AB172: 0.654903 | AC172: 0.637906 | AD172: 1.937903 | AE172: 2.954903 | AF172: 1.287906 | AG172: 3.587903 | AH172: 0.037906 | AI172: 0.937903 | AJ172: 1.354903 | AK172: 2.667903 | AL172: 1.704903 | AM172: 2.137906 | AN172: 2.22437 | AO172: 5.96437 | AP172: 3.564373 | AQ172: 1.264373 | AR172: -0.28563 | AS172: 5.13137 | AT172: 1.34737 | AU172: 1.014373 | AV172: 1.56437 | AW172: 2.79737 | AX172: 0.614373 | AY172: 0.96437 | AZ172: 0.59737 | BA172: 0.08137 | BB172: 1.19737 | BC172: 6.14737 | BD172: 4.94437 | BE172: 0.68137 | BF172: 0.89437 | BG172: 4.548854374 | BH172: 6.032624548 | BI172: 5.373305856 | BJ172: 4.193073751 | BK172: 2.785585743 | BL172: 5.154513305 | BM172: 1.470046208 | BN172: 1.20741481 | BO172: 1.689431136 | BP172: 3.403049655 | BQ172: 3.018096407 | BR172: 1.608947284 | BS172: 3.637292792 | BT172: 0.08976603888 | BU172: 1.520972371 | BV172: 6.294912236 | BW172: 5.618229358 | BX172: 1.836017243 | BY172: 2.317442505 | BZ172: Astoria
K173: 97267 | L173: Portland | M173: Clackamas | N173: 4C | P173: 97403 | Q173: Eugene | R173: OR | S173: 44.03858 | T173: 123.05562 | U173: 1.81858 | V173: -1.24442 | W173: 1.87158 | X173: 1.84858 | Y173: 0.62158 | Z173: -1.66142 | AA173: -1.56142 | AB173: -1.49442 | AC173: -1.511417 | AD173: -0.21142 | AE173: 0.80558 | AF173: -0.861417 | AG173: 1.43858 | AH173: -2.111417 | AI173: -1.21142 | AJ173: -0.79442 | AK173: 0.51858 | AL173: -0.44442 | AM173: -0.011417 | AN173: 1.31562 | AO173: 5.05562 | AP173: 2.655623 | AQ173: 0.355623 | AR173: -1.19438 | AS173: 4.22262 | AT173: 0.43862 | AU173: 0.105623 | AV173: 0.65562 | AW173: 1.88862 | AX173: -0.294377 | AY173: 0.05562 | AZ173: -0.31138 | BA173: -0.82738 | BB173: 0.28862 | BC173: 5.23862 | BD173: 4.03562 | BE173: -0.22738 | BF173: -0.01438 | BG173: 2.244568823 | BH173: 5.206522325 | BI173: 3.248868298 | BJ173: 1.882475959 | BK173: 1.346441711 | BL173: 4.537712649 | BM173: 1.621856936 | BN173: 1.498147975 | BO173: 1.647488674 | BP173: 1.900416776 | BQ173: 0.8576811497 | BR173: 0.8632107693 | BS173: 1.471893312 | BT173: 2.267738832 | BU173: 1.245327234 | BV173: 5.298513248 | BW173: 4.068802527 | BX173: 0.499210177 | BY173: 0.01836116252 | BZ173: Eugene
K174: 97268 | L174: Portland | M174: Clackamas | N174: 4C | P174: 97053 | Q174: Warren | R174: OR | S174: 45.821358 | T174: 122.86404 | U174: 3.601358 | V174: 0.538358 | W174: 3.654358 | X174: 3.631358 | Y174: 2.404358 | Z174: 0.121358 | AA174: 0.221358 | AB174: 0.288358 | AC174: 0.271361 | AD174: 1.571358 | AE174: 2.588358 | AF174: 0.921361 | AG174: 3.221358 | AH174: -0.328639 | AI174: 0.571358 | AJ174: 0.988358 | AK174: 2.301358 | AL174: 1.338358 | AM174: 1.771361 | AN174: 1.12404 | AO174: 4.86404 | AP174: 2.464043 | AQ174: 0.164043 | AR174: -1.38596 | AS174: 4.03104 | AT174: 0.24704 | AU174: -0.085957 | AV174: 0.46404 | AW174: 1.69704 | AX174: -0.485957 | AY174: -0.13596 | AZ174: -0.50296 | BA174: -1.01896 | BB174: 0.09704 | BC174: 5.04704 | BD174: 3.84404 | BE174: -0.41896 | BF174: -0.20596 | BG174: 3.772697359 | BH174: 4.893742378 | BI174: 4.407475502 | BJ174: 3.635061352 | BK174: 2.77521576 | BL174: 4.032866381 | BM174: 0.3317048775 | BN174: 0.300896896 | BO174: 0.537559219 | BP174: 2.31281446 | BQ174: 2.633581467 | BR174: 0.9313383993 | BS174: 3.260385886 | BT174: 1.070646101 | BU174: 0.5795400985 | BV174: 5.142904267 | BW174: 4.480278135 | BX174: 1.402401375 | BY174: 1.783294511 | BZ174: Portland (Hillsboro)
K175: 97269 | L175: Portland | M175: Clackamas | N175: 4C | P175: 97351 | Q175: Independence | R175: OR | S175: 44.849012 | T175: 123.18673 | U175: 2.629012 | V175: -0.433988 | W175: 2.682012 | X175: 2.659012 | Y175: 1.432012 | Z175: -0.850988 | AA175: -0.750988 | AB175: -0.683988 | AC175: -0.700985 | AD175: 0.599012 | AE175: 1.616012 | AF175: -0.050985 | AG175: 2.249012 | AH175: -1.300985 | AI175: -0.400988 | AJ175: 0.016012 | AK175: 1.329012 | AL175: 0.366012 | AM175: 0.799015 | AN175: 1.44673 | AO175: 5.18673 | AP175: 2.786733 | AQ175: 0.486733 | AR175: -1.06327 | AS175: 4.35373 | AT175: 0.56973 | AU175: 0.236733 | AV175: 0.78673 | AW175: 2.01973 | AX175: -0.163267 | AY175: 0.18673 | AZ175: -0.18027 | BA175: -0.69627 | BB175: 0.41973 | BC175: 5.36973 | BD175: 4.16673 | BE175: -0.09627 | BF175: 0.11673 | BG175: 3.000788528 | BH175: 5.204854818 | BI175: 3.867695591 | BJ175: 2.703193265 | BK175: 1.783592291 | BL175: 4.436118291 | BM175: 0.9426426943 | BN175: 0.7237970002 | BO175: 1.053719158 | BP175: 2.106685702 | BQ175: 1.624238559 | BR175: 0.1935653975 | BS175: 2.256225221 | BT175: 1.475585946 | BU175: 0.5804865623 | BV175: 5.369753873 | BW175: 4.37354682 | BX175: 0.3784609584 | BY175: 0.8074966645 | BZ175: Salem
K176: 97271 | L176: Portland | M176: Multnomah | N176: 4C | P176: 97539 | Q176: Shady Cove | R176: OR | S176: 42.612422 | T176: 122.81342 | U176: 0.392422 | V176: -2.670578 | W176: 0.445422 | X176: 0.422422 | Y176: -0.804578 | Z176: -3.087578 | AA176: -2.987578 | AB176: -2.920578 | AC176: -2.937575 | AD176: -1.637578 | AE176: -0.620578 | AF176: -2.287575 | AG176: 0.012422 | AH176: -3.537575 | AI176: -2.637578 | AJ176: -2.220578 | AK176: -0.907578 | AL176: -1.870578 | AM176: -1.437575 | AN176: 1.07342 | AO176: 4.81342 | AP176: 2.413423 | AQ176: 0.113423 | AR176: -1.43658 | AS176: 3.98042 | AT176: 0.19642 | AU176: -0.136577 | AV176: 0.41342 | AW176: 1.64642 | AX176: -0.536577 | AY176: -0.18658 | AZ176: -0.55358 | BA176: -1.06958 | BB176: 0.04642 | BC176: 4.99642 | BD176: 3.79342 | BE176: -0.46958 | BF176: -0.25658 | BG176: 1.142902237 | BH176: 5.504634316 | BI176: 2.454182417 | BJ176: 0.437384411 | BK176: 1.646544216 | BL176: 5.037547149 | BM176: 2.994027909 | BN176: 2.923769678 | BO176: 2.966523719 | BP176: 2.322145672 | BQ176: 0.8203852333 | BR176: 2.295171339 | BS176: 0.5537193535 | BT176: 3.695732439 | BU176: 2.637986452 | BV176: 5.467648441 | BW176: 3.900478576 | BX176: 1.928618011 | BY176: 1.460292839 | BZ176: Medford
K177: 97272 | L177: Portland | M177: Multnomah | N177: 4C | P177: 97057 | Q177: Shaniko | R177: OR | S177: 45.263301 | T177: 121.088513 | U177: 3.043301 | V177: -0.019699 | W177: 3.096301 | X177: 3.073301 | Y177: 1.846301 | Z177: -0.436699 | AA177: -0.336699 | AB177: -0.269699 | AC177: -0.286696 | AD177: 1.013301 | AE177: 2.030301 | AF177: 0.363304 | AG177: 2.663301 | AH177: -0.886696 | AI177: 0.013301 | AJ177: 0.430301 | AK177: 1.743301 | AL177: 0.780301 | AM177: 1.213304 | AN177: -0.651487 | AO177: 3.088513 | AP177: 0.688516 | AQ177: -1.611484 | AR177: -3.161487 | AS177: 2.255513 | AT177: -1.528487 | AU177: -1.861484 | AV177: -1.311487 | AW177: -0.078487 | AX177: -2.261484 | AY177: -1.911487 | AZ177: -2.278487 | BA177: -2.794487 | BB177: -1.678487 | BC177: 3.271513 | BD177: 2.068513 | BE177: -2.194487 | BF177: -1.981487 | BG177: 3.112252607 | BH177: 3.088575821 | BI177: 3.171929092 | BJ177: 3.470167102 | BK177: 3.661123794 | BL177: 2.297399597 | BM177: 1.565132175 | BN177: 1.88092005 | BO177: 1.342457727 | BP177: 1.016336128 | BQ177: 3.039149887 | BR177: 1.945706131 | BS177: 3.504950103 | BT177: 2.931789111 | BU177: 1.6785397 | BV177: 3.299690328 | BW177: 2.705151457 | BX177: 2.329086268 | BY177: 2.323445142 | BZ177: Redmond
K178: 97280 | L178: Portland | M178: Multnomah | N178: 4C | P178: 97107 | Q178: Bay City | R178: OR | S178: 45.534203 | T178: 123.88468 | U178: 3.314203 | V178: 0.251203 | W178: 3.367203 | X178: 3.344203 | Y178: 2.117203 | Z178: -0.165797 | AA178: -0.065797 | AB178: 0.001203 | AC178: -0.015794 | AD178: 1.284203 | AE178: 2.301203 | AF178: 0.634206 | AG178: 2.934203 | AH178: -0.615794 | AI178: 0.284203 | AJ178: 0.701203 | AK178: 2.014203 | AL178: 1.051203 | AM178: 1.484206 | AN178: 2.14468 | AO178: 5.88468 | AP178: 3.484683 | AQ178: 1.184683 | AR178: -0.36532 | AS178: 5.05168 | AT178: 1.26768 | AU178: 0.934683 | AV178: 1.48468 | AW178: 2.71768 | AX178: 0.534683 | AY178: 0.88468 | AZ178: 0.51768 | BA178: 0.00168 | BB178: 1.11768 | BC178: 6.06768 | BD178: 4.86468 | BE178: 0.60168 | BF178: 0.81468 | BG178: 3.947606088 | BH178: 5.890039189 | BI178: 4.845727154 | BJ178: 3.547839838 | BK178: 2.148489527 | BL178: 5.054400011 | BM178: 1.269386398 | BN178: 0.9346837742 | BO178: 1.484764006 | BP178: 3.00582134 | BQ178: 2.362503155 | BR178: 1.088520075 | BS178: 2.979520067 | BT178: 0.6157962917 | BU178: 1.153247557 | BV178: 6.108062396 | BW178: 5.265180455 | BX178: 1.211216979 | BY178: 1.693095081 | BZ178: Astoria
K179: 97281 | L179: Portland | M179: Washington | N179: 4C | P179: 97502 | Q179: Central Point | R179: OR | S179: 42.387399 | T179: 122.92154 | U179: =$S179-VLOOKUP(U$18,$A$19:$F$37,5,FALSE) -> 0.167399 | V179: -2.895601 | W179: 0.220399 | X179: 0.197399 | Y179: -1.029601 | Z179: -3.312601 | AA179: -3.212601 | AB179: -3.145601 | AC179: -3.162598 | AD179: -1.862601 | AE179: -0.845601 | AF179: -2.512598 | AG179: -0.212601 | AH179: -3.762598 | AI179: -2.862601 | AJ179: -2.445601 | AK179: =$S179-VLOOKUP(AK$18,$A$19:$F$37,5,FALSE) -> -1.132601 | AL179: -2.095601 | AM179: -1.662598 | AN179: =$T179-VLOOKUP(AN$18,$A$19:$F$37,6,FALSE) -> 1.18154 | AO179: 4.92154 | AP179: 2.521543 | AQ179: 0.221543 | AR179: -1.32846 | AS179: 4.08854 | AT179: 0.30454 | AU179: -0.028457 | AV179: 0.52154 | AW179: 1.75454 | AX179: -0.428457 | AY179: -0.07846 | AZ179: -0.44546 | BA179: -0.96146 | BB179: 0.15454 | BC179: 5.10454 | BD179: =$T179-VLOOKUP(BD$18,$A$19:$F$37,6,FALSE) -> 3.90154 | BE179: -0.36146 | BF179: -0.14846 | BG179: 1.193339514 | BH179: 5.710171724 | BI179: 2.531156815 | BJ179: 0.2967282697 | BK179: 1.68073918 | BL179: 5.262079885 | BM179: 3.227003222 | BN179: 3.145729717 | BO179: 3.20531279 | BP179: 2.558846048 | BQ179: 0.9479538238 | BR179: 2.513822723 | BS179: 0.4935927439 | BT179: 3.883497012 | BU179: 2.866769453 | BV179: 5.660149544 | BW179: 4.062609924 | BX179: 2.126545763 | BY179: 1.669213132 | BZ179: Medford
K180: 97282 | L180: Portland | M180: Multnomah | N180: 4C | P180: 97065 | Q180: Wasco | R180: OR | S180: 45.585405 | T180: 120.69234 | U180: 3.365405 | V180: 0.302405 | W180: 3.418405 | X180: 3.395405 | Y180: 2.168405 | Z180: -0.114595 | AA180: -0.014595 | AB180: 0.052405 | AC180: 0.035408 | AD180: 1.335405 | AE180: 2.352405 | AF180: 0.685408 | AG180: 2.985405 | AH180: -0.564592 | AI180: 0.335405 | AJ180: 0.752405 | AK180: 2.065405 | AL180: 1.102405 | AM180: 1.535408 | AN180: -1.04766 | AO180: 2.69234 | AP180: 0.292343 | AQ180: -2.007657 | AR180: -3.55766 | AS180: 1.85934 | AT180: -1.92466 | AU180: -2.257657 | AV180: -1.70766 | AW180: -0.47466 | AX180: -2.657657 | AY180: -2.30766 | AZ180: -2.67466 | BA180: -3.19066 | BB180: -2.07466 | BC180: 2.87534 | BD180: 1.67234 | BE180: -2.59066 | BF180: -2.37766 | BG180: 3.524704568 | BH180: 2.709269913 | BI180: 3.430882856 | BJ180: 3.944548357 | BK180: 4.166404315 | BL180: 1.862868017 | BM180: 1.924715337 | BN180: 2.258265134 | BO180: 1.70802705 | BP180: 1.417253904 | BQ180: 3.549218226 | BR180: 2.407296991 | BS180: 4.008297535 | BT180: 3.240227671 | BU180: 2.101597162 | BV180: 2.972152991 | BW180: 2.657558821 | BX180: 2.815460179 | BY180: 2.830325918 | BZ180: Redmond
